Workbook

Sheet Guidelines
B1: OFFICE OF THE DEPUTY VICE-CHANCELLOR (RESEARCH)
B2: RESEARCH FINANCE & POST-AWARD OFFICE
B3: 2019 V2
B5: RESEARCH GRANT BUDGET APPROVAL FORM - USER GUIDE
B7: Index of worksheets
B9: Worksheets in this file:
B10: 1.Coversheet | C10: Section 1: To be completed by Applicant. Please refer to key colours to complete application (refer to cell B8) Section 2: To be completed by Applicant once grant is awarded and contract executed (Post-Award Stage). Notes: Information must not be missed as it may affect calculations; for example, start/end date. Row 22 is formula driven from the tab workings (salary and non salary). Separate budgets must be completed for ACU Cash Contributions (top-ups) and Partner contributions.
B11: 2.Project Summary | C11: Summary of project costings, no data input is required.
B12: 3.Continue_Fixed Salary | C12: To be completed for all ACU Staff (on-going and fixed term) based on FTE. Do not include ARC and NHMRC Fellowships. Start date must not be 02/07/20XX; please use a day before or a day after
B13: 4. Casual Salary | C13: To be completed for all ACU casual staff. ACU Budget Calculator: on costs are based on ACU rates. ARC Budget Calculator: on costs are based on ARC rates.
B14: 5.Manual Salary | C14: To be completed manually. For example, enter salary costs for ARC and NHMRC Fellowships. Use the mini calculator in row 27 to work out the base salary for fellowships.
B15: 6.Direct Non-Salary | C15: All non-staff activities directly contributing to the project must be listed in this sheet. E.g. Equipment Acquisitions, Repairs & Maintenance, Travel , Contingencies and Other Direct expenses.
B16: 7. Working Notes | C16: Further Information to be included to support application
B17: 8.ICR Calculator | C17: Calcualtes ICR at pre and post award stage. Calculations does not affect the budget or workings, it is to be used as a reference. Pre-award: Step 1: Calculate all project costs, enter this value in cell G16. Enter ICR % in cell G14. The total Funding, cell G20, must be entered in tab 10 "Budget Load" row 18. Post-award: Step 1: Enter awarded amount in cell J16 and ICR % in cell J14. Total Funding, cell J20, must be entered in tab 10 "Budget Load" row 18. This income must reconclie to the funding in the letter of award or executed agreement
B18: 9.Invoicing Details | C18: Requires data input, please refer to key colours, cell G8.
B19: 10. Budget Load | C19: The workings, from the Salary and Non salary, will be fed to the Budget load. Before submitting your budget for approval, please ensure that the Total Surplus/(Deficit) row is zero. If you experience any issues, contact res.postaward@acu.edu.au or resgrants.finance@acu.edu.au

Sheet 1.Coversheet
B2: OFFICE OF THE DEPUTY VICE-CHANCELLOR (RESEARCH)
B3: RESEARCH FINANCE & POST-AWARD OFFICE
B4: RESEARCH GRANT BUDGET TEMPLATE
B5: 2019 V2
B6: PROJECT SUMMARY
B8: Key:
B9: Data Input Required
B10: SECTION 1
B11: (To be completed by Researcher)
B12: Type of Project | H12: Orion No
B13: Funding Source | H13: Funding Scheme Reference
B14: Project Title
B15: Collaborating Organisation(s)
B16: Faculty/Research Institute
B17: Lead Chief Investigator(s)
B19: Project Start Date: | H19: Ethics Clearance Required?
B20: Project End Date: | H20: Ethics Clearance Date
B22: Total Funding AUD | D22: =SUM('3.Continue_Fixed Salary'!AK25+'4. Casual Salary'!M7+'4. Casual Salary'!Z7+'5.Manual Salary'!AC24+'6.Non-Salary Costs'!N14)/(100%-'1.Coversheet'!H24) -> 0 | G22: Project Costs AUD | H22: =D22-J22 -> 0 | I22: Indirect Cost Recovery Amount AUD | J22: =D22*H24 -> 0
B24: Indirect Cost Recovery (ICR) Applicable? | G24: Indirect Cost Recovery (ICR) Percentage | I24: GST Applicable?
B26: Is Funder to be invoiced in Foreign Currency? | G26: Amount in Foreign Currency (if applicable) | I26: Exchange Rate (if applicable)
B28: If you have not charged ICR please indicate the reason below please tick appropriate box
B33: SECTION 2
B35: Certification by Chief Investigator
B37: I certify that:
B38: · The details in the grant application (if applicable) and in this Research Funding Approval Form are true and complete;
B39: · I have complied with the guidelines for the granting scheme (if applicable);
B40: · All participants named in the project specification / grant have agreed to their roles and responsibilities as stated;
B41: · Firm and written commitments have been obtained for any matching cash and/or in-kind contributions and copies have been provided to Research Office;
B42: · I will comply with all ethical and safety requirements.
B45: Name: | J45: Date
B47: Chief Investigator | E47: Signature
B49: Certification by Faculty Dean/ADR or Research Institute Director (or Delegate)
B51: I certify that:
B52: · The project is viable in terms of ACU resources and the funds requested;
B53: · The project has been priced in accordance with University policy and Division guidelines including overheads as appropriate;
B54: · The Department/Research Institute will provide the necessary basic infrastructure for the project, including sufficient working and office space for project staff;
B55: · The Department/Research Institute has made adequate provision for the installation, establishment and recurrent costs associated with any equipment purchased and /or facility established with project funds;
B56: · The amount of time that the researcher(s) will be devoting to the project is appropriate to existing workloads;
B57: · If successful, the project will not be permitted to proceed until appropriate ethical and safety clearances have been obtained and ethical and safety requirements will be observed throughout the project;
B58: · Cash and in-kind contributions attributed to ACU are correct;
B59: · I agree to have the project carried out in ACU in accordance with the funding requirements and/or contract; and
B60: · I approve access to the first Chief Investigator and project support staff to Financial and Expense Management Systems for the purpose of purchasing, reporting and reviewing financial information against accounts established for this project.
B63: Name: | J63: Date
B65: Faculty Dean/ADR or Institute Director (or delegate) | E65: Signature | G65: Signature
B68: SECTION 3
B69: Research Office (only)
B71: DVCR/PVCR APPROVAL
B73: Name: | J73: Date
E75: Signature

Sheet 2.Project Summary
B2: OFFICE OF THE DEPUTY VICE-CHANCELLOR (RESEARCH)
B3: RESEARCH FINANCE & POST-AWARD OFFICE
B4: EXTERNALLY FUNDED PROJECT COSTS SUMMARY
D6: Orion No: | E6: =IF('1.Coversheet'!I12=0,"",'1.Coversheet'!I12) -> 
D7: Project Title: | E7: =IF('1.Coversheet'!D14=0,"",'1.Coversheet'!D14) -> 
D8: Project Start Date: | E8: =IF('1.Coversheet'!D19=0," ",'1.Coversheet'!D19) -> 
D9: Project End Date: | E9: =IF('1.Coversheet'!D20=0," ",'1.Coversheet'!D20) -> 
D15: Funding summary | G15: $ | I15: 2019 | J15: =I15+1 -> 2020 | K15: 2021 | L15: 2022 | M15: 2023 | N15: =L15+1 -> 2023 | O15: =M15+1 -> 2024 | P15: 2025 | Q15: 2026
D17: Total Income | G17: =SUM(I17:Q17) -> 0 | I17: ='10. Budget Load'!M10 -> 0 | J17: ='10. Budget Load'!N10 -> 0 | K17: ='10. Budget Load'!O10 -> 0 | L17: ='10. Budget Load'!P10 -> 0 | M17: ='10. Budget Load'!Q10 -> 0 | N17: ='10. Budget Load'!R10 -> 0 | O17: ='10. Budget Load'!S10 -> 0 | P17: ='10. Budget Load'!R10 -> 0 | Q17: ='10. Budget Load'!S10 -> 0
D20: Non Salary costs | G20: =SUM(I20:Q20) -> 0 | I20: ='6.Non-Salary Costs'!G14 -> 0 | J20: ='6.Non-Salary Costs'!H14 -> 0 | K20: ='6.Non-Salary Costs'!I14 -> 0 | L20: ='6.Non-Salary Costs'!J14 -> 0 | M20: ='6.Non-Salary Costs'!K14 -> 0 | N20: ='6.Non-Salary Costs'!L14 -> 0 | O20: ='6.Non-Salary Costs'!M14 -> 0 | P20: ='6.Non-Salary Costs'!L14 -> 0 | Q20: ='6.Non-Salary Costs'!M14 -> 0
D22: Salary Costs | G22: =SUM(I22:Q22) -> 0 | I22: ='10. Budget Load'!M39 -> 0 | J22: ='10. Budget Load'!N39 -> 0 | K22: ='10. Budget Load'!O39 -> 0 | L22: ='10. Budget Load'!P39 -> 0 | M22: ='10. Budget Load'!Q39 -> 0 | N22: ='10. Budget Load'!R39 -> 0 | O22: ='10. Budget Load'!S39 -> 0 | P22: ='10. Budget Load'!R39 -> 0 | Q22: ='10. Budget Load'!S39 -> 0
D24: Total Project Costs | F24: =G20+G22 -> 0 | G24: =SUM(I24:Q24) -> 0 | I24: =I20+I22 -> 0 | J24: =J20+J22 -> 0 | K24: 0 | L24: 0 | M24: 0 | N24: 0 | O24: 0 | P24: =SUM(P22:P23,P20) -> 0 | Q24: 0
D26: ICR (If applicable) | G26: =SUM(I26:Q26) -> 0 | I26: ='10. Budget Load'!M138 -> 0 | J26: ='10. Budget Load'!N138 -> 0 | K26: ='10. Budget Load'!O138 -> 0 | L26: ='10. Budget Load'!P138 -> 0 | M26: ='10. Budget Load'!Q138 -> 0 | N26: ='10. Budget Load'!R138 -> 0 | O26: ='10. Budget Load'!S138 -> 0 | P26: ='10. Budget Load'!R138 -> 0 | Q26: ='10. Budget Load'!S138 -> 0
D28: Total Project Costs (inc ICR) | G28: =SUM(I28:Q28) -> 0 | I28: =I24+I26 -> 0 | J28: 0 | K28: 0 | L28: 0 | M28: 0 | N28: 0 | O28: 0 | P28: 0 | Q28: 0
D30: Check | G30: =G17-G28 -> 0

Sheet 3.Continue_Fixed Salary
B2: OFFICE OF THE DEPUTY VICE-CHANCELLOR (RESEARCH)
B3: RESEARCH FINANCE & POST-AWARD OFFICE
B4: Salary Calculator (On-going / Fixed Term)
B6: DO NOT USE 02/07/20XX AS START DATE, ANY OTHER DATE IS FINE
R8: FINANCIAL YEAR | V8: SALARY PER YEAR | AC8: ON-COSTS PER YEAR
B9: Staff Name | C9: Role | E9: Salary Scale (Mandatory) | F9: Account Code (Mandatory) | G9: Finance Code | H9: Finance Code 2 | I9: Employment Type (On-costs) (Mandatory) | J9: FTE | K9: Start Date | L9: End Date | M9: Incremental Increases? | N9: Increment Start Date | O9: On-Cost % | P9: Commencing Salary | Q9: ID | R9: Pay Year | S9: FinYear determiner 1 | T9: FinYear determiner 1 | U9: ='Staff Calculations'!C70 -> 2018 | V9: ='Staff Calculations'!D70 -> 2019 | W9: ='Staff Calculations'!E70 -> 2020 | X9: ='Staff Calculations'!F70 -> 2021 | Y9: ='Staff Calculations'!G70 -> 2022 | Z9: ='Staff Calculations'!H70 -> 2023 | AA9: ='Staff Calculations'!I70 -> 2024 | AB9: ='Staff Calculations'!J70 -> 2025 | AC9: ="On-cost" &" " &U9 -> On-cost 2018 | AD9: On-cost 2019 | AE9: On-cost 2020 | AF9: On-cost 2021 | AG9: On-cost 2022 | AH9: On-cost 2023 | AI9: ="On-cost" &" " &AA9 -> On-cost 2024 | AJ9: On-cost 2025 | AK9: Total (including on-costs) | AM9: Notes
G10: =LEFT(F10,5) ->  | H10: =IF(OR(E10=0,J10=0,K10=0,L10=0),0,IF(G10="20101",20151,IF(G10="20102",20152,IF(G10="20103",20153,IF(G10="20201",20251,IF(G10="20202",20252,IF(G10="20203",20253,0))))))) -> 0 | M10: Yes | N10: =K10+365 -> 1900-12-30 | O10: =IF(OR(E10=0,J10=0,K10=0,L10=0),0,IF(I10="Fixed Contract <12 months (20%)",20%,IF(I10="Casual (16.3%)",16.3%,IF(I10="Fixed Contract >12 months (27.5%)",27.5%,IF(I10="Fixed Contract (30%)",30%,IF(I10="Casual (30%)",30%,0)))))) -> 0 | P10: =IF(OR(ISBLANK($E10),ISBLANK($K10),ISBLANK($I10)),0,IF($I10="Casual (16.3%)",VLOOKUP('3.Continue_Fixed Salary'!$E10,'Salary Schedule'!$A$67:$M$122,((HLOOKUP((IF((S10="Higher"),T10,S10)),'Salary Schedule'!$B$4:$M$5,2,FALSE))),FALSE),IF($I10="Casual (30%)",VLOOKUP('3.Continue_Fixed Salary'!$E10,'Salary Schedule'!$A$67:$M$122,((HLOOKUP((IF((S10="Higher"),T10,S10)),'Salary Schedule'!$B$4:$M$5,2,FALSE))),FALSE),IF($I10="Fixed Contract <12 months (20%)",VLOOKUP('3.Continue_Fixed Salary'!$E10,'Salary Schedule'!$A$9:$M$64,((HLOOKUP((IF((S10="Higher"),T10,S10)),'Salary Schedule'!$B$4:$M$5,2,FALSE))),FALSE),VLOOKUP(E10,'Salary Schedule'!$A$5:$M$64,((HLOOKUP((IF((S10="Higher"),T10,S10)),'Salary Schedule'!$B$4:$M$5,2,FALSE))),FALSE))))) -> 0 | Q10: 1 | R10: =(IF((S10="Higher"),T10,S10)) -> Invalid Date | S10: =(IF(AND(K10>Years!$B$19,K10<Years!$C$15),'Salary Schedule'!D$4,(IF(AND(K10>Years!$B$16,K10<Years!$D$15),'Salary Schedule'!E$4,(IF(AND(K10>Years!$C$16,K10<Years!$E$15),'Salary Schedule'!F$4,(IF(AND(K10>Years!$D$16,K10<Years!$F$15),'Salary Schedule'!G$4,(IF(AND(K10>Years!$E$16,K10<Years!$G$15),'Salary Schedule'!H$4,(IF(AND(K10>Years!$F$16,K10<Years!$H$15),'Salary Schedule'!I$4,(IF(AND(K10>Years!$G$16,K10<Years!$I$15),'Salary Schedule'!J$4,(IF(AND(K10>Years!$H$16,K10<Years!$J$15),'Salary Schedule'!K$4,(IF(AND(K10>Years!$I$16,K10<Years!$K$15),'Salary Schedule'!L$4,(IF(AND(K10>Years!$J$16,K10<Years!$L$15),'Salary Schedule'!M$4,(IF(AND(K10>Years!$K$16,K10<Years!$M$15),'Salary Schedule'!N$4,(IF(AND(K10>Years!$K$16,K10<Years!$N$15),'Salary Schedule'!O$4,"Higher")))))))))))))))))))))))) -> Higher | T10: Invalid Date | U10: ='Staff Calculations'!C46 -> 0 | V10: ='Staff Calculations'!D46 -> 0 | W10: ='Staff Calculations'!E46 -> 0 | X10: ='Staff Calculations'!F46 -> 0 | Y10: ='Staff Calculations'!G46 -> 0 | Z10: ='Staff Calculations'!H46 -> 0 | AA10: ='Staff Calculations'!I46 -> 0 | AB10: ='Staff Calculations'!J46 -> 0 | AC10: =U10*$O$10 -> 0 | AD10: 0 | AE10: 0 | AF10: 0 | AG10: 0 | AH10: 0 | AI10: =AA10*$O$10 -> 0 | AJ10: 0 | AK10: =(IF(OR(E10=0,J10=0,K10=0,L10=0,I10=0),0,SUMIF(U10:AJ10,"> 0"))) -> 0
G11: =LEFT(F11,5) ->  | H11: =IF(OR(E11=0,J11=0,K11=0,L11=0),0,IF(G11="20101",20151,IF(G11="20102",20152,IF(G11="20103",20153,IF(G11="20201",20251,IF(G11="20202",20252,IF(G11="20203",20253,0))))))) -> 0 | M11: Yes | N11: 1900-12-30 | O11: =IF(OR(E11=0,J11=0,K11=0,L11=0),0,IF(I11="Fixed Contract <12 months (20%)",20%,IF(I11="Casual (16.3%)",16.3%,IF(I11="Fixed Contract >12 months (27.5%)",27.5%,IF(I11="Fixed Contract (30%)",30%,IF(I11="Casual (30%)",30%,0)))))) -> 0 | P11: =IF(OR(ISBLANK($E11),ISBLANK($K11),ISBLANK($I11)),0,IF($I11="Casual (16.3%)",VLOOKUP('3.Continue_Fixed Salary'!$E11,'Salary Schedule'!$A$67:$M$122,((HLOOKUP((IF((S11="Higher"),T11,S11)),'Salary Schedule'!$B$4:$M$5,2,FALSE))),FALSE),IF($I11="Casual (30%)",VLOOKUP('3.Continue_Fixed Salary'!$E11,'Salary Schedule'!$A$67:$M$122,((HLOOKUP((IF((S11="Higher"),T11,S11)),'Salary Schedule'!$B$4:$M$5,2,FALSE))),FALSE),IF($I11="Fixed Contract <12 months (20%)",VLOOKUP('3.Continue_Fixed Salary'!$E11,'Salary Schedule'!$A$9:$M$64,((HLOOKUP((IF((S11="Higher"),T11,S11)),'Salary Schedule'!$B$4:$M$5,2,FALSE))),FALSE),VLOOKUP(E11,'Salary Schedule'!$A$5:$M$64,((HLOOKUP((IF((S11="Higher"),T11,S11)),'Salary Schedule'!$B$4:$M$5,2,FALSE))),FALSE))))) -> 0 | Q11: 2 | R11: =(IF((S11="Higher"),T11,S11)) -> Invalid Date | S11: =(IF(AND(K11>Years!$B$19,K11<Years!$C$15),'Salary Schedule'!D$4,(IF(AND(K11>Years!$B$16,K11<Years!$D$15),'Salary Schedule'!E$4,(IF(AND(K11>Years!$C$16,K11<Years!$E$15),'Salary Schedule'!F$4,(IF(AND(K11>Years!$D$16,K11<Years!$F$15),'Salary Schedule'!G$4,(IF(AND(K11>Years!$E$16,K11<Years!$G$15),'Salary Schedule'!H$4,(IF(AND(K11>Years!$F$16,K11<Years!$H$15),'Salary Schedule'!I$4,(IF(AND(K11>Years!$G$16,K11<Years!$I$15),'Salary Schedule'!J$4,(IF(AND(K11>Years!$H$16,K11<Years!$J$15),'Salary Schedule'!K$4,(IF(AND(K11>Years!$I$16,K11<Years!$K$15),'Salary Schedule'!L$4,(IF(AND(K11>Years!$J$16,K11<Years!$L$15),'Salary Schedule'!M$4,(IF(AND(K11>Years!$K$16,K11<Years!$M$15),'Salary Schedule'!N$4,(IF(AND(K11>Years!$K$16,K11<Years!$N$15),'Salary Schedule'!O$4,"Higher")))))))))))))))))))))))) -> Higher | T11: Invalid Date | U11: ='Staff Calculations'!C47 -> 0 | V11: ='Staff Calculations'!D47 -> 0 | W11: ='Staff Calculations'!E47 -> 0 | X11: ='Staff Calculations'!F47 -> 0 | Y11: ='Staff Calculations'!G47 -> 0 | Z11: ='Staff Calculations'!H47 -> 0 | AA11: ='Staff Calculations'!I47 -> 0 | AB11: ='Staff Calculations'!J47 -> 0 | AC11: =U11*$O$11 -> 0 | AD11: 0 | AE11: 0 | AF11: 0 | AG11: 0 | AH11: 0 | AI11: =AA11*$O$11 -> 0 | AJ11: 0 | AK11: =(IF(OR(E11=0,J11=0,K11=0,L11=0,I11=0),0,SUMIF(U11:AJ11,"> 0"))) -> 0
H12: =IF(OR(E12=0,J12=0,K12=0,L12=0),0,IF(G12="20101",20151,IF(G12="20102",20152,IF(G12="20103",20153,IF(G12="20201",20251,IF(G12="20202",20252,IF(G12="20203",20253,0))))))) -> 0 | M12: Yes | N12: 1900-12-30 | O12: 0 | P12: =IF(OR(ISBLANK($E12),ISBLANK($K12),ISBLANK($I12)),0,IF($I12="Casual (16.3%)",VLOOKUP('3.Continue_Fixed Salary'!$E12,'Salary Schedule'!$A$67:$M$122,((HLOOKUP((IF((S12="Higher"),T12,S12)),'Salary Schedule'!$B$4:$M$5,2,FALSE))),FALSE),IF($I12="Casual (30%)",VLOOKUP('3.Continue_Fixed Salary'!$E12,'Salary Schedule'!$A$67:$M$122,((HLOOKUP((IF((S12="Higher"),T12,S12)),'Salary Schedule'!$B$4:$M$5,2,FALSE))),FALSE),IF($I12="Fixed Contract <12 months (20%)",VLOOKUP('3.Continue_Fixed Salary'!$E12,'Salary Schedule'!$A$9:$M$64,((HLOOKUP((IF((S12="Higher"),T12,S12)),'Salary Schedule'!$B$4:$M$5,2,FALSE))),FALSE),VLOOKUP(E12,'Salary Schedule'!$A$5:$M$64,((HLOOKUP((IF((S12="Higher"),T12,S12)),'Salary Schedule'!$B$4:$M$5,2,FALSE))),FALSE))))) -> 0 | Q12: 3 | R12: =(IF((S12="Higher"),T12,S12)) -> Invalid Date | S12: =(IF(AND(K12>Years!$B$19,K12<Years!$C$15),'Salary Schedule'!D$4,(IF(AND(K12>Years!$B$16,K12<Years!$D$15),'Salary Schedule'!E$4,(IF(AND(K12>Years!$C$16,K12<Years!$E$15),'Salary Schedule'!F$4,(IF(AND(K12>Years!$D$16,K12<Years!$F$15),'Salary Schedule'!G$4,(IF(AND(K12>Years!$E$16,K12<Years!$G$15),'Salary Schedule'!H$4,(IF(AND(K12>Years!$F$16,K12<Years!$H$15),'Salary Schedule'!I$4,(IF(AND(K12>Years!$G$16,K12<Years!$I$15),'Salary Schedule'!J$4,(IF(AND(K12>Years!$H$16,K12<Years!$J$15),'Salary Schedule'!K$4,(IF(AND(K12>Years!$I$16,K12<Years!$K$15),'Salary Schedule'!L$4,(IF(AND(K12>Years!$J$16,K12<Years!$L$15),'Salary Schedule'!M$4,(IF(AND(K12>Years!$K$16,K12<Years!$M$15),'Salary Schedule'!N$4,(IF(AND(K12>Years!$K$16,K12<Years!$N$15),'Salary Schedule'!O$4,"Higher")))))))))))))))))))))))) -> Higher | T12: Invalid Date | U12: ='Staff Calculations'!C48 -> 0 | V12: ='Staff Calculations'!D48 -> 0 | W12: ='Staff Calculations'!E48 -> 0 | X12: ='Staff Calculations'!F48 -> 0 | Y12: ='Staff Calculations'!G48 -> 0 | Z12: ='Staff Calculations'!H48 -> 0 | AA12: ='Staff Calculations'!I48 -> 0 | AB12: ='Staff Calculations'!J48 -> 0 | AC12: =U12*$O$12 -> 0 | AD12: 0 | AE12: 0 | AF12: 0 | AG12: 0 | AH12: 0 | AI12: =AA12*$O$12 -> 0 | AJ12: 0 | AK12: 0
H13: 0 | M13: Yes | N13: 1900-12-30 | O13: 0 | P13: =IF(OR(ISBLANK($E13),ISBLANK($K13),ISBLANK($I13)),0,IF($I13="Casual (16.3%)",VLOOKUP('3.Continue_Fixed Salary'!$E13,'Salary Schedule'!$A$67:$M$122,((HLOOKUP((IF((S13="Higher"),T13,S13)),'Salary Schedule'!$B$4:$M$5,2,FALSE))),FALSE),IF($I13="Casual (30%)",VLOOKUP('3.Continue_Fixed Salary'!$E13,'Salary Schedule'!$A$67:$M$122,((HLOOKUP((IF((S13="Higher"),T13,S13)),'Salary Schedule'!$B$4:$M$5,2,FALSE))),FALSE),IF($I13="Fixed Contract <12 months (20%)",VLOOKUP('3.Continue_Fixed Salary'!$E13,'Salary Schedule'!$A$9:$M$64,((HLOOKUP((IF((S13="Higher"),T13,S13)),'Salary Schedule'!$B$4:$M$5,2,FALSE))),FALSE),VLOOKUP(E13,'Salary Schedule'!$A$5:$M$64,((HLOOKUP((IF((S13="Higher"),T13,S13)),'Salary Schedule'!$B$4:$M$5,2,FALSE))),FALSE))))) -> 0 | Q13: 4 | R13: =(IF((S13="Higher"),T13,S13)) -> Invalid Date | S13: =(IF(AND(K13>Years!$B$19,K13<Years!$C$15),'Salary Schedule'!D$4,(IF(AND(K13>Years!$B$16,K13<Years!$D$15),'Salary Schedule'!E$4,(IF(AND(K13>Years!$C$16,K13<Years!$E$15),'Salary Schedule'!F$4,(IF(AND(K13>Years!$D$16,K13<Years!$F$15),'Salary Schedule'!G$4,(IF(AND(K13>Years!$E$16,K13<Years!$G$15),'Salary Schedule'!H$4,(IF(AND(K13>Years!$F$16,K13<Years!$H$15),'Salary Schedule'!I$4,(IF(AND(K13>Years!$G$16,K13<Years!$I$15),'Salary Schedule'!J$4,(IF(AND(K13>Years!$H$16,K13<Years!$J$15),'Salary Schedule'!K$4,(IF(AND(K13>Years!$I$16,K13<Years!$K$15),'Salary Schedule'!L$4,(IF(AND(K13>Years!$J$16,K13<Years!$L$15),'Salary Schedule'!M$4,(IF(AND(K13>Years!$K$16,K13<Years!$M$15),'Salary Schedule'!N$4,(IF(AND(K13>Years!$K$16,K13<Years!$N$15),'Salary Schedule'!O$4,"Higher")))))))))))))))))))))))) -> Higher | T13: Invalid Date | U13: ='Staff Calculations'!C49 -> 0 | V13: ='Staff Calculations'!D49 -> 0 | W13: ='Staff Calculations'!E49 -> 0 | X13: ='Staff Calculations'!F49 -> 0 | Y13: ='Staff Calculations'!G49 -> 0 | Z13: ='Staff Calculations'!H49 -> 0 | AA13: ='Staff Calculations'!I49 -> 0 | AB13: ='Staff Calculations'!J49 -> 0 | AC13: =U13*$O$13 -> 0 | AD13: 0 | AE13: 0 | AF13: 0 | AG13: 0 | AH13: 0 | AI13: =AA13*$O$13 -> 0 | AJ13: 0 | AK13: 0
H14: 0 | M14: Yes | N14: 1900-12-30 | O14: 0 | P14: =IF(OR(ISBLANK($E14),ISBLANK($K14),ISBLANK($I14)),0,IF($I14="Casual (16.3%)",VLOOKUP('3.Continue_Fixed Salary'!$E14,'Salary Schedule'!$A$67:$M$122,((HLOOKUP((IF((S14="Higher"),T14,S14)),'Salary Schedule'!$B$4:$M$5,2,FALSE))),FALSE),IF($I14="Casual (30%)",VLOOKUP('3.Continue_Fixed Salary'!$E14,'Salary Schedule'!$A$67:$M$122,((HLOOKUP((IF((S14="Higher"),T14,S14)),'Salary Schedule'!$B$4:$M$5,2,FALSE))),FALSE),IF($I14="Fixed Contract <12 months (20%)",VLOOKUP('3.Continue_Fixed Salary'!$E14,'Salary Schedule'!$A$9:$M$64,((HLOOKUP((IF((S14="Higher"),T14,S14)),'Salary Schedule'!$B$4:$M$5,2,FALSE))),FALSE),VLOOKUP(E14,'Salary Schedule'!$A$5:$M$64,((HLOOKUP((IF((S14="Higher"),T14,S14)),'Salary Schedule'!$B$4:$M$5,2,FALSE))),FALSE))))) -> 0 | Q14: 5 | R14: Invalid Date | S14: =(IF(AND(K14>Years!$B$19,K14<Years!$C$15),'Salary Schedule'!D$4,(IF(AND(K14>Years!$B$16,K14<Years!$D$15),'Salary Schedule'!E$4,(IF(AND(K14>Years!$C$16,K14<Years!$E$15),'Salary Schedule'!F$4,(IF(AND(K14>Years!$D$16,K14<Years!$F$15),'Salary Schedule'!G$4,(IF(AND(K14>Years!$E$16,K14<Years!$G$15),'Salary Schedule'!H$4,(IF(AND(K14>Years!$F$16,K14<Years!$H$15),'Salary Schedule'!I$4,(IF(AND(K14>Years!$G$16,K14<Years!$I$15),'Salary Schedule'!J$4,(IF(AND(K14>Years!$H$16,K14<Years!$J$15),'Salary Schedule'!K$4,(IF(AND(K14>Years!$I$16,K14<Years!$K$15),'Salary Schedule'!L$4,(IF(AND(K14>Years!$J$16,K14<Years!$L$15),'Salary Schedule'!M$4,(IF(AND(K14>Years!$K$16,K14<Years!$M$15),'Salary Schedule'!N$4,(IF(AND(K14>Years!$K$16,K14<Years!$N$15),'Salary Schedule'!O$4,"Higher")))))))))))))))))))))))) -> Higher | T14: Invalid Date | U14: ='Staff Calculations'!C50 -> 0 | V14: ='Staff Calculations'!D50 -> 0 | W14: ='Staff Calculations'!E50 -> 0 | X14: ='Staff Calculations'!F50 -> 0 | Y14: ='Staff Calculations'!G50 -> 0 | Z14: ='Staff Calculations'!H50 -> 0 | AA14: ='Staff Calculations'!I50 -> 0 | AB14: ='Staff Calculations'!J50 -> 0 | AC14: =U14*$O$14 -> 0 | AD14: 0 | AE14: 0 | AF14: 0 | AG14: 0 | AH14: 0 | AI14: =AA14*$O$14 -> 0 | AJ14: 0 | AK14: 0
H15: 0 | M15: Yes | N15: 1900-12-30 | O15: 0 | P15: =IF(OR(ISBLANK($E15),ISBLANK($K15),ISBLANK($I15)),0,IF($I15="Casual (16.3%)",VLOOKUP('3.Continue_Fixed Salary'!$E15,'Salary Schedule'!$A$67:$M$122,((HLOOKUP((IF((S15="Higher"),T15,S15)),'Salary Schedule'!$B$4:$M$5,2,FALSE))),FALSE),IF($I15="Casual (30%)",VLOOKUP('3.Continue_Fixed Salary'!$E15,'Salary Schedule'!$A$67:$M$122,((HLOOKUP((IF((S15="Higher"),T15,S15)),'Salary Schedule'!$B$4:$M$5,2,FALSE))),FALSE),IF($I15="Fixed Contract <12 months (20%)",VLOOKUP('3.Continue_Fixed Salary'!$E15,'Salary Schedule'!$A$9:$M$64,((HLOOKUP((IF((S15="Higher"),T15,S15)),'Salary Schedule'!$B$4:$M$5,2,FALSE))),FALSE),VLOOKUP(E15,'Salary Schedule'!$A$5:$M$64,((HLOOKUP((IF((S15="Higher"),T15,S15)),'Salary Schedule'!$B$4:$M$5,2,FALSE))),FALSE))))) -> 0 | Q15: 6 | R15: Invalid Date | S15: =(IF(AND(K15>Years!$B$19,K15<Years!$C$15),'Salary Schedule'!D$4,(IF(AND(K15>Years!$B$16,K15<Years!$D$15),'Salary Schedule'!E$4,(IF(AND(K15>Years!$C$16,K15<Years!$E$15),'Salary Schedule'!F$4,(IF(AND(K15>Years!$D$16,K15<Years!$F$15),'Salary Schedule'!G$4,(IF(AND(K15>Years!$E$16,K15<Years!$G$15),'Salary Schedule'!H$4,(IF(AND(K15>Years!$F$16,K15<Years!$H$15),'Salary Schedule'!I$4,(IF(AND(K15>Years!$G$16,K15<Years!$I$15),'Salary Schedule'!J$4,(IF(AND(K15>Years!$H$16,K15<Years!$J$15),'Salary Schedule'!K$4,(IF(AND(K15>Years!$I$16,K15<Years!$K$15),'Salary Schedule'!L$4,(IF(AND(K15>Years!$J$16,K15<Years!$L$15),'Salary Schedule'!M$4,(IF(AND(K15>Years!$K$16,K15<Years!$M$15),'Salary Schedule'!N$4,(IF(AND(K15>Years!$K$16,K15<Years!$N$15),'Salary Schedule'!O$4,"Higher")))))))))))))))))))))))) -> Higher | T15: Invalid Date | U15: ='Staff Calculations'!C51 -> 0 | V15: ='Staff Calculations'!D51 -> 0 | W15: ='Staff Calculations'!E51 -> 0 | X15: ='Staff Calculations'!F51 -> 0 | Y15: ='Staff Calculations'!G51 -> 0 | Z15: ='Staff Calculations'!H51 -> 0 | AA15: ='Staff Calculations'!I51 -> 0 | AB15: ='Staff Calculations'!J51 -> 0 | AC15: =U15*$O$15 -> 0 | AD15: 0 | AE15: 0 | AF15: 0 | AG15: 0 | AH15: 0 | AI15: =AA15*$O$15 -> 0 | AJ15: 0 | AK15: 0
H16: 0 | M16: Yes | N16: 1900-12-30 | O16: 0 | P16: =IF(OR(ISBLANK($E16),ISBLANK($K16),ISBLANK($I16)),0,IF($I16="Casual (16.3%)",VLOOKUP('3.Continue_Fixed Salary'!$E16,'Salary Schedule'!$A$67:$M$122,((HLOOKUP((IF((S16="Higher"),T16,S16)),'Salary Schedule'!$B$4:$M$5,2,FALSE))),FALSE),IF($I16="Casual (30%)",VLOOKUP('3.Continue_Fixed Salary'!$E16,'Salary Schedule'!$A$67:$M$122,((HLOOKUP((IF((S16="Higher"),T16,S16)),'Salary Schedule'!$B$4:$M$5,2,FALSE))),FALSE),IF($I16="Fixed Contract <12 months (20%)",VLOOKUP('3.Continue_Fixed Salary'!$E16,'Salary Schedule'!$A$9:$M$64,((HLOOKUP((IF((S16="Higher"),T16,S16)),'Salary Schedule'!$B$4:$M$5,2,FALSE))),FALSE),VLOOKUP(E16,'Salary Schedule'!$A$5:$M$64,((HLOOKUP((IF((S16="Higher"),T16,S16)),'Salary Schedule'!$B$4:$M$5,2,FALSE))),FALSE))))) -> 0 | Q16: 7 | R16: Invalid Date | S16: =(IF(AND(K16>Years!$B$19,K16<Years!$C$15),'Salary Schedule'!D$4,(IF(AND(K16>Years!$B$16,K16<Years!$D$15),'Salary Schedule'!E$4,(IF(AND(K16>Years!$C$16,K16<Years!$E$15),'Salary Schedule'!F$4,(IF(AND(K16>Years!$D$16,K16<Years!$F$15),'Salary Schedule'!G$4,(IF(AND(K16>Years!$E$16,K16<Years!$G$15),'Salary Schedule'!H$4,(IF(AND(K16>Years!$F$16,K16<Years!$H$15),'Salary Schedule'!I$4,(IF(AND(K16>Years!$G$16,K16<Years!$I$15),'Salary Schedule'!J$4,(IF(AND(K16>Years!$H$16,K16<Years!$J$15),'Salary Schedule'!K$4,(IF(AND(K16>Years!$I$16,K16<Years!$K$15),'Salary Schedule'!L$4,(IF(AND(K16>Years!$J$16,K16<Years!$L$15),'Salary Schedule'!M$4,(IF(AND(K16>Years!$K$16,K16<Years!$M$15),'Salary Schedule'!N$4,(IF(AND(K16>Years!$K$16,K16<Years!$N$15),'Salary Schedule'!O$4,"Higher")))))))))))))))))))))))) -> Higher | T16: Invalid Date | U16: ='Staff Calculations'!C52 -> 0 | V16: ='Staff Calculations'!D52 -> 0 | W16: ='Staff Calculations'!E52 -> 0 | X16: ='Staff Calculations'!F52 -> 0 | Y16: ='Staff Calculations'!G52 -> 0 | Z16: ='Staff Calculations'!H52 -> 0 | AA16: ='Staff Calculations'!I52 -> 0 | AB16: ='Staff Calculations'!J52 -> 0 | AC16: =U16*$O$16 -> 0 | AD16: 0 | AE16: 0 | AF16: 0 | AG16: 0 | AH16: 0 | AI16: =AA16*$O$16 -> 0 | AJ16: 0 | AK16: 0
H17: 0 | M17: Yes | N17: 1900-12-30 | O17: 0 | P17: =IF(OR(ISBLANK($E17),ISBLANK($K17),ISBLANK($I17)),0,IF($I17="Casual (16.3%)",VLOOKUP('3.Continue_Fixed Salary'!$E17,'Salary Schedule'!$A$67:$M$122,((HLOOKUP((IF((S17="Higher"),T17,S17)),'Salary Schedule'!$B$4:$M$5,2,FALSE))),FALSE),IF($I17="Casual (30%)",VLOOKUP('3.Continue_Fixed Salary'!$E17,'Salary Schedule'!$A$67:$M$122,((HLOOKUP((IF((S17="Higher"),T17,S17)),'Salary Schedule'!$B$4:$M$5,2,FALSE))),FALSE),IF($I17="Fixed Contract <12 months (20%)",VLOOKUP('3.Continue_Fixed Salary'!$E17,'Salary Schedule'!$A$9:$M$64,((HLOOKUP((IF((S17="Higher"),T17,S17)),'Salary Schedule'!$B$4:$M$5,2,FALSE))),FALSE),VLOOKUP(E17,'Salary Schedule'!$A$5:$M$64,((HLOOKUP((IF((S17="Higher"),T17,S17)),'Salary Schedule'!$B$4:$M$5,2,FALSE))),FALSE))))) -> 0 | Q17: 8 | R17: Invalid Date | S17: =(IF(AND(K17>Years!$B$19,K17<Years!$C$15),'Salary Schedule'!D$4,(IF(AND(K17>Years!$B$16,K17<Years!$D$15),'Salary Schedule'!E$4,(IF(AND(K17>Years!$C$16,K17<Years!$E$15),'Salary Schedule'!F$4,(IF(AND(K17>Years!$D$16,K17<Years!$F$15),'Salary Schedule'!G$4,(IF(AND(K17>Years!$E$16,K17<Years!$G$15),'Salary Schedule'!H$4,(IF(AND(K17>Years!$F$16,K17<Years!$H$15),'Salary Schedule'!I$4,(IF(AND(K17>Years!$G$16,K17<Years!$I$15),'Salary Schedule'!J$4,(IF(AND(K17>Years!$H$16,K17<Years!$J$15),'Salary Schedule'!K$4,(IF(AND(K17>Years!$I$16,K17<Years!$K$15),'Salary Schedule'!L$4,(IF(AND(K17>Years!$J$16,K17<Years!$L$15),'Salary Schedule'!M$4,(IF(AND(K17>Years!$K$16,K17<Years!$M$15),'Salary Schedule'!N$4,(IF(AND(K17>Years!$K$16,K17<Years!$N$15),'Salary Schedule'!O$4,"Higher")))))))))))))))))))))))) -> Higher | T17: Invalid Date | U17: ='Staff Calculations'!C53 -> 0 | V17: ='Staff Calculations'!D53 -> 0 | W17: ='Staff Calculations'!E53 -> 0 | X17: ='Staff Calculations'!F53 -> 0 | Y17: ='Staff Calculations'!G53 -> 0 | Z17: ='Staff Calculations'!H53 -> 0 | AA17: ='Staff Calculations'!I53 -> 0 | AB17: ='Staff Calculations'!J53 -> 0 | AC17: =U17*$O$17 -> 0 | AD17: 0 | AE17: 0 | AF17: 0 | AG17: 0 | AH17: 0 | AI17: =AA17*$O$17 -> 0 | AJ17: 0 | AK17: 0
H18: 0 | M18: Yes | N18: 1900-12-30 | O18: 0 | P18: =IF(OR(ISBLANK($E18),ISBLANK($K18),ISBLANK($I18)),0,IF($I18="Casual (16.3%)",VLOOKUP('3.Continue_Fixed Salary'!$E18,'Salary Schedule'!$A$67:$M$122,((HLOOKUP((IF((S18="Higher"),T18,S18)),'Salary Schedule'!$B$4:$M$5,2,FALSE))),FALSE),IF($I18="Casual (30%)",VLOOKUP('3.Continue_Fixed Salary'!$E18,'Salary Schedule'!$A$67:$M$122,((HLOOKUP((IF((S18="Higher"),T18,S18)),'Salary Schedule'!$B$4:$M$5,2,FALSE))),FALSE),IF($I18="Fixed Contract <12 months (20%)",VLOOKUP('3.Continue_Fixed Salary'!$E18,'Salary Schedule'!$A$9:$M$64,((HLOOKUP((IF((S18="Higher"),T18,S18)),'Salary Schedule'!$B$4:$M$5,2,FALSE))),FALSE),VLOOKUP(E18,'Salary Schedule'!$A$5:$M$64,((HLOOKUP((IF((S18="Higher"),T18,S18)),'Salary Schedule'!$B$4:$M$5,2,FALSE))),FALSE))))) -> 0 | Q18: 9 | R18: Invalid Date | S18: =(IF(AND(K18>Years!$B$19,K18<Years!$C$15),'Salary Schedule'!D$4,(IF(AND(K18>Years!$B$16,K18<Years!$D$15),'Salary Schedule'!E$4,(IF(AND(K18>Years!$C$16,K18<Years!$E$15),'Salary Schedule'!F$4,(IF(AND(K18>Years!$D$16,K18<Years!$F$15),'Salary Schedule'!G$4,(IF(AND(K18>Years!$E$16,K18<Years!$G$15),'Salary Schedule'!H$4,(IF(AND(K18>Years!$F$16,K18<Years!$H$15),'Salary Schedule'!I$4,(IF(AND(K18>Years!$G$16,K18<Years!$I$15),'Salary Schedule'!J$4,(IF(AND(K18>Years!$H$16,K18<Years!$J$15),'Salary Schedule'!K$4,(IF(AND(K18>Years!$I$16,K18<Years!$K$15),'Salary Schedule'!L$4,(IF(AND(K18>Years!$J$16,K18<Years!$L$15),'Salary Schedule'!M$4,(IF(AND(K18>Years!$K$16,K18<Years!$M$15),'Salary Schedule'!N$4,(IF(AND(K18>Years!$K$16,K18<Years!$N$15),'Salary Schedule'!O$4,"Higher")))))))))))))))))))))))) -> Higher | T18: Invalid Date | U18: ='Staff Calculations'!C54 -> 0 | V18: ='Staff Calculations'!D54 -> 0 | W18: ='Staff Calculations'!E54 -> 0 | X18: ='Staff Calculations'!F54 -> 0 | Y18: ='Staff Calculations'!G54 -> 0 | Z18: ='Staff Calculations'!H54 -> 0 | AA18: ='Staff Calculations'!I54 -> 0 | AB18: ='Staff Calculations'!J54 -> 0 | AC18: =U18*$O$18 -> 0 | AD18: 0 | AE18: 0 | AF18: 0 | AG18: 0 | AH18: 0 | AI18: =AA18*$O$18 -> 0 | AJ18: 0 | AK18: 0
H19: 0 | M19: Yes | N19: 1900-12-30 | O19: 0 | P19: =IF(OR(ISBLANK($E19),ISBLANK($K19),ISBLANK($I19)),0,IF($I19="Casual (16.3%)",VLOOKUP('3.Continue_Fixed Salary'!$E19,'Salary Schedule'!$A$67:$M$122,((HLOOKUP((IF((S19="Higher"),T19,S19)),'Salary Schedule'!$B$4:$M$5,2,FALSE))),FALSE),IF($I19="Casual (30%)",VLOOKUP('3.Continue_Fixed Salary'!$E19,'Salary Schedule'!$A$67:$M$122,((HLOOKUP((IF((S19="Higher"),T19,S19)),'Salary Schedule'!$B$4:$M$5,2,FALSE))),FALSE),IF($I19="Fixed Contract <12 months (20%)",VLOOKUP('3.Continue_Fixed Salary'!$E19,'Salary Schedule'!$A$9:$M$64,((HLOOKUP((IF((S19="Higher"),T19,S19)),'Salary Schedule'!$B$4:$M$5,2,FALSE))),FALSE),VLOOKUP(E19,'Salary Schedule'!$A$5:$M$64,((HLOOKUP((IF((S19="Higher"),T19,S19)),'Salary Schedule'!$B$4:$M$5,2,FALSE))),FALSE))))) -> 0 | Q19: 10 | R19: Invalid Date | S19: =(IF(AND(K19>Years!$B$19,K19<Years!$C$15),'Salary Schedule'!D$4,(IF(AND(K19>Years!$B$16,K19<Years!$D$15),'Salary Schedule'!E$4,(IF(AND(K19>Years!$C$16,K19<Years!$E$15),'Salary Schedule'!F$4,(IF(AND(K19>Years!$D$16,K19<Years!$F$15),'Salary Schedule'!G$4,(IF(AND(K19>Years!$E$16,K19<Years!$G$15),'Salary Schedule'!H$4,(IF(AND(K19>Years!$F$16,K19<Years!$H$15),'Salary Schedule'!I$4,(IF(AND(K19>Years!$G$16,K19<Years!$I$15),'Salary Schedule'!J$4,(IF(AND(K19>Years!$H$16,K19<Years!$J$15),'Salary Schedule'!K$4,(IF(AND(K19>Years!$I$16,K19<Years!$K$15),'Salary Schedule'!L$4,(IF(AND(K19>Years!$J$16,K19<Years!$L$15),'Salary Schedule'!M$4,(IF(AND(K19>Years!$K$16,K19<Years!$M$15),'Salary Schedule'!N$4,(IF(AND(K19>Years!$K$16,K19<Years!$N$15),'Salary Schedule'!O$4,"Higher")))))))))))))))))))))))) -> Higher | T19: Invalid Date | U19: ='Staff Calculations'!C55 -> 0 | V19: ='Staff Calculations'!D55 -> 0 | W19: ='Staff Calculations'!E55 -> 0 | X19: ='Staff Calculations'!F55 -> 0 | Y19: ='Staff Calculations'!G55 -> 0 | Z19: ='Staff Calculations'!H55 -> 0 | AA19: ='Staff Calculations'!I55 -> 0 | AB19: ='Staff Calculations'!J55 -> 0 | AC19: =U19*$O$19 -> 0 | AD19: 0 | AE19: 0 | AF19: =X19*$O$19 -> 0 | AG19: =Y19*$O$19 -> 0 | AH19: =Z19*$O$19 -> 0 | AI19: =AA19*$O$19 -> 0 | AJ19: =AB19*$O$19 -> 0 | AK19: 0
G20: =LEFT(F20,5) ->  | H20: =IF(OR(E20=0,J20=0,K20=0,L20=0),0,IF(G20="20101",20151,IF(G20="20102",20152,IF(G20="20103",20153,IF(G20="20201",20251,IF(G20="20202",20252,IF(G20="20203",20253,0))))))) -> 0 | M20: Yes | N20: =K20+365 -> 1900-12-30 | O20: =IF(OR(E20=0,J20=0,K20=0,L20=0),0,IF(I20="Fixed Contract <12 months (20%)",20%,IF(I20="Casual (16.3%)",16.3%,IF(I20="Fixed Contract >12 months (27.5%)",27.5%,IF(I20="Fixed Contract (30%)",30%,IF(I20="Casual (30%)",30%,0)))))) -> 0 | P20: =IF(OR(ISBLANK($E20),ISBLANK($K20),ISBLANK($I20)),0,IF($I20="Casual (16.3%)",VLOOKUP('3.Continue_Fixed Salary'!$E20,'Salary Schedule'!$A$67:$M$122,((HLOOKUP((IF((S20="Higher"),T20,S20)),'Salary Schedule'!$B$4:$M$5,2,FALSE))),FALSE),IF($I20="Casual (30%)",VLOOKUP('3.Continue_Fixed Salary'!$E20,'Salary Schedule'!$A$67:$M$122,((HLOOKUP((IF((S20="Higher"),T20,S20)),'Salary Schedule'!$B$4:$M$5,2,FALSE))),FALSE),IF($I20="Fixed Contract <12 months (20%)",VLOOKUP('3.Continue_Fixed Salary'!$E20,'Salary Schedule'!$A$9:$M$64,((HLOOKUP((IF((S20="Higher"),T20,S20)),'Salary Schedule'!$B$4:$M$5,2,FALSE))),FALSE),VLOOKUP(E20,'Salary Schedule'!$A$5:$M$64,((HLOOKUP((IF((S20="Higher"),T20,S20)),'Salary Schedule'!$B$4:$M$5,2,FALSE))),FALSE))))) -> 0 | Q20: 11 | R20: =(IF((S20="Higher"),T20,S20)) -> Invalid Date | S20: =(IF(AND(K20>Years!$B$19,K20<Years!$C$15),'Salary Schedule'!D$4,(IF(AND(K20>Years!$B$16,K20<Years!$D$15),'Salary Schedule'!E$4,(IF(AND(K20>Years!$C$16,K20<Years!$E$15),'Salary Schedule'!F$4,(IF(AND(K20>Years!$D$16,K20<Years!$F$15),'Salary Schedule'!G$4,(IF(AND(K20>Years!$E$16,K20<Years!$G$15),'Salary Schedule'!H$4,(IF(AND(K20>Years!$F$16,K20<Years!$H$15),'Salary Schedule'!I$4,(IF(AND(K20>Years!$G$16,K20<Years!$I$15),'Salary Schedule'!J$4,(IF(AND(K20>Years!$H$16,K20<Years!$J$15),'Salary Schedule'!K$4,(IF(AND(K20>Years!$I$16,K20<Years!$K$15),'Salary Schedule'!L$4,(IF(AND(K20>Years!$J$16,K20<Years!$L$15),'Salary Schedule'!M$4,(IF(AND(K20>Years!$K$16,K20<Years!$M$15),'Salary Schedule'!N$4,(IF(AND(K20>Years!$K$16,K20<Years!$N$15),'Salary Schedule'!O$4,"Higher")))))))))))))))))))))))) -> Higher | T20: Invalid Date | U20: ='Staff Calculations'!C59 -> 0 | V20: ='Staff Calculations'!D56 -> 0 | W20: ='Staff Calculations'!E56 -> 0 | X20: ='Staff Calculations'!F56 -> 0 | Y20: ='Staff Calculations'!G56 -> 0 | Z20: ='Staff Calculations'!H56 -> 0 | AA20: ='Staff Calculations'!I56 -> 0 | AB20: ='Staff Calculations'!J56 -> 0 | AC20: =U20*$O$19 -> 0 | AD20: =V20*$O$20 -> 0 | AE20: =W20*$O$20 -> 0 | AF20: =X20*$O$20 -> 0 | AG20: 0 | AH20: 0 | AI20: 0 | AJ20: 0 | AK20: =(IF(OR(E20=0,J20=0,K20=0,L20=0,I20=0),0,SUMIF(U20:AJ20,"> 0"))) -> 0
G21: =LEFT(F21,5) ->  | H21: =IF(OR(E21=0,J21=0,K21=0,L21=0),0,IF(G21="20101",20151,IF(G21="20102",20152,IF(G21="20103",20153,IF(G21="20201",20251,IF(G21="20202",20252,IF(G21="20203",20253,0))))))) -> 0 | M21: Yes | N21: =K21+365 -> 1900-12-30 | O21: =IF(OR(E21=0,J21=0,K21=0,L21=0),0,IF(I21="Fixed Contract <12 months (20%)",20%,IF(I21="Casual (16.3%)",16.3%,IF(I21="Fixed Contract >12 months (27.5%)",27.5%,IF(I21="Fixed Contract (30%)",30%,IF(I21="Casual (30%)",30%,0)))))) -> 0 | P21: =IF(OR(ISBLANK($E21),ISBLANK($K21),ISBLANK($I21)),0,IF($I21="Casual (16.3%)",VLOOKUP('3.Continue_Fixed Salary'!$E21,'Salary Schedule'!$A$67:$M$122,((HLOOKUP((IF((S21="Higher"),T21,S21)),'Salary Schedule'!$B$4:$M$5,2,FALSE))),FALSE),IF($I21="Casual (30%)",VLOOKUP('3.Continue_Fixed Salary'!$E21,'Salary Schedule'!$A$67:$M$122,((HLOOKUP((IF((S21="Higher"),T21,S21)),'Salary Schedule'!$B$4:$M$5,2,FALSE))),FALSE),IF($I21="Fixed Contract <12 months (20%)",VLOOKUP('3.Continue_Fixed Salary'!$E21,'Salary Schedule'!$A$9:$M$64,((HLOOKUP((IF((S21="Higher"),T21,S21)),'Salary Schedule'!$B$4:$M$5,2,FALSE))),FALSE),VLOOKUP(E21,'Salary Schedule'!$A$5:$M$64,((HLOOKUP((IF((S21="Higher"),T21,S21)),'Salary Schedule'!$B$4:$M$5,2,FALSE))),FALSE))))) -> 0 | Q21: 12 | R21: =(IF((S21="Higher"),T21,S21)) -> Invalid Date | S21: =(IF(AND(K21>Years!$B$19,K21<Years!$C$15),'Salary Schedule'!D$4,(IF(AND(K21>Years!$B$16,K21<Years!$D$15),'Salary Schedule'!E$4,(IF(AND(K21>Years!$C$16,K21<Years!$E$15),'Salary Schedule'!F$4,(IF(AND(K21>Years!$D$16,K21<Years!$F$15),'Salary Schedule'!G$4,(IF(AND(K21>Years!$E$16,K21<Years!$G$15),'Salary Schedule'!H$4,(IF(AND(K21>Years!$F$16,K21<Years!$H$15),'Salary Schedule'!I$4,(IF(AND(K21>Years!$G$16,K21<Years!$I$15),'Salary Schedule'!J$4,(IF(AND(K21>Years!$H$16,K21<Years!$J$15),'Salary Schedule'!K$4,(IF(AND(K21>Years!$I$16,K21<Years!$K$15),'Salary Schedule'!L$4,(IF(AND(K21>Years!$J$16,K21<Years!$L$15),'Salary Schedule'!M$4,(IF(AND(K21>Years!$K$16,K21<Years!$M$15),'Salary Schedule'!N$4,(IF(AND(K21>Years!$K$16,K21<Years!$N$15),'Salary Schedule'!O$4,"Higher")))))))))))))))))))))))) -> Higher | T21: Invalid Date | U21: ='Staff Calculations'!C60 -> 0 | V21: ='Staff Calculations'!D57 -> 0 | W21: ='Staff Calculations'!E57 -> 0 | X21: ='Staff Calculations'!F57 -> 0 | Y21: ='Staff Calculations'!G57 -> 0 | Z21: ='Staff Calculations'!H57 -> 0 | AA21: ='Staff Calculations'!I57 -> 0 | AB21: ='Staff Calculations'!J57 -> 0 | AC21: =U21*$O$19 -> 0 | AD21: =V21*$O$21 -> 0 | AE21: =W21*$O$21 -> 0 | AF21: =X21*$O$21 -> 0 | AG21: 0 | AH21: 0 | AI21: 0 | AJ21: 0 | AK21: =(IF(OR(E21=0,J21=0,K21=0,L21=0,I21=0),0,SUMIF(U21:AJ21,"> 0"))) -> 0
G22: =LEFT(F22,5) ->  | H22: =IF(OR(E22=0,J22=0,K22=0,L22=0),0,IF(G22="20101",20151,IF(G22="20102",20152,IF(G22="20103",20153,IF(G22="20201",20251,IF(G22="20202",20252,IF(G22="20203",20253,0))))))) -> 0 | M22: Yes | N22: =K22+365 -> 1900-12-30 | O22: =IF(OR(E22=0,J22=0,K22=0,L22=0),0,IF(I22="Fixed Contract <12 months (20%)",20%,IF(I22="Casual (16.3%)",16.3%,IF(I22="Fixed Contract >12 months (27.5%)",27.5%,IF(I22="Fixed Contract (30%)",30%,IF(I22="Casual (30%)",30%,0)))))) -> 0 | P22: =IF(OR(ISBLANK($E22),ISBLANK($K22),ISBLANK($I22)),0,IF($I22="Casual (16.3%)",VLOOKUP('3.Continue_Fixed Salary'!$E22,'Salary Schedule'!$A$67:$M$122,((HLOOKUP((IF((S22="Higher"),T22,S22)),'Salary Schedule'!$B$4:$M$5,2,FALSE))),FALSE),IF($I22="Casual (30%)",VLOOKUP('3.Continue_Fixed Salary'!$E22,'Salary Schedule'!$A$67:$M$122,((HLOOKUP((IF((S22="Higher"),T22,S22)),'Salary Schedule'!$B$4:$M$5,2,FALSE))),FALSE),IF($I22="Fixed Contract <12 months (20%)",VLOOKUP('3.Continue_Fixed Salary'!$E22,'Salary Schedule'!$A$9:$M$64,((HLOOKUP((IF((S22="Higher"),T22,S22)),'Salary Schedule'!$B$4:$M$5,2,FALSE))),FALSE),VLOOKUP(E22,'Salary Schedule'!$A$5:$M$64,((HLOOKUP((IF((S22="Higher"),T22,S22)),'Salary Schedule'!$B$4:$M$5,2,FALSE))),FALSE))))) -> 0 | Q22: 13 | R22: =(IF((S22="Higher"),T22,S22)) -> Invalid Date | S22: =(IF(AND(K22>Years!$B$19,K22<Years!$C$15),'Salary Schedule'!D$4,(IF(AND(K22>Years!$B$16,K22<Years!$D$15),'Salary Schedule'!E$4,(IF(AND(K22>Years!$C$16,K22<Years!$E$15),'Salary Schedule'!F$4,(IF(AND(K22>Years!$D$16,K22<Years!$F$15),'Salary Schedule'!G$4,(IF(AND(K22>Years!$E$16,K22<Years!$G$15),'Salary Schedule'!H$4,(IF(AND(K22>Years!$F$16,K22<Years!$H$15),'Salary Schedule'!I$4,(IF(AND(K22>Years!$G$16,K22<Years!$I$15),'Salary Schedule'!J$4,(IF(AND(K22>Years!$H$16,K22<Years!$J$15),'Salary Schedule'!K$4,(IF(AND(K22>Years!$I$16,K22<Years!$K$15),'Salary Schedule'!L$4,(IF(AND(K22>Years!$J$16,K22<Years!$L$15),'Salary Schedule'!M$4,(IF(AND(K22>Years!$K$16,K22<Years!$M$15),'Salary Schedule'!N$4,(IF(AND(K22>Years!$K$16,K22<Years!$N$15),'Salary Schedule'!O$4,"Higher")))))))))))))))))))))))) -> Higher | T22: Invalid Date | U22: ='Staff Calculations'!C60 -> 0 | V22: ='Staff Calculations'!D58 -> 0 | W22: ='Staff Calculations'!E58 -> 0 | X22: ='Staff Calculations'!F58 -> 0 | Y22: ='Staff Calculations'!G58 -> 0 | Z22: ='Staff Calculations'!H58 -> 0 | AA22: ='Staff Calculations'!I58 -> 0 | AB22: ='Staff Calculations'!J58 -> 0 | AC22: =U22*$O$19 -> 0 | AD22: =V22*$O$22 -> 0 | AE22: =W22*$O$22 -> 0 | AF22: =X22*$O$22 -> 0 | AG22: 0 | AH22: 0 | AI22: 0 | AJ22: 0 | AK22: =(IF(OR(E22=0,J22=0,K22=0,L22=0,I22=0),0,SUMIF(U22:AJ22,"> 0"))) -> 0
G23: =LEFT(F23,5) ->  | H23: =IF(OR(E23=0,J23=0,K23=0,L23=0),0,IF(G23="20101",20151,IF(G23="20102",20152,IF(G23="20103",20153,IF(G23="20201",20251,IF(G23="20202",20252,IF(G23="20203",20253,0))))))) -> 0 | M23: Yes | N23: =K23+365 -> 1900-12-30 | O23: =IF(OR(E23=0,J23=0,K23=0,L23=0),0,IF(I23="Fixed Contract <12 months (20%)",20%,IF(I23="Casual (16.3%)",16.3%,IF(I23="Fixed Contract >12 months (27.5%)",27.5%,IF(I23="Fixed Contract (30%)",30%,IF(I23="Casual (30%)",30%,0)))))) -> 0 | P23: =IF(OR(ISBLANK($E23),ISBLANK($K23),ISBLANK($I23)),0,IF($I23="Casual (16.3%)",VLOOKUP('3.Continue_Fixed Salary'!$E23,'Salary Schedule'!$A$67:$M$122,((HLOOKUP((IF((S23="Higher"),T23,S23)),'Salary Schedule'!$B$4:$M$5,2,FALSE))),FALSE),IF($I23="Casual (30%)",VLOOKUP('3.Continue_Fixed Salary'!$E23,'Salary Schedule'!$A$67:$M$122,((HLOOKUP((IF((S23="Higher"),T23,S23)),'Salary Schedule'!$B$4:$M$5,2,FALSE))),FALSE),IF($I23="Fixed Contract <12 months (20%)",VLOOKUP('3.Continue_Fixed Salary'!$E23,'Salary Schedule'!$A$9:$M$64,((HLOOKUP((IF((S23="Higher"),T23,S23)),'Salary Schedule'!$B$4:$M$5,2,FALSE))),FALSE),VLOOKUP(E23,'Salary Schedule'!$A$5:$M$64,((HLOOKUP((IF((S23="Higher"),T23,S23)),'Salary Schedule'!$B$4:$M$5,2,FALSE))),FALSE))))) -> 0 | Q23: 14 | R23: =(IF((S23="Higher"),T23,S23)) -> Invalid Date | S23: =(IF(AND(K23>Years!$B$19,K23<Years!$C$15),'Salary Schedule'!D$4,(IF(AND(K23>Years!$B$16,K23<Years!$D$15),'Salary Schedule'!E$4,(IF(AND(K23>Years!$C$16,K23<Years!$E$15),'Salary Schedule'!F$4,(IF(AND(K23>Years!$D$16,K23<Years!$F$15),'Salary Schedule'!G$4,(IF(AND(K23>Years!$E$16,K23<Years!$G$15),'Salary Schedule'!H$4,(IF(AND(K23>Years!$F$16,K23<Years!$H$15),'Salary Schedule'!I$4,(IF(AND(K23>Years!$G$16,K23<Years!$I$15),'Salary Schedule'!J$4,(IF(AND(K23>Years!$H$16,K23<Years!$J$15),'Salary Schedule'!K$4,(IF(AND(K23>Years!$I$16,K23<Years!$K$15),'Salary Schedule'!L$4,(IF(AND(K23>Years!$J$16,K23<Years!$L$15),'Salary Schedule'!M$4,(IF(AND(K23>Years!$K$16,K23<Years!$M$15),'Salary Schedule'!N$4,(IF(AND(K23>Years!$K$16,K23<Years!$N$15),'Salary Schedule'!O$4,"Higher")))))))))))))))))))))))) -> Higher | T23: Invalid Date | U23: ='Staff Calculations'!C59 -> 0 | V23: ='Staff Calculations'!D59 -> 0 | W23: ='Staff Calculations'!E59 -> 0 | X23: ='Staff Calculations'!F59 -> 0 | Y23: ='Staff Calculations'!G59 -> 0 | Z23: ='Staff Calculations'!H59 -> 0 | AA23: ='Staff Calculations'!I59 -> 0 | AB23: ='Staff Calculations'!J59 -> 0 | AC23: =U23*$O$19 -> 0 | AD23: =V23*$O$23 -> 0 | AE23: =W23*$O$23 -> 0 | AF23: =X23*$O$23 -> 0 | AG23: 0 | AH23: 0 | AI23: 0 | AJ23: 0 | AK23: =(IF(OR(E23=0,J23=0,K23=0,L23=0,I23=0),0,SUMIF(U23:AJ23,"> 0"))) -> 0
G24: =LEFT(F24,5) ->  | H24: =IF(OR(E24=0,J24=0,K24=0,L24=0),0,IF(G24="20101",20151,IF(G24="20102",20152,IF(G24="20103",20153,IF(G24="20201",20251,IF(G24="20202",20252,IF(G24="20203",20253,0))))))) -> 0 | M24: Yes | N24: =K24+365 -> 1900-12-30 | O24: =IF(OR(E24=0,J24=0,K24=0,L24=0),0,IF(I24="Fixed Contract <12 months (20%)",20%,IF(I24="Casual (16.3%)",16.3%,IF(I24="Fixed Contract >12 months (27.5%)",27.5%,IF(I24="Fixed Contract (30%)",30%,IF(I24="Casual (30%)",30%,0)))))) -> 0 | P24: =IF(OR(ISBLANK($E24),ISBLANK($K24),ISBLANK($I24)),0,IF($I24="Casual (16.3%)",VLOOKUP('3.Continue_Fixed Salary'!$E24,'Salary Schedule'!$A$67:$M$122,((HLOOKUP((IF((S24="Higher"),T24,S24)),'Salary Schedule'!$B$4:$M$5,2,FALSE))),FALSE),IF($I24="Casual (30%)",VLOOKUP('3.Continue_Fixed Salary'!$E24,'Salary Schedule'!$A$67:$M$122,((HLOOKUP((IF((S24="Higher"),T24,S24)),'Salary Schedule'!$B$4:$M$5,2,FALSE))),FALSE),IF($I24="Fixed Contract <12 months (20%)",VLOOKUP('3.Continue_Fixed Salary'!$E24,'Salary Schedule'!$A$9:$M$64,((HLOOKUP((IF((S24="Higher"),T24,S24)),'Salary Schedule'!$B$4:$M$5,2,FALSE))),FALSE),VLOOKUP(E24,'Salary Schedule'!$A$5:$M$64,((HLOOKUP((IF((S24="Higher"),T24,S24)),'Salary Schedule'!$B$4:$M$5,2,FALSE))),FALSE))))) -> 0 | Q24: 15 | R24: =(IF((S24="Higher"),T24,S24)) -> Invalid Date | S24: =(IF(AND(K24>Years!$B$19,K24<Years!$C$15),'Salary Schedule'!D$4,(IF(AND(K24>Years!$B$16,K24<Years!$D$15),'Salary Schedule'!E$4,(IF(AND(K24>Years!$C$16,K24<Years!$E$15),'Salary Schedule'!F$4,(IF(AND(K24>Years!$D$16,K24<Years!$F$15),'Salary Schedule'!G$4,(IF(AND(K24>Years!$E$16,K24<Years!$G$15),'Salary Schedule'!H$4,(IF(AND(K24>Years!$F$16,K24<Years!$H$15),'Salary Schedule'!I$4,(IF(AND(K24>Years!$G$16,K24<Years!$I$15),'Salary Schedule'!J$4,(IF(AND(K24>Years!$H$16,K24<Years!$J$15),'Salary Schedule'!K$4,(IF(AND(K24>Years!$I$16,K24<Years!$K$15),'Salary Schedule'!L$4,(IF(AND(K24>Years!$J$16,K24<Years!$L$15),'Salary Schedule'!M$4,(IF(AND(K24>Years!$K$16,K24<Years!$M$15),'Salary Schedule'!N$4,(IF(AND(K24>Years!$K$16,K24<Years!$N$15),'Salary Schedule'!O$4,"Higher")))))))))))))))))))))))) -> Higher | T24: Invalid Date | U24: ='Staff Calculations'!C59 -> 0 | V24: ='Staff Calculations'!D60 -> 0 | W24: ='Staff Calculations'!E60 -> 0 | X24: ='Staff Calculations'!F60 -> 0 | Y24: ='Staff Calculations'!G60 -> 0 | Z24: ='Staff Calculations'!H60 -> 0 | AA24: ='Staff Calculations'!I60 -> 0 | AB24: ='Staff Calculations'!J60 -> 0 | AC24: =U24*$O$19 -> 0 | AD24: =V24*$O$24 -> 0 | AE24: =W24*$O$24 -> 0 | AF24: =X24*$O$24 -> 0 | AG24: 0 | AH24: 0 | AI24: 0 | AJ24: 0 | AK24: =(IF(OR(E24=0,J24=0,K24=0,L24=0,I24=0),0,SUMIF(U24:AJ24,"> 0"))) -> 0
B25: Total | U25: =SUM(U10:U19) -> 0 | V25: 0 | W25: 0 | X25: 0 | Y25: 0 | Z25: 0 | AA25: 0 | AB25: 0 | AC25: 0 | AD25: 0 | AE25: 0 | AF25: 0 | AG25: 0 | AH25: 0 | AI25: =SUM(AI10:AI19) -> 0 | AJ25: 0 | AK25: =SUM(AK10:AK19) -> 0
B28: Notes:

Sheet 4. Casual Salary
D2: Key:
D3: Data Input Required
C5: ACU Budget Calculator (Casual Staff) | E5: 2018 | F5: 2019 | G5: 2020 | H5: 2021 | I5: 2022 | J5: 2023 | K5: 2024 | L5: 2025 | P5: ARC Budget Calculator (Casual Staff) | R5: 2018 | S5: 2019 | T5: 2020 | U5: 2021 | V5: 2022 | W5: 2023 | X5: 2024 | Y5: 2025
C7: Grand Total | E7: =E32+E42+E66+E76+E99+E109+E132+E142+E165+E175+E198+E208 -> 0 | F7: 0 | G7: 0 | H7: 0 | I7: 0 | J7: 0 | K7: 0 | L7: 0 | M7: =SUM(E7:L7) -> 0 | R7: =R32+R42+R66+R76+R99+R109+R132+R142+R165+R175+R198+R208 -> 0 | S7: 0 | T7: 0 | U7: 0 | V7: 0 | W7: 0 | X7: =X32+X42+X66+X76+X99+X109+X132+X142+X165+X175+X198+X208 -> 0 | Y7: 0 | Z7: =SUM(R7:Y7) -> 0
C11: Staff 1 | P11: Staff 1
C14: Please Specify if Staff to be employed is Fixed Term or Casual | D14: Casual | P14: Please Specify if Staff to be employed is Fixed Term or Casual | Q14: Casual
C17: HEW 6 INCREMENT 1 | P17: HEW 1 INCREMENT 1
C19: Enter the Annual Salary from the HR Salary Rates | E19: =VLOOKUP(C17,'HR Salary Data'!C:M,8,0) -> 77241.1626 | F19: =VLOOKUP(C17,'HR Salary Data'!C:R,13,0) -> 78785.98585 | G19: =VLOOKUP(C17,'HR Salary Data'!C:W,18,0) -> 80361.70557 | H19: =VLOOKUP(C17,'HR Salary Data'!C:AB,23,0) -> 81968.93968 | I19: =VLOOKUP(C17,'HR Salary Data'!C:AH,28,0) -> 83608.31847 | J19: =VLOOKUP(C17,'HR Salary Data'!C:AM,33,0) -> 85280.48484 | K19: =VLOOKUP(C17,'HR Salary Data'!C:AV,38,0) -> 86986.09454 | L19: =VLOOKUP(C17,'HR Salary Data'!C:AV,43,0) -> 88725.81643 | P19: Enter the Annual Salary from the HR Salary Rates | R19: =VLOOKUP(P17,'HR Salary Data'!C:M,8,0) -> 48412.6986 | S19: =VLOOKUP(P17,'HR Salary Data'!C:R,13,0) -> 49380.95257 | T19: =VLOOKUP(P17,'HR Salary Data'!C:W,18,0) -> 50368.57162 | U19: =VLOOKUP(P17,'HR Salary Data'!C:AB,23,0) -> 51375.94306 | V19: =VLOOKUP(P17,'HR Salary Data'!C:AH,28,0) -> 52403.46192 | W19: =VLOOKUP(P17,'HR Salary Data'!C:AM,33,0) -> 53451.53116 | X19: =VLOOKUP(P17,'HR Salary Data'!C:AV,38,0) -> 54520.56178 | Y19: =VLOOKUP(P17,'HR Salary Data'!C:AV,43,0) -> 55610.97301
C20: (Salary rates available from the HR web page: Policies and Procedures/Remuneration and Resources/Staff Salaries) | P20: (Salary rates available from the HR web page: Policies and Procedures/Remuneration and Resources/Staff Salaries)
C22: Enter the total Hours to be worked over the contract | P22: Enter the total Hours to be worked over the contract
C23: (Full Tme One week = 35 hours) | P23: (Full Tme One week = 35 hours)
C24: Fixed Term contract up to 12 months - Calculations | P24: Fixed Term contract up to 12 months - Calculations
C25: Base hourly rate | E25: =IF(B29=0,0,ROUND(+E19/52.178571/35,2)) -> 0 | F25: =IF(B29=0,0,ROUND(+F19/52.178571/35,2)) -> 0 | G25: =IF(B29=0,0,ROUND(+G19/52.178571/35,2)) -> 0 | H25: =IF(B29=0,0,ROUND(+H19/52.178571/35,2)) -> 0 | I25: =IF(B29=0,0,ROUND(+I19/52.178571/35,2)) -> 0 | J25: =IF(B29=0,0,ROUND(+J19/52.178571/35,2)) -> 0 | K25: =IF(B29=0,0,ROUND(+K19/52.178571/35,2)) -> 0 | L25: =IF(B29=0,0,ROUND(+L19/52.178571/35,2)) -> 0 | P25: Base hourly rate | R25: =IF(O29=0,0,ROUND(+R19/52.178571/35,2)) -> 26.51 | S25: =IF(O29=0,0,ROUND(+S19/52.178571/35,2)) -> 27.04 | T25: =IF(O29=0,0,ROUND(+T19/52.178571/35,2)) -> 27.58 | U25: =IF(O29=0,0,ROUND(+U19/52.178571/35,2)) -> 28.13 | V25: =IF(O29=0,0,ROUND(+V19/52.178571/35,2)) -> 28.69 | W25: =IF(O29=0,0,ROUND(+W19/52.178571/35,2)) -> 29.27 | X25: =IF(O29=0,0,ROUND(+X19/52.178571/35,2)) -> 29.85 | Y25: =IF(O29=0,0,ROUND(+Y19/52.178571/35,2)) -> 30.45
C26: On-costs @ 20% | E26: =E25*0.2 -> 0 | F26: =F25*0.2 -> 0 | G26: 0 | H26: 0 | I26: 0 | J26: 0 | K26: 0 | L26: 0 | P26: On-costs @ 30% | R26: =R25*0.3 -> 7.953 | S26: =S25*0.3 -> 8.112 | T26: 8.274 | U26: 8.439 | V26: 8.607 | W26: 8.781 | X26: =X25*0.3 -> 8.955 | Y26: 9.135
D27: Total hourly rate | E27: =ROUND((E25+E26),2) -> 0 | F27: =ROUND((F25+F26),2) -> 0 | G27: 0 | H27: 0 | I27: 0 | J27: 0 | K27: =ROUND((K25+K26),2) -> 0 | L27: 0 | Q27: Total hourly rate | R27: =ROUND((R25+R26),2) -> 34.46 | S27: =ROUND((S25+S26),2) -> 35.15 | T27: 35.85 | U27: 36.57 | V27: 37.3 | W27: 38.05 | X27: =ROUND((X25+X26),2) -> 38.81 | Y27: 39.59
B29: =IF(D14="FIXED TERM", 20202,0) -> 0 | C29: Salary Estimate based on total hours to be worked (as entered above) | E29: =E25*E22 -> 0 | F29: =F25*F22 -> 0 | G29: 0 | H29: 0 | I29: 0 | J29: =J25*J22 -> 0 | K29: 0 | L29: 0 | O29: =IF(Q14="FIXED TERM", 20202,"") ->  | P29: Salary Estimate based on total hours to be worked (as entered above) | R29: =R25*R22 -> 0 | S29: =S25*S22 -> 0 | T29: 0 | U29: 0 | V29: 0 | W29: 0 | X29: =X25*X22 -> 0 | Y29: 0
B30: =B29 -> 0 | C30: Annual Leave Loading (approx only)* | E30: =ROUND((((E25*140)*17.5%)/1820)*E22,2) -> 0 | F30: =ROUND((((F25*140)*17.5%)/1820)*F22,2) -> 0 | G30: 0 | H30: 0 | I30: 0 | J30: =ROUND((((J25*140)*17.5%)/1820)*J22,2) -> 0 | K30: 0 | L30: 0 | O30: =O29 ->  | P30: Annual Leave Loading (approx only)* | R30: =ROUND((((R25*140)*17.5%)/1820)*R22,2) -> 0 | S30: =ROUND((((S25*140)*17.5%)/1820)*S22,2) -> 0 | T30: 0 | U30: 0 | V30: 0 | W30: 0 | X30: =ROUND((((X25*140)*17.5%)/1820)*X22,2) -> 0 | Y30: 0
B31: =IF(B29>0,20252,0) -> 0 | C31: On costs @ 20% on Annual Leave Loading and Base Salary | E31: =ROUND((E29*20%)+(E30*20%),2) -> 0 | F31: =ROUND((F29*20%)+(F30*20%),2) -> 0 | G31: 0 | H31: 0 | I31: 0 | J31: 0 | K31: 0 | L31: 0 | O31: =IF(O29>0,20252,"") -> 20252 | P31: On costs @ 30% on Annual Leave and Annual Leave Loading | R31: =ROUND((R29*30%)+(R30*30%),2) -> 0 | S31: =ROUND((S29*30%)+(S30*30%),2) -> 0 | T31: 0 | U31: 0 | V31: 0 | W31: 0 | X31: =ROUND((X29*30%)+(X30*30%),2) -> 0 | Y31: 0
C32: Total Budget if Annual Leave is taken during the period of contract | E32: =(E29+E30)*1.2 -> 0 | F32: =(F29+F30)*1.2 -> 0 | G32: 0 | H32: 0 | I32: 0 | J32: 0 | K32: 0 | L32: 0 | P32: Total Budget if Annual Leave is taken during the period of contract | R32: =(R29+R30)*1.3 -> 0 | S32: =(S29+S30)*1.3 -> 0 | T32: 0 | U32: 0 | V32: 0 | W32: 0 | X32: =(X29+X30)*1.3 -> 0 | Y32: 0
C35: Casual Contract - Calculations | P35: Casual Contract - Calculations
C36: Casual hourly rate (includes 25% Loading) | E36: =IF(B40=0,0,ROUND((+E19/52.178571/35)*1.25,2)) -> 52.87 | F36: =IF(B40=0,0,ROUND((+F19/52.178571/35)*1.25,2)) -> 53.93 | G36: =IF(B40=0,0,ROUND((+G19/52.178571/35)*1.25,2)) -> 55 | H36: =IF(B40=0,0,ROUND((+H19/52.178571/35)*1.25,2)) -> 56.1 | I36: =IF(B40=0,0,ROUND((+I19/52.178571/35)*1.25,2)) -> 57.23 | J36: =IF(B40=0,0,ROUND((+J19/52.178571/35)*1.25,2)) -> 58.37 | K36: =IF(B40=0,0,ROUND((+K19/52.178571/35)*1.25,2)) -> 59.54 | L36: =IF(B40=0,0,ROUND((+L19/52.178571/35)*1.25,2)) -> 60.73 | P36: Casual hourly rate (includes 25% Loading) | R36: =IF(O40=0,0,ROUND((+R19/52.178571/35)*1.25,2)) -> 33.14 | S36: =IF(O40=0,0,ROUND((+S19/52.178571/35)*1.25,2)) -> 33.8 | T36: =IF(O40=0,0,ROUND((+T19/52.178571/35)*1.25,2)) -> 34.48 | U36: =IF(O40=0,0,ROUND((+U19/52.178571/35)*1.25,2)) -> 35.16 | V36: =IF(O40=0,0,ROUND((+V19/52.178571/35)*1.25,2)) -> 35.87 | W36: =IF(O40=0,0,ROUND((+W19/52.178571/35)*1.25,2)) -> 36.59 | X36: =IF(O40=0,0,ROUND((+X19/52.178571/35)*1.25,2)) -> 37.32 | Y36: =IF(O40=0,0,ROUND((+Y19/52.178571/35)*1.25,2)) -> 38.06
C37: On-costs @ 16.3% | E37: =E36*0.163 -> 8.61781 | F37: =F36*0.163 -> 8.79059 | G37: 8.965 | H37: 9.1443 | I37: 9.32849 | J37: 9.51431 | K37: 9.70502 | L37: 9.89899 | P37: On-costs @ 30% | R37: =R36*0.3 -> 9.942 | S37: =S36*0.3 -> 10.14 | T37: 10.344 | U37: 10.548 | V37: 10.761 | W37: 10.977 | X37: =X36*0.3 -> 11.196 | Y37: =Y36*0.3 -> 11.418
D38: Total hourly rate | E38: =ROUND((E36+E37),2) -> 61.49 | F38: =ROUND((F36+F37),2) -> 62.72 | G38: 63.97 | H38: 65.24 | I38: 66.56 | J38: 67.88 | K38: =ROUND((K36+K37),2) -> 69.25 | L38: 70.63 | Q38: Total hourly rate | R38: =ROUND((R36+R37),2) -> 43.08 | S38: =ROUND((S36+S37),2) -> 43.94 | T38: 44.82 | U38: 45.71 | V38: 46.63 | W38: 47.57 | X38: =ROUND((X36+X37),2) -> 48.52 | Y38: =ROUND((Y36+Y37),2) -> 49.48
B40: =IF(D14="CASUAL", 20203,0) -> 20203 | C40: Salary Estimate based on total hours to be worked (as entered above) | E40: =E36*E22 -> 0 | F40: =F36*F22 -> 0 | G40: 0 | H40: 0 | I40: 0 | J40: =J36*J22 -> 0 | K40: 0 | L40: 0 | O40: =IF(Q14="CASUAL", 20203,0) -> 20203 | P40: Salary Estimate based on total hours to be worked (as entered above) | R40: =R36*R22 -> 0 | S40: =S36*S22 -> 0 | T40: 0 | U40: 0 | V40: 0 | W40: 0 | X40: =X36*X22 -> 0 | Y40: =Y36*Y22 -> 0
B41: =IF(B40=0,0,20253) -> 20253 | C41: On costs @ 16.3% on Annual Leave and Annual Leave Loading | E41: =E40*0.163 -> 0 | F41: =F40*0.163 -> 0 | G41: 0 | H41: 0 | I41: 0 | J41: 0 | K41: 0 | L41: 0 | O41: =IF(O40=0,0,20253) -> 20253 | P41: On costs @ 30% on Annual Leave and Annual Leave Loading | R41: =R40*0.3 -> 0 | S41: =S40*0.3 -> 0 | T41: 0 | U41: 0 | V41: 0 | W41: 0 | X41: =X40*0.3 -> 0 | Y41: =Y40*0.3 -> 0
B42: Top | C42: Budget estimate based on total hours to be worked (as entered above) | E42: =E38*E22 -> 0 | F42: =F38*F22 -> 0 | G42: 0 | H42: 0 | I42: 0 | J42: =J38*J22 -> 0 | K42: 0 | L42: 0 | O42: Top | P42: Budget estimate based on total hours to be worked (as entered above) | R42: =R38*R22 -> 0 | S42: =S38*S22 -> 0 | T42: 0 | U42: 0 | V42: 0 | W42: 0 | X42: =X38*X22 -> 0 | Y42: =Y38*Y22 -> 0
C45: Staff 2 | P45: Staff 2
C48: Please Specify if Staff to be employed is Fixed Term or Casual | D48: Casual | P48: Please Specify if Staff to be employed is Fixed Term or Casual | Q48: Casual
C51: HEW 1 INCREMENT 1 | P51: HEW 1 INCREMENT 1
C53: Enter the Annual Salary from the HR Salary Rates | E53: =VLOOKUP(C51,'HR Salary Data'!C:M,8,0) -> 48412.6986 | F53: =VLOOKUP(C51,'HR Salary Data'!C:R,13,0) -> 49380.95257 | G53: =VLOOKUP(C51,'HR Salary Data'!C:W,18,0) -> 50368.57162 | H53: =VLOOKUP(C51,'HR Salary Data'!C:AB,23,0) -> 51375.94306 | I53: =VLOOKUP(C51,'HR Salary Data'!C:AH,28,0) -> 52403.46192 | J53: =VLOOKUP(C51,'HR Salary Data'!C:AM,33,0) -> 53451.53116 | K53: =VLOOKUP(C51,'HR Salary Data'!C:AV,38,0) -> 54520.56178 | L53: =VLOOKUP(C51,'HR Salary Data'!C:AV,43,0) -> 55610.97301 | P53: Enter the Annual Salary from the HR Salary Rates | R53: =VLOOKUP(P51,'HR Salary Data'!C:M,8,0) -> 48412.6986 | S53: =VLOOKUP(P51,'HR Salary Data'!C:R,13,0) -> 49380.95257 | T53: =VLOOKUP(P51,'HR Salary Data'!C:W,18,0) -> 50368.57162 | U53: =VLOOKUP(P51,'HR Salary Data'!C:AB,23,0) -> 51375.94306 | V53: =VLOOKUP(P51,'HR Salary Data'!C:AH,28,0) -> 52403.46192 | W53: =VLOOKUP(P51,'HR Salary Data'!C:AM,33,0) -> 53451.53116 | X53: =VLOOKUP(P51,'HR Salary Data'!C:AV,38,0) -> 54520.56178 | Y53: =VLOOKUP(P51,'HR Salary Data'!C:AV,43,0) -> 55610.97301
C54: (Salary rates available from the HR web page: Policies and Procedures/Remuneration and Resources/Staff Salaries) | P54: (Salary rates available from the HR web page: Policies and Procedures/Remuneration and Resources/Staff Salaries)
C56: Enter the total Hours to be worked over the contract | P56: Enter the total Hours to be worked over the contract
C57: (Full Tme One week = 35 hours) | P57: (Full Tme One week = 35 hours)
C58: Fixed Term contract up to 12 months - Calculations | P58: Fixed Term contract up to 12 months - Calculations
C59: Base hourly rate | E59: =IF(B63=0,0,ROUND(+E53/52.178571/35,2)) -> 0 | F59: =IF(B63=0,0,ROUND(+F53/52.178571/35,2)) -> 0 | G59: =IF(B63=0,0,ROUND(+G53/52.178571/35,2)) -> 0 | H59: =IF(B63=0,0,ROUND(+H53/52.178571/35,2)) -> 0 | I59: =IF(B63=0,0,ROUND(+I53/52.178571/35,2)) -> 0 | J59: =IF(B63=0,0,ROUND(+J53/52.178571/35,2)) -> 0 | K59: =IF(B63=0,0,ROUND(+K53/52.178571/35,2)) -> 0 | L59: =IF(B63=0,0,ROUND(+L53/52.178571/35,2)) -> 0 | P59: Base hourly rate | R59: =IF(O63=0,0,ROUND(+R53/52.178571/35,2)) -> 0 | S59: =IF(O63=0,0,ROUND(+S53/52.178571/35,2)) -> 0 | T59: =IF(O63=0,0,ROUND(+T53/52.178571/35,2)) -> 0 | U59: =IF(O63=0,0,ROUND(+U53/52.178571/35,2)) -> 0 | V59: =IF(O63=0,0,ROUND(+V53/52.178571/35,2)) -> 0 | W59: =IF(O63=0,0,ROUND(+W53/52.178571/35,2)) -> 0 | X59: =IF(O63=0,0,ROUND(+X53/52.178571/35,2)) -> 0 | Y59: =IF(O63=0,0,ROUND(+Y53/52.178571/35,2)) -> 0
C60: On-costs @ 20% | E60: =E59*0.2 -> 0 | F60: =F59*0.2 -> 0 | G60: =G59*0.2 -> 0 | H60: =H59*0.2 -> 0 | I60: =I59*0.2 -> 0 | J60: =J59*0.2 -> 0 | K60: =K59*0.2 -> 0 | L60: =L59*0.2 -> 0 | P60: On-costs @ 30% | R60: =R59*0.3 -> 0 | S60: =S59*0.3 -> 0 | T60: =T59*0.3 -> 0 | U60: =U59*0.3 -> 0 | V60: =V59*0.3 -> 0 | W60: =W59*0.3 -> 0 | X60: 0 | Y60: 0
D61: Total hourly rate | E61: =ROUND((E59+E60),2) -> 0 | F61: =ROUND((F59+F60),2) -> 0 | G61: 0 | H61: 0 | I61: 0 | J61: 0 | K61: 0 | L61: 0 | Q61: Total hourly rate | R61: =ROUND((R59+R60),2) -> 0 | S61: =ROUND((S59+S60),2) -> 0 | T61: =ROUND((T59+T60),2) -> 0 | U61: =ROUND((U59+U60),2) -> 0 | V61: =ROUND((V59+V60),2) -> 0 | W61: =ROUND((W59+W60),2) -> 0 | X61: 0 | Y61: 0
B63: =IF(D48="FIXED TERM", 20202,0) -> 0 | C63: Salary Estimate based on total hours to be worked (as entered above) | E63: =E59*E56 -> 0 | F63: =F59*F56 -> 0 | G63: 0 | H63: 0 | I63: 0 | J63: 0 | K63: 0 | L63: 0 | O63: =IF(Q48="FIXED TERM", 20202,0) -> 0 | P63: Salary Estimate based on total hours to be worked (as entered above) | R63: =R59*R56 -> 0 | S63: =S59*S56 -> 0 | T63: 0 | U63: 0 | V63: 0 | W63: 0 | X63: 0 | Y63: 0
B64: =B63 -> 0 | C64: Annual Leave Loading (approx only)* | E64: =ROUND((((E59*140)*17.5%)/1820)*E56,2) -> 0 | F64: =ROUND((((F59*140)*17.5%)/1820)*F56,2) -> 0 | G64: 0 | H64: 0 | I64: 0 | J64: 0 | K64: 0 | L64: 0 | O64: =O63 -> 0 | P64: Annual Leave Loading (approx only)* | R64: =ROUND((((R59*140)*17.5%)/1820)*R56,2) -> 0 | S64: =ROUND((((S59*140)*17.5%)/1820)*S56,2) -> 0 | T64: 0 | U64: 0 | V64: 0 | W64: 0 | X64: 0 | Y64: 0
B65: =IF(B63>0,20252,0) -> 0 | C65: On costs @ 20% on Annual Leave Loading and Base Salary | E65: =ROUND((E63*20%)+(E64*20%),2) -> 0 | F65: =ROUND((F63*20%)+(F64*20%),2) -> 0 | G65: =ROUND((G63*20%)+(G64*20%),2) -> 0 | H65: =ROUND((H63*20%)+(H64*20%),2) -> 0 | I65: =ROUND((I63*20%)+(I64*20%),2) -> 0 | J65: =ROUND((J63*20%)+(J64*20%),2) -> 0 | K65: =ROUND((K63*20%)+(K64*20%),2) -> 0 | L65: =ROUND((L63*20%)+(L64*20%),2) -> 0 | O65: =IF(O63>0,20252,0) -> 0 | P65: On costs @ 30% on Annual Leave and Annual Leave Loading | R65: =ROUND((R63*30%)+(R64*30%),2) -> 0 | S65: =ROUND((S63*30%)+(S64*30%),2) -> 0 | T65: =ROUND((T63*30%)+(T64*30%),2) -> 0 | U65: =ROUND((U63*30%)+(U64*30%),2) -> 0 | V65: =ROUND((V63*30%)+(V64*30%),2) -> 0 | W65: =ROUND((W63*30%)+(W64*30%),2) -> 0 | X65: 0 | Y65: 0
C66: Total Budget if Annual Leave is taken during the period of contract | E66: =(E63+E64)*1.2 -> 0 | F66: =(F63+F64)*1.2 -> 0 | G66: 0 | H66: 0 | I66: 0 | J66: 0 | K66: 0 | L66: 0 | P66: Total Budget if Annual Leave is taken during the period of contract | R66: =(R63+R64)*1.3 -> 0 | S66: =(S63+S64)*1.3 -> 0 | T66: 0 | U66: 0 | V66: 0 | W66: 0 | X66: 0 | Y66: 0
C69: Casual Contract - Calculations | P69: Casual Contract - Calculations
C70: Casual hourly rate (includes 25% Loading) | E70: =IF(B74=0,0,ROUND((+E53/52.178571/35)*1.25,2)) -> 33.14 | F70: =IF(B74=0,0,ROUND((+F53/52.178571/35)*1.25,2)) -> 33.8 | G70: =IF(B74=0,0,ROUND((+G53/52.178571/35)*1.25,2)) -> 34.48 | H70: =IF(B74=0,0,ROUND((+H53/52.178571/35)*1.25,2)) -> 35.16 | I70: =IF(B74=0,0,ROUND((+I53/52.178571/35)*1.25,2)) -> 35.87 | J70: =IF(B74=0,0,ROUND((+J53/52.178571/35)*1.25,2)) -> 36.59 | K70: =IF(B74=0,0,ROUND((+K53/52.178571/35)*1.25,2)) -> 37.32 | L70: =IF(B74=0,0,ROUND((+L53/52.178571/35)*1.25,2)) -> 38.06 | P70: Casual hourly rate (includes 25% Loading) | R70: =IF(O74=0,0,ROUND((+R53/52.178571/35)*1.25,2)) -> 33.14 | S70: =IF(O74=0,0,ROUND((+S53/52.178571/35)*1.25,2)) -> 33.8 | T70: =IF(O74=0,0,ROUND((+T53/52.178571/35)*1.25,2)) -> 34.48 | U70: =IF(O74=0,0,ROUND((+U53/52.178571/35)*1.25,2)) -> 35.16 | V70: =IF(O74=0,0,ROUND((+V53/52.178571/35)*1.25,2)) -> 35.87 | W70: =IF(O74=0,0,ROUND((+W53/52.178571/35)*1.25,2)) -> 36.59 | X70: =IF(O74=0,0,ROUND((+X53/52.178571/35)*1.25,2)) -> 37.32 | Y70: =IF(O74=0,0,ROUND((+Y53/52.178571/35)*1.25,2)) -> 38.06
C71: On-costs @ 16.3% | E71: =E70*0.163 -> 5.40182 | F71: =F70*0.163 -> 5.5094 | G71: =G70*0.163 -> 5.62024 | H71: =H70*0.163 -> 5.73108 | I71: =I70*0.163 -> 5.84681 | J71: =J70*0.163 -> 5.96417 | K71: =K70*0.163 -> 6.08316 | L71: =L70*0.163 -> 6.20378 | P71: On-costs @ 30% | R71: =R70*0.3 -> 9.942 | S71: =S70*0.3 -> 10.14 | T71: =T70*0.3 -> 10.344 | U71: =U70*0.3 -> 10.548 | V71: =V70*0.3 -> 10.761 | W71: =W70*0.3 -> 10.977 | X71: 11.196 | Y71: 11.418
D72: Total hourly rate | E72: =ROUND((E70+E71),2) -> 38.54 | F72: =ROUND((F70+F71),2) -> 39.31 | G72: 40.1 | H72: 40.89 | I72: 41.72 | J72: 42.55 | K72: 43.4 | L72: 44.26 | Q72: Total hourly rate | R72: =ROUND((R70+R71),2) -> 43.08 | S72: =ROUND((S70+S71),2) -> 43.94 | T72: =ROUND((T70+T71),2) -> 44.82 | U72: =ROUND((U70+U71),2) -> 45.71 | V72: =ROUND((V70+V71),2) -> 46.63 | W72: =ROUND((W70+W71),2) -> 47.57 | X72: 48.52 | Y72: 49.48
B74: =IF(D48="CASUAL", 20203,0) -> 20203 | C74: Salary Estimate based on total hours to be worked (as entered above) | E74: =E70*E56 -> 0 | F74: =F70*F56 -> 0 | G74: 0 | H74: 0 | I74: 0 | J74: 0 | K74: 0 | L74: 0 | O74: =IF(Q48="CASUAL", 20203,0) -> 20203 | P74: Salary Estimate based on total hours to be worked (as entered above) | R74: =R70*R56 -> 0 | S74: =S70*S56 -> 0 | T74: 0 | U74: 0 | V74: 0 | W74: 0 | X74: 0 | Y74: 0
B75: =IF(B74=0,0,20253) -> 20253 | C75: On costs @ 16.3% on Annual Leave and Annual Leave Loading | E75: =E74*0.163 -> 0 | F75: =F74*0.163 -> 0 | G75: =G74*0.163 -> 0 | H75: =H74*0.163 -> 0 | I75: =I74*0.163 -> 0 | J75: =J74*0.163 -> 0 | K75: =K74*0.163 -> 0 | L75: =L74*0.163 -> 0 | O75: =IF(O74=0,0,20253) -> 20253 | P75: On costs @ 30% on Annual Leave and Annual Leave Loading | R75: =R74*0.3 -> 0 | S75: =S74*0.3 -> 0 | T75: =T74*0.3 -> 0 | U75: =U74*0.3 -> 0 | V75: =V74*0.3 -> 0 | W75: =W74*0.3 -> 0 | X75: 0 | Y75: 0
B76: Top | C76: Budget estimate based on total hours to be worked (as entered above) | E76: =E72*E56 -> 0 | F76: =F72*F56 -> 0 | G76: 0 | H76: 0 | I76: 0 | J76: 0 | K76: 0 | L76: 0 | O76: Top | P76: Budget estimate based on total hours to be worked (as entered above) | R76: =R72*R56 -> 0 | S76: =S72*S56 -> 0 | T76: 0 | U76: 0 | V76: 0 | W76: 0 | X76: 0 | Y76: 0
C79: Staff 3 | P79: Staff 3
C81: Please Specify if Staff to be employed is Fixed Term or Casual | D81: Casual | P81: Please Specify if Staff to be employed is Fixed Term or Casual | Q81: Casual
C84: HEW 1 INCREMENT 1 | P84: HEW 1 INCREMENT 1
C86: Enter the Annual Salary from the HR Salary Rates | E86: =VLOOKUP(C84,'HR Salary Data'!C:M,8,0) -> 48412.6986 | F86: =VLOOKUP(C84,'HR Salary Data'!C:R,13,0) -> 49380.95257 | G86: =VLOOKUP(C84,'HR Salary Data'!C:W,18,0) -> 50368.57162 | H86: =VLOOKUP(C84,'HR Salary Data'!C:AB,23,0) -> 51375.94306 | I86: =VLOOKUP(C84,'HR Salary Data'!C:AH,28,0) -> 52403.46192 | J86: =VLOOKUP(C84,'HR Salary Data'!C:AM,33,0) -> 53451.53116 | K86: =VLOOKUP(C84,'HR Salary Data'!C:AV,38,0) -> 54520.56178 | L86: =VLOOKUP(C84,'HR Salary Data'!C:AV,43,0) -> 55610.97301 | P86: Enter the Annual Salary from the HR Salary Rates | R86: =VLOOKUP(P84,'HR Salary Data'!C:M,8,0) -> 48412.6986 | S86: =VLOOKUP(P84,'HR Salary Data'!C:R,13,0) -> 49380.95257 | T86: =VLOOKUP(P84,'HR Salary Data'!C:W,18,0) -> 50368.57162 | U86: =VLOOKUP(P84,'HR Salary Data'!C:AB,23,0) -> 51375.94306 | V86: =VLOOKUP(P84,'HR Salary Data'!C:AH,28,0) -> 52403.46192 | W86: =VLOOKUP(P84,'HR Salary Data'!C:AM,33,0) -> 53451.53116 | X86: =VLOOKUP(P84,'HR Salary Data'!C:AV,38,0) -> 54520.56178 | Y86: =VLOOKUP(P84,'HR Salary Data'!C:AV,43,0) -> 55610.97301
C87: (Salary rates available from the HR web page: Policies and Procedures/Remuneration and Resources/Staff Salaries) | P87: (Salary rates available from the HR web page: Policies and Procedures/Remuneration and Resources/Staff Salaries)
C89: Enter the total Hours to be worked over the contract | P89: Enter the total Hours to be worked over the contract
C90: (Full Tme One week = 35 hours) | P90: (Full Tme One week = 35 hours)
C91: Fixed Term contract up to 12 months - Calculations | P91: Fixed Term contract up to 12 months - Calculations
C92: Base hourly rate | E92: =IF(B96=0,0,ROUND(+E86/52.178571/35,2)) -> 0 | F92: =IF(B96=0,0,ROUND(+F86/52.178571/35,2)) -> 0 | G92: =IF(B96=0,0,ROUND(+G86/52.178571/35,2)) -> 0 | H92: =IF(B96=0,0,ROUND(+H86/52.178571/35,2)) -> 0 | I92: =IF(B96=0,0,ROUND(+I86/52.178571/35,2)) -> 0 | J92: =IF(B96=0,0,ROUND(+J86/52.178571/35,2)) -> 0 | K92: =IF(B96=0,0,ROUND(+K86/52.178571/35,2)) -> 0 | L92: =IF(B96=0,0,ROUND(+L86/52.178571/35,2)) -> 0 | P92: Base hourly rate | R92: =IF(O96=0,0,ROUND(+R86/52.178571/35,2)) -> 0 | S92: =IF(O96=0,0,ROUND(+S86/52.178571/35,2)) -> 0 | T92: =IF(O96=0,0,ROUND(+T86/52.178571/35,2)) -> 0 | U92: =IF(O96=0,0,ROUND(+U86/52.178571/35,2)) -> 0 | V92: =IF(O96=0,0,ROUND(+V86/52.178571/35,2)) -> 0 | W92: =IF(O96=0,0,ROUND(+W86/52.178571/35,2)) -> 0 | X92: =IF(O96=0,0,ROUND(+X86/52.178571/35,2)) -> 0 | Y92: =IF(O96=0,0,ROUND(+Y86/52.178571/35,2)) -> 0
C93: On-costs @ 20% | E93: =E92*0.2 -> 0 | F93: =F92*0.2 -> 0 | G93: =G92*0.2 -> 0 | H93: =H92*0.2 -> 0 | I93: =I92*0.2 -> 0 | J93: =J92*0.2 -> 0 | K93: =K92*0.2 -> 0 | L93: =L92*0.2 -> 0 | P93: On-costs @ 30% | R93: =R92*0.3 -> 0 | S93: =S92*0.3 -> 0 | T93: =T92*0.3 -> 0 | U93: =U92*0.3 -> 0 | V93: =V92*0.3 -> 0 | W93: =W92*0.3 -> 0 | X93: 0 | Y93: 0
D94: Total hourly rate | E94: =ROUND((E92+E93),2) -> 0 | F94: =ROUND((F92+F93),2) -> 0 | G94: 0 | H94: 0 | I94: 0 | J94: 0 | K94: 0 | L94: 0 | Q94: Total hourly rate | R94: =ROUND((R92+R93),2) -> 0 | S94: =ROUND((S92+S93),2) -> 0 | T94: =ROUND((T92+T93),2) -> 0 | U94: =ROUND((U92+U93),2) -> 0 | V94: =ROUND((V92+V93),2) -> 0 | W94: =ROUND((W92+W93),2) -> 0 | X94: 0 | Y94: 0
B96: =IF(D81="FIXED TERM", 20202,0) -> 0 | C96: Salary Estimate based on total hours to be worked (as entered above) | E96: =E92*E89 -> 0 | F96: =F92*F89 -> 0 | G96: 0 | H96: 0 | I96: 0 | J96: 0 | K96: 0 | L96: 0 | O96: =IF(Q81="FIXED TERM", 20202,0) -> 0 | P96: Salary Estimate based on total hours to be worked (as entered above) | R96: =R92*R89 -> 0 | S96: =S92*S89 -> 0 | T96: 0 | U96: 0 | V96: 0 | W96: 0 | X96: 0 | Y96: 0
B97: =B96 -> 0 | C97: Annual Leave Loading (approx only)* | E97: =ROUND((((E92*140)*17.5%)/1820)*E89,2) -> 0 | F97: =ROUND((((F92*140)*17.5%)/1820)*F89,2) -> 0 | G97: 0 | H97: 0 | I97: 0 | J97: 0 | K97: 0 | L97: 0 | O97: =O96 -> 0 | P97: Annual Leave Loading (approx only)* | R97: =ROUND((((R92*140)*17.5%)/1820)*R89,2) -> 0 | S97: =ROUND((((S92*140)*17.5%)/1820)*S89,2) -> 0 | T97: 0 | U97: 0 | V97: 0 | W97: 0 | X97: 0 | Y97: 0
B98: =IF(B96>0,20252,0) -> 0 | C98: On costs @ 20% on Annual Leave Loading and Base Salary | E98: =ROUND((E96*20%)+(E97*20%),2) -> 0 | F98: =ROUND((F96*20%)+(F97*20%),2) -> 0 | G98: =ROUND((G96*20%)+(G97*20%),2) -> 0 | H98: =ROUND((H96*20%)+(H97*20%),2) -> 0 | I98: =ROUND((I96*20%)+(I97*20%),2) -> 0 | J98: =ROUND((J96*20%)+(J97*20%),2) -> 0 | K98: =ROUND((K96*20%)+(K97*20%),2) -> 0 | L98: =ROUND((L96*20%)+(L97*20%),2) -> 0 | O98: =IF(O96>0,20252,0) -> 0 | P98: On costs @ 30% on Annual Leave and Annual Leave Loading | R98: =ROUND((R96*30%)+(R97*30%),2) -> 0 | S98: =ROUND((S96*30%)+(S97*30%),2) -> 0 | T98: =ROUND((T96*30%)+(T97*30%),2) -> 0 | U98: =ROUND((U96*30%)+(U97*30%),2) -> 0 | V98: =ROUND((V96*30%)+(V97*30%),2) -> 0 | W98: =ROUND((W96*30%)+(W97*30%),2) -> 0 | X98: 0 | Y98: 0
C99: Total Budget if Annual Leave is taken during the period of contract | E99: =(E96+E97)*1.2 -> 0 | F99: =(F96+F97)*1.2 -> 0 | G99: 0 | H99: 0 | I99: 0 | J99: 0 | K99: 0 | L99: 0 | P99: Total Budget if Annual Leave is taken during the period of contract | R99: =(R96+R97)*1.3 -> 0 | S99: =(S96+S97)*1.3 -> 0 | T99: 0 | U99: 0 | V99: 0 | W99: 0 | X99: 0 | Y99: 0
C102: Casual Contract - Calculations | P102: Casual Contract - Calculations
C103: Casual hourly rate (includes 25% Loading) | E103: =IF(B107=0,0,ROUND((+E86/52.178571/35)*1.25,2)) -> 33.14 | F103: =IF(B107=0,0,ROUND((+F86/52.178571/35)*1.25,2)) -> 33.8 | G103: =IF(B107=0,0,ROUND((+G86/52.178571/35)*1.25,2)) -> 34.48 | H103: =IF(B107=0,0,ROUND((+H86/52.178571/35)*1.25,2)) -> 35.16 | I103: =IF(B107=0,0,ROUND((+I86/52.178571/35)*1.25,2)) -> 35.87 | J103: =IF(B107=0,0,ROUND((+J86/52.178571/35)*1.25,2)) -> 36.59 | K103: =IF(B107=0,0,ROUND((+K86/52.178571/35)*1.25,2)) -> 37.32 | L103: =IF(B107=0,0,ROUND((+L86/52.178571/35)*1.25,2)) -> 38.06 | P103: Casual hourly rate (includes 25% Loading) | R103: =IF(O107=0,0,ROUND((+R86/52.178571/35)*1.25,2)) -> 33.14 | S103: =IF(O107=0,0,ROUND((+S86/52.178571/35)*1.25,2)) -> 33.8 | T103: =IF(O107=0,0,ROUND((+T86/52.178571/35)*1.25,2)) -> 34.48 | U103: =IF(O107=0,0,ROUND((+U86/52.178571/35)*1.25,2)) -> 35.16 | V103: =IF(O107=0,0,ROUND((+V86/52.178571/35)*1.25,2)) -> 35.87 | W103: =IF(O107=0,0,ROUND((+W86/52.178571/35)*1.25,2)) -> 36.59 | X103: =IF(O107=0,0,ROUND((+X86/52.178571/35)*1.25,2)) -> 37.32 | Y103: =IF(O107=0,0,ROUND((+Y86/52.178571/35)*1.25,2)) -> 38.06
C104: On-costs @ 16.3% | E104: =E103*0.163 -> 5.40182 | F104: =F103*0.163 -> 5.5094 | G104: =G103*0.163 -> 5.62024 | H104: =H103*0.163 -> 5.73108 | I104: =I103*0.163 -> 5.84681 | J104: =J103*0.163 -> 5.96417 | K104: =K103*0.163 -> 6.08316 | L104: =L103*0.163 -> 6.20378 | P104: On-costs @ 30% | R104: =R103*0.3 -> 9.942 | S104: =S103*0.3 -> 10.14 | T104: =T103*0.3 -> 10.344 | U104: =U103*0.3 -> 10.548 | V104: =V103*0.3 -> 10.761 | W104: =W103*0.3 -> 10.977 | X104: 11.196 | Y104: 11.418
D105: Total hourly rate | E105: =ROUND((E103+E104),2) -> 38.54 | F105: =ROUND((F103+F104),2) -> 39.31 | G105: 40.1 | H105: 40.89 | I105: 41.72 | J105: 42.55 | K105: 43.4 | L105: 44.26 | Q105: Total hourly rate | R105: =ROUND((R103+R104),2) -> 43.08 | S105: =ROUND((S103+S104),2) -> 43.94 | T105: =ROUND((T103+T104),2) -> 44.82 | U105: =ROUND((U103+U104),2) -> 45.71 | V105: =ROUND((V103+V104),2) -> 46.63 | W105: =ROUND((W103+W104),2) -> 47.57 | X105: 48.52 | Y105: 49.48
B107: =IF(D81="CASUAL", 20203,0) -> 20203 | C107: Salary Estimate based on total hours to be worked (as entered above) | E107: =E103*E89 -> 0 | F107: =F103*F89 -> 0 | G107: 0 | H107: 0 | I107: 0 | J107: 0 | K107: 0 | L107: 0 | O107: =IF(Q81="CASUAL", 20203,0) -> 20203 | P107: Salary Estimate based on total hours to be worked (as entered above) | R107: =R103*R89 -> 0 | S107: =S103*S89 -> 0 | T107: 0 | U107: 0 | V107: 0 | W107: 0 | X107: 0 | Y107: 0
B108: =IF(B107=0,0,20253) -> 20253 | C108: On costs @ 16.3% on Annual Leave and Annual Leave Loading | E108: =E107*0.163 -> 0 | F108: =F107*0.163 -> 0 | G108: =G107*0.163 -> 0 | H108: =H107*0.163 -> 0 | I108: =I107*0.163 -> 0 | J108: =J107*0.163 -> 0 | K108: =K107*0.163 -> 0 | L108: =L107*0.163 -> 0 | O108: =IF(O107=0,0,20253) -> 20253 | P108: On costs @ 30% on Annual Leave and Annual Leave Loading | R108: =R107*0.3 -> 0 | S108: =S107*0.3 -> 0 | T108: =T107*0.3 -> 0 | U108: =U107*0.3 -> 0 | V108: =V107*0.3 -> 0 | W108: =W107*0.3 -> 0 | X108: 0 | Y108: 0
B109: Top | C109: Budget estimate based on total hours to be worked (as entered above) | E109: =E105*E89 -> 0 | F109: =F105*F89 -> 0 | G109: 0 | H109: 0 | I109: 0 | J109: 0 | K109: 0 | L109: 0 | O109: Top | P109: Budget estimate based on total hours to be worked (as entered above) | R109: =R105*R89 -> 0 | S109: =S105*S89 -> 0 | T109: 0 | U109: 0 | V109: 0 | W109: 0 | X109: 0 | Y109: 0
C112: Staff 4 | P112: Staff 4
C114: Please Specify if Staff to be employed is Fixed Term or Casual | D114: Casual | P114: Please Specify if Staff to be employed is Fixed Term or Casual | Q114: Casual
C117: HEW 1 INCREMENT 1 | P117: HEW 1 INCREMENT 1
C119: Enter the Annual Salary from the HR Salary Rates | E119: =VLOOKUP(C117,'HR Salary Data'!C:M,8,0) -> 48412.6986 | F119: =VLOOKUP(C117,'HR Salary Data'!C:R,13,0) -> 49380.95257 | G119: =VLOOKUP(C117,'HR Salary Data'!C:W,18,0) -> 50368.57162 | H119: =VLOOKUP(C117,'HR Salary Data'!C:AB,23,0) -> 51375.94306 | I119: =VLOOKUP(C117,'HR Salary Data'!C:AH,28,0) -> 52403.46192 | J119: =VLOOKUP(C117,'HR Salary Data'!C:AM,33,0) -> 53451.53116 | K119: =VLOOKUP(C117,'HR Salary Data'!C:AV,38,0) -> 54520.56178 | L119: =VLOOKUP(C117,'HR Salary Data'!C:AV,43,0) -> 55610.97301 | P119: Enter the Annual Salary from the HR Salary Rates | R119: =VLOOKUP(P117,'HR Salary Data'!C:M,8,0) -> 48412.6986 | S119: =VLOOKUP(P117,'HR Salary Data'!C:R,13,0) -> 49380.95257 | T119: =VLOOKUP(P117,'HR Salary Data'!C:W,18,0) -> 50368.57162 | U119: =VLOOKUP(P117,'HR Salary Data'!C:AB,23,0) -> 51375.94306 | V119: =VLOOKUP(P117,'HR Salary Data'!C:AH,28,0) -> 52403.46192 | W119: =VLOOKUP(P117,'HR Salary Data'!C:AM,33,0) -> 53451.53116 | X119: =VLOOKUP(P117,'HR Salary Data'!C:AV,38,0) -> 54520.56178 | Y119: =VLOOKUP(P117,'HR Salary Data'!C:AV,43,0) -> 55610.97301
C120: (Salary rates available from the HR web page: Policies and Procedures/Remuneration and Resources/Staff Salaries) | P120: (Salary rates available from the HR web page: Policies and Procedures/Remuneration and Resources/Staff Salaries)
C122: Enter the total Hours to be worked over the contract | P122: Enter the total Hours to be worked over the contract
C123: (Full Tme One week = 35 hours) | P123: (Full Tme One week = 35 hours)
C124: Fixed Term contract up to 12 months - Calculations | P124: Fixed Term contract up to 12 months - Calculations
C125: Base hourly rate | E125: =IF(B129=0,0,ROUND(+E119/52.178571/35,2)) -> 0 | F125: =IF(B129=0,0,ROUND(+F119/52.178571/35,2)) -> 0 | G125: =IF(B129=0,0,ROUND(+G119/52.178571/35,2)) -> 0 | H125: =IF(B129=0,0,ROUND(+H119/52.178571/35,2)) -> 0 | I125: =IF(B129=0,0,ROUND(+I119/52.178571/35,2)) -> 0 | J125: =IF(B129=0,0,ROUND(+J119/52.178571/35,2)) -> 0 | K125: =IF(B129=0,0,ROUND(+K119/52.178571/35,2)) -> 0 | L125: =IF(B129=0,0,ROUND(+L119/52.178571/35,2)) -> 0 | P125: Base hourly rate | R125: =IF(O129=0,0,ROUND(+R119/52.178571/35,2)) -> 0 | S125: =IF(O129=0,0,ROUND(+S119/52.178571/35,2)) -> 0 | T125: =IF(O129=0,0,ROUND(+T119/52.178571/35,2)) -> 0 | U125: =IF(O129=0,0,ROUND(+U119/52.178571/35,2)) -> 0 | V125: =IF(O129=0,0,ROUND(+V119/52.178571/35,2)) -> 0 | W125: =IF(O129=0,0,ROUND(+W119/52.178571/35,2)) -> 0 | X125: =IF(O129=0,0,ROUND(+X119/52.178571/35,2)) -> 0 | Y125: =IF(O129=0,0,ROUND(+Y119/52.178571/35,2)) -> 0
C126: On-costs @ 20% | E126: =E125*0.2 -> 0 | F126: =F125*0.2 -> 0 | G126: =G125*0.2 -> 0 | H126: =H125*0.2 -> 0 | I126: =I125*0.2 -> 0 | J126: =J125*0.2 -> 0 | K126: =K125*0.2 -> 0 | L126: =L125*0.2 -> 0 | P126: On-costs @ 30% | R126: =R125*0.3 -> 0 | S126: =S125*0.3 -> 0 | T126: =T125*0.3 -> 0 | U126: =U125*0.3 -> 0 | V126: =V125*0.3 -> 0 | W126: =W125*0.3 -> 0 | X126: 0 | Y126: 0
D127: Total hourly rate | E127: =ROUND((E125+E126),2) -> 0 | F127: =ROUND((F125+F126),2) -> 0 | G127: 0 | H127: 0 | I127: 0 | J127: 0 | K127: 0 | L127: 0 | Q127: Total hourly rate | R127: =ROUND((R125+R126),2) -> 0 | S127: =ROUND((S125+S126),2) -> 0 | T127: =ROUND((T125+T126),2) -> 0 | U127: =ROUND((U125+U126),2) -> 0 | V127: =ROUND((V125+V126),2) -> 0 | W127: =ROUND((W125+W126),2) -> 0 | X127: 0 | Y127: 0
B129: =IF(D114="FIXED TERM", 20202,0) -> 0 | C129: Salary Estimate based on total hours to be worked (as entered above) | E129: =E125*E122 -> 0 | F129: =F125*F122 -> 0 | G129: 0 | H129: 0 | I129: 0 | J129: 0 | K129: 0 | L129: 0 | O129: =IF(Q114="FIXED TERM", 20202,0) -> 0 | P129: Salary Estimate based on total hours to be worked (as entered above) | R129: =R125*R122 -> 0 | S129: =S125*S122 -> 0 | T129: 0 | U129: 0 | V129: 0 | W129: 0 | X129: 0 | Y129: 0
B130: =B129 -> 0 | C130: Annual Leave Loading (approx only)* | E130: =ROUND((((E125*140)*17.5%)/1820)*E122,2) -> 0 | F130: =ROUND((((F125*140)*17.5%)/1820)*F122,2) -> 0 | G130: 0 | H130: 0 | I130: 0 | J130: 0 | K130: 0 | L130: 0 | O130: =O129 -> 0 | P130: Annual Leave Loading (approx only)* | R130: =ROUND((((R125*140)*17.5%)/1820)*R122,2) -> 0 | S130: =ROUND((((S125*140)*17.5%)/1820)*S122,2) -> 0 | T130: 0 | U130: 0 | V130: 0 | W130: 0 | X130: 0 | Y130: 0
B131: =IF(B129>0,20252,0) -> 0 | C131: On costs @ 20% on Annual Leave Loading and Base Salary | E131: =ROUND((E129*20%)+(E130*20%),2) -> 0 | F131: =ROUND((F129*20%)+(F130*20%),2) -> 0 | G131: =ROUND((G129*20%)+(G130*20%),2) -> 0 | H131: =ROUND((H129*20%)+(H130*20%),2) -> 0 | I131: =ROUND((I129*20%)+(I130*20%),2) -> 0 | J131: =ROUND((J129*20%)+(J130*20%),2) -> 0 | K131: =ROUND((K129*20%)+(K130*20%),2) -> 0 | L131: =ROUND((L129*20%)+(L130*20%),2) -> 0 | O131: =IF(O129>0,20252,0) -> 0 | P131: On costs @ 30% on Annual Leave and Annual Leave Loading | R131: =ROUND((R129*30%)+(R130*30%),2) -> 0 | S131: =ROUND((S129*30%)+(S130*30%),2) -> 0 | T131: =ROUND((T129*30%)+(T130*30%),2) -> 0 | U131: =ROUND((U129*30%)+(U130*30%),2) -> 0 | V131: =ROUND((V129*30%)+(V130*30%),2) -> 0 | W131: =ROUND((W129*30%)+(W130*30%),2) -> 0 | X131: 0 | Y131: 0
C132: Total Budget if Annual Leave is taken during the period of contract | E132: =(E129+E130)*1.2 -> 0 | F132: =(F129+F130)*1.2 -> 0 | G132: 0 | H132: 0 | I132: 0 | J132: 0 | K132: 0 | L132: 0 | P132: Total Budget if Annual Leave is taken during the period of contract | R132: =(R129+R130)*1.3 -> 0 | S132: =(S129+S130)*1.3 -> 0 | T132: 0 | U132: 0 | V132: 0 | W132: 0 | X132: 0 | Y132: 0
C135: Casual Contract - Calculations | P135: Casual Contract - Calculations
C136: Casual hourly rate (includes 25% Loading) | E136: =IF(B140=0,0,ROUND((+E119/52.178571/35)*1.25,2)) -> 33.14 | F136: =IF(B140=0,0,ROUND((+F119/52.178571/35)*1.25,2)) -> 33.8 | G136: =IF(B140=0,0,ROUND((+G119/52.178571/35)*1.25,2)) -> 34.48 | H136: =IF(B140=0,0,ROUND((+H119/52.178571/35)*1.25,2)) -> 35.16 | I136: =IF(B140=0,0,ROUND((+I119/52.178571/35)*1.25,2)) -> 35.87 | J136: =IF(B140=0,0,ROUND((+J119/52.178571/35)*1.25,2)) -> 36.59 | K136: =IF(B140=0,0,ROUND((+K119/52.178571/35)*1.25,2)) -> 37.32 | L136: =IF(B140=0,0,ROUND((+L119/52.178571/35)*1.25,2)) -> 38.06 | P136: Casual hourly rate (includes 25% Loading) | R136: =IF(O140=0,0,ROUND((+R119/52.178571/35)*1.25,2)) -> 33.14 | S136: =IF(O140=0,0,ROUND((+S119/52.178571/35)*1.25,2)) -> 33.8 | T136: =IF(O140=0,0,ROUND((+T119/52.178571/35)*1.25,2)) -> 34.48 | U136: =IF(O140=0,0,ROUND((+U119/52.178571/35)*1.25,2)) -> 35.16 | V136: =IF(O140=0,0,ROUND((+V119/52.178571/35)*1.25,2)) -> 35.87 | W136: =IF(O140=0,0,ROUND((+W119/52.178571/35)*1.25,2)) -> 36.59 | X136: =IF(O140=0,0,ROUND((+X119/52.178571/35)*1.25,2)) -> 37.32 | Y136: =IF(O140=0,0,ROUND((+Y119/52.178571/35)*1.25,2)) -> 38.06
C137: On-costs @ 16.3% | E137: =E136*0.163 -> 5.40182 | F137: =F136*0.163 -> 5.5094 | G137: =G136*0.163 -> 5.62024 | H137: =H136*0.163 -> 5.73108 | I137: =I136*0.163 -> 5.84681 | J137: =J136*0.163 -> 5.96417 | K137: =K136*0.163 -> 6.08316 | L137: =L136*0.163 -> 6.20378 | P137: On-costs @ 30% | R137: =R136*0.3 -> 9.942 | S137: =S136*0.3 -> 10.14 | T137: =T136*0.3 -> 10.344 | U137: =U136*0.3 -> 10.548 | V137: =V136*0.3 -> 10.761 | W137: =W136*0.3 -> 10.977 | X137: 11.196 | Y137: 11.418
D138: Total hourly rate | E138: =ROUND((E136+E137),2) -> 38.54 | F138: =ROUND((F136+F137),2) -> 39.31 | G138: 40.1 | H138: 40.89 | I138: 41.72 | J138: 42.55 | K138: 43.4 | L138: 44.26 | Q138: Total hourly rate | R138: =ROUND((R136+R137),2) -> 43.08 | S138: =ROUND((S136+S137),2) -> 43.94 | T138: =ROUND((T136+T137),2) -> 44.82 | U138: =ROUND((U136+U137),2) -> 45.71 | V138: =ROUND((V136+V137),2) -> 46.63 | W138: =ROUND((W136+W137),2) -> 47.57 | X138: 48.52 | Y138: 49.48
B140: =IF(D114="CASUAL", 20203,0) -> 20203 | C140: Salary Estimate based on total hours to be worked (as entered above) | E140: =E136*E122 -> 0 | F140: =F136*F122 -> 0 | G140: 0 | H140: 0 | I140: 0 | J140: 0 | K140: 0 | L140: 0 | O140: =IF(Q114="CASUAL", 20203,0) -> 20203 | P140: Salary Estimate based on total hours to be worked (as entered above) | R140: =R136*R122 -> 0 | S140: =S136*S122 -> 0 | T140: 0 | U140: 0 | V140: 0 | W140: 0 | X140: 0 | Y140: 0
B141: =IF(B140=0,0,20253) -> 20253 | C141: On costs @ 16.3% on Annual Leave and Annual Leave Loading | E141: =E140*0.163 -> 0 | F141: =F140*0.163 -> 0 | G141: =G140*0.163 -> 0 | H141: =H140*0.163 -> 0 | I141: =I140*0.163 -> 0 | J141: =J140*0.163 -> 0 | K141: =K140*0.163 -> 0 | L141: =L140*0.163 -> 0 | O141: =IF(O140=0,0,20253) -> 20253 | P141: On costs @ 30% on Annual Leave and Annual Leave Loading | R141: =R140*0.3 -> 0 | S141: =S140*0.3 -> 0 | T141: =T140*0.3 -> 0 | U141: =U140*0.3 -> 0 | V141: =V140*0.3 -> 0 | W141: =W140*0.3 -> 0 | X141: 0 | Y141: 0
B142: Top | C142: Budget estimate based on total hours to be worked (as entered above) | E142: =E138*E122 -> 0 | F142: =F138*F122 -> 0 | G142: 0 | H142: 0 | I142: 0 | J142: 0 | K142: 0 | L142: 0 | O142: Top | P142: Budget estimate based on total hours to be worked (as entered above) | R142: =R138*R122 -> 0 | S142: =S138*S122 -> 0 | T142: 0 | U142: 0 | V142: 0 | W142: 0 | X142: 0 | Y142: 0
C145: Staff 5 | P145: Staff 5
C147: Please Specify if Staff to be employed is Fixed Term or Casual | D147: Casual | P147: Please Specify if Staff to be employed is Fixed Term or Casual | Q147: Casual
C150: HEW 1 INCREMENT 1 | P150: HEW 1 INCREMENT 1
C152: Enter the Annual Salary from the HR Salary Rates | E152: =VLOOKUP(C150,'HR Salary Data'!C:M,8,0) -> 48412.6986 | F152: =VLOOKUP(C150,'HR Salary Data'!C:R,13,0) -> 49380.95257 | G152: =VLOOKUP(C150,'HR Salary Data'!C:W,18,0) -> 50368.57162 | H152: =VLOOKUP(C150,'HR Salary Data'!C:AB,23,0) -> 51375.94306 | I152: =VLOOKUP(C150,'HR Salary Data'!C:AH,28,0) -> 52403.46192 | J152: =VLOOKUP(C150,'HR Salary Data'!C:AM,33,0) -> 53451.53116 | K152: =VLOOKUP(C150,'HR Salary Data'!C:AV,38,0) -> 54520.56178 | L152: =VLOOKUP(C150,'HR Salary Data'!C:AV,43,0) -> 55610.97301 | P152: Enter the Annual Salary from the HR Salary Rates | R152: =VLOOKUP(P150,'HR Salary Data'!C:M,8,0) -> 48412.6986 | S152: =VLOOKUP(P150,'HR Salary Data'!C:R,13,0) -> 49380.95257 | T152: =VLOOKUP(P150,'HR Salary Data'!C:W,18,0) -> 50368.57162 | U152: =VLOOKUP(P150,'HR Salary Data'!C:AB,23,0) -> 51375.94306 | V152: =VLOOKUP(P150,'HR Salary Data'!C:AH,28,0) -> 52403.46192 | W152: =VLOOKUP(P150,'HR Salary Data'!C:AM,33,0) -> 53451.53116 | X152: =VLOOKUP(P150,'HR Salary Data'!C:AV,38,0) -> 54520.56178 | Y152: =VLOOKUP(P150,'HR Salary Data'!C:AV,43,0) -> 55610.97301
C153: (Salary rates available from the HR web page: Policies and Procedures/Remuneration and Resources/Staff Salaries) | P153: (Salary rates available from the HR web page: Policies and Procedures/Remuneration and Resources/Staff Salaries)
C155: Enter the total Hours to be worked over the contract | P155: Enter the total Hours to be worked over the contract
C156: (Full Tme One week = 35 hours) | P156: (Full Tme One week = 35 hours)
C157: Fixed Term contract up to 12 months - Calculations | P157: Fixed Term contract up to 12 months - Calculations
C158: Base hourly rate | E158: =IF(B162=0,0,ROUND(+E152/52.178571/35,2)) -> 0 | F158: =IF(B162=0,0,ROUND(+F152/52.178571/35,2)) -> 0 | G158: =IF(B162=0,0,ROUND(+G152/52.178571/35,2)) -> 0 | H158: =IF(B162=0,0,ROUND(+H152/52.178571/35,2)) -> 0 | I158: =IF(B162=0,0,ROUND(+I152/52.178571/35,2)) -> 0 | J158: =IF(B162=0,0,ROUND(+J152/52.178571/35,2)) -> 0 | K158: =IF(B162=0,0,ROUND(+K152/52.178571/35,2)) -> 0 | L158: =IF(B162=0,0,ROUND(+L152/52.178571/35,2)) -> 0 | P158: Base hourly rate | R158: =IF(O162=0,0,ROUND(+R152/52.178571/35,2)) -> 0 | S158: =IF(O162=0,0,ROUND(+S152/52.178571/35,2)) -> 0 | T158: =IF(O162=0,0,ROUND(+T152/52.178571/35,2)) -> 0 | U158: =IF(O162=0,0,ROUND(+U152/52.178571/35,2)) -> 0 | V158: =IF(O162=0,0,ROUND(+V152/52.178571/35,2)) -> 0 | W158: =IF(O162=0,0,ROUND(+W152/52.178571/35,2)) -> 0 | X158: =IF(O162=0,0,ROUND(+X152/52.178571/35,2)) -> 0 | Y158: =IF(O162=0,0,ROUND(+Y152/52.178571/35,2)) -> 0
C159: On-costs @ 20% | E159: =E158*0.2 -> 0 | F159: =F158*0.2 -> 0 | G159: =G158*0.2 -> 0 | H159: =H158*0.2 -> 0 | I159: =I158*0.2 -> 0 | J159: =J158*0.2 -> 0 | K159: =K158*0.2 -> 0 | L159: =L158*0.2 -> 0 | P159: On-costs @ 30% | R159: =R158*0.3 -> 0 | S159: =S158*0.3 -> 0 | T159: =T158*0.3 -> 0 | U159: =U158*0.3 -> 0 | V159: =V158*0.3 -> 0 | W159: =W158*0.3 -> 0 | X159: 0 | Y159: 0
D160: Total hourly rate | E160: =ROUND((E158+E159),2) -> 0 | F160: =ROUND((F158+F159),2) -> 0 | G160: 0 | H160: 0 | I160: 0 | J160: 0 | K160: 0 | L160: 0 | Q160: Total hourly rate | R160: =ROUND((R158+R159),2) -> 0 | S160: =ROUND((S158+S159),2) -> 0 | T160: =ROUND((T158+T159),2) -> 0 | U160: =ROUND((U158+U159),2) -> 0 | V160: =ROUND((V158+V159),2) -> 0 | W160: =ROUND((W158+W159),2) -> 0 | X160: 0 | Y160: 0
B162: =IF(D147="FIXED TERM", 20202,0) -> 0 | C162: Salary Estimate based on total hours to be worked (as entered above) | E162: =E158*E155 -> 0 | F162: =F158*F155 -> 0 | G162: 0 | H162: 0 | I162: 0 | J162: 0 | K162: 0 | L162: 0 | O162: =IF(Q147="FIXED TERM", 20202,0) -> 0 | P162: Salary Estimate based on total hours to be worked (as entered above) | R162: =R158*R155 -> 0 | S162: =S158*S155 -> 0 | T162: 0 | U162: 0 | V162: 0 | W162: 0 | X162: 0 | Y162: 0
B163: =B162 -> 0 | C163: Annual Leave Loading (approx only)* | E163: =ROUND((((E158*140)*17.5%)/1820)*E155,2) -> 0 | F163: =ROUND((((F158*140)*17.5%)/1820)*F155,2) -> 0 | G163: 0 | H163: 0 | I163: 0 | J163: 0 | K163: 0 | L163: 0 | O163: =O162 -> 0 | P163: Annual Leave Loading (approx only)* | R163: =ROUND((((R158*140)*17.5%)/1820)*R155,2) -> 0 | S163: =ROUND((((S158*140)*17.5%)/1820)*S155,2) -> 0 | T163: 0 | U163: 0 | V163: 0 | W163: 0 | X163: 0 | Y163: 0
B164: =IF(B162>0,20252,0) -> 0 | C164: On costs @ 20% on Annual Leave Loading and Base Salary | E164: =ROUND((E162*20%)+(E163*20%),2) -> 0 | F164: =ROUND((F162*20%)+(F163*20%),2) -> 0 | G164: =ROUND((G162*20%)+(G163*20%),2) -> 0 | H164: =ROUND((H162*20%)+(H163*20%),2) -> 0 | I164: =ROUND((I162*20%)+(I163*20%),2) -> 0 | J164: =ROUND((J162*20%)+(J163*20%),2) -> 0 | K164: =ROUND((K162*20%)+(K163*20%),2) -> 0 | L164: =ROUND((L162*20%)+(L163*20%),2) -> 0 | O164: =IF(O162>0,20252,0) -> 0 | P164: On costs @ 30% on Annual Leave and Annual Leave Loading | R164: =ROUND((R162*30%)+(R163*30%),2) -> 0 | S164: =ROUND((S162*30%)+(S163*30%),2) -> 0 | T164: =ROUND((T162*30%)+(T163*30%),2) -> 0 | U164: =ROUND((U162*30%)+(U163*30%),2) -> 0 | V164: =ROUND((V162*30%)+(V163*30%),2) -> 0 | W164: =ROUND((W162*30%)+(W163*30%),2) -> 0 | X164: 0 | Y164: 0
C165: Total Budget if Annual Leave is taken during the period of contract | E165: =(E162+E163)*1.2 -> 0 | F165: =(F162+F163)*1.2 -> 0 | G165: 0 | H165: 0 | I165: 0 | J165: 0 | K165: 0 | L165: 0 | P165: Total Budget if Annual Leave is taken during the period of contract | R165: =(R162+R163)*1.3 -> 0 | S165: =(S162+S163)*1.3 -> 0 | T165: 0 | U165: 0 | V165: 0 | W165: 0 | X165: 0 | Y165: 0
C168: Casual Contract - Calculations | P168: Casual Contract - Calculations
C169: Casual hourly rate (includes 25% Loading) | E169: =IF(B173=0,0,ROUND((+E152/52.178571/35)*1.25,2)) -> 33.14 | F169: =IF(B173=0,0,ROUND((+F152/52.178571/35)*1.25,2)) -> 33.8 | G169: =IF(B173=0,0,ROUND((+G152/52.178571/35)*1.25,2)) -> 34.48 | H169: =IF(B173=0,0,ROUND((+H152/52.178571/35)*1.25,2)) -> 35.16 | I169: =IF(B173=0,0,ROUND((+I152/52.178571/35)*1.25,2)) -> 35.87 | J169: =IF(B173=0,0,ROUND((+J152/52.178571/35)*1.25,2)) -> 36.59 | K169: =IF(B173=0,0,ROUND((+K152/52.178571/35)*1.25,2)) -> 37.32 | L169: =IF(B173=0,0,ROUND((+L152/52.178571/35)*1.25,2)) -> 38.06 | P169: Casual hourly rate (includes 25% Loading) | R169: =IF(O173=0,0,ROUND((+R152/52.178571/35)*1.25,2)) -> 33.14 | S169: =IF(O173=0,0,ROUND((+S152/52.178571/35)*1.25,2)) -> 33.8 | T169: =IF(O173=0,0,ROUND((+T152/52.178571/35)*1.25,2)) -> 34.48 | U169: =IF(O173=0,0,ROUND((+U152/52.178571/35)*1.25,2)) -> 35.16 | V169: =IF(O173=0,0,ROUND((+V152/52.178571/35)*1.25,2)) -> 35.87 | W169: =IF(O173=0,0,ROUND((+W152/52.178571/35)*1.25,2)) -> 36.59 | X169: =IF(O173=0,0,ROUND((+X152/52.178571/35)*1.25,2)) -> 37.32 | Y169: =IF(O173=0,0,ROUND((+Y152/52.178571/35)*1.25,2)) -> 38.06
C170: On-costs @ 16.3% | E170: =E169*0.163 -> 5.40182 | F170: =F169*0.163 -> 5.5094 | G170: =G169*0.163 -> 5.62024 | H170: =H169*0.163 -> 5.73108 | I170: =I169*0.163 -> 5.84681 | J170: =J169*0.163 -> 5.96417 | K170: =K169*0.163 -> 6.08316 | L170: =L169*0.163 -> 6.20378 | P170: On-costs @ 30% | R170: =R169*0.3 -> 9.942 | S170: =S169*0.3 -> 10.14 | T170: =T169*0.3 -> 10.344 | U170: =U169*0.3 -> 10.548 | V170: =V169*0.3 -> 10.761 | W170: =W169*0.3 -> 10.977 | X170: 11.196 | Y170: 11.418
D171: Total hourly rate | E171: =ROUND((E169+E170),2) -> 38.54 | F171: =ROUND((F169+F170),2) -> 39.31 | G171: 40.1 | H171: 40.89 | I171: 41.72 | J171: 42.55 | K171: 43.4 | L171: 44.26 | Q171: Total hourly rate | R171: =ROUND((R169+R170),2) -> 43.08 | S171: =ROUND((S169+S170),2) -> 43.94 | T171: =ROUND((T169+T170),2) -> 44.82 | U171: =ROUND((U169+U170),2) -> 45.71 | V171: =ROUND((V169+V170),2) -> 46.63 | W171: =ROUND((W169+W170),2) -> 47.57 | X171: 48.52 | Y171: 49.48
B173: =IF(D147="CASUAL", 20203,0) -> 20203 | C173: Salary Estimate based on total hours to be worked (as entered above) | E173: =E169*E155 -> 0 | F173: =F169*F155 -> 0 | G173: 0 | H173: 0 | I173: 0 | J173: 0 | K173: 0 | L173: 0 | O173: =IF(Q147="CASUAL", 20203,0) -> 20203 | P173: Salary Estimate based on total hours to be worked (as entered above) | R173: =R169*R155 -> 0 | S173: =S169*S155 -> 0 | T173: 0 | U173: 0 | V173: 0 | W173: 0 | X173: 0 | Y173: 0
B174: =IF(B173=0,0,20253) -> 20253 | C174: On costs @ 16.3% on Annual Leave and Annual Leave Loading | E174: =E173*0.163 -> 0 | F174: =F173*0.163 -> 0 | G174: =G173*0.163 -> 0 | H174: =H173*0.163 -> 0 | I174: =I173*0.163 -> 0 | J174: =J173*0.163 -> 0 | K174: =K173*0.163 -> 0 | L174: =L173*0.163 -> 0 | O174: =IF(O173=0,0,20253) -> 20253 | P174: On costs @ 30% on Annual Leave and Annual Leave Loading | R174: =R173*0.3 -> 0 | S174: =S173*0.3 -> 0 | T174: =T173*0.3 -> 0 | U174: =U173*0.3 -> 0 | V174: =V173*0.3 -> 0 | W174: =W173*0.3 -> 0 | X174: 0 | Y174: 0
B175: Top | C175: Budget estimate based on total hours to be worked (as entered above) | E175: =E171*E155 -> 0 | F175: =F171*F155 -> 0 | G175: 0 | H175: 0 | I175: 0 | J175: 0 | K175: 0 | L175: 0 | O175: Top | P175: Budget estimate based on total hours to be worked (as entered above) | R175: =R171*R155 -> 0 | S175: =S171*S155 -> 0 | T175: 0 | U175: 0 | V175: 0 | W175: 0 | X175: 0 | Y175: 0
C178: Staff 6 | P178: Staff 6
C180: Please Specify if Staff to be employed is Fixed Term or Casual | D180: Casual | P180: Please Specify if Staff to be employed is Fixed Term or Casual | Q180: Casual
C183: HEW 1 INCREMENT 1 | P183: HEW 1 INCREMENT 1
C185: Enter the Annual Salary from the HR Salary Rates | E185: =VLOOKUP(C183,'HR Salary Data'!C:M,8,0) -> 48412.6986 | F185: =VLOOKUP(C183,'HR Salary Data'!C:R,13,0) -> 49380.95257 | G185: =VLOOKUP(C183,'HR Salary Data'!C:W,18,0) -> 50368.57162 | H185: =VLOOKUP(C183,'HR Salary Data'!C:AB,23,0) -> 51375.94306 | I185: =VLOOKUP(C183,'HR Salary Data'!C:AH,28,0) -> 52403.46192 | J185: =VLOOKUP(C183,'HR Salary Data'!C:AM,33,0) -> 53451.53116 | K185: =VLOOKUP(C183,'HR Salary Data'!C:AV,38,0) -> 54520.56178 | L185: =VLOOKUP(C183,'HR Salary Data'!C:AV,43,0) -> 55610.97301 | P185: Enter the Annual Salary from the HR Salary Rates | R185: =VLOOKUP(P183,'HR Salary Data'!C:M,8,0) -> 48412.6986 | S185: =VLOOKUP(P183,'HR Salary Data'!C:R,13,0) -> 49380.95257 | T185: =VLOOKUP(P183,'HR Salary Data'!C:W,18,0) -> 50368.57162 | U185: =VLOOKUP(P183,'HR Salary Data'!C:AB,23,0) -> 51375.94306 | V185: =VLOOKUP(P183,'HR Salary Data'!C:AH,28,0) -> 52403.46192 | W185: =VLOOKUP(P183,'HR Salary Data'!C:AM,33,0) -> 53451.53116 | X185: =VLOOKUP(P183,'HR Salary Data'!C:AV,38,0) -> 54520.56178 | Y185: =VLOOKUP(P183,'HR Salary Data'!C:AV,43,0) -> 55610.97301
C186: (Salary rates available from the HR web page: Policies and Procedures/Remuneration and Resources/Staff Salaries) | P186: (Salary rates available from the HR web page: Policies and Procedures/Remuneration and Resources/Staff Salaries)
C188: Enter the total Hours to be worked over the contract | P188: Enter the total Hours to be worked over the contract
C189: (Full Tme One week = 35 hours) | P189: (Full Tme One week = 35 hours)
C190: Fixed Term contract up to 12 months - Calculations | P190: Fixed Term contract up to 12 months - Calculations
C191: Base hourly rate | E191: =IF(B195=0,0,ROUND(+E185/52.178571/35,2)) -> 0 | F191: =IF(B195=0,0,ROUND(+F185/52.178571/35,2)) -> 0 | G191: =IF(B195=0,0,ROUND(+G185/52.178571/35,2)) -> 0 | H191: =IF(B195=0,0,ROUND(+H185/52.178571/35,2)) -> 0 | I191: =IF(B195=0,0,ROUND(+I185/52.178571/35,2)) -> 0 | J191: =IF(B195=0,0,ROUND(+J185/52.178571/35,2)) -> 0 | K191: =IF(B195=0,0,ROUND(+K185/52.178571/35,2)) -> 0 | L191: =IF(B195=0,0,ROUND(+L185/52.178571/35,2)) -> 0 | P191: Base hourly rate | R191: =IF(O195=0,0,ROUND(+R185/52.178571/35,2)) -> 0 | S191: =IF(O195=0,0,ROUND(+S185/52.178571/35,2)) -> 0 | T191: =IF(O195=0,0,ROUND(+T185/52.178571/35,2)) -> 0 | U191: =IF(O195=0,0,ROUND(+U185/52.178571/35,2)) -> 0 | V191: =IF(O195=0,0,ROUND(+V185/52.178571/35,2)) -> 0 | W191: =IF(O195=0,0,ROUND(+W185/52.178571/35,2)) -> 0 | X191: =IF(O195=0,0,ROUND(+X185/52.178571/35,2)) -> 0 | Y191: =IF(O195=0,0,ROUND(+Y185/52.178571/35,2)) -> 0
C192: On-costs @ 20% | E192: =E191*0.2 -> 0 | F192: =F191*0.2 -> 0 | G192: =G191*0.2 -> 0 | H192: =H191*0.2 -> 0 | I192: =I191*0.2 -> 0 | J192: =J191*0.2 -> 0 | K192: =K191*0.2 -> 0 | L192: =L191*0.2 -> 0 | P192: On-costs @ 30% | R192: =R191*0.3 -> 0 | S192: =S191*0.3 -> 0 | T192: =T191*0.3 -> 0 | U192: =U191*0.3 -> 0 | V192: =V191*0.3 -> 0 | W192: =W191*0.3 -> 0 | X192: 0 | Y192: 0
D193: Total hourly rate | E193: =ROUND((E191+E192),2) -> 0 | F193: =ROUND((F191+F192),2) -> 0 | G193: 0 | H193: 0 | I193: 0 | J193: 0 | K193: 0 | L193: 0 | Q193: Total hourly rate | R193: =ROUND((R191+R192),2) -> 0 | S193: =ROUND((S191+S192),2) -> 0 | T193: =ROUND((T191+T192),2) -> 0 | U193: =ROUND((U191+U192),2) -> 0 | V193: =ROUND((V191+V192),2) -> 0 | W193: =ROUND((W191+W192),2) -> 0 | X193: 0 | Y193: 0
B195: =IF(D180="FIXED TERM", 20202,0) -> 0 | C195: Salary Estimate based on total hours to be worked (as entered above) | E195: =E191*E188 -> 0 | F195: =F191*F188 -> 0 | G195: 0 | H195: 0 | I195: 0 | J195: 0 | K195: 0 | L195: 0 | O195: =IF(Q180="FIXED TERM", 20202,0) -> 0 | P195: Salary Estimate based on total hours to be worked (as entered above) | R195: =R191*R188 -> 0 | S195: =S191*S188 -> 0 | T195: 0 | U195: 0 | V195: 0 | W195: 0 | X195: 0 | Y195: 0
B196: =B195 -> 0 | C196: Annual Leave Loading (approx only)* | E196: =ROUND((((E191*140)*17.5%)/1820)*E188,2) -> 0 | F196: =ROUND((((F191*140)*17.5%)/1820)*F188,2) -> 0 | G196: 0 | H196: 0 | I196: 0 | J196: 0 | K196: 0 | L196: 0 | O196: =O195 -> 0 | P196: Annual Leave Loading (approx only)* | R196: =ROUND((((R191*140)*17.5%)/1820)*R188,2) -> 0 | S196: =ROUND((((S191*140)*17.5%)/1820)*S188,2) -> 0 | T196: 0 | U196: 0 | V196: 0 | W196: 0 | X196: 0 | Y196: 0
B197: =IF(B195>0,20252,0) -> 0 | C197: On costs @ 20% on Annual Leave Loading and Base Salary | E197: =ROUND((E195*20%)+(E196*20%),2) -> 0 | F197: =ROUND((F195*20%)+(F196*20%),2) -> 0 | G197: =ROUND((G195*20%)+(G196*20%),2) -> 0 | H197: =ROUND((H195*20%)+(H196*20%),2) -> 0 | I197: =ROUND((I195*20%)+(I196*20%),2) -> 0 | J197: =ROUND((J195*20%)+(J196*20%),2) -> 0 | K197: =ROUND((K195*20%)+(K196*20%),2) -> 0 | L197: =ROUND((L195*20%)+(L196*20%),2) -> 0 | O197: =IF(O195>0,20252,0) -> 0 | P197: On costs @ 30% on Annual Leave and Annual Leave Loading | R197: =ROUND((R195*30%)+(R196*30%),2) -> 0 | S197: =ROUND((S195*30%)+(S196*30%),2) -> 0 | T197: =ROUND((T195*30%)+(T196*30%),2) -> 0 | U197: =ROUND((U195*30%)+(U196*30%),2) -> 0 | V197: =ROUND((V195*30%)+(V196*30%),2) -> 0 | W197: =ROUND((W195*30%)+(W196*30%),2) -> 0 | X197: 0 | Y197: 0
C198: Total Budget if Annual Leave is taken during the period of contract | E198: =(E195+E196)*1.2 -> 0 | F198: =(F195+F196)*1.2 -> 0 | G198: 0 | H198: 0 | I198: 0 | J198: 0 | K198: 0 | L198: 0 | P198: Total Budget if Annual Leave is taken during the period of contract | R198: =(R195+R196)*1.3 -> 0 | S198: =(S195+S196)*1.3 -> 0 | T198: 0 | U198: 0 | V198: 0 | W198: 0 | X198: 0 | Y198: 0
C201: Casual Contract - Calculations | P201: Casual Contract - Calculations
C202: Casual hourly rate (includes 25% Loading) | E202: =IF(B206=0,0,ROUND((+E185/52.178571/35)*1.25,2)) -> 33.14 | F202: =IF(B206=0,0,ROUND((+F185/52.178571/35)*1.25,2)) -> 33.8 | G202: =IF(B206=0,0,ROUND((+G185/52.178571/35)*1.25,2)) -> 34.48 | H202: =IF(B206=0,0,ROUND((+H185/52.178571/35)*1.25,2)) -> 35.16 | I202: =IF(B206=0,0,ROUND((+I185/52.178571/35)*1.25,2)) -> 35.87 | J202: =IF(B206=0,0,ROUND((+J185/52.178571/35)*1.25,2)) -> 36.59 | K202: =IF(B206=0,0,ROUND((+K185/52.178571/35)*1.25,2)) -> 37.32 | L202: =IF(B206=0,0,ROUND((+L185/52.178571/35)*1.25,2)) -> 38.06 | P202: Casual hourly rate (includes 25% Loading) | R202: =IF(O206=0,0,ROUND((+R185/52.178571/35)*1.25,2)) -> 33.14 | S202: =IF(O206=0,0,ROUND((+S185/52.178571/35)*1.25,2)) -> 33.8 | T202: =IF(O206=0,0,ROUND((+T185/52.178571/35)*1.25,2)) -> 34.48 | U202: =IF(O206=0,0,ROUND((+U185/52.178571/35)*1.25,2)) -> 35.16 | V202: =IF(O206=0,0,ROUND((+V185/52.178571/35)*1.25,2)) -> 35.87 | W202: =IF(O206=0,0,ROUND((+W185/52.178571/35)*1.25,2)) -> 36.59 | X202: =IF(O206=0,0,ROUND((+X185/52.178571/35)*1.25,2)) -> 37.32 | Y202: =IF(O206=0,0,ROUND((+Y185/52.178571/35)*1.25,2)) -> 38.06
C203: On-costs @ 16.3% | E203: =E202*0.163 -> 5.40182 | F203: =F202*0.163 -> 5.5094 | G203: =G202*0.163 -> 5.62024 | H203: =H202*0.163 -> 5.73108 | I203: =I202*0.163 -> 5.84681 | J203: =J202*0.163 -> 5.96417 | K203: =K202*0.163 -> 6.08316 | L203: =L202*0.163 -> 6.20378 | P203: On-costs @ 30% | R203: =R202*0.3 -> 9.942 | S203: =S202*0.3 -> 10.14 | T203: =T202*0.3 -> 10.344 | U203: =U202*0.3 -> 10.548 | V203: =V202*0.3 -> 10.761 | W203: =W202*0.3 -> 10.977 | X203: 11.196 | Y203: 11.418
D204: Total hourly rate | E204: =ROUND((E202+E203),2) -> 38.54 | F204: =ROUND((F202+F203),2) -> 39.31 | G204: 40.1 | H204: 40.89 | I204: 41.72 | J204: 42.55 | K204: 43.4 | L204: 44.26 | Q204: Total hourly rate | R204: =ROUND((R202+R203),2) -> 43.08 | S204: =ROUND((S202+S203),2) -> 43.94 | T204: =ROUND((T202+T203),2) -> 44.82 | U204: =ROUND((U202+U203),2) -> 45.71 | V204: =ROUND((V202+V203),2) -> 46.63 | W204: =ROUND((W202+W203),2) -> 47.57 | X204: 48.52 | Y204: 49.48
B206: =IF(D180="CASUAL", 20203,0) -> 20203 | C206: Salary Estimate based on total hours to be worked (as entered above) | E206: =E202*E188 -> 0 | F206: =F202*F188 -> 0 | G206: 0 | H206: 0 | I206: 0 | J206: 0 | K206: 0 | L206: 0 | O206: =IF(Q180="CASUAL", 20203,0) -> 20203 | P206: Salary Estimate based on total hours to be worked (as entered above) | R206: =R202*R188 -> 0 | S206: =S202*S188 -> 0 | T206: 0 | U206: 0 | V206: 0 | W206: 0 | X206: 0 | Y206: 0
B207: =IF(B206=0,0,20253) -> 20253 | C207: On costs @ 16.3% on Annual Leave and Annual Leave Loading | E207: =E206*0.163 -> 0 | F207: =F206*0.163 -> 0 | G207: =G206*0.163 -> 0 | H207: =H206*0.163 -> 0 | I207: =I206*0.163 -> 0 | J207: =J206*0.163 -> 0 | K207: =K206*0.163 -> 0 | L207: =L206*0.163 -> 0 | O207: =IF(O206=0,0,20253) -> 20253 | P207: On costs @ 30% on Annual Leave and Annual Leave Loading | R207: =R206*0.3 -> 0 | S207: =S206*0.3 -> 0 | T207: =T206*0.3 -> 0 | U207: =U206*0.3 -> 0 | V207: =V206*0.3 -> 0 | W207: =W206*0.3 -> 0 | X207: 0 | Y207: 0
B208: Top | C208: Budget estimate based on total hours to be worked (as entered above) | E208: =E204*E188 -> 0 | F208: =F204*F188 -> 0 | G208: 0 | H208: 0 | I208: 0 | J208: 0 | K208: 0 | L208: 0 | O208: Top | P208: Budget estimate based on total hours to be worked (as entered above) | R208: =R204*R188 -> 0 | S208: =S204*S188 -> 0 | T208: 0 | U208: 0 | V208: 0 | W208: 0 | X208: 0 | Y208: 0

Sheet 5.Manual Salary
B2: OFFICE OF THE DEPUTY VICE-CHANCELLOR (RESEARCH)
B3: RESEARCH FINANCE & GRANTS (POST-AWARD)
B4: Manual Salary Calculator
O7: SALARY PER YEAR | V7: ON-COSTS PER YEAR
B8: Staff Name | C8: Role | E8: Account Code | F8: Finance Code | G8: Finance Code 2 | H8: FTE | I8: No of Hrs | J8: Hourly Rate | K8: Annual Salary | L8: Start Date | M8: End Date | N8: On-Cost % | O8: ='Staff Calculations'!D70 -> 2019 | P8: ='Staff Calculations'!E70 -> 2020 | Q8: ='Staff Calculations'!F70 -> 2021 | R8: ='Staff Calculations'!G70 -> 2022 | S8: ='Staff Calculations'!H70 -> 2023 | T8: ='Staff Calculations'!I70 -> 2024 | U8: ='Staff Calculations'!J70 -> 2025 | V8: ="On-cost" &" " &O8 -> On-cost 2019 | W8: On-cost 2020 | X8: On-cost 2021 | Y8: On-cost 2022 | Z8: On-cost 2023 | AA8: On-cost 2024 | AB8: On-cost 2025 | AC8: Total (including on-costs) | AE8: Notes
F9: =LEFT(E9,5) ->  | G9: =IF(OR(E9=0,H9=0,L9=0,M9=0),0,IF(F9="20101",20151,IF(F9="20102",20152,IF(F9="20103",20153,IF(F9="20201",20251,IF(F9="20202",20252,IF(F9="20203",20253,0))))))) -> 0 | O9: 0 | P9: 0 | Q9: 0 | R9: 0 | S9: 0 | T9: 0 | U9: 0 | V9: =O9*$N$9 -> 0 | W9: =P9*$N$9 -> 0 | X9: 0 | Y9: 0 | Z9: 0 | AA9: 0 | AB9: 0 | AC9: =SUM(O9:AB9) -> 0
F10: =LEFT(E10,5) ->  | G10: =IF(OR(E10=0,H10=0,L10=0,M10=0),0,IF(F10="20101",20151,IF(F10="20102",20152,IF(F10="20103",20153,IF(F10="20201",20251,IF(F10="20202",20252,IF(F10="20203",20253,0))))))) -> 0 | O10: 0 | P10: 0 | Q10: 0 | R10: 0 | S10: 0 | T10: 0 | U10: 0 | V10: =O10*$N$10 -> 0 | W10: =P10*$N$10 -> 0 | X10: 0 | Y10: 0 | Z10: 0 | AA10: 0 | AB10: 0 | AC10: =SUM(O10:AB10) -> 0
G11: 0 | O11: 0 | P11: 0 | Q11: 0 | R11: 0 | S11: 0 | T11: 0 | U11: 0 | V11: =O11*$N$11 -> 0 | W11: =P11*$N$11 -> 0 | X11: 0 | Y11: 0 | Z11: 0 | AA11: 0 | AB11: 0 | AC11: 0
G12: 0 | O12: 0 | P12: 0 | Q12: 0 | R12: 0 | S12: 0 | T12: 0 | U12: 0 | V12: =O12*$N$12 -> 0 | W12: =P12*$N$12 -> 0 | X12: 0 | Y12: 0 | Z12: 0 | AA12: 0 | AB12: 0 | AC12: 0
G13: 0 | O13: 0 | P13: 0 | Q13: 0 | R13: 0 | S13: 0 | T13: 0 | U13: 0 | V13: =O13*$N$13 -> 0 | W13: =P13*$N$13 -> 0 | X13: 0 | Y13: 0 | Z13: 0 | AA13: 0 | AB13: 0 | AC13: 0
G14: 0 | O14: 0 | P14: 0 | Q14: 0 | R14: 0 | S14: 0 | T14: 0 | U14: 0 | V14: =O14*$N$14 -> 0 | W14: =P14*$N$14 -> 0 | X14: 0 | Y14: 0 | Z14: 0 | AA14: 0 | AB14: 0 | AC14: 0
G15: 0 | O15: 0 | P15: 0 | Q15: 0 | R15: 0 | S15: 0 | T15: 0 | U15: 0 | V15: =O15*$N$15 -> 0 | W15: =P15*$N$15 -> 0 | X15: 0 | Y15: 0 | Z15: 0 | AA15: 0 | AB15: 0 | AC15: 0
G16: 0 | O16: 0 | P16: 0 | Q16: 0 | R16: 0 | S16: 0 | T16: 0 | U16: 0 | V16: =O16*$N$16 -> 0 | W16: =P16*$N$16 -> 0 | X16: 0 | Y16: 0 | Z16: 0 | AA16: 0 | AB16: 0 | AC16: 0
G17: 0 | O17: 0 | P17: 0 | Q17: 0 | R17: 0 | S17: 0 | T17: 0 | U17: 0 | V17: =O17*$N$17 -> 0 | W17: =P17*$N$17 -> 0 | X17: 0 | Y17: 0 | Z17: 0 | AA17: 0 | AB17: 0 | AC17: 0
G18: 0 | O18: 0 | P18: 0 | Q18: 0 | R18: 0 | S18: 0 | T18: 0 | U18: 0 | V18: =O18*$N$18 -> 0 | W18: =P18*$N$18 -> 0 | X18: 0 | Y18: 0 | Z18: 0 | AA18: 0 | AB18: 0 | AC18: 0
G19: 0 | O19: 0 | P19: 0 | Q19: 0 | R19: 0 | S19: 0 | T19: 0 | U19: 0 | V19: =O19*$N$19 -> 0 | W19: =P19*$N$19 -> 0 | X19: 0 | Y19: 0 | Z19: 0 | AA19: 0 | AB19: 0 | AC19: 0
G20: 0 | O20: 0 | P20: 0 | Q20: 0 | R20: 0 | S20: 0 | T20: 0 | U20: 0 | V20: =O20*$N$20 -> 0 | W20: =P20*$N$20 -> 0 | X20: 0 | Y20: 0 | Z20: 0 | AA20: 0 | AB20: 0 | AC20: 0
G21: 0 | O21: 0 | P21: 0 | Q21: 0 | R21: 0 | S21: 0 | T21: 0 | U21: 0 | V21: =O21*$N$21 -> 0 | W21: =P21*$N$21 -> 0 | X21: 0 | Y21: 0 | Z21: 0 | AA21: 0 | AB21: 0 | AC21: 0
G22: 0 | O22: 0 | P22: 0 | Q22: 0 | R22: 0 | S22: 0 | T22: 0 | U22: 0 | V22: =O22*$N$22 -> 0 | W22: =P22*$N$22 -> 0 | X22: 0 | Y22: 0 | Z22: 0 | AA22: 0 | AB22: 0 | AC22: 0
G23: 0 | O23: 0 | P23: 0 | Q23: 0 | R23: 0 | S23: 0 | T23: 0 | U23: 0 | V23: =O23*$N$23 -> 0 | W23: =P23*$N$23 -> 0 | X23: 0 | Y23: 0 | Z23: 0 | AA23: 0 | AB23: 0 | AC23: 0
B24: Total | O24: =SUM(O9:O18) -> 0 | P24: 0 | Q24: 0 | R24: 0 | S24: 0 | T24: 0 | U24: 0 | V24: 0 | W24: 0 | X24: 0 | Y24: 0 | Z24: 0 | AA24: =SUM(AA9:AA18) -> 0 | AB24: 0 | AC24: =SUM(AC9:AC18) -> 0
B27: Calculator for Fellowship | C27: 97000
B28: Amount to be enetered in cells | C28: =C27/1.275 -> 76078.43137
B38: Notes:

Sheet 6.Non-Salary Costs
B2: OFFICE OF THE DEPUTY VICE-CHANCELLOR (RESEARCH)
B3: RESEARCH FINANCE & POST-AWARD OFFICE
B4: RESEARCH GRANT BUDGET TEMPLATE
B5: Detail All non-staff activities directly contributing to the project in this sheet.
B6: TIPs: If costs to be excluded/waived from project budget, flag "N" in column "Include in project budget". Values entered here are exclusive of GST i.e. GST taken off
F12: ='3.Continue_Fixed Salary'!U9 -> 2018 | G12: 2019 | H12: =G12+1 -> 2020 | I12: =H12+1 -> 2021 | J12: 2022 | K12: 2023 | L12: 2024 | M12: 2025 | N12: Direct Costs (Non Salary)
B14: Totals | F14: =SUM(F16:F20) -> 0 | G14: 0 | H14: 0 | I14: 0 | J14: 0 | K14: 0 | L14: =SUM(L16:L20) -> 0 | M14: 0 | N14: 0
B16: Equipment | F16: =F40 -> 0 | G16: =G40 -> 0 | H16: 0 | I16: 0 | J16: 0 | K16: 0 | L16: =L40 -> 0 | M16: 0 | N16: =N40 -> 0
B17: Travel Costs | F17: =F59 -> 0 | G17: =G59 -> 0 | H17: 0 | I17: 0 | J17: 0 | K17: 0 | L17: =L59 -> 0 | M17: 0 | N17: =N59 -> 0
B18: Travel - Fieldwork Research (For ARC only) | F18: =F73 -> 0 | G18: =G73 -> 0 | H18: 0 | I18: 0 | J18: 0 | K18: 0 | L18: =L73 -> 0 | M18: 0 | N18: =N73 -> 0
B19: Subcontractors/ Shared-Grants | F19: =F84 -> 0 | G19: =G84 -> 0 | H19: 0 | I19: 0 | J19: 0 | K19: 0 | L19: =L84 -> 0 | M19: 0 | N19: =N84 -> 0
B20: Other Expenses | F20: =F115 -> 0 | G20: =G115 -> 0 | H20: 0 | I20: 0 | J20: 0 | K20: 0 | L20: =L115 -> 0 | M20: 0 | N20: =N115 -> 0
B24: Equipment | C24: Account Code (Mandatory) | D24: Code Temp | E24: Other Comments | F24: =F12 -> 2018 | G24: =G12 -> 2019 | H24: =G24+1 -> 2020 | I24: 2021 | J24: 2022 | K24: 2023 | L24: 2024 | M24: 2025 | N24: Direct Costs (Non Salary)
B25: Capital Acquisitions (> $5,000) | C25: Finance Account Code | D25: Code Temp | E25: Other Comments | F25: Year 1 | G25: Year 2 | H25: Year 3 | I25: Year 4 | J25: Year 5 | K25: Year 6 | L25: Year 6 | M25: Year 6 | N25: Direct Costs (Non Salary)
D26: =LEFT(C26,5) ->  | F26: 0 | G26: 0 | H26: 0 | I26: 0 | J26: 0 | K26: 0 | L26: 0 | M26: 0 | N26: =SUM(F26:M26) -> 0
D27: =LEFT(C27,5) ->  | F27: 0 | G27: 0 | H27: 0 | I27: 0 | J27: 0 | K27: 0 | L27: 0 | M27: 0 | N27: 0
F28: 0 | G28: 0 | H28: 0 | I28: 0 | J28: 0 | K28: 0 | L28: 0 | M28: 0 | N28: 0
F29: 0 | G29: 0 | H29: 0 | I29: 0 | J29: 0 | K29: 0 | L29: 0 | M29: 0 | N29: 0
F30: 0 | G30: 0 | H30: 0 | I30: 0 | J30: 0 | K30: 0 | L30: 0 | M30: 0 | N30: 0
F31: 0 | G31: 0 | H31: 0 | I31: 0 | J31: 0 | K31: 0 | L31: 0 | M31: 0 | N31: 0
F32: 0 | G32: 0 | H32: 0 | I32: 0 | J32: 0 | K32: 0 | L32: 0 | M32: 0 | N32: 0
F33: 0 | G33: 0 | H33: 0 | I33: 0 | J33: 0 | K33: 0 | L33: 0 | M33: 0 | N33: 0
F34: 0 | G34: 0 | H34: 0 | I34: 0 | J34: 0 | K34: 0 | L34: 0 | M34: 0 | N34: 0
F35: 0 | G35: 0 | H35: 0 | I35: 0 | J35: 0 | K35: 0 | L35: 0 | M35: 0 | N35: 0
F36: 0 | G36: 0 | H36: 0 | I36: 0 | J36: 0 | K36: 0 | L36: 0 | M36: 0 | N36: 0
F37: 0 | G37: 0 | H37: 0 | I37: 0 | J37: 0 | K37: 0 | L37: 0 | M37: 0 | N37: 0
F38: 0 | G38: 0 | H38: 0 | I38: 0 | J38: 0 | K38: 0 | L38: 0 | M38: 0 | N38: 0
F39: 0 | G39: 0 | H39: 0 | I39: 0 | J39: 0 | K39: 0 | L39: 0 | M39: 0 | N39: 0
B40: Total | F40: =SUM(F26:F39) -> 0 | G40: 0 | H40: 0 | I40: 0 | J40: 0 | K40: 0 | L40: =SUM(L26:L39) -> 0 | M40: 0 | N40: =SUM(N26:N39) -> 0
B43: Travel Costs | C43: Account Code (Mandatory) | D43: Code Temp | E43: Other Comments | F43: =F24 -> 2018 | G43: =G24 -> 2019 | H43: 2020 | I43: 2021 | J43: 2022 | K43: 2023 | L43: =L24 -> 2024 | M43: 2025 | N43: Direct Costs (Non Salary)
B44: Equipment Repairs & Maintenance | C44: Finance Account Code | D44: Code Temp | E44: Other Comments | F44: Year 1 | G44: Year 2 | H44: Year 3 | I44: Year 4 | J44: Year 5 | K44: Year 6 | L44: Year 6 | M44: Year 6 | N44: Direct Costs (Non Salary)
D45: =LEFT(C45,5) ->  | F45: 0 | G45: 0 | H45: 0 | I45: 0 | J45: 0 | K45: 0 | L45: 0 | M45: 0 | N45: =SUM(F45:M45) -> 0
F46: 0 | G46: 0 | H46: 0 | I46: 0 | J46: 0 | K46: 0 | L46: 0 | M46: 0 | N46: 0
F47: 0 | G47: 0 | H47: 0 | I47: 0 | J47: 0 | K47: 0 | L47: 0 | M47: 0 | N47: 0
F48: 0 | G48: 0 | H48: 0 | I48: 0 | J48: 0 | K48: 0 | L48: 0 | M48: 0 | N48: 0
F49: 0 | G49: 0 | H49: 0 | I49: 0 | J49: 0 | K49: 0 | L49: 0 | M49: 0 | N49: 0
F50: 0 | G50: 0 | H50: 0 | I50: 0 | J50: 0 | K50: 0 | L50: 0 | M50: 0 | N50: 0
F51: 0 | G51: 0 | H51: 0 | I51: 0 | J51: 0 | K51: 0 | L51: 0 | M51: 0 | N51: 0
F52: 0 | G52: 0 | H52: 0 | I52: 0 | J52: 0 | K52: 0 | L52: 0 | M52: 0 | N52: 0
F53: 0 | G53: 0 | H53: 0 | I53: 0 | J53: 0 | K53: 0 | L53: 0 | M53: 0 | N53: 0
F54: 0 | G54: 0 | H54: 0 | I54: 0 | J54: 0 | K54: 0 | L54: 0 | M54: 0 | N54: 0
F55: 0 | G55: 0 | H55: 0 | I55: 0 | J55: 0 | K55: 0 | L55: 0 | M55: 0 | N55: 0
F56: 0 | G56: 0 | H56: 0 | I56: 0 | J56: 0 | K56: 0 | L56: 0 | M56: 0 | N56: 0
F57: 0 | G57: 0 | H57: 0 | I57: 0 | J57: 0 | K57: 0 | L57: 0 | M57: 0 | N57: 0
F58: 0 | G58: 0 | H58: 0 | I58: 0 | J58: 0 | K58: 0 | L58: 0 | M58: 0 | N58: 0
B59: Total | F59: =SUM(F45:F58) -> 0 | G59: 0 | H59: 0 | I59: 0 | J59: 0 | K59: 0 | L59: =SUM(L45:L58) -> 0 | M59: 0 | N59: 0
B61: Travel - Fieldwork Research (For ARC only) | C61: Account Code (Mandatory) | D61: Code Temp | E61: Other Comments | F61: =F43 -> 2018 | G61: =G12 -> 2019 | H61: =G61+1 -> 2020 | I61: 2021 | J61: 2022 | K61: 2023 | L61: 2024 | M61: 2025 | N61: Direct Costs (Non Salary)
B62: Travel | C62: Finance Account Code | D62: Code Temp | E62: Other Comments | F62: Year 1 | G62: Year 2 | H62: Year 3 | I62: Year 4 | J62: Year 5 | K62: Year 6 | L62: Year 6 | M62: Year 6 | N62: Direct Costs (Non Salary)
D63: =LEFT(C63,5) ->  | F63: 0 | G63: 0 | H63: 0 | I63: 0 | J63: 0 | K63: 0 | L63: 0 | M63: 0 | N63: =SUM(F63:M63) -> 0
F64: 0 | G64: 0 | H64: 0 | I64: 0 | J64: 0 | K64: 0 | L64: 0 | M64: 0 | N64: 0
F65: 0 | G65: 0 | H65: 0 | I65: 0 | J65: 0 | K65: 0 | L65: 0 | M65: 0 | N65: 0
F66: 0 | G66: 0 | H66: 0 | I66: 0 | J66: 0 | K66: 0 | L66: 0 | M66: 0 | N66: 0
F67: 0 | G67: 0 | H67: 0 | I67: 0 | J67: 0 | K67: 0 | L67: 0 | M67: 0 | N67: 0
F68: 0 | G68: 0 | H68: 0 | I68: 0 | J68: 0 | K68: 0 | L68: 0 | M68: 0 | N68: 0
F69: 0 | G69: 0 | H69: 0 | I69: 0 | J69: 0 | K69: 0 | L69: 0 | M69: 0 | N69: 0
F70: 0 | G70: 0 | H70: 0 | I70: 0 | J70: 0 | K70: 0 | L70: 0 | M70: 0 | N70: 0
F71: 0 | G71: 0 | H71: 0 | I71: 0 | J71: 0 | K71: 0 | L71: 0 | M71: 0 | N71: 0
F72: 0 | G72: 0 | H72: 0 | I72: 0 | J72: 0 | K72: 0 | L72: 0 | M72: 0 | N72: 0
B73: Total | F73: =SUM(F63:F72) -> 0 | G73: 0 | H73: 0 | I73: 0 | J73: 0 | K73: 0 | L73: =SUM(L63:L72) -> 0 | M73: 0 | N73: 0
B75: Subcontractors / Shared-Grants | C75: Account Code (Mandatory) | D75: Code Temp | E75: Other Comments | F75: =F61 -> 2018 | G75: =F75+1 -> 2019 | H75: 2020 | I75: 2021 | J75: 2022 | K75: 2023 | L75: 2024 | M75: 2025 | N75: Direct Costs (Non Salary)
B76: Subcontractors | C76: Finance Account Code | D76: Code Temp | E76: Other Comments | F76: Year 1 | G76: Year 2 | H76: Year 3 | I76: Year 4 | J76: Year 5 | K76: Year 6 | L76: Year 6 | M76: Year 6 | N76: Direct Costs (Non Salary)
D77: =LEFT(C77,5) ->  | F77: 0 | G77: 0 | H77: 0 | I77: 0 | J77: 0 | K77: 0 | L77: 0 | M77: 0 | N77: =SUM(F77:M77) -> 0
F78: 0 | G78: 0 | H78: 0 | I78: 0 | J78: 0 | K78: 0 | L78: 0 | M78: 0 | N78: 0
F79: 0 | G79: 0 | H79: 0 | I79: 0 | J79: 0 | K79: 0 | L79: 0 | M79: 0 | N79: 0
F80: 0 | G80: 0 | H80: 0 | I80: 0 | J80: 0 | K80: 0 | L80: 0 | M80: 0 | N80: 0
F81: 0 | G81: 0 | H81: 0 | I81: 0 | J81: 0 | K81: 0 | L81: 0 | M81: 0 | N81: 0
F82: 0 | G82: 0 | H82: 0 | I82: 0 | J82: 0 | K82: 0 | L82: 0 | M82: 0 | N82: 0
F83: 0 | G83: 0 | H83: 0 | I83: 0 | J83: 0 | K83: 0 | L83: 0 | M83: 0 | N83: 0
B84: Total | F84: =SUM(F77:F83) -> 0 | G84: 0 | H84: 0 | I84: 0 | J84: 0 | K84: 0 | L84: =SUM(L77:L83) -> 0 | M84: 0 | N84: 0
B86: Other Expenses | C86: Account Code (Mandatory) | D86: Code Temp | E86: Other Comments | F86: =F75 -> 2018 | G86: =G12 -> 2019 | H86: =G86+1 -> 2020 | I86: 2021 | J86: 2022 | K86: 2023 | L86: 2024 | M86: 2025 | N86: Direct Costs (Non Salary)
B87: Other Operating Expenses | C87: Finance Account Code | D87: Code Temp | E87: Other Comments | F87: Year 1 | G87: Year 2 | H87: Year 3 | I87: Year 4 | J87: Year 5 | K87: Year 6 | L87: Year 6 | M87: Year 6 | N87: Direct Costs (Non Salary)
D88: =LEFT(C88,5) ->  | F88: 0 | G88: 0 | H88: 0 | I88: 0 | J88: 0 | K88: 0 | L88: 0 | M88: 0 | N88: =SUM(F88:M88) -> 0
F89: 0 | G89: 0 | H89: 0 | I89: 0 | J89: 0 | K89: 0 | L89: 0 | M89: 0 | N89: 0
F90: 0 | G90: 0 | H90: 0 | I90: 0 | J90: 0 | K90: 0 | L90: 0 | M90: 0 | N90: 0
F91: 0 | G91: 0 | H91: 0 | I91: 0 | J91: 0 | K91: 0 | L91: 0 | M91: 0 | N91: 0
F92: 0 | G92: 0 | H92: 0 | I92: 0 | J92: 0 | K92: 0 | L92: 0 | M92: 0 | N92: 0
F93: 0 | G93: 0 | H93: 0 | I93: 0 | J93: 0 | K93: 0 | L93: 0 | M93: 0 | N93: 0
F94: 0 | G94: 0 | H94: 0 | I94: 0 | J94: 0 | K94: 0 | L94: 0 | M94: 0 | N94: 0
F95: 0 | G95: 0 | H95: 0 | I95: 0 | J95: 0 | K95: 0 | L95: 0 | M95: 0 | N95: 0
F96: 0 | G96: 0 | H96: 0 | I96: 0 | J96: 0 | K96: 0 | L96: 0 | M96: 0 | N96: 0
F97: 0 | G97: 0 | H97: 0 | I97: 0 | J97: 0 | K97: 0 | L97: 0 | M97: 0 | N97: 0
F98: 0 | G98: 0 | H98: 0 | I98: 0 | J98: 0 | K98: 0 | L98: 0 | M98: 0 | N98: 0
F99: 0 | G99: 0 | H99: 0 | I99: 0 | J99: 0 | K99: 0 | L99: 0 | M99: 0 | N99: 0
F100: 0 | G100: 0 | H100: 0 | I100: 0 | J100: 0 | K100: 0 | L100: 0 | M100: 0 | N100: 0
F101: 0 | G101: 0 | H101: 0 | I101: 0 | J101: 0 | K101: 0 | L101: 0 | M101: 0 | N101: 0
F102: 0 | G102: 0 | H102: 0 | I102: 0 | J102: 0 | K102: 0 | L102: 0 | M102: 0 | N102: 0
F103: 0 | G103: 0 | H103: 0 | I103: 0 | J103: 0 | K103: 0 | L103: 0 | M103: 0 | N103: 0
F104: 0 | G104: 0 | H104: 0 | I104: 0 | J104: 0 | K104: 0 | L104: 0 | M104: 0 | N104: 0
F105: 0 | G105: 0 | H105: 0 | I105: 0 | J105: 0 | K105: 0 | L105: 0 | M105: 0 | N105: 0
F106: 0 | G106: 0 | H106: 0 | I106: 0 | J106: 0 | K106: 0 | L106: 0 | M106: 0 | N106: 0
F107: 0 | G107: 0 | H107: 0 | I107: 0 | J107: 0 | K107: 0 | L107: 0 | M107: 0 | N107: 0
F108: 0 | G108: 0 | H108: 0 | I108: 0 | J108: 0 | K108: 0 | L108: 0 | M108: 0 | N108: 0
F109: 0 | G109: 0 | H109: 0 | I109: 0 | J109: 0 | K109: 0 | L109: 0 | M109: 0 | N109: 0
F110: 0 | G110: 0 | H110: 0 | I110: 0 | J110: 0 | K110: 0 | L110: 0 | M110: 0 | N110: 0
F111: 0 | G111: 0 | H111: 0 | I111: 0 | J111: 0 | K111: 0 | L111: 0 | M111: 0 | N111: 0
F112: 0 | G112: 0 | H112: 0 | I112: 0 | J112: 0 | K112: 0 | L112: 0 | M112: 0 | N112: 0
F113: 0 | G113: 0 | H113: 0 | I113: 0 | J113: 0 | K113: 0 | L113: 0 | M113: 0 | N113: 0
F114: 0 | G114: 0 | H114: 0 | I114: 0 | J114: 0 | K114: 0 | L114: 0 | M114: 0 | N114: 0
B115: Total | F115: =SUM(F88:F114) -> 0 | G115: =SUM(G88:G114) -> 0 | H115: 0 | I115: 0 | J115: 0 | K115: 0 | L115: =SUM(L88:L114) -> 0 | M115: 0 | N115: 0

Sheet 7. Working Notes

Sheet 8.ICR Calculator
C7: Key:
C8: Data Input Required
C9: No input required
B11: SECTION 1
G12: Pre - Award | J12: Post - Award
D14: ICR % | G14: 0.2 | I14: ICR % | J14: 0.2
D16: Amount Required for your Project | G16: 50000 | I16: Awarded Funding | J16: 62500
D18: ICR $ | G18: =G20-G16 -> 12500 | I18: ICR $ | J18: =J16*J14 -> 12500
D20: Funding to be agreed with Client (Exc GST ) | G20: =G16/(100%-G14) -> 62500 | I20: Amount Required for your Project | J20: =J16-J18 -> 50000

Sheet 9.Invoicing Details
D2: Guidelines:
D3: Invoices (AUD Currency)
D4: Research Finance will request the 1st invoice. Subsequent invoices must be requested by the relevant Org. Unit via the following link
D5: http://apps2.acu.edu.au/Finance/InvoiceRequisition.php
D7: Invoices (Foreign Currency)
D8: Research Finance will request the 1st invoice. Subsequent invoices must be requested by the relevant Org. Unit by emailing:
D9: ARinvoices@acu.edu.au
D11: Invoice Details
C13: Invoice Due Date | F13: Organisation Contact Details | J13: Milestones Comments | M13: Amount in AUD Currency (Exc GST) | N13: Amount in Foreign Currency (If applicable)

Sheet 10. Budget Load
B1: OFFICE OF THE DEPUTY VICE-CHANCELLOR (RESEARCH)
B2: RESEARCH FINANCE & POST-AWARD OFFICE
B3: Budget Summary
V4: 11321 | W4: Research External : NHMRC via HEP
C5: AccountNumber | D5: Entity | E5: Project | F5: Funding Source | G5: Natural Account | H5: Natural Account Description | J5: TOTAL BUDGET $ | L5: 2018 Budget $ | M5: 2019 | N5: =M5+1 -> 2020 | O5: =N5+1 -> 2021 | P5: 2022 | Q5: 2023 | R5: 2024 | S5: 2025 | V5: 11380 | W5: Research External
H7: INCOME | V7: 12101 | W7: State Government Grants
C9: =CONCATENATE(D9,"-",E9,"-",F9,"-9999-",G9) ->  | D9: 91 | E9: ='1.Coversheet'!#REF! ->  | F9: =LEFT('1.Coversheet'!#REF!,3) ->  | G9: 19999 | H9: =IF(ISERROR(VLOOKUP(G9,$V$4:$W$17,2,FALSE)),"Enter Natural Account code",VLOOKUP(G9,$V$4:$W$17,2,FALSE)) -> Internal Revenue Tfr-Carry Forward | J9: =SUM(L9:S9) -> 0 | L9: 0 | M9: =L147 -> 0 | N9: =M147 -> 0 | O9: 0 | P9: 0 | Q9: 0 | R9: 0 | S9: 0 | V9: 16390 | W9: Miscellaneous Revenue
C10: =CONCATENATE(D10,"-",E10,"-",F10,"-9999-",G10) ->  | D10: 91 | E10: ='1.Coversheet'!#REF! ->  | F10: =LEFT('1.Coversheet'!#REF!,3) ->  | G10: 11380 | H10: =IF(ISERROR(VLOOKUP(G10,$V$4:$W$17,2,FALSE)),"Enter Natural Account code",VLOOKUP(G10,$V$4:$W$17,2,FALSE)) -> Research External | J10: =SUM(L10:S10) -> 0 | V10: 16390 | W10: Miscellaneous Revenue
H12: Sub Total | J12: =SUBTOTAL(9,J10:J10) -> 0 | L12: =SUBTOTAL(9,L9:L10) -> 0 | M12: =SUBTOTAL(9,M9:M10) -> 0 | N12: 0 | O12: 0 | P12: 0 | Q12: 0 | R12: 0 | S12: 0 | V12: 16502 | W12: Grants - Other
V14: 19995 | W14: Internal Revenue Transfer - Other
H15: Total Income | J15: =J10 -> 0 | L15: =L12 -> 0 | M15: =M12 -> 0 | N15: 0 | O15: 0 | P15: 0 | Q15: =Q12 -> 0 | R15: 0 | S15: =S12 -> 0 | V15: 19998 | W15: Internal Revenue Tfr-Budget Allocation
V16: 19999 | W16: Internal Revenue Tfr-Carry Forward
H17: EXPENSES
V18: 20101 | W18: Academic Salaries Continuing
H19: Academic Salaries | V19: 20102 | W19: Academic Salaries Contract SGL
C20: =CONCATENATE(D20,"-",E20,"-",F20,"-9999-",G20) ->  | D20: 91 | E20: ='1.Coversheet'!#REF! ->  | F20: =LEFT('1.Coversheet'!#REF!,3) ->  | G20: 20101 | H20: =IF(ISERROR(VLOOKUP(G20,$V$18:$W$262,2,FALSE)),"Enter Natural Account code",VLOOKUP(G20,$V$18:$W$262,2,FALSE)) -> Academic Salaries Continuing | J20: =SUM(L20:S20) -> 0 | L20: =SUMIF('3.Continue_Fixed Salary'!$G:$G,'10. Budget Load'!$G:$G,'3.Continue_Fixed Salary'!U:U)+SUMIF('4. Casual Salary'!$B:$B,'10. Budget Load'!$G:$G,'4. Casual Salary'!E:E)+SUMIF('4. Casual Salary'!$O:$O,'10. Budget Load'!$G:$G,'4. Casual Salary'!R:R) -> 0 | M20: =SUMIF('3.Continue_Fixed Salary'!$G:$G,'10. Budget Load'!$G:$G,'3.Continue_Fixed Salary'!V:V)+SUMIF('4. Casual Salary'!$B:$B,'10. Budget Load'!$G:$G,'4. Casual Salary'!F:F)+SUMIF('4. Casual Salary'!$O:$O,'10. Budget Load'!$G:$G,'4. Casual Salary'!S:S)+SUMIF('5.Manual Salary'!$F:$F,'10. Budget Load'!$G:$G,'5.Manual Salary'!O:O) -> 0 | N20: =SUMIF('3.Continue_Fixed Salary'!$G:$G,'10. Budget Load'!$G:$G,'3.Continue_Fixed Salary'!W:W)+SUMIF('4. Casual Salary'!$B:$B,'10. Budget Load'!$G:$G,'4. Casual Salary'!G:G)+SUMIF('4. Casual Salary'!$O:$O,'10. Budget Load'!$G:$G,'4. Casual Salary'!T:T)+SUMIF('5.Manual Salary'!$F:$F,'10. Budget Load'!$G:$G,'5.Manual Salary'!P:P) -> 0 | O20: =SUMIF('3.Continue_Fixed Salary'!$G:$G,'10. Budget Load'!$G:$G,'3.Continue_Fixed Salary'!X:X)+SUMIF('4. Casual Salary'!$B:$B,'10. Budget Load'!$G:$G,'4. Casual Salary'!H:H)+SUMIF('4. Casual Salary'!$O:$O,'10. Budget Load'!$G:$G,'4. Casual Salary'!U:U)+SUMIF('5.Manual Salary'!$F:$F,'10. Budget Load'!$G:$G,'5.Manual Salary'!Q:Q) -> 0 | P20: =SUMIF('3.Continue_Fixed Salary'!$G:$G,'10. Budget Load'!$G:$G,'3.Continue_Fixed Salary'!Y:Y)+SUMIF('4. Casual Salary'!$B:$B,'10. Budget Load'!$G:$G,'4. Casual Salary'!I:I)+SUMIF('4. Casual Salary'!$O:$O,'10. Budget Load'!$G:$G,'4. Casual Salary'!V:V)+SUMIF('5.Manual Salary'!$F:$F,'10. Budget Load'!$G:$G,'5.Manual Salary'!R:R) -> 0 | Q20: =SUMIF('3.Continue_Fixed Salary'!$G:$G,'10. Budget Load'!$G:$G,'3.Continue_Fixed Salary'!Z:Z)+SUMIF('4. Casual Salary'!$B:$B,'10. Budget Load'!$G:$G,'4. Casual Salary'!J:J)+SUMIF('4. Casual Salary'!$O:$O,'10. Budget Load'!$G:$G,'4. Casual Salary'!W:W)+SUMIF('5.Manual Salary'!$F:$F,'10. Budget Load'!$G:$G,'5.Manual Salary'!S:S) -> 0 | R20: =SUMIF('3.Continue_Fixed Salary'!$G:$G,'10. Budget Load'!$G:$G,'3.Continue_Fixed Salary'!AA:AA)+SUMIF('4. Casual Salary'!$B:$B,'10. Budget Load'!$G:$G,'4. Casual Salary'!K:K)+SUMIF('4. Casual Salary'!$O:$O,'10. Budget Load'!$G:$G,'4. Casual Salary'!X:X)+SUMIF('5.Manual Salary'!$F:$F,'10. Budget Load'!$G:$G,'5.Manual Salary'!T:T) -> 0 | S20: =SUMIF('3.Continue_Fixed Salary'!$G:$G,'10. Budget Load'!$G:$G,'3.Continue_Fixed Salary'!AB:AB)+SUMIF('4. Casual Salary'!$B:$B,'10. Budget Load'!$G:$G,'4. Casual Salary'!L:L)+SUMIF('4. Casual Salary'!$O:$O,'10. Budget Load'!$G:$G,'4. Casual Salary'!Y:Y)+SUMIF('5.Manual Salary'!$F:$F,'10. Budget Load'!$G:$G,'5.Manual Salary'!U:U) -> 0 | V20: 20104 | W20: Academic Stipends
D21: 91 | E21: ='1.Coversheet'!#REF! ->  | F21: =LEFT('1.Coversheet'!#REF!,3) ->  | G21: 20102 | H21: Academic Salaries Contract SGL | J21: 0 | L21: =SUMIF('3.Continue_Fixed Salary'!$G:$G,'10. Budget Load'!$G:$G,'3.Continue_Fixed Salary'!U:U)+SUMIF('4. Casual Salary'!$B:$B,'10. Budget Load'!$G:$G,'4. Casual Salary'!E:E)+SUMIF('4. Casual Salary'!$O:$O,'10. Budget Load'!$G:$G,'4. Casual Salary'!R:R) -> 0 | M21: =SUMIF('3.Continue_Fixed Salary'!$G:$G,'10. Budget Load'!$G:$G,'3.Continue_Fixed Salary'!V:V)+SUMIF('4. Casual Salary'!$B:$B,'10. Budget Load'!$G:$G,'4. Casual Salary'!F:F)+SUMIF('4. Casual Salary'!$O:$O,'10. Budget Load'!$G:$G,'4. Casual Salary'!S:S)+SUMIF('5.Manual Salary'!$F:$F,'10. Budget Load'!$G:$G,'5.Manual Salary'!O:O) -> 0 | N21: =SUMIF('3.Continue_Fixed Salary'!$G:$G,'10. Budget Load'!$G:$G,'3.Continue_Fixed Salary'!W:W)+SUMIF('4. Casual Salary'!$B:$B,'10. Budget Load'!$G:$G,'4. Casual Salary'!G:G)+SUMIF('4. Casual Salary'!$O:$O,'10. Budget Load'!$G:$G,'4. Casual Salary'!T:T)+SUMIF('5.Manual Salary'!$F:$F,'10. Budget Load'!$G:$G,'5.Manual Salary'!P:P) -> 0 | O21: =SUMIF('3.Continue_Fixed Salary'!$G:$G,'10. Budget Load'!$G:$G,'3.Continue_Fixed Salary'!X:X)+SUMIF('4. Casual Salary'!$B:$B,'10. Budget Load'!$G:$G,'4. Casual Salary'!H:H)+SUMIF('4. Casual Salary'!$O:$O,'10. Budget Load'!$G:$G,'4. Casual Salary'!U:U)+SUMIF('5.Manual Salary'!$F:$F,'10. Budget Load'!$G:$G,'5.Manual Salary'!Q:Q) -> 0 | P21: =SUMIF('3.Continue_Fixed Salary'!$G:$G,'10. Budget Load'!$G:$G,'3.Continue_Fixed Salary'!Y:Y)+SUMIF('4. Casual Salary'!$B:$B,'10. Budget Load'!$G:$G,'4. Casual Salary'!I:I)+SUMIF('4. Casual Salary'!$O:$O,'10. Budget Load'!$G:$G,'4. Casual Salary'!V:V)+SUMIF('5.Manual Salary'!$F:$F,'10. Budget Load'!$G:$G,'5.Manual Salary'!R:R) -> 0 | Q21: =SUMIF('3.Continue_Fixed Salary'!$G:$G,'10. Budget Load'!$G:$G,'3.Continue_Fixed Salary'!Z:Z)+SUMIF('4. Casual Salary'!$B:$B,'10. Budget Load'!$G:$G,'4. Casual Salary'!J:J)+SUMIF('4. Casual Salary'!$O:$O,'10. Budget Load'!$G:$G,'4. Casual Salary'!W:W)+SUMIF('5.Manual Salary'!$F:$F,'10. Budget Load'!$G:$G,'5.Manual Salary'!S:S) -> 0 | R21: =SUMIF('3.Continue_Fixed Salary'!$G:$G,'10. Budget Load'!$G:$G,'3.Continue_Fixed Salary'!AA:AA)+SUMIF('4. Casual Salary'!$B:$B,'10. Budget Load'!$G:$G,'4. Casual Salary'!K:K)+SUMIF('4. Casual Salary'!$O:$O,'10. Budget Load'!$G:$G,'4. Casual Salary'!X:X)+SUMIF('5.Manual Salary'!$F:$F,'10. Budget Load'!$G:$G,'5.Manual Salary'!T:T) -> 0 | S21: =SUMIF('3.Continue_Fixed Salary'!$G:$G,'10. Budget Load'!$G:$G,'3.Continue_Fixed Salary'!AB:AB)+SUMIF('4. Casual Salary'!$B:$B,'10. Budget Load'!$G:$G,'4. Casual Salary'!L:L)+SUMIF('4. Casual Salary'!$O:$O,'10. Budget Load'!$G:$G,'4. Casual Salary'!Y:Y)+SUMIF('5.Manual Salary'!$F:$F,'10. Budget Load'!$G:$G,'5.Manual Salary'!U:U) -> 0 | V21: 20120 | W21: Academic Provision A/Leave
D22: 91 | E22: ='1.Coversheet'!#REF! ->  | F22: =LEFT('1.Coversheet'!#REF!,3) ->  | G22: 20103 | H22: Academic Salaries Casual/Sessional | J22: 0 | L22: =SUMIF('3.Continue_Fixed Salary'!$G:$G,'10. Budget Load'!$G:$G,'3.Continue_Fixed Salary'!U:U)+SUMIF('4. Casual Salary'!$B:$B,'10. Budget Load'!$G:$G,'4. Casual Salary'!E:E)+SUMIF('4. Casual Salary'!$O:$O,'10. Budget Load'!$G:$G,'4. Casual Salary'!R:R) -> 0 | M22: =SUMIF('3.Continue_Fixed Salary'!$G:$G,'10. Budget Load'!$G:$G,'3.Continue_Fixed Salary'!V:V)+SUMIF('4. Casual Salary'!$B:$B,'10. Budget Load'!$G:$G,'4. Casual Salary'!F:F)+SUMIF('4. Casual Salary'!$O:$O,'10. Budget Load'!$G:$G,'4. Casual Salary'!S:S)+SUMIF('5.Manual Salary'!$F:$F,'10. Budget Load'!$G:$G,'5.Manual Salary'!O:O) -> 0 | N22: =SUMIF('3.Continue_Fixed Salary'!$G:$G,'10. Budget Load'!$G:$G,'3.Continue_Fixed Salary'!W:W)+SUMIF('4. Casual Salary'!$B:$B,'10. Budget Load'!$G:$G,'4. Casual Salary'!G:G)+SUMIF('4. Casual Salary'!$O:$O,'10. Budget Load'!$G:$G,'4. Casual Salary'!T:T)+SUMIF('5.Manual Salary'!$F:$F,'10. Budget Load'!$G:$G,'5.Manual Salary'!P:P) -> 0 | O22: =SUMIF('3.Continue_Fixed Salary'!$G:$G,'10. Budget Load'!$G:$G,'3.Continue_Fixed Salary'!X:X)+SUMIF('4. Casual Salary'!$B:$B,'10. Budget Load'!$G:$G,'4. Casual Salary'!H:H)+SUMIF('4. Casual Salary'!$O:$O,'10. Budget Load'!$G:$G,'4. Casual Salary'!U:U)+SUMIF('5.Manual Salary'!$F:$F,'10. Budget Load'!$G:$G,'5.Manual Salary'!Q:Q) -> 0 | P22: =SUMIF('3.Continue_Fixed Salary'!$G:$G,'10. Budget Load'!$G:$G,'3.Continue_Fixed Salary'!Y:Y)+SUMIF('4. Casual Salary'!$B:$B,'10. Budget Load'!$G:$G,'4. Casual Salary'!I:I)+SUMIF('4. Casual Salary'!$O:$O,'10. Budget Load'!$G:$G,'4. Casual Salary'!V:V)+SUMIF('5.Manual Salary'!$F:$F,'10. Budget Load'!$G:$G,'5.Manual Salary'!R:R) -> 0 | Q22: =SUMIF('3.Continue_Fixed Salary'!$G:$G,'10. Budget Load'!$G:$G,'3.Continue_Fixed Salary'!Z:Z)+SUMIF('4. Casual Salary'!$B:$B,'10. Budget Load'!$G:$G,'4. Casual Salary'!J:J)+SUMIF('4. Casual Salary'!$O:$O,'10. Budget Load'!$G:$G,'4. Casual Salary'!W:W)+SUMIF('5.Manual Salary'!$F:$F,'10. Budget Load'!$G:$G,'5.Manual Salary'!S:S) -> 0 | R22: =SUMIF('3.Continue_Fixed Salary'!$G:$G,'10. Budget Load'!$G:$G,'3.Continue_Fixed Salary'!AA:AA)+SUMIF('4. Casual Salary'!$B:$B,'10. Budget Load'!$G:$G,'4. Casual Salary'!K:K)+SUMIF('4. Casual Salary'!$O:$O,'10. Budget Load'!$G:$G,'4. Casual Salary'!X:X)+SUMIF('5.Manual Salary'!$F:$F,'10. Budget Load'!$G:$G,'5.Manual Salary'!T:T) -> 0 | S22: =SUMIF('3.Continue_Fixed Salary'!$G:$G,'10. Budget Load'!$G:$G,'3.Continue_Fixed Salary'!AB:AB)+SUMIF('4. Casual Salary'!$B:$B,'10. Budget Load'!$G:$G,'4. Casual Salary'!L:L)+SUMIF('4. Casual Salary'!$O:$O,'10. Budget Load'!$G:$G,'4. Casual Salary'!Y:Y)+SUMIF('5.Manual Salary'!$F:$F,'10. Budget Load'!$G:$G,'5.Manual Salary'!U:U) -> 0 | V22: 20121 | W22: Academic Provision LSL
D23: 91 | E23: ='1.Coversheet'!#REF! ->  | F23: =LEFT('1.Coversheet'!#REF!,3) ->  | G23: 20151 | H23: Academic OnCosts Continuing | I23: 0.27 | J23: 0 | L23: =SUMIF('3.Continue_Fixed Salary'!$H:$H,'10. Budget Load'!$G:$G,'3.Continue_Fixed Salary'!AC:AC)+SUMIF('4. Casual Salary'!$B:$B,'10. Budget Load'!$G:$G,'4. Casual Salary'!E:E)+SUMIF('4. Casual Salary'!$O:$O,'10. Budget Load'!$G:$G,'4. Casual Salary'!R:R) -> 0 | M23: =SUMIF('3.Continue_Fixed Salary'!$H:$H,'10. Budget Load'!$G:$G,'3.Continue_Fixed Salary'!AD:AD)+SUMIF('4. Casual Salary'!$B:$B,'10. Budget Load'!$G:$G,'4. Casual Salary'!F:F)+SUMIF('4. Casual Salary'!$O:$O,'10. Budget Load'!$G:$G,'4. Casual Salary'!S:S)+SUMIF('5.Manual Salary'!$G:$G,'10. Budget Load'!$G:$G,'5.Manual Salary'!V:V) -> 0 | N23: =SUMIF('3.Continue_Fixed Salary'!$H:$H,'10. Budget Load'!$G:$G,'3.Continue_Fixed Salary'!AE:AE)+SUMIF('4. Casual Salary'!$B:$B,'10. Budget Load'!$G:$G,'4. Casual Salary'!G:G)+SUMIF('4. Casual Salary'!$O:$O,'10. Budget Load'!$G:$G,'4. Casual Salary'!T:T)+SUMIF('5.Manual Salary'!$G:$G,'10. Budget Load'!$G:$G,'5.Manual Salary'!W:W) -> 0 | O23: =SUMIF('3.Continue_Fixed Salary'!$H:$H,'10. Budget Load'!$G:$G,'3.Continue_Fixed Salary'!AF:AF)+SUMIF('4. Casual Salary'!$B:$B,'10. Budget Load'!$G:$G,'4. Casual Salary'!H:H)+SUMIF('4. Casual Salary'!$O:$O,'10. Budget Load'!$G:$G,'4. Casual Salary'!U:U)+SUMIF('5.Manual Salary'!$G:$G,'10. Budget Load'!$G:$G,'5.Manual Salary'!X:X) -> 0 | P23: =SUMIF('3.Continue_Fixed Salary'!$H:$H,'10. Budget Load'!$G:$G,'3.Continue_Fixed Salary'!AG:AG)+SUMIF('4. Casual Salary'!$B:$B,'10. Budget Load'!$G:$G,'4. Casual Salary'!I:I)+SUMIF('4. Casual Salary'!$O:$O,'10. Budget Load'!$G:$G,'4. Casual Salary'!V:V)+SUMIF('5.Manual Salary'!$G:$G,'10. Budget Load'!$G:$G,'5.Manual Salary'!Y:Y) -> 0 | Q23: =SUMIF('3.Continue_Fixed Salary'!$H:$H,'10. Budget Load'!$G:$G,'3.Continue_Fixed Salary'!AH:AH)+SUMIF('4. Casual Salary'!$B:$B,'10. Budget Load'!$G:$G,'4. Casual Salary'!J:J)+SUMIF('4. Casual Salary'!$O:$O,'10. Budget Load'!$G:$G,'4. Casual Salary'!W:W)+SUMIF('5.Manual Salary'!$G:$G,'10. Budget Load'!$G:$G,'5.Manual Salary'!Z:Z) -> 0 | R23: =SUMIF('3.Continue_Fixed Salary'!$H:$H,'10. Budget Load'!$G:$G,'3.Continue_Fixed Salary'!AI:AI)+SUMIF('4. Casual Salary'!$B:$B,'10. Budget Load'!$G:$G,'4. Casual Salary'!K:K)+SUMIF('4. Casual Salary'!$O:$O,'10. Budget Load'!$G:$G,'4. Casual Salary'!X:X)+SUMIF('5.Manual Salary'!$G:$G,'10. Budget Load'!$G:$G,'5.Manual Salary'!AA:AA) -> 0 | S23: =SUMIF('3.Continue_Fixed Salary'!$H:$H,'10. Budget Load'!$G:$G,'3.Continue_Fixed Salary'!AJ:AJ)+SUMIF('4. Casual Salary'!$B:$B,'10. Budget Load'!$G:$G,'4. Casual Salary'!L:L)+SUMIF('4. Casual Salary'!$O:$O,'10. Budget Load'!$G:$G,'4. Casual Salary'!Y:Y)+SUMIF('5.Manual Salary'!$G:$G,'10. Budget Load'!$G:$G,'5.Manual Salary'!AB:AB) -> 0 | V23: 20123 | W23: Academic Provision Parental Leave
D24: 91 | E24: ='1.Coversheet'!#REF! ->  | F24: =LEFT('1.Coversheet'!#REF!,3) ->  | G24: 20152 | H24: Academic OnCosts Contract | I24: 0.165 | J24: 0 | L24: =SUMIF('3.Continue_Fixed Salary'!$H:$H,'10. Budget Load'!$G:$G,'3.Continue_Fixed Salary'!AC:AC)+SUMIF('4. Casual Salary'!$B:$B,'10. Budget Load'!$G:$G,'4. Casual Salary'!E:E)+SUMIF('4. Casual Salary'!$O:$O,'10. Budget Load'!$G:$G,'4. Casual Salary'!R:R) -> 0 | M24: =SUMIF('3.Continue_Fixed Salary'!$H:$H,'10. Budget Load'!$G:$G,'3.Continue_Fixed Salary'!AD:AD)+SUMIF('4. Casual Salary'!$B:$B,'10. Budget Load'!$G:$G,'4. Casual Salary'!F:F)+SUMIF('4. Casual Salary'!$O:$O,'10. Budget Load'!$G:$G,'4. Casual Salary'!S:S)+SUMIF('5.Manual Salary'!$G:$G,'10. Budget Load'!$G:$G,'5.Manual Salary'!V:V) -> 0 | N24: =SUMIF('3.Continue_Fixed Salary'!$H:$H,'10. Budget Load'!$G:$G,'3.Continue_Fixed Salary'!AE:AE)+SUMIF('4. Casual Salary'!$B:$B,'10. Budget Load'!$G:$G,'4. Casual Salary'!G:G)+SUMIF('4. Casual Salary'!$O:$O,'10. Budget Load'!$G:$G,'4. Casual Salary'!T:T)+SUMIF('5.Manual Salary'!$G:$G,'10. Budget Load'!$G:$G,'5.Manual Salary'!W:W) -> 0 | O24: =SUMIF('3.Continue_Fixed Salary'!$H:$H,'10. Budget Load'!$G:$G,'3.Continue_Fixed Salary'!AF:AF)+SUMIF('4. Casual Salary'!$B:$B,'10. Budget Load'!$G:$G,'4. Casual Salary'!H:H)+SUMIF('4. Casual Salary'!$O:$O,'10. Budget Load'!$G:$G,'4. Casual Salary'!U:U)+SUMIF('5.Manual Salary'!$G:$G,'10. Budget Load'!$G:$G,'5.Manual Salary'!X:X) -> 0 | P24: =SUMIF('3.Continue_Fixed Salary'!$H:$H,'10. Budget Load'!$G:$G,'3.Continue_Fixed Salary'!AG:AG)+SUMIF('4. Casual Salary'!$B:$B,'10. Budget Load'!$G:$G,'4. Casual Salary'!I:I)+SUMIF('4. Casual Salary'!$O:$O,'10. Budget Load'!$G:$G,'4. Casual Salary'!V:V)+SUMIF('5.Manual Salary'!$G:$G,'10. Budget Load'!$G:$G,'5.Manual Salary'!Y:Y) -> 0 | Q24: =SUMIF('3.Continue_Fixed Salary'!$H:$H,'10. Budget Load'!$G:$G,'3.Continue_Fixed Salary'!AH:AH)+SUMIF('4. Casual Salary'!$B:$B,'10. Budget Load'!$G:$G,'4. Casual Salary'!J:J)+SUMIF('4. Casual Salary'!$O:$O,'10. Budget Load'!$G:$G,'4. Casual Salary'!W:W)+SUMIF('5.Manual Salary'!$G:$G,'10. Budget Load'!$G:$G,'5.Manual Salary'!Z:Z) -> 0 | R24: =SUMIF('3.Continue_Fixed Salary'!$H:$H,'10. Budget Load'!$G:$G,'3.Continue_Fixed Salary'!AI:AI)+SUMIF('4. Casual Salary'!$B:$B,'10. Budget Load'!$G:$G,'4. Casual Salary'!K:K)+SUMIF('4. Casual Salary'!$O:$O,'10. Budget Load'!$G:$G,'4. Casual Salary'!X:X)+SUMIF('5.Manual Salary'!$G:$G,'10. Budget Load'!$G:$G,'5.Manual Salary'!AA:AA) -> 0 | S24: =SUMIF('3.Continue_Fixed Salary'!$H:$H,'10. Budget Load'!$G:$G,'3.Continue_Fixed Salary'!AJ:AJ)+SUMIF('4. Casual Salary'!$B:$B,'10. Budget Load'!$G:$G,'4. Casual Salary'!L:L)+SUMIF('4. Casual Salary'!$O:$O,'10. Budget Load'!$G:$G,'4. Casual Salary'!Y:Y)+SUMIF('5.Manual Salary'!$G:$G,'10. Budget Load'!$G:$G,'5.Manual Salary'!AB:AB) -> 0 | V24: 20130 | W24: Academic Workers Comp
D25: 91 | E25: ='1.Coversheet'!#REF! ->  | F25: =LEFT('1.Coversheet'!#REF!,3) ->  | G25: 20153 | H25: Academic OnCosts Casual | I25: 0.165 | J25: 0 | L25: =SUMIF('3.Continue_Fixed Salary'!$H:$H,'10. Budget Load'!$G:$G,'3.Continue_Fixed Salary'!AC:AC)+SUMIF('4. Casual Salary'!$B:$B,'10. Budget Load'!$G:$G,'4. Casual Salary'!E:E)+SUMIF('4. Casual Salary'!$O:$O,'10. Budget Load'!$G:$G,'4. Casual Salary'!R:R) -> 0 | M25: =SUMIF('3.Continue_Fixed Salary'!$H:$H,'10. Budget Load'!$G:$G,'3.Continue_Fixed Salary'!AD:AD)+SUMIF('4. Casual Salary'!$B:$B,'10. Budget Load'!$G:$G,'4. Casual Salary'!F:F)+SUMIF('4. Casual Salary'!$O:$O,'10. Budget Load'!$G:$G,'4. Casual Salary'!S:S)+SUMIF('5.Manual Salary'!$G:$G,'10. Budget Load'!$G:$G,'5.Manual Salary'!V:V) -> 0 | N25: =SUMIF('3.Continue_Fixed Salary'!$H:$H,'10. Budget Load'!$G:$G,'3.Continue_Fixed Salary'!AE:AE)+SUMIF('4. Casual Salary'!$B:$B,'10. Budget Load'!$G:$G,'4. Casual Salary'!G:G)+SUMIF('4. Casual Salary'!$O:$O,'10. Budget Load'!$G:$G,'4. Casual Salary'!T:T)+SUMIF('5.Manual Salary'!$G:$G,'10. Budget Load'!$G:$G,'5.Manual Salary'!W:W) -> 0 | O25: =SUMIF('3.Continue_Fixed Salary'!$H:$H,'10. Budget Load'!$G:$G,'3.Continue_Fixed Salary'!AF:AF)+SUMIF('4. Casual Salary'!$B:$B,'10. Budget Load'!$G:$G,'4. Casual Salary'!H:H)+SUMIF('4. Casual Salary'!$O:$O,'10. Budget Load'!$G:$G,'4. Casual Salary'!U:U)+SUMIF('5.Manual Salary'!$G:$G,'10. Budget Load'!$G:$G,'5.Manual Salary'!X:X) -> 0 | P25: =SUMIF('3.Continue_Fixed Salary'!$H:$H,'10. Budget Load'!$G:$G,'3.Continue_Fixed Salary'!AG:AG)+SUMIF('4. Casual Salary'!$B:$B,'10. Budget Load'!$G:$G,'4. Casual Salary'!I:I)+SUMIF('4. Casual Salary'!$O:$O,'10. Budget Load'!$G:$G,'4. Casual Salary'!V:V)+SUMIF('5.Manual Salary'!$G:$G,'10. Budget Load'!$G:$G,'5.Manual Salary'!Y:Y) -> 0 | Q25: =SUMIF('3.Continue_Fixed Salary'!$H:$H,'10. Budget Load'!$G:$G,'3.Continue_Fixed Salary'!AH:AH)+SUMIF('4. Casual Salary'!$B:$B,'10. Budget Load'!$G:$G,'4. Casual Salary'!J:J)+SUMIF('4. Casual Salary'!$O:$O,'10. Budget Load'!$G:$G,'4. Casual Salary'!W:W)+SUMIF('5.Manual Salary'!$G:$G,'10. Budget Load'!$G:$G,'5.Manual Salary'!Z:Z) -> 0 | R25: =SUMIF('3.Continue_Fixed Salary'!$H:$H,'10. Budget Load'!$G:$G,'3.Continue_Fixed Salary'!AI:AI)+SUMIF('4. Casual Salary'!$B:$B,'10. Budget Load'!$G:$G,'4. Casual Salary'!K:K)+SUMIF('4. Casual Salary'!$O:$O,'10. Budget Load'!$G:$G,'4. Casual Salary'!X:X)+SUMIF('5.Manual Salary'!$G:$G,'10. Budget Load'!$G:$G,'5.Manual Salary'!AA:AA) -> 0 | S25: =SUMIF('3.Continue_Fixed Salary'!$H:$H,'10. Budget Load'!$G:$G,'3.Continue_Fixed Salary'!AJ:AJ)+SUMIF('4. Casual Salary'!$B:$B,'10. Budget Load'!$G:$G,'4. Casual Salary'!L:L)+SUMIF('4. Casual Salary'!$O:$O,'10. Budget Load'!$G:$G,'4. Casual Salary'!Y:Y)+SUMIF('5.Manual Salary'!$G:$G,'10. Budget Load'!$G:$G,'5.Manual Salary'!AB:AB) -> 0 | V25: 20141 | W25: Academic Voluntary Redundancy & Early Retirement
V26: 20151 | W26: Academic OnCosts Continuing
H27: Sub Total | J27: =SUBTOTAL(9,J20:J25) -> 0 | L27: =SUBTOTAL(9,L20:L25) -> 0 | M27: 0 | N27: 0 | O27: 0 | P27: 0 | Q27: 0 | R27: 0 | S27: 0 | V27: 20152 | W27: Academic OnCosts Contract
V28: 20195 | W28: Academic Internal Salary Transfer
H29: Professional Salaries
C30: =CONCATENATE(D30,"-",E30,"-",F30,"-9999-",G30) ->  | D30: 91 | E30: ='1.Coversheet'!#REF! ->  | F30: =LEFT('1.Coversheet'!#REF!,3) ->  | G30: 20201 | H30: =IF(ISERROR(VLOOKUP(G30,$V$18:$W$262,2,FALSE)),"Enter Natural Account code",VLOOKUP(G30,$V$18:$W$262,2,FALSE)) -> Professional Salaries Continuing | J30: =SUM(L30:S30) -> 0 | L30: =SUMIF('3.Continue_Fixed Salary'!$G:$G,'10. Budget Load'!$G:$G,'3.Continue_Fixed Salary'!U:U)+SUMIF('4. Casual Salary'!$B:$B,'10. Budget Load'!$G:$G,'4. Casual Salary'!E:E)+SUMIF('4. Casual Salary'!$O:$O,'10. Budget Load'!$G:$G,'4. Casual Salary'!R:R) -> 0 | M30: =SUMIF('3.Continue_Fixed Salary'!$G:$G,'10. Budget Load'!$G:$G,'3.Continue_Fixed Salary'!V:V)+SUMIF('4. Casual Salary'!$B:$B,'10. Budget Load'!$G:$G,'4. Casual Salary'!F:F)+SUMIF('4. Casual Salary'!$O:$O,'10. Budget Load'!$G:$G,'4. Casual Salary'!S:S)+SUMIF('5.Manual Salary'!$F:$F,'10. Budget Load'!$G:$G,'5.Manual Salary'!O:O) -> 0 | N30: =SUMIF('3.Continue_Fixed Salary'!$G:$G,'10. Budget Load'!$G:$G,'3.Continue_Fixed Salary'!W:W)+SUMIF('4. Casual Salary'!$B:$B,'10. Budget Load'!$G:$G,'4. Casual Salary'!G:G)+SUMIF('4. Casual Salary'!$O:$O,'10. Budget Load'!$G:$G,'4. Casual Salary'!T:T)+SUMIF('5.Manual Salary'!$F:$F,'10. Budget Load'!$G:$G,'5.Manual Salary'!P:P) -> 0 | O30: =SUMIF('3.Continue_Fixed Salary'!$G:$G,'10. Budget Load'!$G:$G,'3.Continue_Fixed Salary'!X:X)+SUMIF('4. Casual Salary'!$B:$B,'10. Budget Load'!$G:$G,'4. Casual Salary'!H:H)+SUMIF('4. Casual Salary'!$O:$O,'10. Budget Load'!$G:$G,'4. Casual Salary'!U:U)+SUMIF('5.Manual Salary'!$F:$F,'10. Budget Load'!$G:$G,'5.Manual Salary'!Q:Q) -> 0 | P30: =SUMIF('3.Continue_Fixed Salary'!$G:$G,'10. Budget Load'!$G:$G,'3.Continue_Fixed Salary'!Y:Y)+SUMIF('4. Casual Salary'!$B:$B,'10. Budget Load'!$G:$G,'4. Casual Salary'!I:I)+SUMIF('4. Casual Salary'!$O:$O,'10. Budget Load'!$G:$G,'4. Casual Salary'!V:V)+SUMIF('5.Manual Salary'!$F:$F,'10. Budget Load'!$G:$G,'5.Manual Salary'!R:R) -> 0 | Q30: =SUMIF('3.Continue_Fixed Salary'!$G:$G,'10. Budget Load'!$G:$G,'3.Continue_Fixed Salary'!Z:Z)+SUMIF('4. Casual Salary'!$B:$B,'10. Budget Load'!$G:$G,'4. Casual Salary'!J:J)+SUMIF('4. Casual Salary'!$O:$O,'10. Budget Load'!$G:$G,'4. Casual Salary'!W:W)+SUMIF('5.Manual Salary'!$F:$F,'10. Budget Load'!$G:$G,'5.Manual Salary'!S:S) -> 0 | R30: =SUMIF('3.Continue_Fixed Salary'!$G:$G,'10. Budget Load'!$G:$G,'3.Continue_Fixed Salary'!AA:AA)+SUMIF('4. Casual Salary'!$B:$B,'10. Budget Load'!$G:$G,'4. Casual Salary'!K:K)+SUMIF('4. Casual Salary'!$O:$O,'10. Budget Load'!$G:$G,'4. Casual Salary'!X:X)+SUMIF('5.Manual Salary'!$F:$F,'10. Budget Load'!$G:$G,'5.Manual Salary'!T:T) -> 0 | S30: =SUMIF('3.Continue_Fixed Salary'!$G:$G,'10. Budget Load'!$G:$G,'3.Continue_Fixed Salary'!AB:AB)+SUMIF('4. Casual Salary'!$B:$B,'10. Budget Load'!$G:$G,'4. Casual Salary'!L:L)+SUMIF('4. Casual Salary'!$O:$O,'10. Budget Load'!$G:$G,'4. Casual Salary'!Y:Y)+SUMIF('5.Manual Salary'!$F:$F,'10. Budget Load'!$G:$G,'5.Manual Salary'!U:U) -> 0 | V30: 20103 | W30: Academic Salaries Casual/Sessional
D31: 92 | E31: ='1.Coversheet'!#REF! ->  | F31: =LEFT('1.Coversheet'!#REF!,3) ->  | G31: 20202 | H31: Professional Salaries Contract SGL | J31: =SUM(L31:S31) -> 0 | L31: =SUMIF('3.Continue_Fixed Salary'!$G:$G,'10. Budget Load'!$G:$G,'3.Continue_Fixed Salary'!U:U)+SUMIF('4. Casual Salary'!$B:$B,'10. Budget Load'!$G:$G,'4. Casual Salary'!E:E)+SUMIF('4. Casual Salary'!$O:$O,'10. Budget Load'!$G:$G,'4. Casual Salary'!R:R) -> 0 | M31: =SUMIF('3.Continue_Fixed Salary'!$G:$G,'10. Budget Load'!$G:$G,'3.Continue_Fixed Salary'!V:V)+SUMIF('4. Casual Salary'!$B:$B,'10. Budget Load'!$G:$G,'4. Casual Salary'!F:F)+SUMIF('4. Casual Salary'!$O:$O,'10. Budget Load'!$G:$G,'4. Casual Salary'!S:S)+SUMIF('5.Manual Salary'!$F:$F,'10. Budget Load'!$G:$G,'5.Manual Salary'!O:O) -> 0 | N31: =SUMIF('3.Continue_Fixed Salary'!$G:$G,'10. Budget Load'!$G:$G,'3.Continue_Fixed Salary'!W:W)+SUMIF('4. Casual Salary'!$B:$B,'10. Budget Load'!$G:$G,'4. Casual Salary'!G:G)+SUMIF('4. Casual Salary'!$O:$O,'10. Budget Load'!$G:$G,'4. Casual Salary'!T:T)+SUMIF('5.Manual Salary'!$F:$F,'10. Budget Load'!$G:$G,'5.Manual Salary'!P:P) -> 0 | O31: =SUMIF('3.Continue_Fixed Salary'!$G:$G,'10. Budget Load'!$G:$G,'3.Continue_Fixed Salary'!X:X)+SUMIF('4. Casual Salary'!$B:$B,'10. Budget Load'!$G:$G,'4. Casual Salary'!H:H)+SUMIF('4. Casual Salary'!$O:$O,'10. Budget Load'!$G:$G,'4. Casual Salary'!U:U)+SUMIF('5.Manual Salary'!$F:$F,'10. Budget Load'!$G:$G,'5.Manual Salary'!Q:Q) -> 0 | P31: =SUMIF('3.Continue_Fixed Salary'!$G:$G,'10. Budget Load'!$G:$G,'3.Continue_Fixed Salary'!Y:Y)+SUMIF('4. Casual Salary'!$B:$B,'10. Budget Load'!$G:$G,'4. Casual Salary'!I:I)+SUMIF('4. Casual Salary'!$O:$O,'10. Budget Load'!$G:$G,'4. Casual Salary'!V:V)+SUMIF('5.Manual Salary'!$F:$F,'10. Budget Load'!$G:$G,'5.Manual Salary'!R:R) -> 0 | Q31: =SUMIF('3.Continue_Fixed Salary'!$G:$G,'10. Budget Load'!$G:$G,'3.Continue_Fixed Salary'!Z:Z)+SUMIF('4. Casual Salary'!$B:$B,'10. Budget Load'!$G:$G,'4. Casual Salary'!J:J)+SUMIF('4. Casual Salary'!$O:$O,'10. Budget Load'!$G:$G,'4. Casual Salary'!W:W)+SUMIF('5.Manual Salary'!$F:$F,'10. Budget Load'!$G:$G,'5.Manual Salary'!S:S) -> 0 | R31: =SUMIF('3.Continue_Fixed Salary'!$G:$G,'10. Budget Load'!$G:$G,'3.Continue_Fixed Salary'!AA:AA)+SUMIF('4. Casual Salary'!$B:$B,'10. Budget Load'!$G:$G,'4. Casual Salary'!K:K)+SUMIF('4. Casual Salary'!$O:$O,'10. Budget Load'!$G:$G,'4. Casual Salary'!X:X)+SUMIF('5.Manual Salary'!$F:$F,'10. Budget Load'!$G:$G,'5.Manual Salary'!T:T) -> 0 | S31: =SUMIF('3.Continue_Fixed Salary'!$G:$G,'10. Budget Load'!$G:$G,'3.Continue_Fixed Salary'!AB:AB)+SUMIF('4. Casual Salary'!$B:$B,'10. Budget Load'!$G:$G,'4. Casual Salary'!L:L)+SUMIF('4. Casual Salary'!$O:$O,'10. Budget Load'!$G:$G,'4. Casual Salary'!Y:Y)+SUMIF('5.Manual Salary'!$F:$F,'10. Budget Load'!$G:$G,'5.Manual Salary'!U:U) -> 0 | V31: 20105 | W31: Academic Stipends Casual/Sessional
D32: 93 | E32: ='1.Coversheet'!#REF! ->  | F32: =LEFT('1.Coversheet'!#REF!,3) ->  | G32: 20203 | H32: Professional Salaries Casual | J32: 0 | L32: =SUMIF('3.Continue_Fixed Salary'!$G:$G,'10. Budget Load'!$G:$G,'3.Continue_Fixed Salary'!U:U)+SUMIF('4. Casual Salary'!$B:$B,'10. Budget Load'!$G:$G,'4. Casual Salary'!E:E)+SUMIF('4. Casual Salary'!$O:$O,'10. Budget Load'!$G:$G,'4. Casual Salary'!R:R) -> 0 | M32: =SUMIF('3.Continue_Fixed Salary'!$G:$G,'10. Budget Load'!$G:$G,'3.Continue_Fixed Salary'!V:V)+SUMIF('4. Casual Salary'!$B:$B,'10. Budget Load'!$G:$G,'4. Casual Salary'!F:F)+SUMIF('4. Casual Salary'!$O:$O,'10. Budget Load'!$G:$G,'4. Casual Salary'!S:S)+SUMIF('5.Manual Salary'!$F:$F,'10. Budget Load'!$G:$G,'5.Manual Salary'!O:O) -> 0 | N32: =SUMIF('3.Continue_Fixed Salary'!$G:$G,'10. Budget Load'!$G:$G,'3.Continue_Fixed Salary'!W:W)+SUMIF('4. Casual Salary'!$B:$B,'10. Budget Load'!$G:$G,'4. Casual Salary'!G:G)+SUMIF('4. Casual Salary'!$O:$O,'10. Budget Load'!$G:$G,'4. Casual Salary'!T:T)+SUMIF('5.Manual Salary'!$F:$F,'10. Budget Load'!$G:$G,'5.Manual Salary'!P:P) -> 0 | O32: =SUMIF('3.Continue_Fixed Salary'!$G:$G,'10. Budget Load'!$G:$G,'3.Continue_Fixed Salary'!X:X)+SUMIF('4. Casual Salary'!$B:$B,'10. Budget Load'!$G:$G,'4. Casual Salary'!H:H)+SUMIF('4. Casual Salary'!$O:$O,'10. Budget Load'!$G:$G,'4. Casual Salary'!U:U)+SUMIF('5.Manual Salary'!$F:$F,'10. Budget Load'!$G:$G,'5.Manual Salary'!Q:Q) -> 0 | P32: =SUMIF('3.Continue_Fixed Salary'!$G:$G,'10. Budget Load'!$G:$G,'3.Continue_Fixed Salary'!Y:Y)+SUMIF('4. Casual Salary'!$B:$B,'10. Budget Load'!$G:$G,'4. Casual Salary'!I:I)+SUMIF('4. Casual Salary'!$O:$O,'10. Budget Load'!$G:$G,'4. Casual Salary'!V:V)+SUMIF('5.Manual Salary'!$F:$F,'10. Budget Load'!$G:$G,'5.Manual Salary'!R:R) -> 0 | Q32: =SUMIF('3.Continue_Fixed Salary'!$G:$G,'10. Budget Load'!$G:$G,'3.Continue_Fixed Salary'!Z:Z)+SUMIF('4. Casual Salary'!$B:$B,'10. Budget Load'!$G:$G,'4. Casual Salary'!J:J)+SUMIF('4. Casual Salary'!$O:$O,'10. Budget Load'!$G:$G,'4. Casual Salary'!W:W)+SUMIF('5.Manual Salary'!$F:$F,'10. Budget Load'!$G:$G,'5.Manual Salary'!S:S) -> 0 | R32: =SUMIF('3.Continue_Fixed Salary'!$G:$G,'10. Budget Load'!$G:$G,'3.Continue_Fixed Salary'!AA:AA)+SUMIF('4. Casual Salary'!$B:$B,'10. Budget Load'!$G:$G,'4. Casual Salary'!K:K)+SUMIF('4. Casual Salary'!$O:$O,'10. Budget Load'!$G:$G,'4. Casual Salary'!X:X)+SUMIF('5.Manual Salary'!$F:$F,'10. Budget Load'!$G:$G,'5.Manual Salary'!T:T) -> 0 | S32: =SUMIF('3.Continue_Fixed Salary'!$G:$G,'10. Budget Load'!$G:$G,'3.Continue_Fixed Salary'!AB:AB)+SUMIF('4. Casual Salary'!$B:$B,'10. Budget Load'!$G:$G,'4. Casual Salary'!L:L)+SUMIF('4. Casual Salary'!$O:$O,'10. Budget Load'!$G:$G,'4. Casual Salary'!Y:Y)+SUMIF('5.Manual Salary'!$F:$F,'10. Budget Load'!$G:$G,'5.Manual Salary'!U:U) -> 0 | V32: 20107 | W32: Academic Teaching Agencies
D33: 94 | E33: ='1.Coversheet'!#REF! ->  | F33: =LEFT('1.Coversheet'!#REF!,3) ->  | G33: 20251 | H33: Professional OnCosts Continuing | I33: 0.27 | J33: 0 | L33: =SUMIF('3.Continue_Fixed Salary'!$H:$H,'10. Budget Load'!$G:$G,'3.Continue_Fixed Salary'!AC:AC)+SUMIF('4. Casual Salary'!$B:$B,'10. Budget Load'!$G:$G,'4. Casual Salary'!E:E)+SUMIF('4. Casual Salary'!$O:$O,'10. Budget Load'!$G:$G,'4. Casual Salary'!R:R) -> 0 | M33: =SUMIF('3.Continue_Fixed Salary'!$H:$H,'10. Budget Load'!$G:$G,'3.Continue_Fixed Salary'!AD:AD)+SUMIF('4. Casual Salary'!$B:$B,'10. Budget Load'!$G:$G,'4. Casual Salary'!F:F)+SUMIF('4. Casual Salary'!$O:$O,'10. Budget Load'!$G:$G,'4. Casual Salary'!S:S)+SUMIF('5.Manual Salary'!$G:$G,'10. Budget Load'!$G:$G,'5.Manual Salary'!V:V) -> 0 | N33: =SUMIF('3.Continue_Fixed Salary'!$H:$H,'10. Budget Load'!$G:$G,'3.Continue_Fixed Salary'!AE:AE)+SUMIF('4. Casual Salary'!$B:$B,'10. Budget Load'!$G:$G,'4. Casual Salary'!G:G)+SUMIF('4. Casual Salary'!$O:$O,'10. Budget Load'!$G:$G,'4. Casual Salary'!T:T)+SUMIF('5.Manual Salary'!$G:$G,'10. Budget Load'!$G:$G,'5.Manual Salary'!W:W) -> 0 | O33: =SUMIF('3.Continue_Fixed Salary'!$H:$H,'10. Budget Load'!$G:$G,'3.Continue_Fixed Salary'!AF:AF)+SUMIF('4. Casual Salary'!$B:$B,'10. Budget Load'!$G:$G,'4. Casual Salary'!H:H)+SUMIF('4. Casual Salary'!$O:$O,'10. Budget Load'!$G:$G,'4. Casual Salary'!U:U)+SUMIF('5.Manual Salary'!$G:$G,'10. Budget Load'!$G:$G,'5.Manual Salary'!X:X) -> 0 | P33: =SUMIF('3.Continue_Fixed Salary'!$H:$H,'10. Budget Load'!$G:$G,'3.Continue_Fixed Salary'!AG:AG)+SUMIF('4. Casual Salary'!$B:$B,'10. Budget Load'!$G:$G,'4. Casual Salary'!I:I)+SUMIF('4. Casual Salary'!$O:$O,'10. Budget Load'!$G:$G,'4. Casual Salary'!V:V)+SUMIF('5.Manual Salary'!$G:$G,'10. Budget Load'!$G:$G,'5.Manual Salary'!Y:Y) -> 0 | Q33: =SUMIF('3.Continue_Fixed Salary'!$H:$H,'10. Budget Load'!$G:$G,'3.Continue_Fixed Salary'!AH:AH)+SUMIF('4. Casual Salary'!$B:$B,'10. Budget Load'!$G:$G,'4. Casual Salary'!J:J)+SUMIF('4. Casual Salary'!$O:$O,'10. Budget Load'!$G:$G,'4. Casual Salary'!W:W)+SUMIF('5.Manual Salary'!$G:$G,'10. Budget Load'!$G:$G,'5.Manual Salary'!Z:Z) -> 0 | R33: =SUMIF('3.Continue_Fixed Salary'!$H:$H,'10. Budget Load'!$G:$G,'3.Continue_Fixed Salary'!AI:AI)+SUMIF('4. Casual Salary'!$B:$B,'10. Budget Load'!$G:$G,'4. Casual Salary'!K:K)+SUMIF('4. Casual Salary'!$O:$O,'10. Budget Load'!$G:$G,'4. Casual Salary'!X:X)+SUMIF('5.Manual Salary'!$G:$G,'10. Budget Load'!$G:$G,'5.Manual Salary'!AA:AA) -> 0 | S33: =SUMIF('3.Continue_Fixed Salary'!$H:$H,'10. Budget Load'!$G:$G,'3.Continue_Fixed Salary'!AJ:AJ)+SUMIF('4. Casual Salary'!$B:$B,'10. Budget Load'!$G:$G,'4. Casual Salary'!L:L)+SUMIF('4. Casual Salary'!$O:$O,'10. Budget Load'!$G:$G,'4. Casual Salary'!Y:Y)+SUMIF('5.Manual Salary'!$G:$G,'10. Budget Load'!$G:$G,'5.Manual Salary'!AB:AB) -> 0 | V33: 20115 | W33: Academic Honoraria
D34: 95 | E34: ='1.Coversheet'!#REF! ->  | F34: =LEFT('1.Coversheet'!#REF!,3) ->  | G34: 20252 | H34: Professional OnCosts Contract | I34: 0.165 | J34: 0 | L34: =SUMIF('3.Continue_Fixed Salary'!$H:$H,'10. Budget Load'!$G:$G,'3.Continue_Fixed Salary'!AC:AC)+SUMIF('4. Casual Salary'!$B:$B,'10. Budget Load'!$G:$G,'4. Casual Salary'!E:E)+SUMIF('4. Casual Salary'!$O:$O,'10. Budget Load'!$G:$G,'4. Casual Salary'!R:R) -> 0 | M34: =SUMIF('3.Continue_Fixed Salary'!$H:$H,'10. Budget Load'!$G:$G,'3.Continue_Fixed Salary'!AD:AD)+SUMIF('4. Casual Salary'!$B:$B,'10. Budget Load'!$G:$G,'4. Casual Salary'!F:F)+SUMIF('4. Casual Salary'!$O:$O,'10. Budget Load'!$G:$G,'4. Casual Salary'!S:S)+SUMIF('5.Manual Salary'!$G:$G,'10. Budget Load'!$G:$G,'5.Manual Salary'!V:V) -> 0 | N34: =SUMIF('3.Continue_Fixed Salary'!$H:$H,'10. Budget Load'!$G:$G,'3.Continue_Fixed Salary'!AE:AE)+SUMIF('4. Casual Salary'!$B:$B,'10. Budget Load'!$G:$G,'4. Casual Salary'!G:G)+SUMIF('4. Casual Salary'!$O:$O,'10. Budget Load'!$G:$G,'4. Casual Salary'!T:T)+SUMIF('5.Manual Salary'!$G:$G,'10. Budget Load'!$G:$G,'5.Manual Salary'!W:W) -> 0 | O34: =SUMIF('3.Continue_Fixed Salary'!$H:$H,'10. Budget Load'!$G:$G,'3.Continue_Fixed Salary'!AF:AF)+SUMIF('4. Casual Salary'!$B:$B,'10. Budget Load'!$G:$G,'4. Casual Salary'!H:H)+SUMIF('4. Casual Salary'!$O:$O,'10. Budget Load'!$G:$G,'4. Casual Salary'!U:U)+SUMIF('5.Manual Salary'!$G:$G,'10. Budget Load'!$G:$G,'5.Manual Salary'!X:X) -> 0 | P34: =SUMIF('3.Continue_Fixed Salary'!$H:$H,'10. Budget Load'!$G:$G,'3.Continue_Fixed Salary'!AG:AG)+SUMIF('4. Casual Salary'!$B:$B,'10. Budget Load'!$G:$G,'4. Casual Salary'!I:I)+SUMIF('4. Casual Salary'!$O:$O,'10. Budget Load'!$G:$G,'4. Casual Salary'!V:V)+SUMIF('5.Manual Salary'!$G:$G,'10. Budget Load'!$G:$G,'5.Manual Salary'!Y:Y) -> 0 | Q34: =SUMIF('3.Continue_Fixed Salary'!$H:$H,'10. Budget Load'!$G:$G,'3.Continue_Fixed Salary'!AH:AH)+SUMIF('4. Casual Salary'!$B:$B,'10. Budget Load'!$G:$G,'4. Casual Salary'!J:J)+SUMIF('4. Casual Salary'!$O:$O,'10. Budget Load'!$G:$G,'4. Casual Salary'!W:W)+SUMIF('5.Manual Salary'!$G:$G,'10. Budget Load'!$G:$G,'5.Manual Salary'!Z:Z) -> 0 | R34: =SUMIF('3.Continue_Fixed Salary'!$H:$H,'10. Budget Load'!$G:$G,'3.Continue_Fixed Salary'!AI:AI)+SUMIF('4. Casual Salary'!$B:$B,'10. Budget Load'!$G:$G,'4. Casual Salary'!K:K)+SUMIF('4. Casual Salary'!$O:$O,'10. Budget Load'!$G:$G,'4. Casual Salary'!X:X)+SUMIF('5.Manual Salary'!$G:$G,'10. Budget Load'!$G:$G,'5.Manual Salary'!AA:AA) -> 0 | S34: =SUMIF('3.Continue_Fixed Salary'!$H:$H,'10. Budget Load'!$G:$G,'3.Continue_Fixed Salary'!AJ:AJ)+SUMIF('4. Casual Salary'!$B:$B,'10. Budget Load'!$G:$G,'4. Casual Salary'!L:L)+SUMIF('4. Casual Salary'!$O:$O,'10. Budget Load'!$G:$G,'4. Casual Salary'!Y:Y)+SUMIF('5.Manual Salary'!$G:$G,'10. Budget Load'!$G:$G,'5.Manual Salary'!AB:AB) -> 0 | V34: 20153 | W34: Academic OnCosts Casual
D35: 96 | E35: ='1.Coversheet'!#REF! ->  | F35: =LEFT('1.Coversheet'!#REF!,3) ->  | G35: 20253 | H35: Professional OnCosts Casual | I35: 0.165 | J35: 0 | L35: =SUMIF('3.Continue_Fixed Salary'!$H:$H,'10. Budget Load'!$G:$G,'3.Continue_Fixed Salary'!AC:AC)+SUMIF('4. Casual Salary'!$B:$B,'10. Budget Load'!$G:$G,'4. Casual Salary'!E:E)+SUMIF('4. Casual Salary'!$O:$O,'10. Budget Load'!$G:$G,'4. Casual Salary'!R:R) -> 0 | M35: =SUMIF('3.Continue_Fixed Salary'!$H:$H,'10. Budget Load'!$G:$G,'3.Continue_Fixed Salary'!AD:AD)+SUMIF('4. Casual Salary'!$B:$B,'10. Budget Load'!$G:$G,'4. Casual Salary'!F:F)+SUMIF('4. Casual Salary'!$O:$O,'10. Budget Load'!$G:$G,'4. Casual Salary'!S:S)+SUMIF('5.Manual Salary'!$G:$G,'10. Budget Load'!$G:$G,'5.Manual Salary'!V:V) -> 0 | N35: =SUMIF('3.Continue_Fixed Salary'!$H:$H,'10. Budget Load'!$G:$G,'3.Continue_Fixed Salary'!AE:AE)+SUMIF('4. Casual Salary'!$B:$B,'10. Budget Load'!$G:$G,'4. Casual Salary'!G:G)+SUMIF('4. Casual Salary'!$O:$O,'10. Budget Load'!$G:$G,'4. Casual Salary'!T:T)+SUMIF('5.Manual Salary'!$G:$G,'10. Budget Load'!$G:$G,'5.Manual Salary'!W:W) -> 0 | O35: =SUMIF('3.Continue_Fixed Salary'!$H:$H,'10. Budget Load'!$G:$G,'3.Continue_Fixed Salary'!AF:AF)+SUMIF('4. Casual Salary'!$B:$B,'10. Budget Load'!$G:$G,'4. Casual Salary'!H:H)+SUMIF('4. Casual Salary'!$O:$O,'10. Budget Load'!$G:$G,'4. Casual Salary'!U:U)+SUMIF('5.Manual Salary'!$G:$G,'10. Budget Load'!$G:$G,'5.Manual Salary'!X:X) -> 0 | P35: =SUMIF('3.Continue_Fixed Salary'!$H:$H,'10. Budget Load'!$G:$G,'3.Continue_Fixed Salary'!AG:AG)+SUMIF('4. Casual Salary'!$B:$B,'10. Budget Load'!$G:$G,'4. Casual Salary'!I:I)+SUMIF('4. Casual Salary'!$O:$O,'10. Budget Load'!$G:$G,'4. Casual Salary'!V:V)+SUMIF('5.Manual Salary'!$G:$G,'10. Budget Load'!$G:$G,'5.Manual Salary'!Y:Y) -> 0 | Q35: =SUMIF('3.Continue_Fixed Salary'!$H:$H,'10. Budget Load'!$G:$G,'3.Continue_Fixed Salary'!AH:AH)+SUMIF('4. Casual Salary'!$B:$B,'10. Budget Load'!$G:$G,'4. Casual Salary'!J:J)+SUMIF('4. Casual Salary'!$O:$O,'10. Budget Load'!$G:$G,'4. Casual Salary'!W:W)+SUMIF('5.Manual Salary'!$G:$G,'10. Budget Load'!$G:$G,'5.Manual Salary'!Z:Z) -> 0 | R35: =SUMIF('3.Continue_Fixed Salary'!$H:$H,'10. Budget Load'!$G:$G,'3.Continue_Fixed Salary'!AI:AI)+SUMIF('4. Casual Salary'!$B:$B,'10. Budget Load'!$G:$G,'4. Casual Salary'!K:K)+SUMIF('4. Casual Salary'!$O:$O,'10. Budget Load'!$G:$G,'4. Casual Salary'!X:X)+SUMIF('5.Manual Salary'!$G:$G,'10. Budget Load'!$G:$G,'5.Manual Salary'!AA:AA) -> 0 | S35: =SUMIF('3.Continue_Fixed Salary'!$H:$H,'10. Budget Load'!$G:$G,'3.Continue_Fixed Salary'!AJ:AJ)+SUMIF('4. Casual Salary'!$B:$B,'10. Budget Load'!$G:$G,'4. Casual Salary'!L:L)+SUMIF('4. Casual Salary'!$O:$O,'10. Budget Load'!$G:$G,'4. Casual Salary'!Y:Y)+SUMIF('5.Manual Salary'!$G:$G,'10. Budget Load'!$G:$G,'5.Manual Salary'!AB:AB) -> 0
V36: 20108 | W36: Academic Prac/Clinical Non Payroll
H37: Sub Total | J37: =SUBTOTAL(9,J30:J35) -> 0 | L37: =SUBTOTAL(9,L30:L35) -> 0 | M37: 0 | N37: 0 | O37: 0 | P37: 0 | Q37: 0 | R37: 0 | S37: 0 | V37: 20156 | W37: Academic On Costs Prac/Clinical
H39: TOTAL SALARIES | J39: =J27+J37 -> 0 | L39: =L27+L37 -> 0 | M39: 0 | N39: 0 | O39: 0 | P39: 0 | Q39: 0 | R39: 0 | S39: 0 | V39: 20201 | W39: Professional Salaries Continuing
V40: 20202 | W40: Professional Salaries Contract SGL
H41: EXPENSES | V41: 20204 | W41: Professional Stipends
V42: 20220 | W42: Professional Provision A/Leave
H43: Travel - Domestic | V43: 20221 | W43: Professional Provision LSL
C44: =CONCATENATE(D44,"-",E44,"-",F44,"-9999-",G44) ->  | D44: 97 | E44: ='1.Coversheet'!#REF! ->  | F44: =LEFT('1.Coversheet'!#REF!,3) ->  | G44: 41101 | H44: Travel - Accommodation Domestic | J44: =SUM(L44:S44) -> 0 | L44: =SUMIF('6.Non-Salary Costs'!$D:$D,'10. Budget Load'!$G:$G,'6.Non-Salary Costs'!F:F) -> 0 | M44: =SUMIF('6.Non-Salary Costs'!$D:$D,'10. Budget Load'!$G:$G,'6.Non-Salary Costs'!G:G) -> 0 | N44: =SUMIF('6.Non-Salary Costs'!$D:$D,'10. Budget Load'!$G:$G,'6.Non-Salary Costs'!H:H) -> 0 | O44: =SUMIF('6.Non-Salary Costs'!$D:$D,'10. Budget Load'!$G:$G,'6.Non-Salary Costs'!I:I) -> 0 | P44: =SUMIF('6.Non-Salary Costs'!$D:$D,'10. Budget Load'!$G:$G,'6.Non-Salary Costs'!J:J) -> 0 | Q44: =SUMIF('6.Non-Salary Costs'!$D:$D,'10. Budget Load'!$G:$G,'6.Non-Salary Costs'!K:K) -> 0 | R44: =SUMIF('6.Non-Salary Costs'!$D:$D,'10. Budget Load'!$G:$G,'6.Non-Salary Costs'!L:L) -> 0 | S44: =SUMIF('6.Non-Salary Costs'!$D:$D,'10. Budget Load'!$G:$G,'6.Non-Salary Costs'!M:M) -> 0 | V44: 20223 | W44: Professional Prov'n Parental Leave
D45: 97 | E45: ='1.Coversheet'!#REF! ->  | F45: =LEFT('1.Coversheet'!#REF!,3) ->  | G45: 41103 | H45: Trav - A/fares Dom | J45: 0 | L45: =SUMIF('6.Non-Salary Costs'!$D:$D,'10. Budget Load'!$G:$G,'6.Non-Salary Costs'!F:F) -> 0 | M45: =SUMIF('6.Non-Salary Costs'!$D:$D,'10. Budget Load'!$G:$G,'6.Non-Salary Costs'!G:G) -> 0 | N45: =SUMIF('6.Non-Salary Costs'!$D:$D,'10. Budget Load'!$G:$G,'6.Non-Salary Costs'!H:H) -> 0 | O45: =SUMIF('6.Non-Salary Costs'!$D:$D,'10. Budget Load'!$G:$G,'6.Non-Salary Costs'!I:I) -> 0 | P45: =SUMIF('6.Non-Salary Costs'!$D:$D,'10. Budget Load'!$G:$G,'6.Non-Salary Costs'!J:J) -> 0 | Q45: =SUMIF('6.Non-Salary Costs'!$D:$D,'10. Budget Load'!$G:$G,'6.Non-Salary Costs'!K:K) -> 0 | R45: =SUMIF('6.Non-Salary Costs'!$D:$D,'10. Budget Load'!$G:$G,'6.Non-Salary Costs'!L:L) -> 0 | S45: =SUMIF('6.Non-Salary Costs'!$D:$D,'10. Budget Load'!$G:$G,'6.Non-Salary Costs'!M:M) -> 0 | V45: 20230 | W45: Professional Workers Comp
D46: 97 | E46: ='1.Coversheet'!#REF! ->  | F46: =LEFT('1.Coversheet'!#REF!,3) ->  | G46: 41105 | H46: Travel - Car Hire Domestic | J46: 0 | L46: =SUMIF('6.Non-Salary Costs'!$D:$D,'10. Budget Load'!$G:$G,'6.Non-Salary Costs'!F:F) -> 0 | M46: =SUMIF('6.Non-Salary Costs'!$D:$D,'10. Budget Load'!$G:$G,'6.Non-Salary Costs'!G:G) -> 0 | N46: =SUMIF('6.Non-Salary Costs'!$D:$D,'10. Budget Load'!$G:$G,'6.Non-Salary Costs'!H:H) -> 0 | O46: =SUMIF('6.Non-Salary Costs'!$D:$D,'10. Budget Load'!$G:$G,'6.Non-Salary Costs'!I:I) -> 0 | P46: =SUMIF('6.Non-Salary Costs'!$D:$D,'10. Budget Load'!$G:$G,'6.Non-Salary Costs'!J:J) -> 0 | Q46: =SUMIF('6.Non-Salary Costs'!$D:$D,'10. Budget Load'!$G:$G,'6.Non-Salary Costs'!K:K) -> 0 | R46: =SUMIF('6.Non-Salary Costs'!$D:$D,'10. Budget Load'!$G:$G,'6.Non-Salary Costs'!L:L) -> 0 | S46: =SUMIF('6.Non-Salary Costs'!$D:$D,'10. Budget Load'!$G:$G,'6.Non-Salary Costs'!M:M) -> 0 | V46: 20241 | W46: Professional Voluntary Redundancy & Early Retirement
D47: 97 | E47: ='1.Coversheet'!#REF! ->  | F47: =LEFT('1.Coversheet'!#REF!,3) ->  | G47: 41109 | H47: Travel - Car Allowance and Reimbursement | J47: 0 | L47: =SUMIF('6.Non-Salary Costs'!$D:$D,'10. Budget Load'!$G:$G,'6.Non-Salary Costs'!F:F) -> 0 | M47: =SUMIF('6.Non-Salary Costs'!$D:$D,'10. Budget Load'!$G:$G,'6.Non-Salary Costs'!G:G) -> 0 | N47: =SUMIF('6.Non-Salary Costs'!$D:$D,'10. Budget Load'!$G:$G,'6.Non-Salary Costs'!H:H) -> 0 | O47: =SUMIF('6.Non-Salary Costs'!$D:$D,'10. Budget Load'!$G:$G,'6.Non-Salary Costs'!I:I) -> 0 | P47: =SUMIF('6.Non-Salary Costs'!$D:$D,'10. Budget Load'!$G:$G,'6.Non-Salary Costs'!J:J) -> 0 | Q47: =SUMIF('6.Non-Salary Costs'!$D:$D,'10. Budget Load'!$G:$G,'6.Non-Salary Costs'!K:K) -> 0 | R47: =SUMIF('6.Non-Salary Costs'!$D:$D,'10. Budget Load'!$G:$G,'6.Non-Salary Costs'!L:L) -> 0 | S47: =SUMIF('6.Non-Salary Costs'!$D:$D,'10. Budget Load'!$G:$G,'6.Non-Salary Costs'!M:M) -> 0 | V47: 20251 | W47: Professional OnCosts Continuing
D48: 97 | E48: ='1.Coversheet'!#REF! ->  | F48: =LEFT('1.Coversheet'!#REF!,3) ->  | G48: 41111 | H48: Travel - Taxi Expenses Domestic | J48: 0 | L48: =SUMIF('6.Non-Salary Costs'!$D:$D,'10. Budget Load'!$G:$G,'6.Non-Salary Costs'!F:F) -> 0 | M48: =SUMIF('6.Non-Salary Costs'!$D:$D,'10. Budget Load'!$G:$G,'6.Non-Salary Costs'!G:G) -> 0 | N48: =SUMIF('6.Non-Salary Costs'!$D:$D,'10. Budget Load'!$G:$G,'6.Non-Salary Costs'!H:H) -> 0 | O48: =SUMIF('6.Non-Salary Costs'!$D:$D,'10. Budget Load'!$G:$G,'6.Non-Salary Costs'!I:I) -> 0 | P48: =SUMIF('6.Non-Salary Costs'!$D:$D,'10. Budget Load'!$G:$G,'6.Non-Salary Costs'!J:J) -> 0 | Q48: =SUMIF('6.Non-Salary Costs'!$D:$D,'10. Budget Load'!$G:$G,'6.Non-Salary Costs'!K:K) -> 0 | R48: =SUMIF('6.Non-Salary Costs'!$D:$D,'10. Budget Load'!$G:$G,'6.Non-Salary Costs'!L:L) -> 0 | S48: =SUMIF('6.Non-Salary Costs'!$D:$D,'10. Budget Load'!$G:$G,'6.Non-Salary Costs'!M:M) -> 0 | V48: 20252 | W48: Professional OnCosts Contract
C49: =CONCATENATE(D49,"-",E49,"-",F49,"-9999-",G49) ->  | D49: 97 | E49: ='1.Coversheet'!#REF! ->  | F49: =LEFT('1.Coversheet'!#REF!,3) ->  | G49: 41115 | H49: Travel - Subsistence Domestic | J49: 0 | L49: =SUMIF('6.Non-Salary Costs'!$D:$D,'10. Budget Load'!$G:$G,'6.Non-Salary Costs'!F:F) -> 0 | M49: =SUMIF('6.Non-Salary Costs'!$D:$D,'10. Budget Load'!$G:$G,'6.Non-Salary Costs'!G:G) -> 0 | N49: =SUMIF('6.Non-Salary Costs'!$D:$D,'10. Budget Load'!$G:$G,'6.Non-Salary Costs'!H:H) -> 0 | O49: =SUMIF('6.Non-Salary Costs'!$D:$D,'10. Budget Load'!$G:$G,'6.Non-Salary Costs'!I:I) -> 0 | P49: =SUMIF('6.Non-Salary Costs'!$D:$D,'10. Budget Load'!$G:$G,'6.Non-Salary Costs'!J:J) -> 0 | Q49: =SUMIF('6.Non-Salary Costs'!$D:$D,'10. Budget Load'!$G:$G,'6.Non-Salary Costs'!K:K) -> 0 | R49: =SUMIF('6.Non-Salary Costs'!$D:$D,'10. Budget Load'!$G:$G,'6.Non-Salary Costs'!L:L) -> 0 | S49: =SUMIF('6.Non-Salary Costs'!$D:$D,'10. Budget Load'!$G:$G,'6.Non-Salary Costs'!M:M) -> 0 | V49: 20252 | W49: Professional OnCosts Contract
D50: 97 | E50: ='1.Coversheet'!#REF! ->  | F50: =LEFT('1.Coversheet'!#REF!,3) ->  | G50: 41117 | H50: Travel - Other Domestic | J50: 0 | L50: =SUMIF('6.Non-Salary Costs'!$D:$D,'10. Budget Load'!$G:$G,'6.Non-Salary Costs'!F:F) -> 0 | M50: =SUMIF('6.Non-Salary Costs'!$D:$D,'10. Budget Load'!$G:$G,'6.Non-Salary Costs'!G:G) -> 0 | N50: =SUMIF('6.Non-Salary Costs'!$D:$D,'10. Budget Load'!$G:$G,'6.Non-Salary Costs'!H:H) -> 0 | O50: =SUMIF('6.Non-Salary Costs'!$D:$D,'10. Budget Load'!$G:$G,'6.Non-Salary Costs'!I:I) -> 0 | P50: =SUMIF('6.Non-Salary Costs'!$D:$D,'10. Budget Load'!$G:$G,'6.Non-Salary Costs'!J:J) -> 0 | Q50: =SUMIF('6.Non-Salary Costs'!$D:$D,'10. Budget Load'!$G:$G,'6.Non-Salary Costs'!K:K) -> 0 | R50: =SUMIF('6.Non-Salary Costs'!$D:$D,'10. Budget Load'!$G:$G,'6.Non-Salary Costs'!L:L) -> 0 | S50: =SUMIF('6.Non-Salary Costs'!$D:$D,'10. Budget Load'!$G:$G,'6.Non-Salary Costs'!M:M) -> 0 | V50: 20295 | W50: Professional Internal Salary Transfer
D51: 97 | E51: ='1.Coversheet'!#REF! ->  | F51: =LEFT('1.Coversheet'!#REF!,3) ->  | G51: 41131 | H51: Motor Vehicle Expenses | J51: 0 | L51: =SUMIF('6.Non-Salary Costs'!$D:$D,'10. Budget Load'!$G:$G,'6.Non-Salary Costs'!F:F) -> 0 | M51: =SUMIF('6.Non-Salary Costs'!$D:$D,'10. Budget Load'!$G:$G,'6.Non-Salary Costs'!G:G) -> 0 | N51: =SUMIF('6.Non-Salary Costs'!$D:$D,'10. Budget Load'!$G:$G,'6.Non-Salary Costs'!H:H) -> 0 | O51: =SUMIF('6.Non-Salary Costs'!$D:$D,'10. Budget Load'!$G:$G,'6.Non-Salary Costs'!I:I) -> 0 | P51: =SUMIF('6.Non-Salary Costs'!$D:$D,'10. Budget Load'!$G:$G,'6.Non-Salary Costs'!J:J) -> 0 | Q51: =SUMIF('6.Non-Salary Costs'!$D:$D,'10. Budget Load'!$G:$G,'6.Non-Salary Costs'!K:K) -> 0 | R51: =SUMIF('6.Non-Salary Costs'!$D:$D,'10. Budget Load'!$G:$G,'6.Non-Salary Costs'!L:L) -> 0 | S51: =SUMIF('6.Non-Salary Costs'!$D:$D,'10. Budget Load'!$G:$G,'6.Non-Salary Costs'!M:M) -> 0
V52: 20203 | W52: Professional Salaries Casual
J53: =SUBTOTAL(9,J44:J51) -> 0 | L53: =SUBTOTAL(9,L44:L51) -> 0 | M53: 0 | N53: 0 | O53: 0 | P53: 0 | Q53: 0 | R53: =SUBTOTAL(9,R44:R51) -> 0 | S53: 0 | V53: 20207 | W53: Professional Employment Agencies
V54: 20215 | W54: Professional Honoraria
H55: Travel - International | V55: 20253 | W55: Professional OnCosts Casual
C56: =CONCATENATE(D56,"-",E56,"-",F56,"-9999-",G56) ->  | D56: 97 | E56: ='1.Coversheet'!#REF! ->  | F56: =LEFT('1.Coversheet'!#REF!,3) ->  | G56: 41102 | H56: Travel - Accommodation International | J56: =SUM(L56:S56) -> 0 | L56: =SUMIF('6.Non-Salary Costs'!$D:$D,'10. Budget Load'!$G:$G,'6.Non-Salary Costs'!F:F) -> 0 | M56: =SUMIF('6.Non-Salary Costs'!$D:$D,'10. Budget Load'!$G:$G,'6.Non-Salary Costs'!G:G) -> 0 | N56: =SUMIF('6.Non-Salary Costs'!$D:$D,'10. Budget Load'!$G:$G,'6.Non-Salary Costs'!H:H) -> 0 | O56: =SUMIF('6.Non-Salary Costs'!$D:$D,'10. Budget Load'!$G:$G,'6.Non-Salary Costs'!I:I) -> 0 | P56: =SUMIF('6.Non-Salary Costs'!$D:$D,'10. Budget Load'!$G:$G,'6.Non-Salary Costs'!J:J) -> 0 | Q56: =SUMIF('6.Non-Salary Costs'!$D:$D,'10. Budget Load'!$G:$G,'6.Non-Salary Costs'!K:K) -> 0 | R56: =SUMIF('6.Non-Salary Costs'!$D:$D,'10. Budget Load'!$G:$G,'6.Non-Salary Costs'!L:L) -> 0 | S56: =SUMIF('6.Non-Salary Costs'!$D:$D,'10. Budget Load'!$G:$G,'6.Non-Salary Costs'!M:M) -> 0
D57: 97 | E57: ='1.Coversheet'!#REF! ->  | F57: =LEFT('1.Coversheet'!#REF!,3) ->  | G57: 41104 | H57: Travel - Airfares International | J57: 0 | L57: =SUMIF('6.Non-Salary Costs'!$D:$D,'10. Budget Load'!$G:$G,'6.Non-Salary Costs'!F:F) -> 0 | M57: =SUMIF('6.Non-Salary Costs'!$D:$D,'10. Budget Load'!$G:$G,'6.Non-Salary Costs'!G:G) -> 0 | N57: =SUMIF('6.Non-Salary Costs'!$D:$D,'10. Budget Load'!$G:$G,'6.Non-Salary Costs'!H:H) -> 0 | O57: =SUMIF('6.Non-Salary Costs'!$D:$D,'10. Budget Load'!$G:$G,'6.Non-Salary Costs'!I:I) -> 0 | P57: =SUMIF('6.Non-Salary Costs'!$D:$D,'10. Budget Load'!$G:$G,'6.Non-Salary Costs'!J:J) -> 0 | Q57: =SUMIF('6.Non-Salary Costs'!$D:$D,'10. Budget Load'!$G:$G,'6.Non-Salary Costs'!K:K) -> 0 | R57: =SUMIF('6.Non-Salary Costs'!$D:$D,'10. Budget Load'!$G:$G,'6.Non-Salary Costs'!L:L) -> 0 | S57: =SUMIF('6.Non-Salary Costs'!$D:$D,'10. Budget Load'!$G:$G,'6.Non-Salary Costs'!M:M) -> 0 | V57: 42001 | W57: Advertising
D58: 97 | E58: ='1.Coversheet'!#REF! ->  | F58: =LEFT('1.Coversheet'!#REF!,3) ->  | G58: 41106 | H58: Travel - Car Hire International | J58: 0 | L58: =SUMIF('6.Non-Salary Costs'!$D:$D,'10. Budget Load'!$G:$G,'6.Non-Salary Costs'!F:F) -> 0 | M58: =SUMIF('6.Non-Salary Costs'!$D:$D,'10. Budget Load'!$G:$G,'6.Non-Salary Costs'!G:G) -> 0 | N58: =SUMIF('6.Non-Salary Costs'!$D:$D,'10. Budget Load'!$G:$G,'6.Non-Salary Costs'!H:H) -> 0 | O58: =SUMIF('6.Non-Salary Costs'!$D:$D,'10. Budget Load'!$G:$G,'6.Non-Salary Costs'!I:I) -> 0 | P58: =SUMIF('6.Non-Salary Costs'!$D:$D,'10. Budget Load'!$G:$G,'6.Non-Salary Costs'!J:J) -> 0 | Q58: =SUMIF('6.Non-Salary Costs'!$D:$D,'10. Budget Load'!$G:$G,'6.Non-Salary Costs'!K:K) -> 0 | R58: =SUMIF('6.Non-Salary Costs'!$D:$D,'10. Budget Load'!$G:$G,'6.Non-Salary Costs'!L:L) -> 0 | S58: =SUMIF('6.Non-Salary Costs'!$D:$D,'10. Budget Load'!$G:$G,'6.Non-Salary Costs'!M:M) -> 0 | V58: 42002 | W58: Promotions & Publicity
D59: 97 | E59: ='1.Coversheet'!#REF! ->  | F59: =LEFT('1.Coversheet'!#REF!,3) ->  | G59: 41108 | H59: Travel - Advance International | J59: 0 | L59: =SUMIF('6.Non-Salary Costs'!$D:$D,'10. Budget Load'!$G:$G,'6.Non-Salary Costs'!F:F) -> 0 | M59: =SUMIF('6.Non-Salary Costs'!$D:$D,'10. Budget Load'!$G:$G,'6.Non-Salary Costs'!G:G) -> 0 | N59: =SUMIF('6.Non-Salary Costs'!$D:$D,'10. Budget Load'!$G:$G,'6.Non-Salary Costs'!H:H) -> 0 | O59: =SUMIF('6.Non-Salary Costs'!$D:$D,'10. Budget Load'!$G:$G,'6.Non-Salary Costs'!I:I) -> 0 | P59: =SUMIF('6.Non-Salary Costs'!$D:$D,'10. Budget Load'!$G:$G,'6.Non-Salary Costs'!J:J) -> 0 | Q59: =SUMIF('6.Non-Salary Costs'!$D:$D,'10. Budget Load'!$G:$G,'6.Non-Salary Costs'!K:K) -> 0 | R59: =SUMIF('6.Non-Salary Costs'!$D:$D,'10. Budget Load'!$G:$G,'6.Non-Salary Costs'!L:L) -> 0 | S59: =SUMIF('6.Non-Salary Costs'!$D:$D,'10. Budget Load'!$G:$G,'6.Non-Salary Costs'!M:M) -> 0 | V59: 42003 | W59: Sponsorship Outbound
G60: 41112 | H60: Travel - Taxi Expenses International | J60: 0 | L60: =SUMIF('6.Non-Salary Costs'!$D:$D,'10. Budget Load'!$G:$G,'6.Non-Salary Costs'!F:F) -> 0 | M60: =SUMIF('6.Non-Salary Costs'!$D:$D,'10. Budget Load'!$G:$G,'6.Non-Salary Costs'!G:G) -> 0 | N60: =SUMIF('6.Non-Salary Costs'!$D:$D,'10. Budget Load'!$G:$G,'6.Non-Salary Costs'!H:H) -> 0 | O60: =SUMIF('6.Non-Salary Costs'!$D:$D,'10. Budget Load'!$G:$G,'6.Non-Salary Costs'!I:I) -> 0 | P60: =SUMIF('6.Non-Salary Costs'!$D:$D,'10. Budget Load'!$G:$G,'6.Non-Salary Costs'!J:J) -> 0 | Q60: =SUMIF('6.Non-Salary Costs'!$D:$D,'10. Budget Load'!$G:$G,'6.Non-Salary Costs'!K:K) -> 0 | R60: =SUMIF('6.Non-Salary Costs'!$D:$D,'10. Budget Load'!$G:$G,'6.Non-Salary Costs'!L:L) -> 0 | S60: =SUMIF('6.Non-Salary Costs'!$D:$D,'10. Budget Load'!$G:$G,'6.Non-Salary Costs'!M:M) -> 0
D61: 97 | E61: ='1.Coversheet'!#REF! ->  | F61: =LEFT('1.Coversheet'!#REF!,3) ->  | G61: 41116 | H61: Travel - Subsistence International | J61: 0 | L61: =SUMIF('6.Non-Salary Costs'!$D:$D,'10. Budget Load'!$G:$G,'6.Non-Salary Costs'!F:F) -> 0 | M61: =SUMIF('6.Non-Salary Costs'!$D:$D,'10. Budget Load'!$G:$G,'6.Non-Salary Costs'!G:G) -> 0 | N61: =SUMIF('6.Non-Salary Costs'!$D:$D,'10. Budget Load'!$G:$G,'6.Non-Salary Costs'!H:H) -> 0 | O61: =SUMIF('6.Non-Salary Costs'!$D:$D,'10. Budget Load'!$G:$G,'6.Non-Salary Costs'!I:I) -> 0 | P61: =SUMIF('6.Non-Salary Costs'!$D:$D,'10. Budget Load'!$G:$G,'6.Non-Salary Costs'!J:J) -> 0 | Q61: =SUMIF('6.Non-Salary Costs'!$D:$D,'10. Budget Load'!$G:$G,'6.Non-Salary Costs'!K:K) -> 0 | R61: =SUMIF('6.Non-Salary Costs'!$D:$D,'10. Budget Load'!$G:$G,'6.Non-Salary Costs'!L:L) -> 0 | S61: =SUMIF('6.Non-Salary Costs'!$D:$D,'10. Budget Load'!$G:$G,'6.Non-Salary Costs'!M:M) -> 0 | V61: 42005 | W61: Merchandise & Goods Purchased for Resale
D62: 97 | E62: ='1.Coversheet'!#REF! ->  | F62: =LEFT('1.Coversheet'!#REF!,3) ->  | G62: 41118 | H62: Travel - Other International | J62: 0 | L62: =SUMIF('6.Non-Salary Costs'!$D:$D,'10. Budget Load'!$G:$G,'6.Non-Salary Costs'!F:F) -> 0 | M62: =SUMIF('6.Non-Salary Costs'!$D:$D,'10. Budget Load'!$G:$G,'6.Non-Salary Costs'!G:G) -> 0 | N62: =SUMIF('6.Non-Salary Costs'!$D:$D,'10. Budget Load'!$G:$G,'6.Non-Salary Costs'!H:H) -> 0 | O62: =SUMIF('6.Non-Salary Costs'!$D:$D,'10. Budget Load'!$G:$G,'6.Non-Salary Costs'!I:I) -> 0 | P62: =SUMIF('6.Non-Salary Costs'!$D:$D,'10. Budget Load'!$G:$G,'6.Non-Salary Costs'!J:J) -> 0 | Q62: =SUMIF('6.Non-Salary Costs'!$D:$D,'10. Budget Load'!$G:$G,'6.Non-Salary Costs'!K:K) -> 0 | R62: =SUMIF('6.Non-Salary Costs'!$D:$D,'10. Budget Load'!$G:$G,'6.Non-Salary Costs'!L:L) -> 0 | S62: =SUMIF('6.Non-Salary Costs'!$D:$D,'10. Budget Load'!$G:$G,'6.Non-Salary Costs'!M:M) -> 0
V63: 43201 | W63: Graduation Expenses
H64: Sub Total | J64: =SUBTOTAL(9,J56:J62) -> 0 | L64: =SUBTOTAL(9,L56:L62) -> 0 | M64: 0 | N64: 0 | O64: 0 | P64: 0 | Q64: 0 | R64: =SUBTOTAL(9,R56:R62) -> 0 | S64: 0 | V64: 48301 | W64: Employee Conference and Course Registration
V65: 48302 | W65: Meeting Expenses
H66: Repairs & Maintenance | V66: 48311 | W66: Entertainment - Staff FBT
C67: =CONCATENATE(D67,"-",E67,"-",F67,"-9999-",G67) ->  | D67: 97 | E67: ='1.Coversheet'!#REF! ->  | F67: =LEFT('1.Coversheet'!#REF!,3) ->  | G67: 37105 | H67: =IF(ISERROR(VLOOKUP(G67,$V$18:$W$262,2,FALSE)),"Enter Natural Account code",VLOOKUP(G67,$V$18:$W$262,2,FALSE)) -> Maintenance-Buildings-Electrical | J67: =SUM(L67:S67) -> 0 | L67: =SUMIF('6.Non-Salary Costs'!$D:$D,'10. Budget Load'!$G:$G,'6.Non-Salary Costs'!F:F) -> 0 | M67: =SUMIF('6.Non-Salary Costs'!$D:$D,'10. Budget Load'!$G:$G,'6.Non-Salary Costs'!G:G) -> 0 | N67: =SUMIF('6.Non-Salary Costs'!$D:$D,'10. Budget Load'!$G:$G,'6.Non-Salary Costs'!H:H) -> 0 | O67: =SUMIF('6.Non-Salary Costs'!$D:$D,'10. Budget Load'!$G:$G,'6.Non-Salary Costs'!I:I) -> 0 | P67: =SUMIF('6.Non-Salary Costs'!$D:$D,'10. Budget Load'!$G:$G,'6.Non-Salary Costs'!J:J) -> 0 | Q67: =SUMIF('6.Non-Salary Costs'!$D:$D,'10. Budget Load'!$G:$G,'6.Non-Salary Costs'!K:K) -> 0 | R67: =SUMIF('6.Non-Salary Costs'!$D:$D,'10. Budget Load'!$G:$G,'6.Non-Salary Costs'!L:L) -> 0 | S67: =SUMIF('6.Non-Salary Costs'!$D:$D,'10. Budget Load'!$G:$G,'6.Non-Salary Costs'!M:M) -> 0 | V67: 48312 | W67: Entertainment - NonStaff NoFBT
D68: 97 | E68: ='1.Coversheet'!#REF! ->  | F68: =LEFT('1.Coversheet'!#REF!,3) ->  | G68: 37109 | H68: Maintenance-Equip & Mach-HVAC ad hoc & break down | J68: 0 | L68: =SUMIF('6.Non-Salary Costs'!$D:$D,'10. Budget Load'!$G:$G,'6.Non-Salary Costs'!F:F) -> 0 | M68: =SUMIF('6.Non-Salary Costs'!$D:$D,'10. Budget Load'!$G:$G,'6.Non-Salary Costs'!G:G) -> 0 | N68: =SUMIF('6.Non-Salary Costs'!$D:$D,'10. Budget Load'!$G:$G,'6.Non-Salary Costs'!H:H) -> 0 | O68: =SUMIF('6.Non-Salary Costs'!$D:$D,'10. Budget Load'!$G:$G,'6.Non-Salary Costs'!I:I) -> 0 | P68: =SUMIF('6.Non-Salary Costs'!$D:$D,'10. Budget Load'!$G:$G,'6.Non-Salary Costs'!J:J) -> 0 | Q68: =SUMIF('6.Non-Salary Costs'!$D:$D,'10. Budget Load'!$G:$G,'6.Non-Salary Costs'!K:K) -> 0 | R68: =SUMIF('6.Non-Salary Costs'!$D:$D,'10. Budget Load'!$G:$G,'6.Non-Salary Costs'!L:L) -> 0 | S68: =SUMIF('6.Non-Salary Costs'!$D:$D,'10. Budget Load'!$G:$G,'6.Non-Salary Costs'!M:M) -> 0
V69: 47140 | W69: General Consultancy
H70: Sub Total | J70: =SUBTOTAL(9,J67:J68) -> 0 | L70: =SUBTOTAL(9,L67:L68) -> 0 | M70: 0 | N70: 0 | O70: 0 | P70: 0 | Q70: 0 | R70: 0 | S70: 0
V71: 38101 | W71: Depreciation-Furn & Fittings >= $3000
H72: Shared Grants & Consultancy | V72: 38102 | W72: Depreciation-Computer Equipment >=$3000
C73: =CONCATENATE(D73,"-",E73,"-",F73,"-9999-",G73) ->  | D73: 97 | E73: ='1.Coversheet'!#REF! ->  | F73: =LEFT('1.Coversheet'!#REF!,3) ->  | G73: 48503 | H73: Shared Grants - Non HEP | J73: =SUM(L73:S73) -> 0 | L73: =SUMIF('6.Non-Salary Costs'!$D:$D,'10. Budget Load'!$G:$G,'6.Non-Salary Costs'!F:F) -> 0 | M73: =SUMIF('6.Non-Salary Costs'!$D:$D,'10. Budget Load'!$G:$G,'6.Non-Salary Costs'!G:G) -> 0 | N73: =SUMIF('6.Non-Salary Costs'!$D:$D,'10. Budget Load'!$G:$G,'6.Non-Salary Costs'!H:H) -> 0 | O73: =SUMIF('6.Non-Salary Costs'!$D:$D,'10. Budget Load'!$G:$G,'6.Non-Salary Costs'!I:I) -> 0 | P73: =SUMIF('6.Non-Salary Costs'!$D:$D,'10. Budget Load'!$G:$G,'6.Non-Salary Costs'!J:J) -> 0 | Q73: =SUMIF('6.Non-Salary Costs'!$D:$D,'10. Budget Load'!$G:$G,'6.Non-Salary Costs'!K:K) -> 0 | R73: =SUMIF('6.Non-Salary Costs'!$D:$D,'10. Budget Load'!$G:$G,'6.Non-Salary Costs'!L:L) -> 0 | S73: =SUMIF('6.Non-Salary Costs'!$D:$D,'10. Budget Load'!$G:$G,'6.Non-Salary Costs'!M:M) -> 0 | V73: 38103 | W73: Depreciation-Equip & Machinery >=$3000
D74: 97 | E74: ='1.Coversheet'!#REF! ->  | F74: =LEFT('1.Coversheet'!#REF!,3) ->  | G74: 47141 | H74: Research Shared Grant - HEP | J74: 0 | L74: =SUMIF('6.Non-Salary Costs'!$D:$D,'10. Budget Load'!$G:$G,'6.Non-Salary Costs'!F:F) -> 0 | M74: =SUMIF('6.Non-Salary Costs'!$D:$D,'10. Budget Load'!$G:$G,'6.Non-Salary Costs'!G:G) -> 0 | N74: =SUMIF('6.Non-Salary Costs'!$D:$D,'10. Budget Load'!$G:$G,'6.Non-Salary Costs'!H:H) -> 0 | O74: =SUMIF('6.Non-Salary Costs'!$D:$D,'10. Budget Load'!$G:$G,'6.Non-Salary Costs'!I:I) -> 0 | P74: =SUMIF('6.Non-Salary Costs'!$D:$D,'10. Budget Load'!$G:$G,'6.Non-Salary Costs'!J:J) -> 0 | Q74: =SUMIF('6.Non-Salary Costs'!$D:$D,'10. Budget Load'!$G:$G,'6.Non-Salary Costs'!K:K) -> 0 | R74: =SUMIF('6.Non-Salary Costs'!$D:$D,'10. Budget Load'!$G:$G,'6.Non-Salary Costs'!L:L) -> 0 | S74: =SUMIF('6.Non-Salary Costs'!$D:$D,'10. Budget Load'!$G:$G,'6.Non-Salary Costs'!M:M) -> 0 | V74: 38104 | W74: Depreciation-Motor Vehicles >= $3000
C75: =CONCATENATE(D75,"-",E75,"-",F75,"-9999-",G75) ->  | D75: 97 | E75: ='1.Coversheet'!#REF! ->  | F75: =LEFT('1.Coversheet'!#REF!,3) ->  | G75: 47140 | H75: =IF(ISERROR(VLOOKUP(G75,$V$18:$W$262,2,FALSE)),"Enter Natural Account code",VLOOKUP(G75,$V$18:$W$262,2,FALSE)) -> General Consultancy | J75: =SUM(L75:S75) -> 0 | L75: =SUMIF('6.Non-Salary Costs'!$D:$D,'10. Budget Load'!$G:$G,'6.Non-Salary Costs'!F:F) -> 0 | M75: =SUMIF('6.Non-Salary Costs'!$D:$D,'10. Budget Load'!$G:$G,'6.Non-Salary Costs'!G:G) -> 0 | N75: =SUMIF('6.Non-Salary Costs'!$D:$D,'10. Budget Load'!$G:$G,'6.Non-Salary Costs'!H:H) -> 0 | O75: =SUMIF('6.Non-Salary Costs'!$D:$D,'10. Budget Load'!$G:$G,'6.Non-Salary Costs'!I:I) -> 0 | P75: =SUMIF('6.Non-Salary Costs'!$D:$D,'10. Budget Load'!$G:$G,'6.Non-Salary Costs'!J:J) -> 0 | Q75: =SUMIF('6.Non-Salary Costs'!$D:$D,'10. Budget Load'!$G:$G,'6.Non-Salary Costs'!K:K) -> 0 | R75: =SUMIF('6.Non-Salary Costs'!$D:$D,'10. Budget Load'!$G:$G,'6.Non-Salary Costs'!L:L) -> 0 | S75: =SUMIF('6.Non-Salary Costs'!$D:$D,'10. Budget Load'!$G:$G,'6.Non-Salary Costs'!M:M) -> 0
V76: 40201 | W76: IT Hardware Purchase < $3,000
H77: Sub Total | J77: =SUBTOTAL(9,J73:J75) -> 0 | L77: =SUBTOTAL(9,L73:L75) -> 0 | M77: 0 | N77: 0 | O77: 0 | P77: 0 | Q77: 0 | R77: 0 | S77: 0 | V77: 40202 | W77: IT Hardware Maintenance
H79: Conferences, Meetings & Entertainment | V79: 45101 | W79: Library Acquisitions Print Books
C80: =CONCATENATE(D80,"-",E80,"-",F80,"-9999-",G80) ->  | D80: 97 | E80: ='1.Coversheet'!#REF! ->  | F80: =LEFT('1.Coversheet'!#REF!,3) ->  | G80: 48301 | H80: =IF(ISERROR(VLOOKUP(G80,$V$18:$W$262,2,FALSE)),"Enter Natural Account code",VLOOKUP(G80,$V$18:$W$262,2,FALSE)) -> Employee Conference and Course Registration | J80: =SUM(L80:S80) -> 0 | L80: =SUMIF('6.Non-Salary Costs'!$D:$D,'10. Budget Load'!$G:$G,'6.Non-Salary Costs'!F:F) -> 0 | M80: =SUMIF('6.Non-Salary Costs'!$D:$D,'10. Budget Load'!$G:$G,'6.Non-Salary Costs'!G:G) -> 0 | N80: =SUMIF('6.Non-Salary Costs'!$D:$D,'10. Budget Load'!$G:$G,'6.Non-Salary Costs'!H:H) -> 0 | O80: =SUMIF('6.Non-Salary Costs'!$D:$D,'10. Budget Load'!$G:$G,'6.Non-Salary Costs'!I:I) -> 0 | P80: =SUMIF('6.Non-Salary Costs'!$D:$D,'10. Budget Load'!$G:$G,'6.Non-Salary Costs'!J:J) -> 0 | Q80: =SUMIF('6.Non-Salary Costs'!$D:$D,'10. Budget Load'!$G:$G,'6.Non-Salary Costs'!K:K) -> 0 | R80: =SUMIF('6.Non-Salary Costs'!$D:$D,'10. Budget Load'!$G:$G,'6.Non-Salary Costs'!L:L) -> 0 | S80: =SUMIF('6.Non-Salary Costs'!$D:$D,'10. Budget Load'!$G:$G,'6.Non-Salary Costs'!M:M) -> 0 | V80: 45103 | W80: Library Book Binding
D81: 97 | E81: ='1.Coversheet'!#REF! ->  | F81: =LEFT('1.Coversheet'!#REF!,3) ->  | G81: 48302 | H81: =IF(ISERROR(VLOOKUP(G81,$V$18:$W$262,2,FALSE)),"Enter Natural Account code",VLOOKUP(G81,$V$18:$W$262,2,FALSE)) -> Meeting Expenses | J81: 0 | L81: =SUMIF('6.Non-Salary Costs'!$D:$D,'10. Budget Load'!$G:$G,'6.Non-Salary Costs'!F:F) -> 0 | M81: =SUMIF('6.Non-Salary Costs'!$D:$D,'10. Budget Load'!$G:$G,'6.Non-Salary Costs'!G:G) -> 0 | N81: =SUMIF('6.Non-Salary Costs'!$D:$D,'10. Budget Load'!$G:$G,'6.Non-Salary Costs'!H:H) -> 0 | O81: =SUMIF('6.Non-Salary Costs'!$D:$D,'10. Budget Load'!$G:$G,'6.Non-Salary Costs'!I:I) -> 0 | P81: =SUMIF('6.Non-Salary Costs'!$D:$D,'10. Budget Load'!$G:$G,'6.Non-Salary Costs'!J:J) -> 0 | Q81: =SUMIF('6.Non-Salary Costs'!$D:$D,'10. Budget Load'!$G:$G,'6.Non-Salary Costs'!K:K) -> 0 | R81: =SUMIF('6.Non-Salary Costs'!$D:$D,'10. Budget Load'!$G:$G,'6.Non-Salary Costs'!L:L) -> 0 | S81: =SUMIF('6.Non-Salary Costs'!$D:$D,'10. Budget Load'!$G:$G,'6.Non-Salary Costs'!M:M) -> 0 | V81: 45121 | W81: Library Acquisitions Electronic Books
V82: 48205 | W82: Minor Equip Other < $3,000
H83: Sub Total | J83: =SUBTOTAL(9,J80:J81) -> 0 | L83: =SUBTOTAL(9,L80:L81) -> 0 | M83: 0 | N83: 0 | O83: 0 | P83: 0 | Q83: 0 | R83: 0 | S83: 0 | V83: 57601 | W83: Furniture & Fittings-at cost
V84: 57602 | W84: Furniture & Fittings-Accumulated Depreciation
H85: Information Technology | V85: 37103 | W85: Maintenance-Buildings-Plumbing
C86: =CONCATENATE(D86,"-",E86,"-",F86,"-9999-",G86) ->  | D86: 97 | E86: ='1.Coversheet'!#REF! ->  | F86: =LEFT('1.Coversheet'!#REF!,3) ->  | G86: 40101 | H86: IT Software | J86: =SUM(L86:S86) -> 0 | L86: =SUMIF('6.Non-Salary Costs'!$D:$D,'10. Budget Load'!$G:$G,'6.Non-Salary Costs'!F:F) -> 0 | M86: =SUMIF('6.Non-Salary Costs'!$D:$D,'10. Budget Load'!$G:$G,'6.Non-Salary Costs'!G:G) -> 0 | N86: =SUMIF('6.Non-Salary Costs'!$D:$D,'10. Budget Load'!$G:$G,'6.Non-Salary Costs'!H:H) -> 0 | O86: =SUMIF('6.Non-Salary Costs'!$D:$D,'10. Budget Load'!$G:$G,'6.Non-Salary Costs'!I:I) -> 0 | P86: =SUMIF('6.Non-Salary Costs'!$D:$D,'10. Budget Load'!$G:$G,'6.Non-Salary Costs'!J:J) -> 0 | Q86: =SUMIF('6.Non-Salary Costs'!$D:$D,'10. Budget Load'!$G:$G,'6.Non-Salary Costs'!K:K) -> 0 | R86: =SUMIF('6.Non-Salary Costs'!$D:$D,'10. Budget Load'!$G:$G,'6.Non-Salary Costs'!L:L) -> 0 | S86: =SUMIF('6.Non-Salary Costs'!$D:$D,'10. Budget Load'!$G:$G,'6.Non-Salary Costs'!M:M) -> 0 | V86: 37104 | W86: Maintenance-Buildings-Painting
D87: 97 | E87: ='1.Coversheet'!#REF! ->  | F87: =LEFT('1.Coversheet'!#REF!,3) ->  | G87: 40102 | H87: IT Software Maintenance | J87: 0 | L87: =SUMIF('6.Non-Salary Costs'!$D:$D,'10. Budget Load'!$G:$G,'6.Non-Salary Costs'!F:F) -> 0 | M87: =SUMIF('6.Non-Salary Costs'!$D:$D,'10. Budget Load'!$G:$G,'6.Non-Salary Costs'!G:G) -> 0 | N87: =SUMIF('6.Non-Salary Costs'!$D:$D,'10. Budget Load'!$G:$G,'6.Non-Salary Costs'!H:H) -> 0 | O87: =SUMIF('6.Non-Salary Costs'!$D:$D,'10. Budget Load'!$G:$G,'6.Non-Salary Costs'!I:I) -> 0 | P87: =SUMIF('6.Non-Salary Costs'!$D:$D,'10. Budget Load'!$G:$G,'6.Non-Salary Costs'!J:J) -> 0 | Q87: =SUMIF('6.Non-Salary Costs'!$D:$D,'10. Budget Load'!$G:$G,'6.Non-Salary Costs'!K:K) -> 0 | R87: =SUMIF('6.Non-Salary Costs'!$D:$D,'10. Budget Load'!$G:$G,'6.Non-Salary Costs'!L:L) -> 0 | S87: =SUMIF('6.Non-Salary Costs'!$D:$D,'10. Budget Load'!$G:$G,'6.Non-Salary Costs'!M:M) -> 0 | V87: 37105 | W87: Maintenance-Buildings-Electrical
D88: 97 | E88: ='1.Coversheet'!#REF! ->  | F88: =LEFT('1.Coversheet'!#REF!,3) ->  | G88: 40201 | H88: IT Hardware Purchase < $3,000 | J88: 0 | L88: =SUMIF('6.Non-Salary Costs'!$D:$D,'10. Budget Load'!$G:$G,'6.Non-Salary Costs'!F:F) -> 0 | M88: =SUMIF('6.Non-Salary Costs'!$D:$D,'10. Budget Load'!$G:$G,'6.Non-Salary Costs'!G:G) -> 0 | N88: =SUMIF('6.Non-Salary Costs'!$D:$D,'10. Budget Load'!$G:$G,'6.Non-Salary Costs'!H:H) -> 0 | O88: =SUMIF('6.Non-Salary Costs'!$D:$D,'10. Budget Load'!$G:$G,'6.Non-Salary Costs'!I:I) -> 0 | P88: =SUMIF('6.Non-Salary Costs'!$D:$D,'10. Budget Load'!$G:$G,'6.Non-Salary Costs'!J:J) -> 0 | Q88: =SUMIF('6.Non-Salary Costs'!$D:$D,'10. Budget Load'!$G:$G,'6.Non-Salary Costs'!K:K) -> 0 | R88: =SUMIF('6.Non-Salary Costs'!$D:$D,'10. Budget Load'!$G:$G,'6.Non-Salary Costs'!L:L) -> 0 | S88: =SUMIF('6.Non-Salary Costs'!$D:$D,'10. Budget Load'!$G:$G,'6.Non-Salary Costs'!M:M) -> 0 | V88: 37106 | W88: Maintenance-Buildings-Access & Security
V89: 37110 | W89: Maintenance-Equip & Mach-Essential Services
H90: Sub Total | J90: =SUBTOTAL(9,J86:J88) -> 0 | L90: =SUBTOTAL(9,L86:L88) -> 0 | M90: 0 | N90: 0 | O90: 0 | P90: 0 | Q90: 0 | R90: 0 | S90: 0 | V90: 37111 | W90: Maintenance-Equip & Mach-Lifts
V91: 37112 | W91: Maintenance-Grounds-Other
H92: Rent Leasing & Utilities | V92: 37113 | W92: Maintenance-Grounds-Swimming Pool
C93: =CONCATENATE(D93,"-",E93,"-",F93,"-9999-",G93) ->  | D93: 97 | E93: ='1.Coversheet'!#REF! ->  | F93: =LEFT('1.Coversheet'!#REF!,3) ->  | G93: 36001 | H93: Property Lease Expenses | J93: =SUM(L93:S93) -> 0 | L93: =SUMIF('6.Non-Salary Costs'!$D:$D,'10. Budget Load'!$G:$G,'6.Non-Salary Costs'!F:F) -> 0 | M93: =SUMIF('6.Non-Salary Costs'!$D:$D,'10. Budget Load'!$G:$G,'6.Non-Salary Costs'!G:G) -> 0 | N93: =SUMIF('6.Non-Salary Costs'!$D:$D,'10. Budget Load'!$G:$G,'6.Non-Salary Costs'!H:H) -> 0 | O93: =SUMIF('6.Non-Salary Costs'!$D:$D,'10. Budget Load'!$G:$G,'6.Non-Salary Costs'!I:I) -> 0 | P93: =SUMIF('6.Non-Salary Costs'!$D:$D,'10. Budget Load'!$G:$G,'6.Non-Salary Costs'!J:J) -> 0 | Q93: =SUMIF('6.Non-Salary Costs'!$D:$D,'10. Budget Load'!$G:$G,'6.Non-Salary Costs'!K:K) -> 0 | R93: =SUMIF('6.Non-Salary Costs'!$D:$D,'10. Budget Load'!$G:$G,'6.Non-Salary Costs'!L:L) -> 0 | S93: =SUMIF('6.Non-Salary Costs'!$D:$D,'10. Budget Load'!$G:$G,'6.Non-Salary Costs'!M:M) -> 0 | V93: 37114 | W93: Maintenance-Grounds-Trees
D94: 97 | E94: ='1.Coversheet'!#REF! ->  | F94: =LEFT('1.Coversheet'!#REF!,3) ->  | G94: 36011 | H94: Equipment Lease and Rental | J94: 0 | L94: =SUMIF('6.Non-Salary Costs'!$D:$D,'10. Budget Load'!$G:$G,'6.Non-Salary Costs'!F:F) -> 0 | M94: =SUMIF('6.Non-Salary Costs'!$D:$D,'10. Budget Load'!$G:$G,'6.Non-Salary Costs'!G:G) -> 0 | N94: =SUMIF('6.Non-Salary Costs'!$D:$D,'10. Budget Load'!$G:$G,'6.Non-Salary Costs'!H:H) -> 0 | O94: =SUMIF('6.Non-Salary Costs'!$D:$D,'10. Budget Load'!$G:$G,'6.Non-Salary Costs'!I:I) -> 0 | P94: =SUMIF('6.Non-Salary Costs'!$D:$D,'10. Budget Load'!$G:$G,'6.Non-Salary Costs'!J:J) -> 0 | Q94: =SUMIF('6.Non-Salary Costs'!$D:$D,'10. Budget Load'!$G:$G,'6.Non-Salary Costs'!K:K) -> 0 | R94: =SUMIF('6.Non-Salary Costs'!$D:$D,'10. Budget Load'!$G:$G,'6.Non-Salary Costs'!L:L) -> 0 | S94: =SUMIF('6.Non-Salary Costs'!$D:$D,'10. Budget Load'!$G:$G,'6.Non-Salary Costs'!M:M) -> 0 | V94: 37115 | W94: Maintenance-Furniture & Fittings
D95: 97 | E95: ='1.Coversheet'!#REF! ->  | F95: =LEFT('1.Coversheet'!#REF!,3) ->  | G95: 36012 | H95: Hire Of Equipment & Facilities | J95: 0 | L95: =SUMIF('6.Non-Salary Costs'!$D:$D,'10. Budget Load'!$G:$G,'6.Non-Salary Costs'!F:F) -> 0 | M95: =SUMIF('6.Non-Salary Costs'!$D:$D,'10. Budget Load'!$G:$G,'6.Non-Salary Costs'!G:G) -> 0 | N95: =SUMIF('6.Non-Salary Costs'!$D:$D,'10. Budget Load'!$G:$G,'6.Non-Salary Costs'!H:H) -> 0 | O95: =SUMIF('6.Non-Salary Costs'!$D:$D,'10. Budget Load'!$G:$G,'6.Non-Salary Costs'!I:I) -> 0 | P95: =SUMIF('6.Non-Salary Costs'!$D:$D,'10. Budget Load'!$G:$G,'6.Non-Salary Costs'!J:J) -> 0 | Q95: =SUMIF('6.Non-Salary Costs'!$D:$D,'10. Budget Load'!$G:$G,'6.Non-Salary Costs'!K:K) -> 0 | R95: =SUMIF('6.Non-Salary Costs'!$D:$D,'10. Budget Load'!$G:$G,'6.Non-Salary Costs'!L:L) -> 0 | S95: =SUMIF('6.Non-Salary Costs'!$D:$D,'10. Budget Load'!$G:$G,'6.Non-Salary Costs'!M:M) -> 0
D96: 97 | E96: ='1.Coversheet'!#REF! ->  | F96: =LEFT('1.Coversheet'!#REF!,3) ->  | G96: 36020 | H96: Electricity | J96: 0 | L96: =SUMIF('6.Non-Salary Costs'!$D:$D,'10. Budget Load'!$G:$G,'6.Non-Salary Costs'!F:F) -> 0 | M96: =SUMIF('6.Non-Salary Costs'!$D:$D,'10. Budget Load'!$G:$G,'6.Non-Salary Costs'!G:G) -> 0 | N96: =SUMIF('6.Non-Salary Costs'!$D:$D,'10. Budget Load'!$G:$G,'6.Non-Salary Costs'!H:H) -> 0 | O96: =SUMIF('6.Non-Salary Costs'!$D:$D,'10. Budget Load'!$G:$G,'6.Non-Salary Costs'!I:I) -> 0 | P96: =SUMIF('6.Non-Salary Costs'!$D:$D,'10. Budget Load'!$G:$G,'6.Non-Salary Costs'!J:J) -> 0 | Q96: =SUMIF('6.Non-Salary Costs'!$D:$D,'10. Budget Load'!$G:$G,'6.Non-Salary Costs'!K:K) -> 0 | R96: =SUMIF('6.Non-Salary Costs'!$D:$D,'10. Budget Load'!$G:$G,'6.Non-Salary Costs'!L:L) -> 0 | S96: =SUMIF('6.Non-Salary Costs'!$D:$D,'10. Budget Load'!$G:$G,'6.Non-Salary Costs'!M:M) -> 0 | V96: 41101 | W96: Travel - Accommodation Domestic
D97: 97 | E97: ='1.Coversheet'!#REF! ->  | F97: =LEFT('1.Coversheet'!#REF!,3) ->  | G97: 40301 | H97: Phone - Landline, Fax, Network ISDN, Video | J97: 0 | L97: =SUMIF('6.Non-Salary Costs'!$D:$D,'10. Budget Load'!$G:$G,'6.Non-Salary Costs'!F:F) -> 0 | M97: =SUMIF('6.Non-Salary Costs'!$D:$D,'10. Budget Load'!$G:$G,'6.Non-Salary Costs'!G:G) -> 0 | N97: =SUMIF('6.Non-Salary Costs'!$D:$D,'10. Budget Load'!$G:$G,'6.Non-Salary Costs'!H:H) -> 0 | O97: =SUMIF('6.Non-Salary Costs'!$D:$D,'10. Budget Load'!$G:$G,'6.Non-Salary Costs'!I:I) -> 0 | P97: =SUMIF('6.Non-Salary Costs'!$D:$D,'10. Budget Load'!$G:$G,'6.Non-Salary Costs'!J:J) -> 0 | Q97: =SUMIF('6.Non-Salary Costs'!$D:$D,'10. Budget Load'!$G:$G,'6.Non-Salary Costs'!K:K) -> 0 | R97: =SUMIF('6.Non-Salary Costs'!$D:$D,'10. Budget Load'!$G:$G,'6.Non-Salary Costs'!L:L) -> 0 | S97: =SUMIF('6.Non-Salary Costs'!$D:$D,'10. Budget Load'!$G:$G,'6.Non-Salary Costs'!M:M) -> 0 | V97: 41103 | W97: Trav - A/fares Dom
D98: 97 | E98: ='1.Coversheet'!#REF! ->  | F98: =LEFT('1.Coversheet'!#REF!,3) ->  | G98: 40302 | H98: Phone - Mobile | J98: 0 | L98: =SUMIF('6.Non-Salary Costs'!$D:$D,'10. Budget Load'!$G:$G,'6.Non-Salary Costs'!F:F) -> 0 | M98: =SUMIF('6.Non-Salary Costs'!$D:$D,'10. Budget Load'!$G:$G,'6.Non-Salary Costs'!G:G) -> 0 | N98: =SUMIF('6.Non-Salary Costs'!$D:$D,'10. Budget Load'!$G:$G,'6.Non-Salary Costs'!H:H) -> 0 | O98: =SUMIF('6.Non-Salary Costs'!$D:$D,'10. Budget Load'!$G:$G,'6.Non-Salary Costs'!I:I) -> 0 | P98: =SUMIF('6.Non-Salary Costs'!$D:$D,'10. Budget Load'!$G:$G,'6.Non-Salary Costs'!J:J) -> 0 | Q98: =SUMIF('6.Non-Salary Costs'!$D:$D,'10. Budget Load'!$G:$G,'6.Non-Salary Costs'!K:K) -> 0 | R98: =SUMIF('6.Non-Salary Costs'!$D:$D,'10. Budget Load'!$G:$G,'6.Non-Salary Costs'!L:L) -> 0 | S98: =SUMIF('6.Non-Salary Costs'!$D:$D,'10. Budget Load'!$G:$G,'6.Non-Salary Costs'!M:M) -> 0 | V98: 41105 | W98: Travel - Car Hire Domestic
D99: 97 | E99: ='1.Coversheet'!#REF! ->  | F99: =LEFT('1.Coversheet'!#REF!,3) ->  | G99: 40303 | H99: Internet charges | J99: 0 | L99: =SUMIF('6.Non-Salary Costs'!$D:$D,'10. Budget Load'!$G:$G,'6.Non-Salary Costs'!F:F) -> 0 | M99: =SUMIF('6.Non-Salary Costs'!$D:$D,'10. Budget Load'!$G:$G,'6.Non-Salary Costs'!G:G) -> 0 | N99: =SUMIF('6.Non-Salary Costs'!$D:$D,'10. Budget Load'!$G:$G,'6.Non-Salary Costs'!H:H) -> 0 | O99: =SUMIF('6.Non-Salary Costs'!$D:$D,'10. Budget Load'!$G:$G,'6.Non-Salary Costs'!I:I) -> 0 | P99: =SUMIF('6.Non-Salary Costs'!$D:$D,'10. Budget Load'!$G:$G,'6.Non-Salary Costs'!J:J) -> 0 | Q99: =SUMIF('6.Non-Salary Costs'!$D:$D,'10. Budget Load'!$G:$G,'6.Non-Salary Costs'!K:K) -> 0 | R99: =SUMIF('6.Non-Salary Costs'!$D:$D,'10. Budget Load'!$G:$G,'6.Non-Salary Costs'!L:L) -> 0 | S99: =SUMIF('6.Non-Salary Costs'!$D:$D,'10. Budget Load'!$G:$G,'6.Non-Salary Costs'!M:M) -> 0 | V99: 41109 | W99: Travel - Car Allowance and Reimbursement
V100: 41117 | W100: Travel - Other Domestic
H101: Sub Total | J101: =SUBTOTAL(9,J93:J99) -> 0 | L101: =SUBTOTAL(9,L93:L99) -> 0 | M101: 0 | N101: 0 | O101: 0 | P101: 0 | Q101: 0 | R101: =SUBTOTAL(9,R93:R99) -> 0 | S101: 0 | V101: 41119 | W101: Travel - Subject to FBT Domestic
V102: 41131 | W102: Motor Vehicle Expenses
H103: Other Expenses
C104: =CONCATENATE(D104,"-",E104,"-",F104,"-9999-",G104) ->  | D104: 97 | E104: ='1.Coversheet'!#REF! ->  | F104: =LEFT('1.Coversheet'!#REF!,3) ->  | G104: 36301 | H104: =IF(ISERROR(VLOOKUP(G104,$V$18:$W$262,2,FALSE)),"Enter Natural Account code",VLOOKUP(G104,$V$18:$W$262,2,FALSE)) -> Insurance | J104: =SUM(L104:S104) -> 0 | L104: =SUMIF('6.Non-Salary Costs'!$D:$D,'10. Budget Load'!$G:$G,'6.Non-Salary Costs'!F:F) -> 0 | M104: =SUMIF('6.Non-Salary Costs'!$D:$D,'10. Budget Load'!$G:$G,'6.Non-Salary Costs'!G:G) -> 0 | N104: =SUMIF('6.Non-Salary Costs'!$D:$D,'10. Budget Load'!$G:$G,'6.Non-Salary Costs'!H:H) -> 0 | O104: =SUMIF('6.Non-Salary Costs'!$D:$D,'10. Budget Load'!$G:$G,'6.Non-Salary Costs'!I:I) -> 0 | P104: =SUMIF('6.Non-Salary Costs'!$D:$D,'10. Budget Load'!$G:$G,'6.Non-Salary Costs'!J:J) -> 0 | Q104: =SUMIF('6.Non-Salary Costs'!$D:$D,'10. Budget Load'!$G:$G,'6.Non-Salary Costs'!K:K) -> 0 | R104: =SUMIF('6.Non-Salary Costs'!$D:$D,'10. Budget Load'!$G:$G,'6.Non-Salary Costs'!L:L) -> 0 | S104: =SUMIF('6.Non-Salary Costs'!$D:$D,'10. Budget Load'!$G:$G,'6.Non-Salary Costs'!M:M) -> 0 | V104: 41102 | W104: Travel - Accommodation International
D105: 97 | E105: ='1.Coversheet'!#REF! ->  | F105: =LEFT('1.Coversheet'!#REF!,3) ->  | G105: 37201 | H105: Cleaning - Contract | J105: 0 | L105: =SUMIF('6.Non-Salary Costs'!$D:$D,'10. Budget Load'!$G:$G,'6.Non-Salary Costs'!F:F) -> 0 | M105: =SUMIF('6.Non-Salary Costs'!$D:$D,'10. Budget Load'!$G:$G,'6.Non-Salary Costs'!G:G) -> 0 | N105: =SUMIF('6.Non-Salary Costs'!$D:$D,'10. Budget Load'!$G:$G,'6.Non-Salary Costs'!H:H) -> 0 | O105: =SUMIF('6.Non-Salary Costs'!$D:$D,'10. Budget Load'!$G:$G,'6.Non-Salary Costs'!I:I) -> 0 | P105: =SUMIF('6.Non-Salary Costs'!$D:$D,'10. Budget Load'!$G:$G,'6.Non-Salary Costs'!J:J) -> 0 | Q105: =SUMIF('6.Non-Salary Costs'!$D:$D,'10. Budget Load'!$G:$G,'6.Non-Salary Costs'!K:K) -> 0 | R105: =SUMIF('6.Non-Salary Costs'!$D:$D,'10. Budget Load'!$G:$G,'6.Non-Salary Costs'!L:L) -> 0 | S105: =SUMIF('6.Non-Salary Costs'!$D:$D,'10. Budget Load'!$G:$G,'6.Non-Salary Costs'!M:M) -> 0 | V105: 41106 | W105: Travel - Car Hire International
C106: =CONCATENATE(D106,"-",E106,"-",F106,"-9999-",G106) ->  | D106: 97 | E106: ='1.Coversheet'!#REF! ->  | F106: =LEFT('1.Coversheet'!#REF!,3) ->  | G106: 37250 | H106: Enter Natural Account code | J106: 0 | L106: =SUMIF('6.Non-Salary Costs'!$D:$D,'10. Budget Load'!$G:$G,'6.Non-Salary Costs'!F:F) -> 0 | M106: =SUMIF('6.Non-Salary Costs'!$D:$D,'10. Budget Load'!$G:$G,'6.Non-Salary Costs'!G:G) -> 0 | N106: =SUMIF('6.Non-Salary Costs'!$D:$D,'10. Budget Load'!$G:$G,'6.Non-Salary Costs'!H:H) -> 0 | O106: =SUMIF('6.Non-Salary Costs'!$D:$D,'10. Budget Load'!$G:$G,'6.Non-Salary Costs'!I:I) -> 0 | P106: =SUMIF('6.Non-Salary Costs'!$D:$D,'10. Budget Load'!$G:$G,'6.Non-Salary Costs'!J:J) -> 0 | Q106: =SUMIF('6.Non-Salary Costs'!$D:$D,'10. Budget Load'!$G:$G,'6.Non-Salary Costs'!K:K) -> 0 | R106: =SUMIF('6.Non-Salary Costs'!$D:$D,'10. Budget Load'!$G:$G,'6.Non-Salary Costs'!L:L) -> 0 | S106: =SUMIF('6.Non-Salary Costs'!$D:$D,'10. Budget Load'!$G:$G,'6.Non-Salary Costs'!M:M) -> 0 | V106: 41108 | W106: Travel - Advance International
D107: 97 | E107: ='1.Coversheet'!#REF! ->  | F107: =LEFT('1.Coversheet'!#REF!,3) ->  | G107: 37301 | H107: Security Services | J107: 0 | L107: =SUMIF('6.Non-Salary Costs'!$D:$D,'10. Budget Load'!$G:$G,'6.Non-Salary Costs'!F:F) -> 0 | M107: =SUMIF('6.Non-Salary Costs'!$D:$D,'10. Budget Load'!$G:$G,'6.Non-Salary Costs'!G:G) -> 0 | N107: =SUMIF('6.Non-Salary Costs'!$D:$D,'10. Budget Load'!$G:$G,'6.Non-Salary Costs'!H:H) -> 0 | O107: =SUMIF('6.Non-Salary Costs'!$D:$D,'10. Budget Load'!$G:$G,'6.Non-Salary Costs'!I:I) -> 0 | P107: =SUMIF('6.Non-Salary Costs'!$D:$D,'10. Budget Load'!$G:$G,'6.Non-Salary Costs'!J:J) -> 0 | Q107: =SUMIF('6.Non-Salary Costs'!$D:$D,'10. Budget Load'!$G:$G,'6.Non-Salary Costs'!K:K) -> 0 | R107: =SUMIF('6.Non-Salary Costs'!$D:$D,'10. Budget Load'!$G:$G,'6.Non-Salary Costs'!L:L) -> 0 | S107: =SUMIF('6.Non-Salary Costs'!$D:$D,'10. Budget Load'!$G:$G,'6.Non-Salary Costs'!M:M) -> 0 | V107: 41108 | W107: Travel - Advance International
D108: 97 | E108: ='1.Coversheet'!#REF! ->  | F108: =LEFT('1.Coversheet'!#REF!,3) ->  | G108: 43104 | H108: Handbook Printing & Distribution | J108: 0 | L108: =SUMIF('6.Non-Salary Costs'!$D:$D,'10. Budget Load'!$G:$G,'6.Non-Salary Costs'!F:F) -> 0 | M108: =SUMIF('6.Non-Salary Costs'!$D:$D,'10. Budget Load'!$G:$G,'6.Non-Salary Costs'!G:G) -> 0 | N108: =SUMIF('6.Non-Salary Costs'!$D:$D,'10. Budget Load'!$G:$G,'6.Non-Salary Costs'!H:H) -> 0 | O108: =SUMIF('6.Non-Salary Costs'!$D:$D,'10. Budget Load'!$G:$G,'6.Non-Salary Costs'!I:I) -> 0 | P108: =SUMIF('6.Non-Salary Costs'!$D:$D,'10. Budget Load'!$G:$G,'6.Non-Salary Costs'!J:J) -> 0 | Q108: =SUMIF('6.Non-Salary Costs'!$D:$D,'10. Budget Load'!$G:$G,'6.Non-Salary Costs'!K:K) -> 0 | R108: =SUMIF('6.Non-Salary Costs'!$D:$D,'10. Budget Load'!$G:$G,'6.Non-Salary Costs'!L:L) -> 0 | S108: =SUMIF('6.Non-Salary Costs'!$D:$D,'10. Budget Load'!$G:$G,'6.Non-Salary Costs'!M:M) -> 0 | V108: 41108 | W108: Travel - Advance International
D109: 97 | E109: ='1.Coversheet'!#REF! ->  | F109: =LEFT('1.Coversheet'!#REF!,3) ->  | G109: 44101 | H109: Scholarships | J109: 0 | L109: =SUMIF('6.Non-Salary Costs'!$D:$D,'10. Budget Load'!$G:$G,'6.Non-Salary Costs'!F:F) -> 0 | M109: =SUMIF('6.Non-Salary Costs'!$D:$D,'10. Budget Load'!$G:$G,'6.Non-Salary Costs'!G:G) -> 0 | N109: =SUMIF('6.Non-Salary Costs'!$D:$D,'10. Budget Load'!$G:$G,'6.Non-Salary Costs'!H:H) -> 0 | O109: =SUMIF('6.Non-Salary Costs'!$D:$D,'10. Budget Load'!$G:$G,'6.Non-Salary Costs'!I:I) -> 0 | P109: =SUMIF('6.Non-Salary Costs'!$D:$D,'10. Budget Load'!$G:$G,'6.Non-Salary Costs'!J:J) -> 0 | Q109: =SUMIF('6.Non-Salary Costs'!$D:$D,'10. Budget Load'!$G:$G,'6.Non-Salary Costs'!K:K) -> 0 | R109: =SUMIF('6.Non-Salary Costs'!$D:$D,'10. Budget Load'!$G:$G,'6.Non-Salary Costs'!L:L) -> 0 | S109: =SUMIF('6.Non-Salary Costs'!$D:$D,'10. Budget Load'!$G:$G,'6.Non-Salary Costs'!M:M) -> 0 | V109: 41112 | W109: Travel - Taxi Expenses International
D110: 97 | E110: ='1.Coversheet'!#REF! ->  | F110: =LEFT('1.Coversheet'!#REF!,3) ->  | G110: 44102 | H110: Student Grants | J110: 0 | L110: =SUMIF('6.Non-Salary Costs'!$D:$D,'10. Budget Load'!$G:$G,'6.Non-Salary Costs'!F:F) -> 0 | M110: =SUMIF('6.Non-Salary Costs'!$D:$D,'10. Budget Load'!$G:$G,'6.Non-Salary Costs'!G:G) -> 0 | N110: =SUMIF('6.Non-Salary Costs'!$D:$D,'10. Budget Load'!$G:$G,'6.Non-Salary Costs'!H:H) -> 0 | O110: =SUMIF('6.Non-Salary Costs'!$D:$D,'10. Budget Load'!$G:$G,'6.Non-Salary Costs'!I:I) -> 0 | P110: =SUMIF('6.Non-Salary Costs'!$D:$D,'10. Budget Load'!$G:$G,'6.Non-Salary Costs'!J:J) -> 0 | Q110: =SUMIF('6.Non-Salary Costs'!$D:$D,'10. Budget Load'!$G:$G,'6.Non-Salary Costs'!K:K) -> 0 | R110: =SUMIF('6.Non-Salary Costs'!$D:$D,'10. Budget Load'!$G:$G,'6.Non-Salary Costs'!L:L) -> 0 | S110: =SUMIF('6.Non-Salary Costs'!$D:$D,'10. Budget Load'!$G:$G,'6.Non-Salary Costs'!M:M) -> 0 | V110: 41116 | W110: Travel - Subsistence International
D111: 97 | E111: ='1.Coversheet'!#REF! ->  | F111: =LEFT('1.Coversheet'!#REF!,3) ->  | G111: 48101 | H111: Freight & Couriers | J111: 0 | L111: =SUMIF('6.Non-Salary Costs'!$D:$D,'10. Budget Load'!$G:$G,'6.Non-Salary Costs'!F:F) -> 0 | M111: =SUMIF('6.Non-Salary Costs'!$D:$D,'10. Budget Load'!$G:$G,'6.Non-Salary Costs'!G:G) -> 0 | N111: =SUMIF('6.Non-Salary Costs'!$D:$D,'10. Budget Load'!$G:$G,'6.Non-Salary Costs'!H:H) -> 0 | O111: =SUMIF('6.Non-Salary Costs'!$D:$D,'10. Budget Load'!$G:$G,'6.Non-Salary Costs'!I:I) -> 0 | P111: =SUMIF('6.Non-Salary Costs'!$D:$D,'10. Budget Load'!$G:$G,'6.Non-Salary Costs'!J:J) -> 0 | Q111: =SUMIF('6.Non-Salary Costs'!$D:$D,'10. Budget Load'!$G:$G,'6.Non-Salary Costs'!K:K) -> 0 | R111: =SUMIF('6.Non-Salary Costs'!$D:$D,'10. Budget Load'!$G:$G,'6.Non-Salary Costs'!L:L) -> 0 | S111: =SUMIF('6.Non-Salary Costs'!$D:$D,'10. Budget Load'!$G:$G,'6.Non-Salary Costs'!M:M) -> 0 | V111: 41118 | W111: Travel - Other International
D112: 97 | E112: ='1.Coversheet'!#REF! ->  | F112: =LEFT('1.Coversheet'!#REF!,3) ->  | G112: 48102 | H112: =IF(ISERROR(VLOOKUP(G112,$V$18:$W$262,2,FALSE)),"Enter Natural Account code",VLOOKUP(G112,$V$18:$W$262,2,FALSE)) -> Printing & Copying - Internal Printers | J112: 0 | L112: =SUMIF('6.Non-Salary Costs'!$D:$D,'10. Budget Load'!$G:$G,'6.Non-Salary Costs'!F:F) -> 0 | M112: =SUMIF('6.Non-Salary Costs'!$D:$D,'10. Budget Load'!$G:$G,'6.Non-Salary Costs'!G:G) -> 0 | N112: =SUMIF('6.Non-Salary Costs'!$D:$D,'10. Budget Load'!$G:$G,'6.Non-Salary Costs'!H:H) -> 0 | O112: =SUMIF('6.Non-Salary Costs'!$D:$D,'10. Budget Load'!$G:$G,'6.Non-Salary Costs'!I:I) -> 0 | P112: =SUMIF('6.Non-Salary Costs'!$D:$D,'10. Budget Load'!$G:$G,'6.Non-Salary Costs'!J:J) -> 0 | Q112: =SUMIF('6.Non-Salary Costs'!$D:$D,'10. Budget Load'!$G:$G,'6.Non-Salary Costs'!K:K) -> 0 | R112: =SUMIF('6.Non-Salary Costs'!$D:$D,'10. Budget Load'!$G:$G,'6.Non-Salary Costs'!L:L) -> 0 | S112: =SUMIF('6.Non-Salary Costs'!$D:$D,'10. Budget Load'!$G:$G,'6.Non-Salary Costs'!M:M) -> 0 | V112: 41120 | W112: Travel - Subject to FBT International
D113: 97 | E113: ='1.Coversheet'!#REF! ->  | F113: =LEFT('1.Coversheet'!#REF!,3) ->  | G113: 48103 | H113: Printing & Copying - External Printers | J113: 0 | L113: =SUMIF('6.Non-Salary Costs'!$D:$D,'10. Budget Load'!$G:$G,'6.Non-Salary Costs'!F:F) -> 0 | M113: =SUMIF('6.Non-Salary Costs'!$D:$D,'10. Budget Load'!$G:$G,'6.Non-Salary Costs'!G:G) -> 0 | N113: =SUMIF('6.Non-Salary Costs'!$D:$D,'10. Budget Load'!$G:$G,'6.Non-Salary Costs'!H:H) -> 0 | O113: =SUMIF('6.Non-Salary Costs'!$D:$D,'10. Budget Load'!$G:$G,'6.Non-Salary Costs'!I:I) -> 0 | P113: =SUMIF('6.Non-Salary Costs'!$D:$D,'10. Budget Load'!$G:$G,'6.Non-Salary Costs'!J:J) -> 0 | Q113: =SUMIF('6.Non-Salary Costs'!$D:$D,'10. Budget Load'!$G:$G,'6.Non-Salary Costs'!K:K) -> 0 | R113: =SUMIF('6.Non-Salary Costs'!$D:$D,'10. Budget Load'!$G:$G,'6.Non-Salary Costs'!L:L) -> 0 | S113: =SUMIF('6.Non-Salary Costs'!$D:$D,'10. Budget Load'!$G:$G,'6.Non-Salary Costs'!M:M) -> 0
D114: 97 | E114: ='1.Coversheet'!#REF! ->  | F114: =LEFT('1.Coversheet'!#REF!,3) ->  | G114: 48104 | H114: General Expenses | J114: 0 | L114: =SUMIF('6.Non-Salary Costs'!$D:$D,'10. Budget Load'!$G:$G,'6.Non-Salary Costs'!F:F) -> 0 | M114: =SUMIF('6.Non-Salary Costs'!$D:$D,'10. Budget Load'!$G:$G,'6.Non-Salary Costs'!G:G) -> 0 | N114: =SUMIF('6.Non-Salary Costs'!$D:$D,'10. Budget Load'!$G:$G,'6.Non-Salary Costs'!H:H) -> 0 | O114: =SUMIF('6.Non-Salary Costs'!$D:$D,'10. Budget Load'!$G:$G,'6.Non-Salary Costs'!I:I) -> 0 | P114: =SUMIF('6.Non-Salary Costs'!$D:$D,'10. Budget Load'!$G:$G,'6.Non-Salary Costs'!J:J) -> 0 | Q114: =SUMIF('6.Non-Salary Costs'!$D:$D,'10. Budget Load'!$G:$G,'6.Non-Salary Costs'!K:K) -> 0 | R114: =SUMIF('6.Non-Salary Costs'!$D:$D,'10. Budget Load'!$G:$G,'6.Non-Salary Costs'!L:L) -> 0 | S114: =SUMIF('6.Non-Salary Costs'!$D:$D,'10. Budget Load'!$G:$G,'6.Non-Salary Costs'!M:M) -> 0 | V114: 34101 | W114: Legal Fees
D115: 97 | E115: ='1.Coversheet'!#REF! ->  | F115: =LEFT('1.Coversheet'!#REF!,3) ->  | G115: 48105 | H115: Postage | J115: 0 | L115: =SUMIF('6.Non-Salary Costs'!$D:$D,'10. Budget Load'!$G:$G,'6.Non-Salary Costs'!F:F) -> 0 | M115: =SUMIF('6.Non-Salary Costs'!$D:$D,'10. Budget Load'!$G:$G,'6.Non-Salary Costs'!G:G) -> 0 | N115: =SUMIF('6.Non-Salary Costs'!$D:$D,'10. Budget Load'!$G:$G,'6.Non-Salary Costs'!H:H) -> 0 | O115: =SUMIF('6.Non-Salary Costs'!$D:$D,'10. Budget Load'!$G:$G,'6.Non-Salary Costs'!I:I) -> 0 | P115: =SUMIF('6.Non-Salary Costs'!$D:$D,'10. Budget Load'!$G:$G,'6.Non-Salary Costs'!J:J) -> 0 | Q115: =SUMIF('6.Non-Salary Costs'!$D:$D,'10. Budget Load'!$G:$G,'6.Non-Salary Costs'!K:K) -> 0 | R115: =SUMIF('6.Non-Salary Costs'!$D:$D,'10. Budget Load'!$G:$G,'6.Non-Salary Costs'!L:L) -> 0 | S115: =SUMIF('6.Non-Salary Costs'!$D:$D,'10. Budget Load'!$G:$G,'6.Non-Salary Costs'!M:M) -> 0 | V115: 34130 | W115: Audit Fees - Internal
D116: 97 | E116: ='1.Coversheet'!#REF! ->  | F116: =LEFT('1.Coversheet'!#REF!,3) ->  | G116: 48106 | H116: Stationery | J116: 0 | L116: =SUMIF('6.Non-Salary Costs'!$D:$D,'10. Budget Load'!$G:$G,'6.Non-Salary Costs'!F:F) -> 0 | M116: =SUMIF('6.Non-Salary Costs'!$D:$D,'10. Budget Load'!$G:$G,'6.Non-Salary Costs'!G:G) -> 0 | N116: =SUMIF('6.Non-Salary Costs'!$D:$D,'10. Budget Load'!$G:$G,'6.Non-Salary Costs'!H:H) -> 0 | O116: =SUMIF('6.Non-Salary Costs'!$D:$D,'10. Budget Load'!$G:$G,'6.Non-Salary Costs'!I:I) -> 0 | P116: =SUMIF('6.Non-Salary Costs'!$D:$D,'10. Budget Load'!$G:$G,'6.Non-Salary Costs'!J:J) -> 0 | Q116: =SUMIF('6.Non-Salary Costs'!$D:$D,'10. Budget Load'!$G:$G,'6.Non-Salary Costs'!K:K) -> 0 | R116: =SUMIF('6.Non-Salary Costs'!$D:$D,'10. Budget Load'!$G:$G,'6.Non-Salary Costs'!L:L) -> 0 | S116: =SUMIF('6.Non-Salary Costs'!$D:$D,'10. Budget Load'!$G:$G,'6.Non-Salary Costs'!M:M) -> 0 | V116: 34131 | W116: Audit Fees - External
D117: 97 | E117: ='1.Coversheet'!#REF! ->  | F117: =LEFT('1.Coversheet'!#REF!,3) ->  | G117: 48107 | H117: Staff Amenities | J117: 0 | L117: =SUMIF('6.Non-Salary Costs'!$D:$D,'10. Budget Load'!$G:$G,'6.Non-Salary Costs'!F:F) -> 0 | M117: =SUMIF('6.Non-Salary Costs'!$D:$D,'10. Budget Load'!$G:$G,'6.Non-Salary Costs'!G:G) -> 0 | N117: =SUMIF('6.Non-Salary Costs'!$D:$D,'10. Budget Load'!$G:$G,'6.Non-Salary Costs'!H:H) -> 0 | O117: =SUMIF('6.Non-Salary Costs'!$D:$D,'10. Budget Load'!$G:$G,'6.Non-Salary Costs'!I:I) -> 0 | P117: =SUMIF('6.Non-Salary Costs'!$D:$D,'10. Budget Load'!$G:$G,'6.Non-Salary Costs'!J:J) -> 0 | Q117: =SUMIF('6.Non-Salary Costs'!$D:$D,'10. Budget Load'!$G:$G,'6.Non-Salary Costs'!K:K) -> 0 | R117: =SUMIF('6.Non-Salary Costs'!$D:$D,'10. Budget Load'!$G:$G,'6.Non-Salary Costs'!L:L) -> 0 | S117: =SUMIF('6.Non-Salary Costs'!$D:$D,'10. Budget Load'!$G:$G,'6.Non-Salary Costs'!M:M) -> 0 | V117: 34132 | W117: Audit Fees - Other
D118: 97 | E118: ='1.Coversheet'!#REF! ->  | F118: =LEFT('1.Coversheet'!#REF!,3) ->  | G118: 48210 | H118: Consumables | J118: 0 | L118: =SUMIF('6.Non-Salary Costs'!$D:$D,'10. Budget Load'!$G:$G,'6.Non-Salary Costs'!F:F) -> 0 | M118: =SUMIF('6.Non-Salary Costs'!$D:$D,'10. Budget Load'!$G:$G,'6.Non-Salary Costs'!G:G) -> 0 | N118: =SUMIF('6.Non-Salary Costs'!$D:$D,'10. Budget Load'!$G:$G,'6.Non-Salary Costs'!H:H) -> 0 | O118: =SUMIF('6.Non-Salary Costs'!$D:$D,'10. Budget Load'!$G:$G,'6.Non-Salary Costs'!I:I) -> 0 | P118: =SUMIF('6.Non-Salary Costs'!$D:$D,'10. Budget Load'!$G:$G,'6.Non-Salary Costs'!J:J) -> 0 | Q118: =SUMIF('6.Non-Salary Costs'!$D:$D,'10. Budget Load'!$G:$G,'6.Non-Salary Costs'!K:K) -> 0 | R118: =SUMIF('6.Non-Salary Costs'!$D:$D,'10. Budget Load'!$G:$G,'6.Non-Salary Costs'!L:L) -> 0 | S118: =SUMIF('6.Non-Salary Costs'!$D:$D,'10. Budget Load'!$G:$G,'6.Non-Salary Costs'!M:M) -> 0 | V118: 36301 | W118: Insurance
D119: 97 | E119: ='1.Coversheet'!#REF! ->  | F119: =LEFT('1.Coversheet'!#REF!,3) ->  | G119: 48501 | H119: Permits, Licences & Reg'n Fees | J119: 0 | L119: =SUMIF('6.Non-Salary Costs'!$D:$D,'10. Budget Load'!$G:$G,'6.Non-Salary Costs'!F:F) -> 0 | M119: =SUMIF('6.Non-Salary Costs'!$D:$D,'10. Budget Load'!$G:$G,'6.Non-Salary Costs'!G:G) -> 0 | N119: =SUMIF('6.Non-Salary Costs'!$D:$D,'10. Budget Load'!$G:$G,'6.Non-Salary Costs'!H:H) -> 0 | O119: =SUMIF('6.Non-Salary Costs'!$D:$D,'10. Budget Load'!$G:$G,'6.Non-Salary Costs'!I:I) -> 0 | P119: =SUMIF('6.Non-Salary Costs'!$D:$D,'10. Budget Load'!$G:$G,'6.Non-Salary Costs'!J:J) -> 0 | Q119: =SUMIF('6.Non-Salary Costs'!$D:$D,'10. Budget Load'!$G:$G,'6.Non-Salary Costs'!K:K) -> 0 | R119: =SUMIF('6.Non-Salary Costs'!$D:$D,'10. Budget Load'!$G:$G,'6.Non-Salary Costs'!L:L) -> 0 | S119: =SUMIF('6.Non-Salary Costs'!$D:$D,'10. Budget Load'!$G:$G,'6.Non-Salary Costs'!M:M) -> 0 | V119: 36401 | W119: Fringe Benefit Tax
D120: 97 | E120: ='1.Coversheet'!#REF! ->  | F120: =LEFT('1.Coversheet'!#REF!,3) ->  | G120: 48502 | H120: Copyright Charges | J120: 0 | L120: =SUMIF('6.Non-Salary Costs'!$D:$D,'10. Budget Load'!$G:$G,'6.Non-Salary Costs'!F:F) -> 0 | M120: =SUMIF('6.Non-Salary Costs'!$D:$D,'10. Budget Load'!$G:$G,'6.Non-Salary Costs'!G:G) -> 0 | N120: =SUMIF('6.Non-Salary Costs'!$D:$D,'10. Budget Load'!$G:$G,'6.Non-Salary Costs'!H:H) -> 0 | O120: =SUMIF('6.Non-Salary Costs'!$D:$D,'10. Budget Load'!$G:$G,'6.Non-Salary Costs'!I:I) -> 0 | P120: =SUMIF('6.Non-Salary Costs'!$D:$D,'10. Budget Load'!$G:$G,'6.Non-Salary Costs'!J:J) -> 0 | Q120: =SUMIF('6.Non-Salary Costs'!$D:$D,'10. Budget Load'!$G:$G,'6.Non-Salary Costs'!K:K) -> 0 | R120: =SUMIF('6.Non-Salary Costs'!$D:$D,'10. Budget Load'!$G:$G,'6.Non-Salary Costs'!L:L) -> 0 | S120: =SUMIF('6.Non-Salary Costs'!$D:$D,'10. Budget Load'!$G:$G,'6.Non-Salary Costs'!M:M) -> 0 | V120: 37201 | W120: Cleaning - Contract
D121: 97 | E121: ='1.Coversheet'!#REF! ->  | F121: =LEFT('1.Coversheet'!#REF!,3) ->  | G121: 48504 | H121: =IF(ISERROR(VLOOKUP(G121,$V$18:$W$262,2,FALSE)),"Enter Natural Account code",VLOOKUP(G121,$V$18:$W$262,2,FALSE)) -> Survey Testing | J121: 0 | L121: =SUMIF('6.Non-Salary Costs'!$D:$D,'10. Budget Load'!$G:$G,'6.Non-Salary Costs'!F:F) -> 0 | M121: =SUMIF('6.Non-Salary Costs'!$D:$D,'10. Budget Load'!$G:$G,'6.Non-Salary Costs'!G:G) -> 0 | N121: =SUMIF('6.Non-Salary Costs'!$D:$D,'10. Budget Load'!$G:$G,'6.Non-Salary Costs'!H:H) -> 0 | O121: =SUMIF('6.Non-Salary Costs'!$D:$D,'10. Budget Load'!$G:$G,'6.Non-Salary Costs'!I:I) -> 0 | P121: =SUMIF('6.Non-Salary Costs'!$D:$D,'10. Budget Load'!$G:$G,'6.Non-Salary Costs'!J:J) -> 0 | Q121: =SUMIF('6.Non-Salary Costs'!$D:$D,'10. Budget Load'!$G:$G,'6.Non-Salary Costs'!K:K) -> 0 | R121: =SUMIF('6.Non-Salary Costs'!$D:$D,'10. Budget Load'!$G:$G,'6.Non-Salary Costs'!L:L) -> 0 | S121: =SUMIF('6.Non-Salary Costs'!$D:$D,'10. Budget Load'!$G:$G,'6.Non-Salary Costs'!M:M) -> 0 | V121: 37301 | W121: Security Services
D122: 97 | E122: ='1.Coversheet'!#REF! ->  | F122: =LEFT('1.Coversheet'!#REF!,3) ->  | G122: 48521 | H122: Appointment Costs | J122: 0 | L122: =SUMIF('6.Non-Salary Costs'!$D:$D,'10. Budget Load'!$G:$G,'6.Non-Salary Costs'!F:F) -> 0 | M122: =SUMIF('6.Non-Salary Costs'!$D:$D,'10. Budget Load'!$G:$G,'6.Non-Salary Costs'!G:G) -> 0 | N122: =SUMIF('6.Non-Salary Costs'!$D:$D,'10. Budget Load'!$G:$G,'6.Non-Salary Costs'!H:H) -> 0 | O122: =SUMIF('6.Non-Salary Costs'!$D:$D,'10. Budget Load'!$G:$G,'6.Non-Salary Costs'!I:I) -> 0 | P122: =SUMIF('6.Non-Salary Costs'!$D:$D,'10. Budget Load'!$G:$G,'6.Non-Salary Costs'!J:J) -> 0 | Q122: =SUMIF('6.Non-Salary Costs'!$D:$D,'10. Budget Load'!$G:$G,'6.Non-Salary Costs'!K:K) -> 0 | R122: =SUMIF('6.Non-Salary Costs'!$D:$D,'10. Budget Load'!$G:$G,'6.Non-Salary Costs'!L:L) -> 0 | S122: =SUMIF('6.Non-Salary Costs'!$D:$D,'10. Budget Load'!$G:$G,'6.Non-Salary Costs'!M:M) -> 0 | V122: 38501 | W122: Loss-Disposal of Assets
D123: 97 | E123: ='1.Coversheet'!#REF! ->  | F123: =LEFT('1.Coversheet'!#REF!,3) ->  | G123: 48522 | H123: Training & Staff Development | J123: 0 | L123: =SUMIF('6.Non-Salary Costs'!$D:$D,'10. Budget Load'!$G:$G,'6.Non-Salary Costs'!F:F) -> 0 | M123: =SUMIF('6.Non-Salary Costs'!$D:$D,'10. Budget Load'!$G:$G,'6.Non-Salary Costs'!G:G) -> 0 | N123: =SUMIF('6.Non-Salary Costs'!$D:$D,'10. Budget Load'!$G:$G,'6.Non-Salary Costs'!H:H) -> 0 | O123: =SUMIF('6.Non-Salary Costs'!$D:$D,'10. Budget Load'!$G:$G,'6.Non-Salary Costs'!I:I) -> 0 | P123: =SUMIF('6.Non-Salary Costs'!$D:$D,'10. Budget Load'!$G:$G,'6.Non-Salary Costs'!J:J) -> 0 | Q123: =SUMIF('6.Non-Salary Costs'!$D:$D,'10. Budget Load'!$G:$G,'6.Non-Salary Costs'!K:K) -> 0 | R123: =SUMIF('6.Non-Salary Costs'!$D:$D,'10. Budget Load'!$G:$G,'6.Non-Salary Costs'!L:L) -> 0 | S123: =SUMIF('6.Non-Salary Costs'!$D:$D,'10. Budget Load'!$G:$G,'6.Non-Salary Costs'!M:M) -> 0 | V123: 38502 | W123: Loss-Exchange Rate Variance
D124: 97 | E124: ='1.Coversheet'!#REF! ->  | F124: =LEFT('1.Coversheet'!#REF!,3) ->  | G124: 48523 | H124: =IF(ISERROR(VLOOKUP(G124,$V$18:$W$262,2,FALSE)),"Enter Natural Account code",VLOOKUP(G124,$V$18:$W$262,2,FALSE)) -> Publications, Subscriptions & Memberships | J124: 0 | L124: =SUMIF('6.Non-Salary Costs'!$D:$D,'10. Budget Load'!$G:$G,'6.Non-Salary Costs'!F:F) -> 0 | M124: =SUMIF('6.Non-Salary Costs'!$D:$D,'10. Budget Load'!$G:$G,'6.Non-Salary Costs'!G:G) -> 0 | N124: =SUMIF('6.Non-Salary Costs'!$D:$D,'10. Budget Load'!$G:$G,'6.Non-Salary Costs'!H:H) -> 0 | O124: =SUMIF('6.Non-Salary Costs'!$D:$D,'10. Budget Load'!$G:$G,'6.Non-Salary Costs'!I:I) -> 0 | P124: =SUMIF('6.Non-Salary Costs'!$D:$D,'10. Budget Load'!$G:$G,'6.Non-Salary Costs'!J:J) -> 0 | Q124: =SUMIF('6.Non-Salary Costs'!$D:$D,'10. Budget Load'!$G:$G,'6.Non-Salary Costs'!K:K) -> 0 | R124: =SUMIF('6.Non-Salary Costs'!$D:$D,'10. Budget Load'!$G:$G,'6.Non-Salary Costs'!L:L) -> 0 | S124: =SUMIF('6.Non-Salary Costs'!$D:$D,'10. Budget Load'!$G:$G,'6.Non-Salary Costs'!M:M) -> 0 | V124: 38503 | W124: Doubtful Debts
V125: 43101 | W125: Admissions Expenses
H126: Sub Total | J126: =SUBTOTAL(9,J104:J124) -> 0 | L126: =SUBTOTAL(9,L104:L124) -> 0 | M126: 0 | N126: 0 | O126: 0 | P126: 0 | Q126: 0 | R126: =SUBTOTAL(9,R104:R124) -> 0 | S126: 0 | V126: 43102 | W126: Orientation Expenses
V127: 43103 | W127: Excursion Expenses
H128: Asset Purchases | V128: 43104 | W128: Handbook Printing & Distribution
C129: =CONCATENATE(D129,"-",E129,"-",F129,"-9999-",G129) ->  | D129: 97 | E129: ='1.Coversheet'!#REF! ->  | F129: =LEFT('1.Coversheet'!#REF!,3) ->  | G129: 57613 | H129: =IF(ISERROR(VLOOKUP(G129,$V$18:$W$262,2,FALSE)),"Enter Natural Account code",VLOOKUP(G129,$V$18:$W$262,2,FALSE)) -> Computer Equipment-CY Additions | J129: =SUM(L129:S129) -> 0 | L129: =SUMIF('6.Non-Salary Costs'!$D:$D,'10. Budget Load'!$G:$G,'6.Non-Salary Costs'!F:F) -> 0 | M129: =SUMIF('6.Non-Salary Costs'!$D:$D,'10. Budget Load'!$G:$G,'6.Non-Salary Costs'!G:G) -> 0 | N129: =SUMIF('6.Non-Salary Costs'!$D:$D,'10. Budget Load'!$G:$G,'6.Non-Salary Costs'!H:H) -> 0 | O129: =SUMIF('6.Non-Salary Costs'!$D:$D,'10. Budget Load'!$G:$G,'6.Non-Salary Costs'!I:I) -> 0 | P129: =SUMIF('6.Non-Salary Costs'!$D:$D,'10. Budget Load'!$G:$G,'6.Non-Salary Costs'!J:J) -> 0 | Q129: =SUMIF('6.Non-Salary Costs'!$D:$D,'10. Budget Load'!$G:$G,'6.Non-Salary Costs'!K:K) -> 0 | R129: =SUMIF('6.Non-Salary Costs'!$D:$D,'10. Budget Load'!$G:$G,'6.Non-Salary Costs'!L:L) -> 0 | S129: =SUMIF('6.Non-Salary Costs'!$D:$D,'10. Budget Load'!$G:$G,'6.Non-Salary Costs'!M:M) -> 0 | V129: 44101 | W129: Scholarships
D130: 97 | E130: ='1.Coversheet'!#REF! ->  | F130: =LEFT('1.Coversheet'!#REF!,3) ->  | G130: 57623 | H130: =IF(ISERROR(VLOOKUP(G130,$V$18:$W$262,2,FALSE)),"Enter Natural Account code",VLOOKUP(G130,$V$18:$W$262,2,FALSE)) -> Equipment & Machinery-CY Additions | J130: 0 | L130: =SUMIF('6.Non-Salary Costs'!$D:$D,'10. Budget Load'!$G:$G,'6.Non-Salary Costs'!F:F) -> 0 | M130: =SUMIF('6.Non-Salary Costs'!$D:$D,'10. Budget Load'!$G:$G,'6.Non-Salary Costs'!G:G) -> 0 | N130: =SUMIF('6.Non-Salary Costs'!$D:$D,'10. Budget Load'!$G:$G,'6.Non-Salary Costs'!H:H) -> 0 | O130: =SUMIF('6.Non-Salary Costs'!$D:$D,'10. Budget Load'!$G:$G,'6.Non-Salary Costs'!I:I) -> 0 | P130: =SUMIF('6.Non-Salary Costs'!$D:$D,'10. Budget Load'!$G:$G,'6.Non-Salary Costs'!J:J) -> 0 | Q130: =SUMIF('6.Non-Salary Costs'!$D:$D,'10. Budget Load'!$G:$G,'6.Non-Salary Costs'!K:K) -> 0 | R130: =SUMIF('6.Non-Salary Costs'!$D:$D,'10. Budget Load'!$G:$G,'6.Non-Salary Costs'!L:L) -> 0 | S130: =SUMIF('6.Non-Salary Costs'!$D:$D,'10. Budget Load'!$G:$G,'6.Non-Salary Costs'!M:M) -> 0 | V130: 44102 | W130: Student Grants
V131: 48102 | W131: Printing & Copying - Internal Printers
H132: Sub Total | J132: =SUBTOTAL(9,J129:J130) -> 0 | L132: =SUBTOTAL(9,L129:L130) -> 0 | M132: 0 | N132: 0 | O132: 0 | P132: 0 | Q132: 0 | R132: =SUBTOTAL(9,R129:R130) -> 0 | S132: 0 | V132: 48103 | W132: Printing & Copying - External Printers
V134: 19995 | W134: Internal Revenue Transfer - Other
H135: TOTAL NON SALARIES | J135: =J53+J64+J70+J77+J83+J90+J101+J126+J132 -> 0 | L135: =L53+L64+L70+L77+L83+L90+L101+L126+L132 -> 0 | M135: 0 | N135: 0 | O135: 0 | P135: 0 | Q135: 0 | R135: 0 | S135: 0 | V135: 19998 | W135: Internal Revenue Tfr-Budget Allocation
V136: 48104 | W136: General Expenses
H137: Internal Transfers | V137: 48503 | W137: External Admin Fee & Outsourced Service Arrangements
C138: =CONCATENATE(D138,"-",E138,"-",F138,"-9999-",G138) ->  | D138: 97 | E138: ='1.Coversheet'!#REF! ->  | F138: =LEFT('1.Coversheet'!#REF!,3) ->  | G138: 36901 | H138: ICR | J138: =SUM(L138:S138) -> 0 | L138: =L10*'1.Coversheet'!$H$24 -> 0 | M138: =M10*'1.Coversheet'!$H$24 -> 0 | N138: =N10*'1.Coversheet'!$H$24 -> 0 | O138: =O10*'1.Coversheet'!$H$24 -> 0 | P138: =P10*'1.Coversheet'!$H$24 -> 0 | Q138: =Q10*'1.Coversheet'!$H$24 -> 0 | R138: =R10*'1.Coversheet'!$H$24 -> 0 | S138: =S10*'1.Coversheet'!$H$24 -> 0 | V138: 48504 | W138: Survey Testing
V139: 48511 | W139: Expense Payments Subject to FBT
H140: Sub Total | J140: =SUBTOTAL(9,J137:J138) -> 0 | L140: =SUBTOTAL(9,L137:L138) -> 0 | M140: 0 | N140: 0 | O140: 0 | P140: 0 | Q140: 0 | R140: =SUBTOTAL(9,R137:R138) -> 0 | S140: 0 | V140: 48512 | W140: Contracted Services Subj P/Tax
V141: 48513 | W141: Payroll Tax on Contracted Services Sub P/Tax
H142: TOTAL NON-SALARIES | J142: =J135+J140 -> 0 | L142: =L135+L140 -> 0 | M142: 0 | N142: 0 | O142: 0 | P142: 0 | Q142: 0 | R142: =R135+R140 -> 0 | S142: 0 | V142: 48105 | W142: Postage
V143: 48106 | W143: Stationery
H144: TOTAL SALARIES & NON-SALARIES (inc ICR) | J144: =J142+J39 -> 0 | L144: =L142+L39 -> 0 | M144: 0 | N144: 0 | O144: 0 | P144: 0 | Q144: 0 | R144: 0 | S144: 0 | V144: 48107 | W144: Staff Amenities
V145: 48210 | W145: Consumables
V146: 48523 | W146: Publications, Subscriptions & Memberships
H147: TOTAL SURPLUS / (DEFICIT) | J147: =J15-J144 -> 0 | L147: =L15-L144 -> 0 | M147: 0 | N147: 0 | O147: 0 | P147: 0 | Q147: 0 | R147: 0 | S147: 0 | V147: 48524 | W147: Protective Clothing/Uniforms/First Aid
J148: (this must be zero)
V150: 51200 | W150: Accounts Receivable Control
V151: 51220 | W151: Provision for Doubtful Debts
V152: 51245 | W152: Bond Deposits
V154: 51230 | W154: Accrued Revenue
V155: 51300 | W155: Prepayments
V156: 51310 | W156: Prepayments - Salaries
V158: 51401 | W158: GST Inputs
V160: 52301 | W160: At Call Investments
V161: 52320 | W161: Managed Investment Funds
V162: 52353 | W162: Shares In Listed Companies - Burke Fund
V163: 52354 | W163: Shares in IDP Education Pty Ltd
V164: 52355 | W164: Shares in VERNet Pty Ltd
V166: 55001 | W166: DEEWR R'ble - Unfunded Super
V168: 57000 | W168: Buildings Freehold - at Valuation
V169: 57005 | W169: Buildings Freehold - Accumulated Depreciation
V170: 57040 | W170: Imp to Intangible Buildings - at Cost
V171: 57045 | W171: Imp to Intangible Buildings - Accumulated Depreciation
V172: 57060 | W172: Imp to Intangible Buildings - Asset Control
V173: 57100 | W173: Buildings - Capital WIP NonCurrent
V175: 57200 | W175: Leasehold Improvements - at cost
V176: 57205 | W176: Leasehold Improvements - Acccumulated Amortisation
V177: 57210 | W177: Leasehold Improvements - CY additions
V178: 57245 | W178: Lease Revenue Straightlining
V180: 57800 | W180: Intangible Land at Cost
V181: 57801 | W181: Intangible Buildings at Cost
V182: 57805 | W182: Acc Amortisation Intangible Land
V183: 57806 | W183: Acc Amortisation Intangible Buildings
V185: 57920 | W185: Tenancy Rights
V186: 57925 | W186: Acc Amortisation Tenancy Rights
V188: 60000 | W188: Accounts Payable Control
V189: 60010 | W189: Accrued Expenses
V190: 60015 | W190: Overseas Health Cover
V192: 60300 | W192: Suspense Account - Visa Purchase Card
V194: 60400 | W194: Fringe Benefits Tax
V196: 60225 | W196: Payroll Clearing
V197: 60226 | W197: Commuter Club Clearing
V198: 60227 | W198: Union Clearing and Other Salary Deductions
V199: 60228 | W199: Salary Package Clearing
V200: 60231 | W200: PAYE Clearing
V201: 60232 | W201: Payroll Tax Clearing
V202: 60236 | W202: Workers Comp Clearing
V203: 60238 | W203: Long Service Clearing
V204: 60239 | W204: Government Parental Leave Clearing Acc
V205: 60240 | W205: Superannuation Clearing
V207: 60105 | W207: GST Outputs
V209: 60600 | W209: Revenue in Advance
V210: 60601 | W210: Grants in Advance
V211: 60602 | W211: Enrolment Fees in Advance
V212: 60610 | W212: Bond Deposits - University Residences
V213: 60621 | W213: Suspense Account - General
V214: 60652 | W214: Interest Rate SWAP Liability Current
V215: 60654 | W215: Deferred Grant Income Current
V216: 60699 | W216: System Default
V218: 61001 | W218: Current Provision for Annual Leave
V219: 61003 | W219: Current Provision for Long Service Leave
V220: 61010 | W220: Current Provision for Lease Liability
V222: 62005 | W222: NonCurrent Provision for Long Service Leave
V223: 62007 | W223: NonCurrent Provision for Unfunded Super
V224: 62011 | W224: Trust Funds - OS-HELP
... 33 more rows

Sheet Staff Calculations (hidden)
A1: Expiry Date: | B1: 2030-12-31 | O1: Expiry Date: | P1: 2022-12-31
A3: Project Year (sum) | B3: 1 | C3: 2 | D3: 3 | E3: 4 | F3: 5 | G3: 6 | H3: 7 | I3: 8 | J3: 9 | K3: 10 | L3: 11 | O3: Project Year (sum) | P3: 1 | Q3: 2 | R3: 3 | S3: 4 | T3: 5 | U3: 6 | V3: 7 | W3: 8
A4: Calendar Year (sum) | B4: =Years!B4 -> 2017 | C4: =Years!C4 -> 2018 | D4: =Years!D4 -> 2019 | E4: =Years!E4 -> 2020 | F4: =Years!F4 -> 2021 | G4: =Years!G4 -> 2022 | H4: =Years!H4 -> 2023 | I4: =Years!I4 -> 2024 | J4: =Years!J4 -> 2025 | K4: =Years!K4 -> 2026 | L4: =Years!L4 -> 2027 | O4: Calendar Year (sum) | P4: =Years!B4 -> 2017 | Q4: =Years!C4 -> 2018 | R4: =Years!D4 -> 2019 | S4: =Years!E4 -> 2020 | T4: =Years!F4 -> 2021 | U4: =Years!G4 -> 2022 | V4: =Years!H4 -> 2023 | W4: =Years!I4 -> 2024
A5: Column number | B5: 2 | C5: 3 | D5: 4 | E5: 5 | F5: 6 | G5: 7 | H5: 8 | I5: 9 | J5: 10 | K5: 11 | L5: 12 | O5: Column number | P5: =B5 -> 2 | Q5: 3 | R5: 4 | S5: 5 | T5: 6 | U5: 7 | V5: 8 | W5: 9
A6: Project Year | B6: =Years!B5 -> Year 1 | C6: =Years!C5 -> Year 2 | D6: =Years!D5 -> Year 3 | E6: =Years!E5 -> Year 4 | F6: =Years!F5 -> Year 5 | G6: =Years!G5 -> Year 6 | H6: =Years!H5 -> Year 7 | I6: =Years!I5 -> Year 8 | J6: =Years!J5 -> Year 9 | K6: =Years!K5 -> Year 10 | L6: =Years!L5 -> Year 11 | O6: Project Year | P6: =Years!B5 -> Year 1 | Q6: =Years!C5 -> Year 2 | R6: =Years!D5 -> Year 3 | S6: =Years!E5 -> Year 4 | T6: =Years!F5 -> Year 5 | U6: =Years!G5 -> Year 6 | V6: =Years!H5 -> Year 7 | W6: =Years!I5 -> Year 8
A7: Calendar Year | B7: =Years!B6 -> 2017 | C7: =Years!C6 -> 2018 | D7: =Years!D6 -> 2019 | E7: =Years!E6 -> 2020 | F7: =Years!F6 -> 2021 | G7: =Years!G6 -> 2022 | H7: =Years!H6 -> 2023 | I7: =Years!I6 -> 2024 | J7: =Years!J6 -> 2025 | K7: =Years!K6 -> 2026 | L7: =Years!L6 -> 2027 | O7: Calendar Year | P7: =Years!B6 -> 2017 | Q7: =Years!C6 -> 2018 | R7: =Years!D6 -> 2019 | S7: =Years!E6 -> 2020 | T7: =Years!F6 -> 2021 | U7: =Years!G6 -> 2022 | V7: =Years!H6 -> 2023 | W7: =Years!I6 -> 2024
A9: Start Date | B9: =Years!B8 -> 2017-01-01 | C9: =Years!C8 -> 2018-01-01 | D9: =Years!D8 -> 2019-01-01 | E9: =Years!E8 -> 2020-01-01 | F9: =Years!F8 -> 2021-01-01 | G9: =Years!G8 -> 2022-01-01 | H9: =Years!H8 -> 2023-01-01 | I9: =Years!I8 -> 2024-01-01 | J9: =Years!J8 -> 2025-01-01 | K9: =Years!K8 -> 2026-01-01 | L9: =Years!L8 -> 2027-01-01 | O9: Start Date | P9: =B9 -> 2017-01-01 | Q9: 2018-01-01 | R9: 2019-01-01 | S9: 2020-01-01 | T9: 2021-01-01 | U9: 2022-01-01 | V9: 2023-01-01 | W9: 2024-01-01
A10: End Date | B10: =Years!B9 -> 2017-12-31 | C10: =Years!C9 -> 2018-12-31 | D10: =Years!D9 -> 2019-12-31 | E10: =Years!E9 -> 2020-12-31 | F10: =Years!F9 -> 2021-12-31 | G10: =Years!G9 -> 2022-12-31 | H10: =Years!H9 -> 2023-12-31 | I10: =Years!I9 -> 2024-12-31 | J10: =Years!J9 -> 2025-12-31 | K10: =Years!K9 -> 2026-12-31 | L10: =Years!L9 -> 2027-12-31 | O10: End Date | P10: 2017-12-31 | Q10: 2018-12-31 | R10: 2019-12-31 | S10: 2020-12-31 | T10: 2021-12-31 | U10: 2022-12-31 | V10: 2023-12-31 | W10: 2024-12-31
A12: Calendar Year Start Within | B12: =Years!B11 -> 2017-01-01 | C12: =Years!C11 -> 2018-01-01 | D12: =Years!D11 -> 2019-01-01 | E12: =Years!E11 -> 2020-01-01 | F12: =Years!F11 -> 2021-01-01 | G12: =Years!G11 -> 2022-01-01 | H12: =Years!H11 -> 2023-01-01 | I12: =Years!I11 -> 2024-01-01 | J12: =Years!J11 -> 2025-01-01 | K12: =Years!K11 -> 2026-01-01 | L12: =Years!L11 -> 2027-01-01 | O12: Calendar Year Start Within | P12: =Years!B11 -> 2017-01-01 | Q12: =Years!C11 -> 2018-01-01 | R12: =Years!D11 -> 2019-01-01 | S12: =Years!E11 -> 2020-01-01 | T12: =Years!F11 -> 2021-01-01 | U12: =Years!G11 -> 2022-01-01 | V12: =Years!H11 -> 2023-01-01 | W12: =Years!I11 -> 2024-01-01
A14: Financial years | B14: 1 | C14: 2 | D14: 3 | E14: 4 | F14: 5 | G14: 6 | H14: 7 | I14: 8 | J14: 9 | K14: 10 | L14: 11 | O14: Financial years | P14: 1 | Q14: 2 | R14: 3 | S14: 4 | T14: 5 | U14: 6 | V14: 7 | W14: 8
B15: =Years!B14 -> 3799-3800 | C15: 2018-2019 | D15: 2019-2020 | E15: 2020-2021 | F15: 2021-2022 | G15: 2022-2023 | H15: 2023-2024 | I15: 2024-2025 | J15: 2025-2026 | K15: 2026-2027 | L15: 2027-2028 | P15: =Years!B14 -> 3799-3800 | Q15: =Years!C14 -> 3800-3801 | R15: =Years!D14 -> 3801-3802 | S15: =Years!E14 -> 3802-3803 | T15: =Years!F14 -> 3803-3804 | U15: =Years!G14 -> 3804-3805 | V15: =Years!H14 -> 3805-3806 | W15: =Years!I14 -> 3806-3807
A16: Start Date | B16: =Years!B15 -> 3799-07-02 | C16: 2018-07-02 | D16: 2019-07-02 | E16: 2020-07-02 | F16: 2021-07-02 | G16: 2022-07-02 | H16: 2023-07-02 | I16: 2024-07-02 | J16: 2025-07-02 | K16: 2026-07-02 | L16: 2027-07-02 | O16: Start Date | P16: =Years!B15 -> 3799-07-02 | Q16: =Years!C15 -> 3800-07-02 | R16: =Years!D15 -> 3801-07-02 | S16: =Years!E15 -> 3802-07-02 | T16: =Years!F15 -> 3803-07-02 | U16: =Years!G15 -> 3804-07-02 | V16: =Years!H15 -> 3805-07-02 | W16: =Years!I15 -> 3806-07-02
A17: End Date | B17: =Years!B16 -> 3800-07-01 | C17: 2019-07-01 | D17: 2020-07-01 | E17: 2021-07-01 | F17: 2022-07-01 | G17: 2023-07-01 | H17: 2024-07-01 | I17: 2025-07-01 | J17: 2026-07-01 | K17: 2027-07-01 | L17: 2028-07-01 | O17: End Date | P17: =Years!B16 -> 3800-07-01 | Q17: =Years!C16 -> 3801-07-01 | R17: =Years!D16 -> 3802-07-01 | S17: =Years!E16 -> 3803-07-01 | T17: =Years!F16 -> 3804-07-01 | U17: =Years!G16 -> 3805-07-01 | V17: =Years!H16 -> 3806-07-01 | W17: =Years!I16 -> 3807-07-01
A18: No. Days | B18: =Years!B17 -> 364 | C18: =Years!C17 -> 364 | D18: =Years!D17 -> 364 | E18: =Years!E17 -> 364 | F18: =Years!F17 -> 365 | G18: =Years!G17 -> 364 | H18: =Years!H17 -> 364 | I18: =Years!I17 -> 364 | J18: =Years!J17 -> 365 | K18: =Years!K17 -> 364 | L18: =Years!L17 -> 364 | O18: No. Days | P18: 260.9 | Q18: 260.9 | R18: 260.9 | S18: 260.9 | T18: 260.9 | U18: 260.9 | V18: 260.9 | W18: 260.9
A20: Last day of previous Financial year | B20: =Years!B19 -> 3799-06-30 | O20: Last day of previous Financial year | P20: =Years!B19 -> 3799-06-30
A22: Personnel No. | B22: 1 | C22: 2 | D22: 3 | E22: 4 | F22: 5 | G22: 6 | H22: 7 | I22: 7 | J22: 8 | K22: 9 | L22: 10 | O22: Personnel No. | P22: 1 | Q22: 2 | R22: 3 | S22: 4 | T22: 5 | U22: 6 | V22: 7 | W22: 7
B23: ='3.Continue_Fixed Salary'!$K$11 -> 00:00:00 | C23: ='3.Continue_Fixed Salary'!$K$11 -> 00:00:00 | D23: ='3.Continue_Fixed Salary'!$K$11 -> 00:00:00 | E23: ='3.Continue_Fixed Salary'!$K$11 -> 00:00:00 | F23: ='3.Continue_Fixed Salary'!$K$11 -> 00:00:00 | G23: ='3.Continue_Fixed Salary'!$K$11 -> 00:00:00 | H23: ='3.Continue_Fixed Salary'!$K$11 -> 00:00:00 | I23: ='3.Continue_Fixed Salary'!$K$11 -> 00:00:00 | J23: ='3.Continue_Fixed Salary'!$K$11 -> 00:00:00 | K23: ='3.Continue_Fixed Salary'!$K$11 -> 00:00:00 | L23: ='3.Continue_Fixed Salary'!$K$11 -> 00:00:00 | P23: ='3.Continue_Fixed Salary'!$K$11 -> 00:00:00 | Q23: ='3.Continue_Fixed Salary'!$K$11 -> 00:00:00 | R23: ='3.Continue_Fixed Salary'!$K$11 -> 00:00:00 | S23: ='3.Continue_Fixed Salary'!$K$11 -> 00:00:00 | T23: ='3.Continue_Fixed Salary'!$K$11 -> 00:00:00 | U23: ='3.Continue_Fixed Salary'!$K$11 -> 00:00:00 | V23: ='3.Continue_Fixed Salary'!$K$11 -> 00:00:00 | W23: ='3.Continue_Fixed Salary'!$K$11 -> 00:00:00
B24: ='3.Continue_Fixed Salary'!$L$11 -> 00:00:00 | C24: ='3.Continue_Fixed Salary'!$L$11 -> 00:00:00 | D24: ='3.Continue_Fixed Salary'!$L$11 -> 00:00:00 | E24: ='3.Continue_Fixed Salary'!$L$11 -> 00:00:00 | F24: ='3.Continue_Fixed Salary'!$L$11 -> 00:00:00 | G24: ='3.Continue_Fixed Salary'!$L$11 -> 00:00:00 | H24: ='3.Continue_Fixed Salary'!$L$11 -> 00:00:00 | I24: ='3.Continue_Fixed Salary'!$L$11 -> 00:00:00 | J24: ='3.Continue_Fixed Salary'!$L$11 -> 00:00:00 | K24: ='3.Continue_Fixed Salary'!$L$11 -> 00:00:00 | L24: ='3.Continue_Fixed Salary'!$L$11 -> 00:00:00 | P24: ='3.Continue_Fixed Salary'!$L$11 -> 00:00:00 | Q24: ='3.Continue_Fixed Salary'!$L$11 -> 00:00:00 | R24: ='3.Continue_Fixed Salary'!$L$11 -> 00:00:00 | S24: ='3.Continue_Fixed Salary'!$L$11 -> 00:00:00 | T24: ='3.Continue_Fixed Salary'!$L$11 -> 00:00:00 | U24: ='3.Continue_Fixed Salary'!$L$11 -> 00:00:00 | V24: ='3.Continue_Fixed Salary'!$L$11 -> 00:00:00 | W24: ='3.Continue_Fixed Salary'!$L$11 -> 00:00:00
B25: ='3.Continue_Fixed Salary'!$J$11 -> 0 | C25: ='3.Continue_Fixed Salary'!$J$11 -> 0 | D25: ='3.Continue_Fixed Salary'!$J$11 -> 0 | E25: ='3.Continue_Fixed Salary'!$J$11 -> 0 | F25: ='3.Continue_Fixed Salary'!$J$11 -> 0 | G25: ='3.Continue_Fixed Salary'!$J$11 -> 0 | H25: ='3.Continue_Fixed Salary'!$J$11 -> 0 | I25: ='3.Continue_Fixed Salary'!$J$11 -> 0 | J25: ='3.Continue_Fixed Salary'!$J$11 -> 0 | K25: ='3.Continue_Fixed Salary'!$J$11 -> 0 | L25: ='3.Continue_Fixed Salary'!$J$11 -> 0 | P25: ='3.Continue_Fixed Salary'!$J$11 -> 0 | Q25: ='3.Continue_Fixed Salary'!$J$11 -> 0 | R25: ='3.Continue_Fixed Salary'!$J$11 -> 0 | S25: ='3.Continue_Fixed Salary'!$J$11 -> 0 | T25: ='3.Continue_Fixed Salary'!$J$11 -> 0 | U25: ='3.Continue_Fixed Salary'!$J$11 -> 0 | V25: ='3.Continue_Fixed Salary'!$J$11 -> 0 | W25: ='3.Continue_Fixed Salary'!$J$11 -> 0
B26: ='3.Continue_Fixed Salary'!$P$11 -> 0 | C26: ='3.Continue_Fixed Salary'!$P$11 -> 0 | D26: ='3.Continue_Fixed Salary'!$P$11 -> 0 | E26: ='3.Continue_Fixed Salary'!$P$11 -> 0 | F26: ='3.Continue_Fixed Salary'!$P$11 -> 0 | G26: ='3.Continue_Fixed Salary'!$P$11 -> 0 | H26: ='3.Continue_Fixed Salary'!$P$11 -> 0 | I26: ='3.Continue_Fixed Salary'!$P$11 -> 0 | J26: ='3.Continue_Fixed Salary'!$P$11 -> 0 | K26: ='3.Continue_Fixed Salary'!$P$11 -> 0 | L26: ='3.Continue_Fixed Salary'!$P$11 -> 0 | P26: ='3.Continue_Fixed Salary'!$P$11 -> 0 | Q26: ='3.Continue_Fixed Salary'!$P$11 -> 0 | R26: ='3.Continue_Fixed Salary'!$P$11 -> 0 | S26: ='3.Continue_Fixed Salary'!$P$11 -> 0 | T26: ='3.Continue_Fixed Salary'!$P$11 -> 0 | U26: ='3.Continue_Fixed Salary'!$P$11 -> 0 | V26: ='3.Continue_Fixed Salary'!$P$11 -> 0 | W26: ='3.Continue_Fixed Salary'!$P$11 -> 0
A28: Positions - Financial year | B28: =B15 -> 3799-3800 | C28: =C15 -> 2018-2019 | D28: 2019-2020 | E28: 2020-2021 | F28: 2021-2022 | G28: 2022-2023 | H28: 2023-2024 | I28: =I15 -> 2024-2025 | J28: 2025-2026 | K28: 2026-2027 | L28: 2027-2028 | O28: Positions - Financial year | P28: =P15 -> 3799-3800 | Q28: =Q15 -> 3800-3801 | R28: 3801-3802 | S28: 3802-3803 | T28: 3803-3804 | U28: 3804-3805 | V28: 3805-3806 | W28: 3806-3807
A29: 1 | B29: =B74+B80 -> 0 | C29: =B86+B92+C74+C80 -> 0 | D29: 0 | E29: 0 | F29: 0 | G29: 0 | H29: 0 | I29: 0 | J29: =I86+I92+J74+J80 -> 0 | K29: =J86+J92+K74+K80 -> 0 | L29: =K86+K92+L74+L80 -> 0 | O29: 1 | P29: =P74+P80 ->  | Q29: =P86+P92+Q74+Q80 ->  | R29: =Q86+Q92+R74+R80 ->  | S29: =R86+R92+S74+S80 ->  | T29: =S86+S92+T74+T80 ->  | U29: =T86+T92+U74+U80 ->  | V29: =U86+U92+V74+V80 ->  | W29: =V86+V92+W74+W80 -> 
A30: 2 | B30: =B113+B119 -> 0 | C30: =B125+B131+C113+C119 -> 0 | D30: 0 | E30: 0 | F30: 0 | G30: 0 | H30: 0 | I30: 0 | J30: =I125+I131+J113+J119 -> 0 | K30: =J125+J131+K113+K119 -> 0 | L30: =K125+K131+L113+L119 -> 0 | O30: 2 | P30: =P113+P119 ->  | Q30: =P125+P131+Q113+Q119 ->  | R30: =Q125+Q131+R113+R119 ->  | S30: =R125+R131+S113+S119 ->  | T30: =S125+S131+T113+T119 ->  | U30: =T125+T131+U113+U119 ->  | V30: =U125+U131+V113+V119 ->  | W30: =V125+V131+W113+W119 -> 
A31: 3 | B31: =B152+B158 -> 0 | C31: =B164+B170+C152+C158 -> 0 | D31: 0 | E31: 0 | F31: 0 | G31: 0 | H31: 0 | I31: 0 | J31: =I164+I170+J152+J158 -> 0 | K31: =J164+J170+K152+K158 -> 0 | L31: =K164+K170+L152+L158 -> 0 | O31: 3 | P31: =P152+P158 ->  | Q31: =P164+P170+Q152+Q158 ->  | R31: =Q164+Q170+R152+R158 ->  | S31: =R164+R170+S152+S158 ->  | T31: =S164+S170+T152+T158 ->  | U31: =T164+T170+U152+U158 ->  | V31: =U164+U170+V152+V158 ->  | W31: =V164+V170+W152+W158 -> 
A32: 4 | B32: =B191+B197 -> 0 | C32: =B203+B209+C191+C197 -> 0 | D32: 0 | E32: 0 | F32: 0 | G32: 0 | H32: 0 | I32: 0 | J32: =I203+I209+J191+J197 -> 0 | K32: =J203+J209+K191+K197 -> 0 | L32: =K203+K209+L191+L197 -> 0 | O32: 4 | P32: =P191+P197 ->  | Q32: =P203+P209+Q191+Q197 ->  | R32: =Q203+Q209+R191+R197 ->  | S32: =R203+R209+S191+S197 ->  | T32: =S203+S209+T191+T197 ->  | U32: =T203+T209+U191+U197 ->  | V32: =U203+U209+V191+V197 ->  | W32: =V203+V209+W191+W197 -> 
A33: 5 | B33: =B230+B236 -> 0 | C33: =B242+B248+C230+C236 -> 0 | D33: 0 | E33: 0 | F33: 0 | G33: 0 | H33: 0 | I33: 0 | J33: =I242+I248+J230+J236 -> 0 | K33: =J242+J248+K230+K236 -> 0 | L33: =K242+K248+L230+L236 -> 0 | O33: 5 | P33: =P230+P236 ->  | Q33: =P242+P248+Q230+Q236 ->  | R33: =Q242+Q248+R230+R236 ->  | S33: =R242+R248+S230+S236 ->  | T33: =S242+S248+T230+T236 ->  | U33: =T242+T248+U230+U236 ->  | V33: =U242+U248+V230+V236 ->  | W33: =V242+V248+W230+W236 -> 
A34: 6 | B34: =B269+B275 -> 0 | C34: =B281+B287+C269+C275 -> 0 | D34: 0 | E34: 0 | F34: 0 | G34: 0 | H34: 0 | I34: 0 | J34: =I281+I287+J269+J275 -> 0 | K34: =J281+J287+K269+K275 -> 0 | L34: =K281+K287+L269+L275 -> 0 | O34: 6 | P34: =P269+P275 ->  | Q34: =P281+P287+Q269+Q275 ->  | R34: =Q281+Q287+R269+R275 ->  | S34: =R281+R287+S269+S275 ->  | T34: =S281+S287+T269+T275 ->  | U34: =T281+T287+U269+U275 ->  | V34: =U281+U287+V269+V275 ->  | W34: =V281+V287+W269+W275 -> 
A35: 7 | B35: =B308+B314 -> 0 | C35: =B320+B326+C308+C314 -> 0 | D35: 0 | E35: 0 | F35: 0 | G35: 0 | H35: 0 | I35: 0 | J35: =I320+I326+J308+J314 -> 0 | K35: =J320+J326+K308+K314 -> 0 | L35: =K320+K326+L308+L314 -> 0 | O35: 7 | P35: =P308+P314 ->  | Q35: =P320+P326+Q308+Q314 ->  | R35: =Q320+Q326+R308+R314 ->  | S35: =R320+R326+S308+S314 ->  | T35: =S320+S326+T308+T314 ->  | U35: =T320+T326+U308+U314 ->  | V35: =U320+U326+V308+V314 ->  | W35: =V320+V326+W308+W314 -> 
A36: 8 | B36: =B347+B353 -> 0 | C36: =B359+B365+C347+C353 -> 0 | D36: 0 | E36: 0 | F36: 0 | G36: 0 | H36: 0 | I36: 0 | J36: =I359+I365+J347+J353 -> 0 | K36: =J359+J365+K347+K353 -> 0 | L36: =K359+K365+L347+L353 -> 0 | O36: 8 | P36: =P347+P353 ->  | Q36: =P359+P365+Q347+Q353 ->  | R36: =Q359+Q365+R347+R353 ->  | S36: =R359+R365+S347+S353 ->  | T36: =S359+S365+T347+T353 ->  | U36: =T359+T365+U347+U353 ->  | V36: =U359+U365+V347+V353 ->  | W36: =V359+V365+W347+W353 -> 
A37: 9 | B37: =B386+B392 -> 0 | C37: =B398+B404+C386+C392 -> 0 | D37: 0 | E37: 0 | F37: 0 | G37: 0 | H37: 0 | I37: 0 | J37: =I398+I404+J386+J392 -> 0 | K37: =J398+J404+K386+K392 -> 0 | L37: =K398+K404+L386+L392 -> 0 | O37: 9 | P37: =P386+P392 ->  | Q37: =P398+P404+Q386+Q392 ->  | R37: =Q398+Q404+R386+R392 ->  | S37: =R398+R404+S386+S392 ->  | T37: =S398+S404+T386+T392 ->  | U37: =T398+T404+U386+U392 ->  | V37: =U398+U404+V386+V392 ->  | W37: =V398+V404+W386+W392 -> 
A38: 10 | B38: =B425+B431 -> 0 | C38: =B437+B443+C425+C431 -> 0 | D38: 0 | E38: 0 | F38: 0 | G38: 0 | H38: 0 | I38: 0 | J38: =I437+I443+J425+J431 -> 0 | K38: =J437+J443+K425+K431 -> 0 | L38: =K437+K443+L425+L431 -> 0 | O38: 10 | P38: =P425+P431 ->  | Q38: =P437+P443+Q425+Q431 ->  | R38: =Q437+Q443+R425+R431 ->  | S38: =R437+R443+S425+S431 ->  | T38: =S437+S443+T425+T431 ->  | U38: =T437+T443+U425+U431 ->  | V38: =U437+U443+V425+V431 ->  | W38: =V437+V443+W425+W431 -> 
A39: 11 | B39: =B464+B470 -> 0 | C39: =B476+B482+C464+C470 -> 0 | D39: =C476+C482+D464+D470 -> 0 | E39: 0 | F39: 0 | G39: 0 | H39: 0 | I39: 0 | J39: 0 | K39: 0 | L39: 0
A40: 12 | B40: =B503+B509 -> 0 | C40: =B515+B521+C503+C509 -> 0 | D40: =C515+C521+D503+D509 -> 0 | E40: 0 | F40: 0 | G40: 0 | H40: 0 | I40: 0 | J40: 0 | K40: 0 | L40: 0
A41: 13 | B41: =B542+B548 -> 0 | C41: =B554+B560+C542+C548 -> 0 | D41: =C554+C560+D542+D548 -> 0 | E41: 0 | F41: 0 | G41: 0 | H41: 0 | I41: 0 | J41: 0 | K41: 0 | L41: 0
A42: 14 | B42: =B581+B587 -> 0 | C42: =B593+B599+C581+C587 -> 0 | D42: =C593+C599+D581+D587 -> 0 | E42: 0 | F42: 0 | G42: 0 | H42: 0 | I42: 0 | J42: 0 | K42: 0 | L42: 0
A43: 15 | B43: =B620+B626 -> 0 | C43: =B632+B638+C620+C626 -> 0 | D43: =C632+C638+D620+D626 -> 0 | E43: 0 | F43: 0 | G43: 0 | H43: 0 | I43: 0 | J43: 0 | K43: 0 | L43: 0
A45: Positions - Calendar year | B45: =$B$4 -> 2017 | C45: =B45+1 -> 2018 | D45: 2019 | E45: 2020 | F45: 2021 | G45: 2022 | H45: 2023 | I45: 2024 | J45: =I45+1 -> 2025 | K45: =J45+1 -> 2026 | L45: =K45+1 -> 2027 | O45: Positions - Calendar year | P45: =$B$4 -> 2017 | Q45: =P45+1 -> 2018 | R45: =Q45+1 -> 2019 | S45: =R45+1 -> 2020 | T45: =S45+1 -> 2021 | U45: =T45+1 -> 2022 | V45: =U45+1 -> 2023 | W45: =V45+1 -> 2024
A46: 1 | B46: =VLOOKUP($A46,$A$63:$L$451,HLOOKUP(B$45,$B$4:$L$5,2,FALSE),FALSE) -> 0 | C46: 0 | D46: 0 | E46: 0 | F46: 0 | G46: 0 | H46: 0 | I46: 0 | J46: 0 | K46: 0 | L46: 0 | O46: 1 | P46: =VLOOKUP($A46,$A$63:$H$451,HLOOKUP(P$45,$B$4:$H$5,2,FALSE),FALSE) -> 0 | Q46: =VLOOKUP($A46,$O$63:$W$451,HLOOKUP(Q$45,$P$4:$W$5,2,FALSE),FALSE) -> 
A47: 2 | B47: 0 | C47: 0 | D47: 0 | E47: 0 | F47: 0 | G47: 0 | H47: 0 | I47: 0 | J47: 0 | K47: 0 | L47: 0 | O47: 2 | P47: 0
A48: 3 | B48: 0 | C48: 0 | D48: 0 | E48: 0 | F48: 0 | G48: 0 | H48: 0 | I48: 0 | J48: 0 | K48: 0 | L48: 0 | O48: 3 | P48: 0
A49: 4 | B49: 0 | C49: 0 | D49: 0 | E49: 0 | F49: 0 | G49: 0 | H49: 0 | I49: 0 | J49: 0 | K49: 0 | L49: 0 | O49: 4 | P49: 0
A50: 5 | B50: 0 | C50: 0 | D50: 0 | E50: 0 | F50: 0 | G50: 0 | H50: 0 | I50: 0 | J50: 0 | K50: 0 | L50: 0 | O50: 5 | P50: 0
A51: 6 | B51: 0 | C51: 0 | D51: 0 | E51: 0 | F51: 0 | G51: 0 | H51: 0 | I51: 0 | J51: 0 | K51: 0 | L51: 0 | O51: 6 | P51: 0
A52: 7 | B52: 0 | C52: 0 | D52: 0 | E52: 0 | F52: 0 | G52: 0 | H52: 0 | I52: 0 | J52: 0 | K52: 0 | L52: 0 | O52: 7 | P52: 0
A53: 8 | B53: 0 | C53: 0 | D53: 0 | E53: 0 | F53: 0 | G53: 0 | H53: 0 | I53: 0 | J53: 0 | K53: 0 | L53: 0 | O53: 8 | P53: 0
A54: 9 | B54: 0 | C54: 0 | D54: 0 | E54: 0 | F54: 0 | G54: 0 | H54: 0 | I54: 0 | J54: 0 | K54: 0 | L54: 0 | O54: 9 | P54: 0
A55: 10 | B55: =VLOOKUP($A55,$A$63:$L$646,HLOOKUP(B$45,$B$4:$L$5,2,FALSE),FALSE) -> 0 | C55: =VLOOKUP($A55,$A$63:$L$646,HLOOKUP(C$45,$B$4:$L$5,2,FALSE),FALSE) -> 0 | D55: =VLOOKUP($A55,$A$63:$L$646,HLOOKUP(D$45,$B$4:$L$5,2,FALSE),FALSE) -> 0 | E55: 0 | F55: 0 | G55: 0 | H55: 0 | I55: 0 | J55: 0 | K55: 0 | L55: 0 | O55: 10 | P55: 0
A56: 11 | B56: =VLOOKUP($A56,$A$63:$L$646,HLOOKUP(B$45,$B$4:$L$5,2,FALSE),FALSE) -> 0 | C56: 0 | D56: 0 | E56: 0 | F56: 0 | G56: 0 | H56: 0 | I56: 0 | J56: 0 | K56: 0 | L56: 0
A57: 12 | B57: 0 | C57: 0 | D57: 0 | E57: 0 | F57: 0 | G57: 0 | H57: 0 | I57: 0 | J57: 0 | K57: 0 | L57: 0
A58: 13 | B58: 0 | C58: 0 | D58: 0 | E58: 0 | F58: 0 | G58: 0 | H58: 0 | I58: 0 | J58: 0 | K58: 0 | L58: 0
A59: 14 | B59: 0 | C59: 0 | D59: 0 | E59: 0 | F59: 0 | G59: 0 | H59: 0 | I59: 0 | J59: 0 | K59: 0 | L59: 0
A60: 15 | B60: 0 | C60: 0 | D60: 0 | E60: 0 | F60: 0 | G60: 0 | H60: 0 | I60: 0 | J60: 0 | K60: 0 | L60: 0
A63: Position 1 | B63: =VLOOKUP('Staff Calculations'!B$68,Increments!B1:D155,3,FALSE) ->  | C63: =IF(B63="ARC","No",'3.Continue_Fixed Salary'!$M$10) ->  | O63: Position 1 | P63: =VLOOKUP('Staff Calculations'!P$68,Increments!Q1:S155,3,FALSE) ->  | Q63: =IF(P63="ARC","No",'3.Continue_Fixed Salary'!$M$10) -> 
A64: Start Date | B64: ='3.Continue_Fixed Salary'!$K$10 -> 00:00:00 | O64: Start Date | P64: ='3.Continue_Fixed Salary'!#REF! -> 
A65: End Date | B65: ='3.Continue_Fixed Salary'!$L$10 -> 00:00:00 | M65: Check No. Days | O65: End Date | P65: ='3.Continue_Fixed Salary'!#REF! -> 
A66: FTE | B66: ='3.Continue_Fixed Salary'!$J$10 -> 0 | M66: =B65-B64 -> 0 | O66: FTE | P66: ='3.Continue_Fixed Salary'!#REF! -> 
A67: Commencing Salary | B67: ='3.Continue_Fixed Salary'!$P$10 -> 0 | M67: =SUM(B99:H99) -> 0 | O67: Commencing Salary | P67: ='3.Continue_Fixed Salary'!#REF! -> 
A68: Level & Step at change | B68: ='3.Continue_Fixed Salary'!$E$10 -> 0 | C68: =IF((YEAR('3.Continue_Fixed Salary'!$K$10))=C70,'3.Continue_Fixed Salary'!$E$10,(IF($C63="No",$B68,(VLOOKUP(C69,Increments!$A$1:$E$169,2,FALSE))))) ->  | D68: =IF((YEAR('3.Continue_Fixed Salary'!$K$10))=D70,'3.Continue_Fixed Salary'!$E$10,(IF($C63="No",$B68,(VLOOKUP(D69,Increments!$A$1:$E$169,2,FALSE))))) ->  | E68: =IF((YEAR('3.Continue_Fixed Salary'!$K$10))=E70,'3.Continue_Fixed Salary'!$E$10,(IF($C63="No",$B68,(VLOOKUP(E69,Increments!$A$1:$E$169,2,FALSE))))) ->  | F68: =IF((YEAR('3.Continue_Fixed Salary'!$K$10))=F70,'3.Continue_Fixed Salary'!$E$10,(IF($C63="No",$E68,(VLOOKUP(F69,Increments!$A$1:$E$169,2,FALSE))))) ->  | G68: =IF((YEAR('3.Continue_Fixed Salary'!$K$10))=G70,'3.Continue_Fixed Salary'!$E$10,(IF($C63="No",$E68,(VLOOKUP(G69,Increments!$A$1:$E$169,2,FALSE))))) ->  | H68: =IF((YEAR('3.Continue_Fixed Salary'!$K$10))=H70,'3.Continue_Fixed Salary'!$E$10,(IF($C63="No",$E68,(VLOOKUP(H69,Increments!$A$1:$E$169,2,FALSE))))) ->  | I68: =IF((YEAR('3.Continue_Fixed Salary'!$K$10))=I70,'3.Continue_Fixed Salary'!$E$10,(IF($C63="No",$E68,(VLOOKUP(I69,Increments!$A$1:$E$169,2,FALSE))))) ->  | J68: =IF((YEAR('3.Continue_Fixed Salary'!$K$10))=J70,'3.Continue_Fixed Salary'!$E$10,(IF($C63="No",$E68,(VLOOKUP(J69,Increments!$A$1:$E$169,2,FALSE))))) ->  | K68: =IF((YEAR('3.Continue_Fixed Salary'!$K$10))=K70,'3.Continue_Fixed Salary'!$E$10,(IF($C63="No",$E68,(VLOOKUP(K69,Increments!$A$1:$E$169,2,FALSE))))) ->  | L68: =IF((YEAR('3.Continue_Fixed Salary'!$K$10))=L70,'3.Continue_Fixed Salary'!$E$10,(IF($C63="No",$E68,(VLOOKUP(L69,Increments!$A$1:$E$169,2,FALSE))))) ->  | O68: Level & Step at change | P68: ='3.Continue_Fixed Salary'!$E$10 -> 0 | Q68: =IF((YEAR('3.Continue_Fixed Salary'!$K$10))=Q70,'3.Continue_Fixed Salary'!$E$10,(IF($C63="No",$B68,(VLOOKUP(Q69,Increments!$A$1:$E$169,2,FALSE))))) ->  | R68: =IF((YEAR('3.Continue_Fixed Salary'!$K$10))=R70,'3.Continue_Fixed Salary'!$E$10,(IF($C63="No",$B68,(VLOOKUP(R69,Increments!$A$1:$E$169,2,FALSE))))) ->  | S68: =IF((YEAR('3.Continue_Fixed Salary'!$K$10))=S70,'3.Continue_Fixed Salary'!$E$10,(IF($C63="No",$B68,(VLOOKUP(S69,Increments!$A$1:$E$169,2,FALSE))))) ->  | T68: =IF((YEAR('3.Continue_Fixed Salary'!$K$10))=T70,'3.Continue_Fixed Salary'!$E$10,(IF($C63="No",$B68,(VLOOKUP(T69,Increments!$A$1:$E$169,2,FALSE))))) ->  | U68: =IF((YEAR('3.Continue_Fixed Salary'!$K$10))=U70,'3.Continue_Fixed Salary'!$E$10,(IF($C63="No",$B68,(VLOOKUP(U69,Increments!$A$1:$E$169,2,FALSE))))) ->  | V68: =IF((YEAR('3.Continue_Fixed Salary'!$K$10))=V70,'3.Continue_Fixed Salary'!$E$10,(IF($C63="No",$B68,(VLOOKUP(V69,Increments!$A$1:$E$169,2,FALSE))))) ->  | W68: =IF((YEAR('3.Continue_Fixed Salary'!$K$10))=W70,'3.Continue_Fixed Salary'!$E$10,(IF($C63="No",$B68,(VLOOKUP(W69,Increments!$A$1:$E$169,2,FALSE))))) -> 
A69: Step Column | B69: =IF((YEAR('3.Continue_Fixed Salary'!$K10))=B70,VLOOKUP($B68,Increments!$B$1:$E$178,2,FALSE),0) -> 0 | C69: =IF((YEAR('3.Continue_Fixed Salary'!$K10))=C70,VLOOKUP($B68,Increments!$B$1:$E$178,2,FALSE),0)+IF(B69=0,0,B69+1) -> 0 | D69: =IF((YEAR('3.Continue_Fixed Salary'!$K10))=D70,VLOOKUP($B68,Increments!$B$1:$E$178,2,FALSE),0)+IF(C69=0,0,C69+1) -> 0 | E69: =IF((YEAR('3.Continue_Fixed Salary'!$K10))=E70,VLOOKUP($B68,Increments!$B$1:$E$178,2,FALSE),0)+IF(D69=0,0,D69+1) -> 0 | F69: =IF((YEAR('3.Continue_Fixed Salary'!$K10))=F70,VLOOKUP($B68,Increments!$B$1:$E$178,2,FALSE),0)+IF(E69=0,0,E69+1) -> 0 | G69: =IF((YEAR('3.Continue_Fixed Salary'!$K10))=G70,VLOOKUP($B68,Increments!$B$1:$E$178,2,FALSE),0)+IF(F69=0,0,F69+1) -> 0 | H69: =IF((YEAR('3.Continue_Fixed Salary'!$K10))=H70,VLOOKUP($B68,Increments!$B$1:$E$178,2,FALSE),0)+IF(G69=0,0,G69+1) -> 0 | I69: =IF((YEAR('3.Continue_Fixed Salary'!$K10))=I70,VLOOKUP($B68,Increments!$B$1:$E$178,2,FALSE),0)+IF(H69=0,0,H69+1) -> 0 | J69: =IF((YEAR('3.Continue_Fixed Salary'!$K10))=J70,VLOOKUP($B68,Increments!$B$1:$E$178,2,FALSE),0)+IF(I69=0,0,I69+1) -> 0 | K69: =IF((YEAR('3.Continue_Fixed Salary'!$K10))=K70,VLOOKUP($B68,Increments!$B$1:$E$178,2,FALSE),0)+IF(J69=0,0,J69+1) -> 0 | L69: =IF((YEAR('3.Continue_Fixed Salary'!$K10))=L70,VLOOKUP($B68,Increments!$B$1:$E$178,2,FALSE),0)+IF(K69=0,0,K69+1) -> 0 | O69: Step Column | P69: =IF((YEAR('3.Continue_Fixed Salary'!$K10))=P70,VLOOKUP($B68,Increments!$B$1:$E$178,2,FALSE),0) -> 0 | Q69: =IF(P69=0,VLOOKUP($B68,Increments!$B$1:$E$170,2,FALSE),P69+1) ->  | R69: =IF(Q69=0,VLOOKUP($B68,Increments!$B$1:$E$170,2,FALSE),Q69+1) ->  | S69: =IF(R69=0,VLOOKUP($B68,Increments!$B$1:$E$170,2,FALSE),R69+1) ->  | T69: =IF(S69=0,VLOOKUP($B68,Increments!$B$1:$E$170,2,FALSE),S69+1) ->  | U69: =IF(T69=0,VLOOKUP($B68,Increments!$B$1:$E$170,2,FALSE),T69+1) ->  | V69: =IF(U69=0,VLOOKUP($B68,Increments!$B$1:$E$170,2,FALSE),U69+1) ->  | W69: =IF(V69=0,VLOOKUP($B68,Increments!$B$1:$E$170,2,FALSE),V69+1) -> 
A70: Year Commencing | B70: =YEAR(B71) -> 2017 | C70: =B70+1 -> 2018 | D70: 2019 | E70: 2020 | F70: 2021 | G70: 2022 | H70: 2023 | I70: 2024 | J70: =I70+1 -> 2025 | K70: =J70+1 -> 2026 | L70: =K70+1 -> 2027 | O70: Year Commencing | P70: =YEAR(P71) -> 2017 | Q70: =P70+1 -> 2018 | R70: =Q70+1 -> 2019 | S70: =R70+1 -> 2020 | T70: =S70+1 -> 2021 | U70: =T70+1 -> 2022 | V70: =U70+1 -> 2023 | W70: =V70+1 -> 2024
A71: First Day of Project Year | B71: =B$9 -> 2017-01-01 | C71: =C$9 -> 2018-01-01 | D71: 2019-01-01 | E71: 2020-01-01 | F71: 2021-01-01 | G71: 2022-01-01 | H71: 2023-01-01 | I71: 2024-01-01 | J71: 2025-01-01 | K71: 2026-01-01 | L71: 2027-01-01 | O71: First Day of Project Year | P71: =P$9 -> 2017-01-01 | Q71: =Q$9 -> 2018-01-01 | R71: 2019-01-01 | S71: 2020-01-01 | T71: 2021-01-01 | U71: 2022-01-01 | V71: 2023-01-01 | W71: 2024-01-01
A72: FTE Salary | B72: =B67 -> 0 | C72: =B67 -> 0 | D72: =C90 ->  | H72: =G90 ->  | I72: =H90 ->  | J72: =I90 ->  | K72: =J90 ->  | L72: =K90 ->  | O72: FTE Salary | P72: =P67 ->  | Q72: =P90 -> 0 | R72: =Q90 -> 0 | S72: =R90 -> 0 | T72: =S90 -> 0 | U72: =T90 -> 0 | V72: =U90 -> 0 | W72: =V90 -> 0
A73: Days at Salary | B73: =IF(OR(B77<=B71,$B65<=B71,B71<$B64),0,(IF((OR(B83<$B65,B77<$B65)),(IF(B77<=B83,(ABS(B71-B77)),(ABS(B71-B83)))),(ABS(B71-$B65))))) -> 0 | C73: 0 | D73: 0 | E73: 0 | F73: 0 | G73: 0 | H73: 0 | I73: 0 | J73: 0 | K73: 0 | L73: 0 | O73: Days at Salary | P73: =IF(OR(P77<=P71,$B65<=P71,P71<$B64),0,(IF((OR(P83<$B65,P77<$B65)),(IF(P77<=P83,(ABS(P71-P77)),(ABS(P71-P83)))),(ABS(P71-$B65))))) -> 0
A74: Amount (Salary) | B74: =IFERROR(((B72/B$18*B73)),0) -> 0 | C74: 0 | D74: 0 | E74: 0 | F74: 0 | G74: 0 | H74: 0 | I74: =IFERROR(((I72/I$18*I73)),0) -> 0 | J74: 0 | K74: 0 | L74: 0 | O74: Amount (Salary)
A75: Annual leave Loading | B75: =IF(B73=0,0,(IF(AND((((B74/26.089)*2)*0.175)<1370.3),((B74/26.089)*2)*0.175,1370.3))) -> 0 | C75: =IF(C73=0,0,(IF(AND((((C74/26.089)*2)*0.175)<1370.3),((C74/26.089)*2)*0.175,1370.3))) -> 0 | D75: 0 | E75: 0 | F75: 0 | G75: 0 | H75: 0 | I75: =IF(I73=0,0,(IF(AND((((I74/26.089)*2)*0.175)<1370.3),((I74/26.089)*2)*0.175,1370.3))) -> 0 | J75: 0 | K75: 0 | L75: 0 | O75: Annual leave Loading
A77: First Day of Increment | B77: =IF(B71<=(DATE(YEAR(B71),MONTH($B64),DAY($B64))),(DATE(YEAR(B71),MONTH($B64),DAY($B64))),(DATE(YEAR(B71)+1,MONTH($B64),DAY($B64)))) -> 2017-12-31 | C77: =(DATE(YEAR(B77)+1,MONTH($B64),DAY($B64))) -> 2017-12-31 | D77: 2017-12-31 | E77: 2017-12-31 | F77: 2017-12-31 | G77: 2017-12-31 | H77: 2017-12-31 | I77: 2017-12-31 | J77: =(DATE(YEAR(I77)+1,MONTH($B64),DAY($B64))) -> 2017-12-31 | K77: =(DATE(YEAR(J77)+1,MONTH($B64),DAY($B64))) -> 2017-12-31 | L77: =(DATE(YEAR(K77)+1,MONTH($B64),DAY($B64))) -> 2017-12-31 | O77: First Day of Increment | P77: =IF(P71<=(DATE(YEAR(P71),MONTH($B64),DAY($B64))),(DATE(YEAR(P71),MONTH($B64),DAY($B64))),(DATE(YEAR(P71)+1,MONTH($B64),DAY($B64)))) -> 2017-12-31 | Q77: =(DATE(YEAR(P77)+1,MONTH($P64),DAY($P64))) ->  | R77: =(DATE(YEAR(Q77)+1,MONTH($P64),DAY($P64))) -> 
A78: FTE Salary | B78: =B67 -> 0 | C78: =VLOOKUP(C68,(IF(OR('3.Continue_Fixed Salary'!$I$10="Casual (16.5%)",'3.Continue_Fixed Salary'!$I$10="Casual (30%)"),('Salary Schedule'!$A$67:$I$184),('Salary Schedule'!$A$5:$I$71))),((HLOOKUP(B$15,'Salary Schedule'!$B$4:$I$5,2,FALSE))),FALSE) ->  | D78: =VLOOKUP(D68,(IF(OR('3.Continue_Fixed Salary'!$I$10="Casual (16.5%)",'3.Continue_Fixed Salary'!$I$10="Casual (30%)"),('Salary Schedule'!$A$67:$I$184),('Salary Schedule'!$A$5:$I$71))),((HLOOKUP(C$15,'Salary Schedule'!$B$4:$I$5,2,FALSE))),FALSE) ->  | E78: =VLOOKUP(E68,(IF(OR('3.Continue_Fixed Salary'!$I$10="Casual (16.5%)",'3.Continue_Fixed Salary'!$I$10="Casual (30%)"),('Salary Schedule'!$A$67:$I$184),('Salary Schedule'!$A$5:$I$71))),((HLOOKUP(D$15,'Salary Schedule'!$B$4:$I$5,2,FALSE))),FALSE) ->  | F78: =VLOOKUP(F68,(IF(OR('3.Continue_Fixed Salary'!$I$10="Casual (16.5%)",'3.Continue_Fixed Salary'!$I$10="Casual (30%)"),('Salary Schedule'!$A$67:$I$184),('Salary Schedule'!$A$5:$I$71))),((HLOOKUP(E$15,'Salary Schedule'!$B$4:$I$5,2,FALSE))),FALSE) ->  | G78: =VLOOKUP(G68,(IF(OR('3.Continue_Fixed Salary'!$I$10="Casual (16.5%)",'3.Continue_Fixed Salary'!$I$10="Casual (30%)"),('Salary Schedule'!$A$67:$M$184),('Salary Schedule'!$A$5:$M$71))),((HLOOKUP(F$15,'Salary Schedule'!$B$4:$M$5,2,FALSE))),FALSE) ->  | H78: =VLOOKUP(H68,(IF(OR('3.Continue_Fixed Salary'!$I$10="Casual (16.5%)",'3.Continue_Fixed Salary'!$I$10="Casual (30%)"),('Salary Schedule'!$A$67:$M$184),('Salary Schedule'!$A$5:$M$71))),((HLOOKUP(G$15,'Salary Schedule'!$B$4:$M$5,2,FALSE))),FALSE) ->  | I78: =VLOOKUP(I68,(IF(OR('3.Continue_Fixed Salary'!$I$10="Casual (16.5%)",'3.Continue_Fixed Salary'!$I$10="Casual (30%)"),('Salary Schedule'!$A$67:$M$184),('Salary Schedule'!$A$5:$M$71))),((HLOOKUP(H$15,'Salary Schedule'!$B$4:$M$5,2,FALSE))),FALSE) ->  | J78: =VLOOKUP(J68,(IF(OR('3.Continue_Fixed Salary'!$I$10="Casual (16.5%)",'3.Continue_Fixed Salary'!$I$10="Casual (30%)"),('Salary Schedule'!$A$67:$M$184),('Salary Schedule'!$A$5:$M$71))),((HLOOKUP(I$15,'Salary Schedule'!$B$4:$M$5,2,FALSE))),FALSE) ->  | K78: =VLOOKUP(K68,(IF(OR('3.Continue_Fixed Salary'!$I$10="Casual (16.5%)",'3.Continue_Fixed Salary'!$I$10="Casual (30%)"),('Salary Schedule'!$A$67:$M$184),('Salary Schedule'!$A$5:$M$71))),((HLOOKUP(J$15,'Salary Schedule'!$B$4:$M$5,2,FALSE))),FALSE) ->  | L78: =VLOOKUP(L68,(IF(OR('3.Continue_Fixed Salary'!$I$10="Casual (16.5%)",'3.Continue_Fixed Salary'!$I$10="Casual (30%)"),('Salary Schedule'!$A$67:$M$184),('Salary Schedule'!$A$5:$M$71))),((HLOOKUP(K$15,'Salary Schedule'!$B$4:$M$5,2,FALSE))),FALSE) ->  | O78: FTE Salary | P78: =$P$67 ->  | Q78: =$P$67 -> 
A79: Days at Salary | B79: =IF(OR(B83<=$B64,$B65<=B77,B83<=B77),0,(IF(B83<$B65,(ABS(B77-B83)),(ABS(B77-$B65))))) -> 0 | C79: =IF(OR(C83<=$B64,$B65<=C77,C83<=C77),0,(IF(C83<$B65,(ABS(C77-C83)),(ABS(C77-$B65))))) -> 0 | D79: 0 | E79: 0 | F79: 0 | G79: 0 | H79: 0 | I79: =IF(OR(I83<=$B64,$B65<=I77,I83<=I77),0,(IF(I83<$B65,(ABS(I77-I83)),(ABS(I77-$B65))))) -> 0 | J79: 0 | K79: 0 | L79: 0 | O79: Days at Salary | P79: =IF(OR(P83<=$P64,$P65<=P77,P83<=P77),0,(IF(P83<$P65,(ABS(P77-P83)),(ABS(P77-$P65))))) ->  | Q79: =IF(OR(Q83<=$P64,$P65<=Q77,Q83<=Q77),0,(IF(Q83<$P65,(ABS(Q77-Q83)),(ABS(Q77-$P65))))) -> 
A80: Amount (Salary) | B80: =IFERROR(((B78/B$18*B79)),0) -> 0 | C80: =IFERROR(((C78/C$18*C79)),0) -> 0 | D80: =IFERROR(((D78/D$18*D79)),0) -> 0 | E80: 0 | F80: 0 | G80: 0 | H80: 0 | I80: =IFERROR(((I78/I$18*I79)),0) -> 0 | J80: 0 | K80: 0 | L80: 0 | O80: Amount (Salary) | P80: =IF(P79<>0,P78,0) ->  | Q80: =IF(Q79<>0,Q78,0) ->  | R80: =IF(R79<>0,R78,0) -> 
A81: Annual leave Loading | B81: =IF(B80=0,0,(IF(AND((((B80/26.089)*2)*0.175)<1370.3),((B80/26.089)*2)*0.175,1370.3)))/2 -> 0 | C81: =IF(C80=0,0,(IF(AND((((C80/26.089)*2)*0.175)<1370.3),((C80/26.089)*2)*0.175,1370.3)))/2 -> 0 | D81: 0 | E81: 0 | F81: 0 | G81: 0 | H81: 0 | I81: 0 | J81: 0 | K81: 0 | L81: 0 | O81: Annual leave Loading
A83: First Day of New Financial Year | B83: =IF(B71<=((DATE(YEAR(B64),7,1))),(DATE(YEAR(B77),MONTH($B$16),DAY($B$16))),(DATE(YEAR(B77)+1,MONTH($B$16),DAY($B$16)))) -> 2018-07-02 | C83: =(DATE(YEAR(B83)+1,MONTH(B83),DAY(B83))) -> 2019-07-02 | D83: 2020-07-02 | E83: 2021-07-02 | F83: 2022-07-02 | G83: 2023-07-02 | H83: 2024-07-02 | I83: 2025-07-02 | J83: =(DATE(YEAR(I83)+1,MONTH(I83),DAY(I83))) -> 2026-07-02 | K83: =(DATE(YEAR(J83)+1,MONTH(J83),DAY(J83))) -> 2027-07-02 | L83: =(DATE(YEAR(K83)+1,MONTH(K83),DAY(K83))) -> 2028-07-02 | O83: First Day of New Financial Year | P83: =IF(P71<=((DATE(YEAR(P64),7,1))),(DATE(YEAR(P77),MONTH($B$16),DAY($B$16))),(DATE(YEAR(P77)+1,MONTH($B$16),DAY($B$16)))) ->  | Q83: =(DATE(YEAR(P83)+1,MONTH(P83),DAY(P83))) ->  | R83: =(DATE(YEAR(Q83)+1,MONTH(Q83),DAY(Q83))) ->  | S83: =(DATE(YEAR(R83)+1,MONTH(R83),DAY(R83))) ->  | T83: =(DATE(YEAR(S83)+1,MONTH(S83),DAY(S83))) ->  | U83: =(DATE(YEAR(T83)+1,MONTH(T83),DAY(T83))) ->  | V83: =(DATE(YEAR(U83)+1,MONTH(U83),DAY(U83))) ->  | W83: =(DATE(YEAR(V83)+1,MONTH(V83),DAY(V83))) -> 
A84: FTE Salary | B84: =VLOOKUP((IF(B77<B83,B68,B68)),(IF('3.Continue_Fixed Salary'!I10="Casual (16.5%)",('Salary Schedule'!$A$67:$I$184),('Salary Schedule'!$A$4:$I$64))),(HLOOKUP('Staff Calculations'!B$15,'Salary Schedule'!$B$4:$I$5,2,FALSE)),FALSE)*1.03 ->  | C84: =VLOOKUP((IF(C77<C83,C68,B68)),(IF(OR('3.Continue_Fixed Salary'!$I$10="Casual (16.5%)",'3.Continue_Fixed Salary'!$I$10="Casual (30%)"),('Salary Schedule'!$A$67:$I$184),('Salary Schedule'!$A$5:$I$64))),(HLOOKUP('Staff Calculations'!C$15,'Salary Schedule'!$B$4:$I$5,2,FALSE)),FALSE) ->  | D84: =VLOOKUP((IF(D77<D83,D68,C68)),(IF(OR('3.Continue_Fixed Salary'!$I$10="Casual (16.5%)",'3.Continue_Fixed Salary'!$I$10="Casual (30%)"),('Salary Schedule'!$A$67:$I$184),('Salary Schedule'!$A$5:$I$64))),(HLOOKUP('Staff Calculations'!D$15,'Salary Schedule'!$B$4:$I$5,2,FALSE)),FALSE) ->  | E84: =VLOOKUP((IF(E77<E83,E68,D68)),(IF(OR('3.Continue_Fixed Salary'!$I$10="Casual (16.5%)",'3.Continue_Fixed Salary'!$I$10="Casual (30%)"),('Salary Schedule'!$A$67:$I$184),('Salary Schedule'!$A$5:$I$64))),(HLOOKUP('Staff Calculations'!E$15,'Salary Schedule'!$B$4:$I$5,2,FALSE)),FALSE) ->  | F84: =VLOOKUP((IF(F77<F83,F68,E68)),(IF(OR('3.Continue_Fixed Salary'!$I$10="Casual (16.5%)",'3.Continue_Fixed Salary'!$I$10="Casual (30%)"),('Salary Schedule'!$A$67:$I$184),('Salary Schedule'!$A$5:$I$64))),(HLOOKUP('Staff Calculations'!F$15,'Salary Schedule'!$B$4:$I$5,2,FALSE)),FALSE) ->  | G84: =VLOOKUP((IF(G77<G83,G68,F68)),(IF(OR('3.Continue_Fixed Salary'!$I$10="Casual (16.5%)",'3.Continue_Fixed Salary'!$I$10="Casual (30%)"),('Salary Schedule'!$A$67:$M$184),('Salary Schedule'!$A$5:$M$64))),(HLOOKUP('Staff Calculations'!G$15,'Salary Schedule'!$B$4:$M$5,2,FALSE)),FALSE) ->  | H84: =VLOOKUP((IF(H77<H83,H68,G68)),(IF(OR('3.Continue_Fixed Salary'!$I$10="Casual (16.5%)",'3.Continue_Fixed Salary'!$I$10="Casual (30%)"),('Salary Schedule'!$A$67:$M$184),('Salary Schedule'!$A$5:$M$64))),(HLOOKUP('Staff Calculations'!H$15,'Salary Schedule'!$B$4:$M$5,2,FALSE)),FALSE) ->  | I84: =VLOOKUP((IF(I77<I83,I68,H68)),(IF(OR('3.Continue_Fixed Salary'!$I$10="Casual (16.5%)",'3.Continue_Fixed Salary'!$I$10="Casual (30%)"),('Salary Schedule'!$A$67:$M$184),('Salary Schedule'!$A$5:$M$64))),(HLOOKUP('Staff Calculations'!I$15,'Salary Schedule'!$B$4:$M$5,2,FALSE)),FALSE) ->  | J84: =VLOOKUP((IF(J77<J83,J68,I68)),(IF(OR('3.Continue_Fixed Salary'!$I$10="Casual (16.5%)",'3.Continue_Fixed Salary'!$I$10="Casual (30%)"),('Salary Schedule'!$A$67:$M$184),('Salary Schedule'!$A$5:$M$64))),(HLOOKUP('Staff Calculations'!J$15,'Salary Schedule'!$B$4:$M$5,2,FALSE)),FALSE) ->  | K84: =VLOOKUP((IF(K77<K83,K68,J68)),(IF(OR('3.Continue_Fixed Salary'!$I$10="Casual (16.5%)",'3.Continue_Fixed Salary'!$I$10="Casual (30%)"),('Salary Schedule'!$A$67:$M$184),('Salary Schedule'!$A$5:$M$64))),(HLOOKUP('Staff Calculations'!K$15,'Salary Schedule'!$B$4:$M$5,2,FALSE)),FALSE) ->  | L84: =VLOOKUP((IF(L77<L83,L68,K68)),(IF(OR('3.Continue_Fixed Salary'!$I$10="Casual (16.5%)",'3.Continue_Fixed Salary'!$I$10="Casual (30%)"),('Salary Schedule'!$A$67:$M$184),('Salary Schedule'!$A$5:$M$64))),(HLOOKUP('Staff Calculations'!L$15,'Salary Schedule'!$B$4:$M$5,2,FALSE)),FALSE) ->  | O84: FTE Salary
A85: Days at Salary | B85: =IF(OR(B83<=$B64,$B65<=B83),0,(IF(B89<$B65,(IF(B89<=B83,(ABS(B83-B95)),(ABS(B83-B89)))),(ABS(B83-$B65))))) -> 0 | C85: =IF(OR(C83<=$B64,$B65<=C83),0,(IF(C89<$B65,(IF(C89<=C83,(ABS(C83-C95)),(ABS(C83-C89)))),(ABS(C83-$B65))))) -> 0 | D85: 0 | E85: 0 | F85: 0 | G85: 0 | H85: 0 | I85: =IF(OR(I83<=$B64,$B65<=I83),0,(IF(I89<$B65,(IF(I89<=I83,(ABS(I83-I95)),(ABS(I83-I89)))),(ABS(I83-$B65))))) -> 0 | J85: 0 | K85: 0 | L85: 0 | O85: Days at Salary
A86: Amount (Salary) | B86: =IFERROR(((B84/B$18*B85)),0) -> 0 | C86: =IFERROR(((C84/C$18*C85)),0) -> 0 | D86: 0 | E86: 0 | F86: 0 | G86: 0 | H86: 0 | I86: =IFERROR(((I84/I$18*I85)),0) -> 0 | J86: 0 | K86: 0 | L86: 0 | O86: Amount (Salary)
A87: Annual leave Loading | B87: =IF(B86=0,0,(IF(AND((((B86/26.089)*2)*0.175)<1370.3),((B86/26.089)*2)*0.175,1370.3)))/2 -> 0 | C87: =IF(C86=0,0,(IF(AND((((C86/26.089)*2)*0.175)<1370.3),((C86/26.089)*2)*0.175,1370.3)))/2 -> 0 | D87: 0 | E87: 0 | F87: 0 | G87: 0 | H87: 0 | I87: 0 | J87: 0 | K87: 0 | L87: 0 | O87: Annual leave Loading
A89: First Day of Increment | B89: =B77 -> 2017-12-31 | C89: 2017-12-31 | D89: 2017-12-31 | E89: 2017-12-31 | F89: 2017-12-31 | G89: 2017-12-31 | H89: 2017-12-31 | I89: =I77 -> 2017-12-31 | J89: 2017-12-31 | K89: 2017-12-31 | L89: 2017-12-31 | O89: First Day of Increment | P89: =P77 -> 2017-12-31
A90: FTE Salary | B90: =B84 ->  | C90: =VLOOKUP(C68,(IF(OR('3.Continue_Fixed Salary'!$I$10="Casual (16.5%)",'3.Continue_Fixed Salary'!$I$10="Casual (30%)"),('Salary Schedule'!$A$67:$I$184),('Salary Schedule'!$A$5:$I$64))),((HLOOKUP(C$15,'Salary Schedule'!$B$4:$I$5,2,FALSE))),FALSE) ->  | D90: =VLOOKUP(D68,(IF(OR('3.Continue_Fixed Salary'!$I$10="Casual (16.5%)",'3.Continue_Fixed Salary'!$I$10="Casual (30%)"),('Salary Schedule'!$A$67:$I$184),('Salary Schedule'!$A$5:$I$64))),((HLOOKUP(D$15,'Salary Schedule'!$B$4:$I$5,2,FALSE))),FALSE) ->  | E90: =VLOOKUP(E68,(IF(OR('3.Continue_Fixed Salary'!$I$10="Casual (16.5%)",'3.Continue_Fixed Salary'!$I$10="Casual (30%)"),('Salary Schedule'!$A$67:$I$184),('Salary Schedule'!$A$5:$I$64))),((HLOOKUP(E$15,'Salary Schedule'!$B$4:$I$5,2,FALSE))),FALSE) ->  | F90: =VLOOKUP(F68,(IF(OR('3.Continue_Fixed Salary'!$I$10="Casual (16.5%)",'3.Continue_Fixed Salary'!$I$10="Casual (30%)"),('Salary Schedule'!$A$67:$I$184),('Salary Schedule'!$A$5:$I$64))),((HLOOKUP(F$15,'Salary Schedule'!$B$4:$I$5,2,FALSE))),FALSE) ->  | G90: =VLOOKUP(G68,(IF(OR('3.Continue_Fixed Salary'!$I$10="Casual (16.5%)",'3.Continue_Fixed Salary'!$I$10="Casual (30%)"),('Salary Schedule'!$A$67:$M$184),('Salary Schedule'!$A$5:$M$64))),((HLOOKUP(G$15,'Salary Schedule'!$B$4:$M$5,2,FALSE))),FALSE) ->  | H90: =VLOOKUP(H68,(IF(OR('3.Continue_Fixed Salary'!$I$10="Casual (16.5%)",'3.Continue_Fixed Salary'!$I$10="Casual (30%)"),('Salary Schedule'!$A$67:$M$184),('Salary Schedule'!$A$5:$M$64))),((HLOOKUP(H$15,'Salary Schedule'!$B$4:$M$5,2,FALSE))),FALSE) ->  | I90: =VLOOKUP(I68,(IF(OR('3.Continue_Fixed Salary'!$I$10="Casual (16.5%)",'3.Continue_Fixed Salary'!$I$10="Casual (30%)"),('Salary Schedule'!$A$67:$M$184),('Salary Schedule'!$A$5:$M$64))),((HLOOKUP(I$15,'Salary Schedule'!$B$4:$M$5,2,FALSE))),FALSE) ->  | J90: =VLOOKUP(J68,(IF(OR('3.Continue_Fixed Salary'!$I$10="Casual (16.5%)",'3.Continue_Fixed Salary'!$I$10="Casual (30%)"),('Salary Schedule'!$A$67:$M$184),('Salary Schedule'!$A$5:$M$64))),((HLOOKUP(J$15,'Salary Schedule'!$B$4:$M$5,2,FALSE))),FALSE) ->  | K90: =VLOOKUP(K68,(IF(OR('3.Continue_Fixed Salary'!$I$10="Casual (16.5%)",'3.Continue_Fixed Salary'!$I$10="Casual (30%)"),('Salary Schedule'!$A$67:$M$184),('Salary Schedule'!$A$5:$M$64))),((HLOOKUP(K$15,'Salary Schedule'!$B$4:$M$5,2,FALSE))),FALSE) ->  | L90: =VLOOKUP(L68,(IF(OR('3.Continue_Fixed Salary'!$I$10="Casual (16.5%)",'3.Continue_Fixed Salary'!$I$10="Casual (30%)"),('Salary Schedule'!$A$67:$M$184),('Salary Schedule'!$A$5:$M$64))),((HLOOKUP(L$15,'Salary Schedule'!$B$4:$M$5,2,FALSE))),FALSE) ->  | O90: FTE Salary
A91: Days at Salary | B91: =IF(OR(B89<B83,B89<$B64,$B65<=B89),0,(IF(B95>$B65,(ABS(B89-$B65)),IF(B95<C83,(ABS(B89-B95)),(ABS(B89-C83)))))) -> 0 | C91: =IF(OR(C89<C83,C89<$B64,$B65<=C89),0,(IF(C95>$B65,(ABS(C89-$B65)),IF(C95<D83,(ABS(C89-C95)),(ABS(C89-D83)))))) -> 0 | D91: 0 | E91: 0 | F91: 0 | G91: 0 | H91: 0 | I91: =IF(OR(I89<I83,I89<$B64,$B65<=I89),0,(IF(I95>$B65,(ABS(I89-$B65)),IF(I95<J83,(ABS(I89-I95)),(ABS(I89-J83)))))) -> 0 | J91: =IF(OR(J89<J83,J89<$B64,$B65<=J89),0,(IF(J95>$B65,(ABS(J89-$B65)),IF(J95<K83,(ABS(J89-J95)),(ABS(J89-K83)))))) -> 0 | K91: =IF(OR(K89<K83,K89<$B64,$B65<=K89),0,(IF(K95>$B65,(ABS(K89-$B65)),IF(K95<L83,(ABS(K89-K95)),(ABS(K89-L83)))))) -> 0 | L91: =IF(OR(L89<L83,L89<$B64,$B65<=L89),0,(IF(L95>$B65,(ABS(L89-$B65)),IF(L95<M83,(ABS(L89-L95)),(ABS(L89-M83)))))) -> 0 | O91: Days at Salary
A92: Amount (Salary) | B92: =IFERROR(((B90/B$18*B91)),0) -> 0 | C92: 0 | D92: 0 | E92: 0 | F92: 0 | G92: 0 | H92: 0 | I92: =IFERROR(((I90/I$18*I91)),0) -> 0 | J92: 0 | K92: 0 | L92: 0 | O92: Amount (Salary)
A93: Annual leave Loading | B93: =IF(B91=0,0,(IF(AND((((B92/26.089)*2)*0.175)<1370.3),((B92/26.089)*2)*0.175,1370.3))) -> 0 | C93: =IF(C91=0,0,(IF(AND((((C92/26.089)*2)*0.175)<1370.3),((C92/26.089)*2)*0.175,1370.3))) -> 0 | D93: 0 | E93: 0 | F93: 0 | G93: 0 | H93: 0 | I93: =IF(I91=0,0,(IF(AND((((I92/26.089)*2)*0.175)<1370.3),((I92/26.089)*2)*0.175,1370.3))) -> 0 | J93: 0 | K93: 0 | L93: 0 | O93: Annual leave Loading
A95: Last date | B95: =IF(B97<B65,B97,B65) -> 00:00:00 | C95: =IF(C97<B65,C97,B65) -> 00:00:00 | D95: =IF(D97<$B65,D97,$B65) -> 00:00:00 | E95: 00:00:00 | F95: 00:00:00 | G95: 00:00:00 | H95: 00:00:00 | I95: 00:00:00 | J95: =IF(J97<$B65,J97,$B65) -> 00:00:00 | K95: 00:00:00 | L95: 00:00:00 | O95: Last date | P95: =IF(P97<P65,P97,P65) ->  | Q95: =IF(Q97<P65,Q97,P65) ->  | R95: =IF(R97<$P65,R97,$P65) ->  | S95: =IF(S97<$P65,S97,$P65) -> 
A97: First Day of New Project Year | B97: =(DATE(YEAR(B71)+1,MONTH(B71),DAY(B71))) -> 2018-01-01 | C97: =((DATE(YEAR(C71)+1,MONTH(C71),DAY(C71)))) -> 2019-01-01 | D97: 2020-01-01 | E97: 2021-01-01 | F97: 2022-01-01 | G97: 2023-01-01 | H97: 2024-01-01 | I97: =((DATE(YEAR(I71)+1,MONTH(I71),DAY(I71)))) -> 2025-01-01 | J97: 2026-01-01 | K97: 2027-01-01 | L97: 2028-01-01 | O97: First Day of New Project Year | P97: =(DATE(YEAR(P71)+1,MONTH(P71),DAY(P71))) -> 2018-01-01 | Q97: =((DATE(YEAR(Q71)+1,MONTH(Q71),DAY(Q71)))) -> 2019-01-01 | R97: 2020-01-01 | S97: =((DATE(YEAR(S71)+1,MONTH(S71),DAY(S71)))) -> 2021-01-01 | T97: 2022-01-01 | U97: 2023-01-01 | V97: 2024-01-01 | W97: 2025-01-01
A99: Total Days of Project Year 1 | B99: =B85+B79+B73+B91 -> 0 | C99: 0 | D99: 0 | E99: 0 | F99: 0 | G99: 0 | H99: 0 | I99: =I85+I79+I73+I91 -> 0 | J99: =J85+J79+J73+J91 -> 0 | K99: =K85+K79+K73+K91 -> 0 | L99: 0 | O99: Total Days of Project Year 1 | P99: =P85+P79+P73+P91 -> 
A100: 1 | B100: =(B86+B80+B74+B92+B81+B87+B75)*$B66 -> 0 | C100: =(C86+C80+C74+C92+C81+C87+C75+C93)*$B66 -> 0 | D100: 0 | E100: 0 | F100: 0 | G100: =(G86+G80+G74+G92+G81+G87+G75+G93)*$B66 -> 0 | H100: =(H86+H80+H74+H92+H81+H87+H75+H93)*$B66 -> 0 | I100: 0 | J100: =(J86+J80+J74+J92+J81+J87+J75+J93)*$B66 -> 0 | K100: 0 | L100: 0 | O100: 1 | P100: =(P86+P80+P74+P92+P81+P87+P75)*$P66 ->  | Q100: =(Q86+Q80+Q74+Q92+Q81+Q87+Q75)*$P66 -> 
A102: Position 2 | B102: =VLOOKUP('Staff Calculations'!B107,Increments!B$1:D$155,3,FALSE) ->  | C102: =IF(B102="ARC","No",'3.Continue_Fixed Salary'!$M$11) ->  | O102: Position 2 | P102: =VLOOKUP('Staff Calculations'!P107,Increments!Q$1:S$155,3,FALSE) ->  | Q102: =IF(P102="ARC","No",'3.Continue_Fixed Salary'!$M$11) -> 
A103: Start Date | B103: ='3.Continue_Fixed Salary'!$K$11 -> 00:00:00 | O103: Start Date | P103: ='3.Continue_Fixed Salary'!#REF! -> 
A104: End Date | B104: ='3.Continue_Fixed Salary'!$L$11 -> 00:00:00 | O104: End Date | P104: ='3.Continue_Fixed Salary'!#REF! -> 
A105: FTE | B105: ='3.Continue_Fixed Salary'!$J$11 -> 0 | O105: FTE | P105: ='3.Continue_Fixed Salary'!#REF! -> 
A106: Commencing Salary | B106: ='3.Continue_Fixed Salary'!$P$11 -> 0 | O106: Commencing Salary | P106: ='3.Continue_Fixed Salary'!#REF! -> 
A107: Level & Step at change | B107: ='3.Continue_Fixed Salary'!$E$11 -> 0 | C107: =IF((YEAR('3.Continue_Fixed Salary'!$K$11))=C109,'3.Continue_Fixed Salary'!$E$11,(IF($C102="No",$B107,(VLOOKUP(C108,Increments!$A$1:$E$169,2,FALSE))))) ->  | D107: =IF((YEAR('3.Continue_Fixed Salary'!$K$11))=D109,'3.Continue_Fixed Salary'!$E$11,(IF($C102="No",$B107,(VLOOKUP(D108,Increments!$A$1:$E$169,2,FALSE))))) ->  | E107: =IF((YEAR('3.Continue_Fixed Salary'!$K$11))=E109,'3.Continue_Fixed Salary'!$E$11,(IF($C102="No",$B107,(VLOOKUP(E108,Increments!$A$1:$E$169,2,FALSE))))) ->  | F107: =IF((YEAR('3.Continue_Fixed Salary'!$K$11))=F109,'3.Continue_Fixed Salary'!$E$11,(IF($C102="No",$E107,(VLOOKUP(F108,Increments!$A$1:$E$169,2,FALSE))))) ->  | G107: =IF((YEAR('3.Continue_Fixed Salary'!$K$11))=G109,'3.Continue_Fixed Salary'!$E$11,(IF($C102="No",$E107,(VLOOKUP(G108,Increments!$A$1:$E$169,2,FALSE))))) ->  | H107: =IF((YEAR('3.Continue_Fixed Salary'!$K$11))=H109,'3.Continue_Fixed Salary'!$E$11,(IF($C102="No",$E107,(VLOOKUP(H108,Increments!$A$1:$E$169,2,FALSE))))) ->  | I107: =IF((YEAR('3.Continue_Fixed Salary'!$K$11))=I109,'3.Continue_Fixed Salary'!$E$11,(IF($C102="No",$E107,(VLOOKUP(I108,Increments!$A$1:$E$169,2,FALSE))))) ->  | J107: =IF((YEAR('3.Continue_Fixed Salary'!$K$11))=J109,'3.Continue_Fixed Salary'!$E$11,(IF($C102="No",$E107,(VLOOKUP(J108,Increments!$A$1:$E$169,2,FALSE))))) ->  | K107: =IF((YEAR('3.Continue_Fixed Salary'!$K$11))=K109,'3.Continue_Fixed Salary'!$E$11,(IF($C102="No",$E107,(VLOOKUP(K108,Increments!$A$1:$E$169,2,FALSE))))) ->  | L107: =IF((YEAR('3.Continue_Fixed Salary'!$K$11))=L109,'3.Continue_Fixed Salary'!$E$11,(IF($C102="No",$E107,(VLOOKUP(L108,Increments!$A$1:$E$169,2,FALSE))))) ->  | O107: Level & Step at change | P107: ='3.Continue_Fixed Salary'!$E$11 -> 0 | Q107: =IF((YEAR('3.Continue_Fixed Salary'!$K$11))=Q109,'3.Continue_Fixed Salary'!$E$11,(IF($C102="No",$B107,(VLOOKUP(Q108,Increments!$A$1:$E$169,2,FALSE))))) ->  | R107: =IF((YEAR('3.Continue_Fixed Salary'!$K$11))=R109,'3.Continue_Fixed Salary'!$E$11,(IF($C102="No",$B107,(VLOOKUP(R108,Increments!$A$1:$E$169,2,FALSE))))) ->  | S107: =IF((YEAR('3.Continue_Fixed Salary'!$K$11))=S109,'3.Continue_Fixed Salary'!$E$11,(IF($C102="No",$B107,(VLOOKUP(S108,Increments!$A$1:$E$169,2,FALSE))))) ->  | T107: =IF((YEAR('3.Continue_Fixed Salary'!$K$11))=T109,'3.Continue_Fixed Salary'!$E$11,(IF($C102="No",$B107,(VLOOKUP(T108,Increments!$A$1:$E$169,2,FALSE))))) ->  | U107: =IF((YEAR('3.Continue_Fixed Salary'!$K$11))=U109,'3.Continue_Fixed Salary'!$E$11,(IF($C102="No",$B107,(VLOOKUP(U108,Increments!$A$1:$E$169,2,FALSE))))) ->  | V107: =IF((YEAR('3.Continue_Fixed Salary'!$K$11))=V109,'3.Continue_Fixed Salary'!$E$11,(IF($C102="No",$B107,(VLOOKUP(V108,Increments!$A$1:$E$169,2,FALSE))))) ->  | W107: =IF((YEAR('3.Continue_Fixed Salary'!$K$11))=W109,'3.Continue_Fixed Salary'!$E$11,(IF($C102="No",$B107,(VLOOKUP(W108,Increments!$A$1:$E$169,2,FALSE))))) -> 
A108: Step Column | B108: =IF((YEAR('3.Continue_Fixed Salary'!$K11))=B109,VLOOKUP($B107,Increments!$B$1:$E$178,2,FALSE),0) -> 0 | C108: =IF((YEAR('3.Continue_Fixed Salary'!$K11))=C109,VLOOKUP($B107,Increments!$B$1:$E$178,2,FALSE),0)+IF(B108=0,0,B108+1) -> 0 | D108: =IF((YEAR('3.Continue_Fixed Salary'!$K11))=D109,VLOOKUP($B107,Increments!$B$1:$E$178,2,FALSE),0)+IF(C108=0,0,C108+1) -> 0 | E108: =IF((YEAR('3.Continue_Fixed Salary'!$K11))=E109,VLOOKUP($B107,Increments!$B$1:$E$178,2,FALSE),0)+IF(D108=0,0,D108+1) -> 0 | F108: =IF((YEAR('3.Continue_Fixed Salary'!$K11))=F109,VLOOKUP($B107,Increments!$B$1:$E$178,2,FALSE),0)+IF(E108=0,0,E108+1) -> 0 | G108: =IF((YEAR('3.Continue_Fixed Salary'!$K11))=G109,VLOOKUP($B107,Increments!$B$1:$E$178,2,FALSE),0)+IF(F108=0,0,F108+1) -> 0 | H108: =IF((YEAR('3.Continue_Fixed Salary'!$K11))=H109,VLOOKUP($B107,Increments!$B$1:$E$178,2,FALSE),0)+IF(G108=0,0,G108+1) -> 0 | I108: =IF((YEAR('3.Continue_Fixed Salary'!$K11))=I109,VLOOKUP($B107,Increments!$B$1:$E$178,2,FALSE),0)+IF(H108=0,0,H108+1) -> 0 | J108: =IF((YEAR('3.Continue_Fixed Salary'!$K11))=J109,VLOOKUP($B107,Increments!$B$1:$E$178,2,FALSE),0)+IF(I108=0,0,I108+1) -> 0 | K108: =IF((YEAR('3.Continue_Fixed Salary'!$K11))=K109,VLOOKUP($B107,Increments!$B$1:$E$178,2,FALSE),0)+IF(J108=0,0,J108+1) -> 0 | L108: =IF((YEAR('3.Continue_Fixed Salary'!$K11))=L109,VLOOKUP($B107,Increments!$B$1:$E$178,2,FALSE),0)+IF(K108=0,0,K108+1) -> 0 | O108: Step Column | P108: =IF((YEAR('3.Continue_Fixed Salary'!$K10))=P109,VLOOKUP($B107,Increments!$B$1:$E$178,2,FALSE),0) -> 0 | Q108: =IF(P108=0,VLOOKUP($B107,Increments!$B$1:$E$170,2,FALSE),P108+1) ->  | R108: =IF(Q108=0,VLOOKUP($B107,Increments!$B$1:$E$170,2,FALSE),Q108+1) ->  | S108: =IF(R108=0,VLOOKUP($B107,Increments!$B$1:$E$170,2,FALSE),R108+1) ->  | T108: =IF(S108=0,VLOOKUP($B107,Increments!$B$1:$E$170,2,FALSE),S108+1) ->  | U108: =IF(T108=0,VLOOKUP($B107,Increments!$B$1:$E$170,2,FALSE),T108+1) ->  | V108: =IF(U108=0,VLOOKUP($B107,Increments!$B$1:$E$170,2,FALSE),U108+1) ->  | W108: =IF(V108=0,VLOOKUP($B107,Increments!$B$1:$E$170,2,FALSE),V108+1) -> 
A109: Year 1 | B109: =YEAR(B110) -> 2017 | C109: =B109+1 -> 2018 | D109: 2019 | E109: 2020 | F109: 2021 | G109: 2022 | H109: 2023 | I109: 2024 | J109: =I109+1 -> 2025 | K109: =J109+1 -> 2026 | L109: =K109+1 -> 2027 | O109: Year 1 | P109: =YEAR(P110) -> 2017 | Q109: =P109+1 -> 2018 | R109: =Q109+1 -> 2019 | S109: =R109+1 -> 2020 | T109: =S109+1 -> 2021 | U109: =T109+1 -> 2022 | V109: =U109+1 -> 2023 | W109: =V109+1 -> 2024
A110: First Day of Project Year | B110: =B$9 -> 2017-01-01 | C110: =C$9 -> 2018-01-01 | D110: 2019-01-01 | E110: 2020-01-01 | F110: 2021-01-01 | G110: 2022-01-01 | H110: 2023-01-01 | I110: 2024-01-01 | J110: 2025-01-01 | K110: 2026-01-01 | L110: 2027-01-01 | O110: First Day of Project Year | P110: =P$9 -> 2017-01-01 | Q110: =Q$9 -> 2018-01-01 | R110: 2019-01-01 | S110: 2020-01-01 | T110: 2021-01-01 | U110: 2022-01-01 | V110: 2023-01-01 | W110: 2024-01-01
A111: FTE Salary | B111: =B106 -> 0 | C111: =B106 -> 0 | D111: =C129 ->  | E111: =D129 ->  | F111: =E129 ->  | G111: =F129 ->  | H111: =G129 ->  | I111: =H129 ->  | J111: =I129 ->  | K111: =J129 ->  | L111: =K129 ->  | O111: FTE Salary | P111: =$P$106 ->  | Q111: =$P$106 -> 
A112: Days at Salary | B112: =IF(OR(B116<=B110,$B104<=B110,B110<$B103),0,(IF((OR(B122<$B104,B116<$B104)),(IF(B116<=B122,(ABS(B110-B116)),(ABS(B110-B122)))),(ABS(B110-$B104))))) -> 0 | C112: 0 | D112: 0 | E112: 0 | F112: 0 | G112: 0 | H112: 0 | I112: 0 | J112: 0 | K112: 0 | L112: 0 | O112: Days at Salary | P112: =IF(OR(P116<=P110,$B104<=P110,P110<$B103),0,(IF((OR(P122<$B104,P116<$B104)),(IF(P116<=P122,(ABS(P110-P116)),(ABS(P110-P122)))),(ABS(P110-$B104))))) -> 0
A113: Amount (Salary) | B113: =IFERROR(((B111/B$18*B112)),0) -> 0 | C113: 0 | D113: 0 | E113: 0 | F113: 0 | G113: 0 | H113: 0 | I113: 0 | J113: 0 | K113: 0 | L113: 0 | O113: Amount (Salary) | P113: =IFERROR(((P111/P$18*P112)),0) -> 0 | Q113: 0 | R113: 0 | S113: 0 | T113: 0 | U113: 0 | V113: 0 | W113: 0
A114: Annual leave Loading | B114: =IF(B112=0,0,(IF(AND((((B113/26.089)*2)*0.175)<1370.3),((B113/26.089)*2)*0.175,1370.3))) -> 0 | C114: =IF(C112=0,0,(IF(AND((((C113/26.089)*2)*0.175)<1370.3),((C113/26.089)*2)*0.175,1370.3))) -> 0 | D114: 0 | E114: 0 | F114: 0 | G114: 0 | H114: 0 | I114: 0 | J114: 0 | K114: 0 | L114: 0 | O114: Annual leave Loading | P114: =IF(P112=0,0,(IF(AND((((P113/26.089)*2)*0.175)<1370.3),((P113/26.089)*2)*0.175,1370.3))) -> 0 | Q114: =IF(Q112=0,0,(IF(AND((((Q113/26.089)*2)*0.175)<1370.3),((Q113/26.089)*2)*0.175,1370.3))) -> 
A116: First Day of Increment | B116: =IF(B110<=(DATE(YEAR(B110),MONTH($B103),DAY($B103))),(DATE(YEAR(B110),MONTH($B103),DAY($B103))),(DATE(YEAR(B110)+1,MONTH($B103),DAY($B103)))) -> 2017-12-31 | C116: =(DATE(YEAR(B116)+1,MONTH($B103),DAY($B103))) -> 2017-12-31 | D116: =(DATE(YEAR(C116)+1,MONTH($B103),DAY($B103))) -> 2017-12-31 | E116: =(DATE(YEAR(D116)+1,MONTH($B103),DAY($B103))) -> 2017-12-31 | F116: =(DATE(YEAR(E116)+1,MONTH($B103),DAY($B103))) -> 2017-12-31 | G116: =(DATE(YEAR(F116)+1,MONTH($B103),DAY($B103))) -> 2017-12-31 | H116: =(DATE(YEAR(G116)+1,MONTH($B103),DAY($B103))) -> 2017-12-31 | I116: =(DATE(YEAR(H116)+1,MONTH($B103),DAY($B103))) -> 2017-12-31 | J116: =(DATE(YEAR(I116)+1,MONTH($B103),DAY($B103))) -> 2017-12-31 | K116: =(DATE(YEAR(J116)+1,MONTH($B103),DAY($B103))) -> 2017-12-31 | L116: =(DATE(YEAR(K116)+1,MONTH($B103),DAY($B103))) -> 2017-12-31 | O116: First Day of Increment | P116: =IF(P110<=(DATE(YEAR(P110),MONTH($B103),DAY($B103))),(DATE(YEAR(P110),MONTH($B103),DAY($B103))),(DATE(YEAR(P110)+1,MONTH($B103),DAY($B103)))) -> 2017-12-31 | Q116: =(DATE(YEAR(P116)+1,MONTH($P103),DAY($P103))) ->  | R116: =(DATE(YEAR(Q116)+1,MONTH($P103),DAY($P103))) -> 
A117: FTE Salary | B117: =B106 -> 0 | C117: =VLOOKUP(C107,(IF(OR('3.Continue_Fixed Salary'!$I$10="Casual (16.5%)",'3.Continue_Fixed Salary'!$I$10="Casual (30%)"),('Salary Schedule'!$A$67:$I$184),('Salary Schedule'!$A$5:$I$71))),((HLOOKUP(B$15,'Salary Schedule'!$B$4:$I$5,2,FALSE))),FALSE) ->  | D117: =VLOOKUP(D107,(IF(OR('3.Continue_Fixed Salary'!$I$10="Casual (16.5%)",'3.Continue_Fixed Salary'!$I$10="Casual (30%)"),('Salary Schedule'!$A$67:$I$184),('Salary Schedule'!$A$5:$I$71))),((HLOOKUP(C$15,'Salary Schedule'!$B$4:$I$5,2,FALSE))),FALSE) ->  | E117: =VLOOKUP(E107,(IF(OR('3.Continue_Fixed Salary'!$I$10="Casual (16.5%)",'3.Continue_Fixed Salary'!$I$10="Casual (30%)"),('Salary Schedule'!$A$67:$I$184),('Salary Schedule'!$A$5:$I$71))),((HLOOKUP(D$15,'Salary Schedule'!$B$4:$I$5,2,FALSE))),FALSE) ->  | F117: =VLOOKUP(F107,(IF(OR('3.Continue_Fixed Salary'!$I$10="Casual (16.5%)",'3.Continue_Fixed Salary'!$I$10="Casual (30%)"),('Salary Schedule'!$A$67:$I$184),('Salary Schedule'!$A$5:$I$71))),((HLOOKUP(E$15,'Salary Schedule'!$B$4:$I$5,2,FALSE))),FALSE) ->  | G117: =VLOOKUP(G107,(IF(OR('3.Continue_Fixed Salary'!$I$10="Casual (16.5%)",'3.Continue_Fixed Salary'!$I$10="Casual (30%)"),('Salary Schedule'!$A$67:$M$184),('Salary Schedule'!$A$5:$M$71))),((HLOOKUP(F$15,'Salary Schedule'!$B$4:$M$5,2,FALSE))),FALSE) ->  | H117: =VLOOKUP(H107,(IF(OR('3.Continue_Fixed Salary'!$I$10="Casual (16.5%)",'3.Continue_Fixed Salary'!$I$10="Casual (30%)"),('Salary Schedule'!$A$67:$M$184),('Salary Schedule'!$A$5:$M$71))),((HLOOKUP(G$15,'Salary Schedule'!$B$4:$M$5,2,FALSE))),FALSE) ->  | I117: =VLOOKUP(I107,(IF(OR('3.Continue_Fixed Salary'!$I$10="Casual (16.5%)",'3.Continue_Fixed Salary'!$I$10="Casual (30%)"),('Salary Schedule'!$A$67:$M$184),('Salary Schedule'!$A$5:$M$71))),((HLOOKUP(H$15,'Salary Schedule'!$B$4:$M$5,2,FALSE))),FALSE) ->  | J117: =VLOOKUP(J107,(IF(OR('3.Continue_Fixed Salary'!$I$10="Casual (16.5%)",'3.Continue_Fixed Salary'!$I$10="Casual (30%)"),('Salary Schedule'!$A$67:$M$184),('Salary Schedule'!$A$5:$M$71))),((HLOOKUP(I$15,'Salary Schedule'!$B$4:$M$5,2,FALSE))),FALSE) ->  | K117: =VLOOKUP(K107,(IF(OR('3.Continue_Fixed Salary'!$I$10="Casual (16.5%)",'3.Continue_Fixed Salary'!$I$10="Casual (30%)"),('Salary Schedule'!$A$67:$M$184),('Salary Schedule'!$A$5:$M$71))),((HLOOKUP(J$15,'Salary Schedule'!$B$4:$M$5,2,FALSE))),FALSE) ->  | L117: =VLOOKUP(L107,(IF(OR('3.Continue_Fixed Salary'!$I$10="Casual (16.5%)",'3.Continue_Fixed Salary'!$I$10="Casual (30%)"),('Salary Schedule'!$A$67:$M$184),('Salary Schedule'!$A$5:$M$71))),((HLOOKUP(K$15,'Salary Schedule'!$B$4:$M$5,2,FALSE))),FALSE) ->  | O117: FTE Salary | P117: =$P$106 ->  | Q117: =$P$106 -> 
A118: Days at Salary | B118: =IF(OR(B122<=$B103,$B104<=B116,B122<=B116),0,(IF(B122<$B104,(ABS(B116-B122)),(ABS(B116-$B104))))) -> 0 | C118: =IF(OR(C122<=$B103,$B104<=C116,C122<=C116),0,(IF(C122<$B104,(ABS(C116-C122)),(ABS(C116-$B104))))) -> 0 | D118: =IF(OR(D122<=$B103,$B104<=D116,D122<=D116),0,(IF(D122<$B104,(ABS(D116-D122)),(ABS(D116-$B104))))) -> 0 | E118: 0 | F118: 0 | G118: 0 | H118: 0 | I118: 0 | J118: 0 | K118: 0 | L118: 0 | O118: Days at Salary | P118: =IF(OR(P122<=$B103,$B104<=P116,P122<=P116),0,(IF(P122<$B104,(ABS(P116-P122)),(ABS(P116-$B104))))) ->  | Q118: =IF(OR(Q122<=$P103,$P104<=Q116,Q122<=Q116),0,(IF(Q122<$P104,(ABS(Q116-Q122)),(ABS(Q116-$P104))))) ->  | R118: =IF(OR(R122<=$P103,$P104<=R116,R122<=R116),0,(IF(R122<$P104,(ABS(R116-R122)),(ABS(R116-$P104))))) -> 
A119: Amount (Salary) | B119: =IFERROR(((B117/B$18*B118)),0) -> 0 | C119: =IFERROR(((C117/C$18*C118)),0) -> 0 | D119: =IFERROR(((D117/D$18*D118)),0) -> 0 | E119: 0 | F119: 0 | G119: 0 | H119: 0 | I119: 0 | J119: 0 | K119: 0 | L119: 0 | O119: Amount (Salary) | P119: =IF(P118<>0,P117,0) ->  | Q119: =IF(Q118<>0,Q117,0) ->  | R119: =IF(R118<>0,R117,0) ->  | S119: =IF(S118<>0,S117,0) ->  | T119: =IF(T118<>0,T117,0) ->  | U119: =IF(U118<>0,U117,0) ->  | V119: =IF(V118<>0,V117,0) ->  | W119: =IF(W118<>0,W117,0) -> 
A120: Annual leave Loading | B120: =IF(B119=0,0,(IF(AND((((B119/26.089)*2)*0.175)<1370.3),((B119/26.089)*2)*0.175,1370.3)))/2 -> 0 | C120: =IF(C119=0,0,(IF(AND((((C119/26.089)*2)*0.175)<1370.3),((C119/26.089)*2)*0.175,1370.3)))/2 -> 0 | D120: =IF(D119=0,0,(IF(AND((((D119/26.089)*2)*0.175)<1370.3),((D119/26.089)*2)*0.175,1370.3)))/2 -> 0 | E120: =IF(E119=0,0,(IF(AND((((E119/26.089)*2)*0.175)<1370.3),((E119/26.089)*2)*0.175,1370.3)))/2 -> 0 | F120: =IF(F119=0,0,(IF(AND((((F119/26.089)*2)*0.175)<1370.3),((F119/26.089)*2)*0.175,1370.3)))/2 -> 0 | G120: =IF(G119=0,0,(IF(AND((((G119/26.089)*2)*0.175)<1370.3),((G119/26.089)*2)*0.175,1370.3)))/2 -> 0 | H120: =IF(H119=0,0,(IF(AND((((H119/26.089)*2)*0.175)<1370.3),((H119/26.089)*2)*0.175,1370.3)))/2 -> 0 | I120: =IF(I119=0,0,(IF(AND((((I119/26.089)*2)*0.175)<1370.3),((I119/26.089)*2)*0.175,1370.3)))/2 -> 0 | J120: =IF(J119=0,0,(IF(AND((((J119/26.089)*2)*0.175)<1370.3),((J119/26.089)*2)*0.175,1370.3)))/2 -> 0 | K120: =IF(K119=0,0,(IF(AND((((K119/26.089)*2)*0.175)<1370.3),((K119/26.089)*2)*0.175,1370.3)))/2 -> 0 | L120: =IF(L119=0,0,(IF(AND((((L119/26.089)*2)*0.175)<1370.3),((L119/26.089)*2)*0.175,1370.3)))/2 -> 0 | O120: Annual leave Loading
A122: First Day of New Financial Year | B122: =IF(B110<=((DATE(YEAR(B103),7,1))),(DATE(YEAR(B116),MONTH($B$16),DAY($B$16))),(DATE(YEAR(B116)+1,MONTH($B$16),DAY($B$16)))) -> 2018-07-02 | C122: =(DATE(YEAR(B122)+1,MONTH(B122),DAY(B122))) -> 2019-07-02 | D122: =(DATE(YEAR(C122)+1,MONTH(C122),DAY(C122))) -> 2020-07-02 | E122: =(DATE(YEAR(D122)+1,MONTH(D122),DAY(D122))) -> 2021-07-02 | F122: =(DATE(YEAR(E122)+1,MONTH(E122),DAY(E122))) -> 2022-07-02 | G122: =(DATE(YEAR(F122)+1,MONTH(F122),DAY(F122))) -> 2023-07-02 | H122: =(DATE(YEAR(G122)+1,MONTH(G122),DAY(G122))) -> 2024-07-02 | I122: =(DATE(YEAR(H122)+1,MONTH(H122),DAY(H122))) -> 2025-07-02 | J122: =(DATE(YEAR(I122)+1,MONTH(I122),DAY(I122))) -> 2026-07-02 | K122: =(DATE(YEAR(J122)+1,MONTH(J122),DAY(J122))) -> 2027-07-02 | L122: =(DATE(YEAR(K122)+1,MONTH(K122),DAY(K122))) -> 2028-07-02 | O122: First Day of New Financial Year | P122: =IF(P110<=((DATE(YEAR(P103),7,1))),(DATE(YEAR(P116),MONTH($B$16),DAY($B$16))),(DATE(YEAR(P116)+1,MONTH($B$16),DAY($B$16)))) ->  | Q122: =(DATE(YEAR(P122)+1,MONTH(P122),DAY(P122))) ->  | R122: =(DATE(YEAR(Q122)+1,MONTH(Q122),DAY(Q122))) ->  | S122: =(DATE(YEAR(R122)+1,MONTH(R122),DAY(R122))) ->  | T122: =(DATE(YEAR(S122)+1,MONTH(S122),DAY(S122))) ->  | U122: =(DATE(YEAR(T122)+1,MONTH(T122),DAY(T122))) ->  | V122: =(DATE(YEAR(U122)+1,MONTH(U122),DAY(U122))) ->  | W122: =(DATE(YEAR(V122)+1,MONTH(V122),DAY(V122))) -> 
A123: FTE Salary | B123: =VLOOKUP((IF(B116<B122,B107,B107)),(IF('3.Continue_Fixed Salary'!#REF!="Casual (16.5%)",('Salary Schedule'!$A$67:$I$184),('Salary Schedule'!$A$4:$I$64))),(HLOOKUP('Staff Calculations'!B$15,'Salary Schedule'!$B$4:$I$5,2,FALSE)),FALSE)*1.03 ->  | C123: =VLOOKUP((IF(C116<C122,C107,B107)),(IF(OR('3.Continue_Fixed Salary'!$I$10="Casual (16.5%)",'3.Continue_Fixed Salary'!$I$10="Casual (30%)"),('Salary Schedule'!$A$67:$I$184),('Salary Schedule'!$A$5:$I$64))),(HLOOKUP('Staff Calculations'!C$15,'Salary Schedule'!$B$4:$I$5,2,FALSE)),FALSE) ->  | D123: =VLOOKUP((IF(D116<D122,D107,C107)),(IF(OR('3.Continue_Fixed Salary'!$I$10="Casual (16.5%)",'3.Continue_Fixed Salary'!$I$10="Casual (30%)"),('Salary Schedule'!$A$67:$I$184),('Salary Schedule'!$A$5:$I$64))),(HLOOKUP('Staff Calculations'!D$15,'Salary Schedule'!$B$4:$I$5,2,FALSE)),FALSE) ->  | E123: =VLOOKUP((IF(E116<E122,E107,D107)),(IF(OR('3.Continue_Fixed Salary'!$I$10="Casual (16.5%)",'3.Continue_Fixed Salary'!$I$10="Casual (30%)"),('Salary Schedule'!$A$67:$I$184),('Salary Schedule'!$A$5:$I$64))),(HLOOKUP('Staff Calculations'!E$15,'Salary Schedule'!$B$4:$I$5,2,FALSE)),FALSE) ->  | F123: =VLOOKUP((IF(F116<F122,F107,E107)),(IF(OR('3.Continue_Fixed Salary'!$I$10="Casual (16.5%)",'3.Continue_Fixed Salary'!$I$10="Casual (30%)"),('Salary Schedule'!$A$67:$I$184),('Salary Schedule'!$A$5:$I$64))),(HLOOKUP('Staff Calculations'!F$15,'Salary Schedule'!$B$4:$I$5,2,FALSE)),FALSE) ->  | G123: =VLOOKUP((IF(G116<G122,G107,F107)),(IF(OR('3.Continue_Fixed Salary'!$I$10="Casual (16.5%)",'3.Continue_Fixed Salary'!$I$10="Casual (30%)"),('Salary Schedule'!$A$67:$M$184),('Salary Schedule'!$A$5:$M$64))),(HLOOKUP('Staff Calculations'!G$15,'Salary Schedule'!$B$4:$M$5,2,FALSE)),FALSE) ->  | H123: =VLOOKUP((IF(H116<H122,H107,G107)),(IF(OR('3.Continue_Fixed Salary'!$I$10="Casual (16.5%)",'3.Continue_Fixed Salary'!$I$10="Casual (30%)"),('Salary Schedule'!$A$67:$M$184),('Salary Schedule'!$A$5:$M$64))),(HLOOKUP('Staff Calculations'!H$15,'Salary Schedule'!$B$4:$M$5,2,FALSE)),FALSE) ->  | I123: =VLOOKUP((IF(I116<I122,I107,H107)),(IF(OR('3.Continue_Fixed Salary'!$I$10="Casual (16.5%)",'3.Continue_Fixed Salary'!$I$10="Casual (30%)"),('Salary Schedule'!$A$67:$M$184),('Salary Schedule'!$A$5:$M$64))),(HLOOKUP('Staff Calculations'!I$15,'Salary Schedule'!$B$4:$M$5,2,FALSE)),FALSE) ->  | J123: =VLOOKUP((IF(J116<J122,J107,I107)),(IF(OR('3.Continue_Fixed Salary'!$I$10="Casual (16.5%)",'3.Continue_Fixed Salary'!$I$10="Casual (30%)"),('Salary Schedule'!$A$67:$M$184),('Salary Schedule'!$A$5:$M$64))),(HLOOKUP('Staff Calculations'!J$15,'Salary Schedule'!$B$4:$M$5,2,FALSE)),FALSE) ->  | K123: =VLOOKUP((IF(K116<K122,K107,J107)),(IF(OR('3.Continue_Fixed Salary'!$I$10="Casual (16.5%)",'3.Continue_Fixed Salary'!$I$10="Casual (30%)"),('Salary Schedule'!$A$67:$M$184),('Salary Schedule'!$A$5:$M$64))),(HLOOKUP('Staff Calculations'!K$15,'Salary Schedule'!$B$4:$M$5,2,FALSE)),FALSE) ->  | L123: =VLOOKUP((IF(L116<L122,L107,K107)),(IF(OR('3.Continue_Fixed Salary'!$I$10="Casual (16.5%)",'3.Continue_Fixed Salary'!$I$10="Casual (30%)"),('Salary Schedule'!$A$67:$M$184),('Salary Schedule'!$A$5:$M$64))),(HLOOKUP('Staff Calculations'!L$15,'Salary Schedule'!$B$4:$M$5,2,FALSE)),FALSE) ->  | O123: FTE Salary
A124: Days at Salary | B124: =IF(OR(B122<=$B103,$B104<=B122),0,(IF(B128<$B104,(IF(B128<=B122,(ABS(B122-B134)),(ABS(B122-B128)))),(ABS(B122-$B104))))) -> 0 | C124: =IF(OR(C122<=$B103,$B104<=C122),0,(IF(C128<$B104,(IF(C128<=C122,(ABS(C122-C134)),(ABS(C122-C128)))),(ABS(C122-$B104))))) -> 0 | D124: =IF(OR(D122<=$B103,$B104<=D122),0,(IF(D128<$B104,(IF(D128<=D122,(ABS(D122-D134)),(ABS(D122-D128)))),(ABS(D122-$B104))))) -> 0 | E124: 0 | F124: 0 | G124: 0 | H124: 0 | I124: 0 | J124: 0 | K124: 0 | L124: 0 | O124: Days at Salary
A125: Amount (Salary) | B125: =IFERROR(((B123/B$18*B124)),0) -> 0 | C125: =IFERROR(((C123/C$18*C124)),0) -> 0 | D125: =IFERROR(((D123/D$18*D124)),0) -> 0 | E125: 0 | F125: 0 | G125: 0 | H125: 0 | I125: 0 | J125: 0 | K125: 0 | L125: 0 | O125: Amount (Salary)
A126: Annual leave Loading | B126: =IF(B125=0,0,(IF(AND((((B125/26.089)*2)*0.175)<1370.3),((B125/26.089)*2)*0.175,1370.3)))/2 -> 0 | C126: =IF(C125=0,0,(IF(AND((((C125/26.089)*2)*0.175)<1370.3),((C125/26.089)*2)*0.175,1370.3)))/2 -> 0 | D126: =IF(D125=0,0,(IF(AND((((D125/26.089)*2)*0.175)<1370.3),((D125/26.089)*2)*0.175,1370.3)))/2 -> 0 | E126: =IF(E125=0,0,(IF(AND((((E125/26.089)*2)*0.175)<1370.3),((E125/26.089)*2)*0.175,1370.3)))/2 -> 0 | F126: =IF(F125=0,0,(IF(AND((((F125/26.089)*2)*0.175)<1370.3),((F125/26.089)*2)*0.175,1370.3)))/2 -> 0 | G126: =IF(G125=0,0,(IF(AND((((G125/26.089)*2)*0.175)<1370.3),((G125/26.089)*2)*0.175,1370.3)))/2 -> 0 | H126: =IF(H125=0,0,(IF(AND((((H125/26.089)*2)*0.175)<1370.3),((H125/26.089)*2)*0.175,1370.3)))/2 -> 0 | I126: =IF(I125=0,0,(IF(AND((((I125/26.089)*2)*0.175)<1370.3),((I125/26.089)*2)*0.175,1370.3)))/2 -> 0 | J126: =IF(J125=0,0,(IF(AND((((J125/26.089)*2)*0.175)<1370.3),((J125/26.089)*2)*0.175,1370.3)))/2 -> 0 | K126: =IF(K125=0,0,(IF(AND((((K125/26.089)*2)*0.175)<1370.3),((K125/26.089)*2)*0.175,1370.3)))/2 -> 0 | L126: =IF(L125=0,0,(IF(AND((((L125/26.089)*2)*0.175)<1370.3),((L125/26.089)*2)*0.175,1370.3)))/2 -> 0 | O126: Annual leave Loading
A128: First Day of Increment | B128: =B116 -> 2017-12-31 | C128: 2017-12-31 | D128: 2017-12-31 | E128: 2017-12-31 | F128: 2017-12-31 | G128: 2017-12-31 | H128: 2017-12-31 | I128: 2017-12-31 | J128: 2017-12-31 | K128: 2017-12-31 | L128: 2017-12-31 | O128: First Day of Increment | P128: =P116 -> 2017-12-31
A129: FTE Salary | B129: =B123 ->  | C129: =VLOOKUP(C107,(IF(OR('3.Continue_Fixed Salary'!$I$10="Casual (16.5%)",'3.Continue_Fixed Salary'!$I$10="Casual (30%)"),('Salary Schedule'!$A$67:$I$184),('Salary Schedule'!$A$5:$I$64))),((HLOOKUP(C$15,'Salary Schedule'!$B$4:$I$5,2,FALSE))),FALSE) ->  | D129: =VLOOKUP(D107,(IF(OR('3.Continue_Fixed Salary'!$I$10="Casual (16.5%)",'3.Continue_Fixed Salary'!$I$10="Casual (30%)"),('Salary Schedule'!$A$67:$I$184),('Salary Schedule'!$A$5:$I$64))),((HLOOKUP(D$15,'Salary Schedule'!$B$4:$I$5,2,FALSE))),FALSE) ->  | E129: =VLOOKUP(E107,(IF(OR('3.Continue_Fixed Salary'!$I$10="Casual (16.5%)",'3.Continue_Fixed Salary'!$I$10="Casual (30%)"),('Salary Schedule'!$A$67:$I$184),('Salary Schedule'!$A$5:$I$64))),((HLOOKUP(E$15,'Salary Schedule'!$B$4:$I$5,2,FALSE))),FALSE) ->  | F129: =VLOOKUP(F107,(IF(OR('3.Continue_Fixed Salary'!$I$10="Casual (16.5%)",'3.Continue_Fixed Salary'!$I$10="Casual (30%)"),('Salary Schedule'!$A$67:$I$184),('Salary Schedule'!$A$5:$I$64))),((HLOOKUP(F$15,'Salary Schedule'!$B$4:$I$5,2,FALSE))),FALSE) ->  | G129: =VLOOKUP(G107,(IF(OR('3.Continue_Fixed Salary'!$I$10="Casual (16.5%)",'3.Continue_Fixed Salary'!$I$10="Casual (30%)"),('Salary Schedule'!$A$67:$M$184),('Salary Schedule'!$A$5:$M$64))),((HLOOKUP(G$15,'Salary Schedule'!$B$4:$M$5,2,FALSE))),FALSE) ->  | H129: =VLOOKUP(H107,(IF(OR('3.Continue_Fixed Salary'!$I$10="Casual (16.5%)",'3.Continue_Fixed Salary'!$I$10="Casual (30%)"),('Salary Schedule'!$A$67:$M$184),('Salary Schedule'!$A$5:$M$64))),((HLOOKUP(H$15,'Salary Schedule'!$B$4:$M$5,2,FALSE))),FALSE) ->  | I129: =VLOOKUP(I107,(IF(OR('3.Continue_Fixed Salary'!$I$10="Casual (16.5%)",'3.Continue_Fixed Salary'!$I$10="Casual (30%)"),('Salary Schedule'!$A$67:$M$184),('Salary Schedule'!$A$5:$M$64))),((HLOOKUP(I$15,'Salary Schedule'!$B$4:$M$5,2,FALSE))),FALSE) ->  | J129: =VLOOKUP(J107,(IF(OR('3.Continue_Fixed Salary'!$I$10="Casual (16.5%)",'3.Continue_Fixed Salary'!$I$10="Casual (30%)"),('Salary Schedule'!$A$67:$M$184),('Salary Schedule'!$A$5:$M$64))),((HLOOKUP(J$15,'Salary Schedule'!$B$4:$M$5,2,FALSE))),FALSE) ->  | K129: =VLOOKUP(K107,(IF(OR('3.Continue_Fixed Salary'!$I$10="Casual (16.5%)",'3.Continue_Fixed Salary'!$I$10="Casual (30%)"),('Salary Schedule'!$A$67:$M$184),('Salary Schedule'!$A$5:$M$64))),((HLOOKUP(K$15,'Salary Schedule'!$B$4:$M$5,2,FALSE))),FALSE) ->  | L129: =VLOOKUP(L107,(IF(OR('3.Continue_Fixed Salary'!$I$10="Casual (16.5%)",'3.Continue_Fixed Salary'!$I$10="Casual (30%)"),('Salary Schedule'!$A$67:$M$184),('Salary Schedule'!$A$5:$M$64))),((HLOOKUP(L$15,'Salary Schedule'!$B$4:$M$5,2,FALSE))),FALSE) ->  | O129: FTE Salary
A130: Days at Salary | B130: =IF(OR(B128<B122,B128<$B103,$B104<=B128),0,(IF(B134>$B104,(ABS(B128-$B104)),IF(B134<C122,(ABS(B128-B134)),(ABS(B128-C122)))))) -> 0 | C130: =IF(OR(C128<C122,C128<$B103,$B104<=C128),0,(IF(C134>$B104,(ABS(C128-$B104)),IF(C134<D122,(ABS(C128-C134)),(ABS(C128-D122)))))) -> 0 | D130: =IF(OR(D128<D122,D128<$B103,$B104<=D128),0,(IF(D134>$B104,(ABS(D128-$B104)),IF(D134<E122,(ABS(D128-D134)),(ABS(D128-E122)))))) -> 0 | E130: =IF(OR(E128<E122,E128<$B103,$B104<=E128),0,(IF(E134>$B104,(ABS(E128-$B104)),IF(E134<F122,(ABS(E128-E134)),(ABS(E128-F122)))))) -> 0 | F130: =IF(OR(F128<F122,F128<$B103,$B104<=F128),0,(IF(F134>$B104,(ABS(F128-$B104)),IF(F134<G122,(ABS(F128-F134)),(ABS(F128-G122)))))) -> 0 | G130: =IF(OR(G128<G122,G128<$B103,$B104<=G128),0,(IF(G134>$B104,(ABS(G128-$B104)),IF(G134<H122,(ABS(G128-G134)),(ABS(G128-H122)))))) -> 0 | H130: =IF(OR(H128<H122,H128<$B103,$B104<=H128),0,(IF(H134>$B104,(ABS(H128-$B104)),IF(H134<I122,(ABS(H128-H134)),(ABS(H128-I122)))))) -> 0 | I130: =IF(OR(I128<I122,I128<$B103,$B104<=I128),0,(IF(I134>$B104,(ABS(I128-$B104)),IF(I134<J122,(ABS(I128-I134)),(ABS(I128-J122)))))) -> 0 | J130: =IF(OR(J128<J122,J128<$B103,$B104<=J128),0,(IF(J134>$B104,(ABS(J128-$B104)),IF(J134<K122,(ABS(J128-J134)),(ABS(J128-K122)))))) -> 0 | K130: =IF(OR(K128<K122,K128<$B103,$B104<=K128),0,(IF(K134>$B104,(ABS(K128-$B104)),IF(K134<L122,(ABS(K128-K134)),(ABS(K128-L122)))))) -> 0 | L130: =IF(OR(L128<L122,L128<$B103,$B104<=L128),0,(IF(L134>$B104,(ABS(L128-$B104)),IF(L134<M122,(ABS(L128-L134)),(ABS(L128-M122)))))) -> 0 | O130: Days at Salary
A131: Amount (Salary) | B131: =IFERROR(((B129/B$18*B130)),0) -> 0 | C131: 0 | D131: 0 | E131: 0 | F131: 0 | G131: 0 | H131: 0 | I131: 0 | J131: 0 | K131: 0 | L131: 0 | O131: Amount (Salary)
A132: Annual leave Loading | B132: =IF(B130=0,0,(IF(AND((((B131/26.089)*2)*0.175)<1370.3),((B131/26.089)*2)*0.175,1370.3))) -> 0 | C132: =IF(C130=0,0,(IF(AND((((C131/26.089)*2)*0.175)<1370.3),((C131/26.089)*2)*0.175,1370.3))) -> 0 | D132: 0 | E132: 0 | F132: 0 | G132: 0 | H132: 0 | I132: 0 | J132: 0 | K132: 0 | L132: 0 | O132: Annual leave Loading
A134: Last date | B134: =IF(B136<B104,B136,B104) -> 00:00:00 | C134: =IF(C136<B104,C136,B104) -> 00:00:00 | D134: =IF(D136<$B104,D136,$B104) -> 00:00:00 | E134: 00:00:00 | F134: 00:00:00 | G134: 00:00:00 | H134: 00:00:00 | I134: 00:00:00 | J134: 00:00:00 | K134: 00:00:00 | L134: 00:00:00 | O134: Last date | P134: =IF(P136<P104,P136,P104) ->  | Q134: =IF(Q136<P104,Q136,P104) ->  | R134: =IF(R136<$P104,R136,$P104) ->  | S134: =IF(S136<$P104,S136,$P104) -> 
A136: First Day of New Project Year | B136: =(DATE(YEAR(B110)+1,MONTH(B110),DAY(B110))) -> 2018-01-01 | C136: =((DATE(YEAR(C110)+1,MONTH(C110),DAY(C110)))) -> 2019-01-01 | D136: 2020-01-01 | E136: 2021-01-01 | F136: 2022-01-01 | G136: 2023-01-01 | H136: 2024-01-01 | I136: 2025-01-01 | J136: 2026-01-01 | K136: 2027-01-01 | L136: 2028-01-01 | O136: First Day of New Project Year | P136: =(DATE(YEAR(P110)+1,MONTH(P110),DAY(P110))) -> 2018-01-01 | Q136: =((DATE(YEAR(Q110)+1,MONTH(Q110),DAY(Q110)))) -> 2019-01-01 | R136: 2020-01-01 | S136: 2021-01-01 | T136: 2022-01-01 | U136: 2023-01-01 | V136: 2024-01-01 | W136: 2025-01-01
A138: Total Days of Project Year 1 | B138: =B124+B118+B112+B130 -> 0 | C138: 0 | D138: 0 | E138: 0 | F138: 0 | G138: 0 | H138: 0 | I138: 0 | J138: =J124+J118+J112+J130 -> 0 | K138: =K124+K118+K112+K130 -> 0 | L138: =L124+L118+L112+L130 -> 0 | O138: Total Days of Project Year 1 | P138: =P124+P118+P112+P130 -> 
A139: 2 | B139: =(B125+B119+B113+B131+B120+B126+B114)*$B105 -> 0 | C139: =(C125+C119+C113+C131+C120+C126+C114+C132)*$B105 -> 0 | D139: 0 | E139: 0 | F139: 0 | G139: =(G125+G119+G113+G131+G120+G126+G114+G132)*$B105 -> 0 | H139: =(H125+H119+H113+H131+H120+H126+H114+H132)*$B105 -> 0 | I139: 0 | J139: 0 | K139: 0 | L139: 0 | O139: 2 | P139: =(P125+P119+P113+P131+P120+P126+P114)*$P105 ->  | Q139: =(Q125+Q119+Q113+Q131+Q120+Q126+Q114)*$P105 -> 
A141: Position 3 | B141: =VLOOKUP('Staff Calculations'!B146,Increments!B$1:D$155,3,FALSE) ->  | C141: =IF(B141="ARC","No",'3.Continue_Fixed Salary'!$M$12) ->  | O141: Position 3 | P141: =VLOOKUP('Staff Calculations'!P146,Increments!Q$1:S$155,3,FALSE) ->  | Q141: =IF(P141="ARC","No",'3.Continue_Fixed Salary'!$M$12) -> 
A142: Start Date | B142: ='3.Continue_Fixed Salary'!$K$12 -> 00:00:00 | O142: Start Date | P142: ='3.Continue_Fixed Salary'!#REF! -> 
A143: End Date | B143: ='3.Continue_Fixed Salary'!$L$12 -> 00:00:00 | O143: End Date | P143: ='3.Continue_Fixed Salary'!#REF! -> 
A144: FTE | B144: ='3.Continue_Fixed Salary'!$J$12 -> 0 | O144: FTE | P144: ='3.Continue_Fixed Salary'!#REF! -> 
A145: Commencing Salary | B145: ='3.Continue_Fixed Salary'!$P$12 -> 0 | O145: Commencing Salary | P145: ='3.Continue_Fixed Salary'!#REF! -> 
A146: Level & Step at change | B146: ='3.Continue_Fixed Salary'!$E$12 -> 0 | C146: =IF((YEAR('3.Continue_Fixed Salary'!$K$12))=C148,'3.Continue_Fixed Salary'!$E$12,(IF($C141="No",$B146,(VLOOKUP(C147,Increments!$A$1:$E$169,2,FALSE))))) ->  | D146: =IF((YEAR('3.Continue_Fixed Salary'!$K$12))=D148,'3.Continue_Fixed Salary'!$E$12,(IF($C141="No",$B146,(VLOOKUP(D147,Increments!$A$1:$E$169,2,FALSE))))) ->  | E146: =IF((YEAR('3.Continue_Fixed Salary'!$K$12))=E148,'3.Continue_Fixed Salary'!$E$12,(IF($C141="No",$B146,(VLOOKUP(E147,Increments!$A$1:$E$169,2,FALSE))))) ->  | F146: =IF((YEAR('3.Continue_Fixed Salary'!$K$12))=F148,'3.Continue_Fixed Salary'!$E$12,(IF($C141="No",$E146,(VLOOKUP(F147,Increments!$A$1:$E$169,2,FALSE))))) ->  | G146: =IF((YEAR('3.Continue_Fixed Salary'!$K$12))=G148,'3.Continue_Fixed Salary'!$E$12,(IF($C141="No",$E146,(VLOOKUP(G147,Increments!$A$1:$E$169,2,FALSE))))) ->  | H146: =IF((YEAR('3.Continue_Fixed Salary'!$K$12))=H148,'3.Continue_Fixed Salary'!$E$12,(IF($C141="No",$E146,(VLOOKUP(H147,Increments!$A$1:$E$169,2,FALSE))))) ->  | I146: =IF((YEAR('3.Continue_Fixed Salary'!$K$12))=I148,'3.Continue_Fixed Salary'!$E$12,(IF($C141="No",$E146,(VLOOKUP(I147,Increments!$A$1:$E$169,2,FALSE))))) ->  | J146: =IF((YEAR('3.Continue_Fixed Salary'!$K$12))=J148,'3.Continue_Fixed Salary'!$E$12,(IF($C141="No",$E146,(VLOOKUP(J147,Increments!$A$1:$E$169,2,FALSE))))) ->  | K146: =IF((YEAR('3.Continue_Fixed Salary'!$K$12))=K148,'3.Continue_Fixed Salary'!$E$12,(IF($C141="No",$E146,(VLOOKUP(K147,Increments!$A$1:$E$169,2,FALSE))))) ->  | L146: =IF((YEAR('3.Continue_Fixed Salary'!$K$12))=L148,'3.Continue_Fixed Salary'!$E$12,(IF($C141="No",$E146,(VLOOKUP(L147,Increments!$A$1:$E$169,2,FALSE))))) ->  | O146: Level & Step at change | P146: ='3.Continue_Fixed Salary'!$E$12 -> 0 | Q146: =IF((YEAR('3.Continue_Fixed Salary'!$K$12))=Q148,'3.Continue_Fixed Salary'!$E$12,(IF($C141="No",$B146,(VLOOKUP(Q147,Increments!$A$1:$E$169,2,FALSE))))) ->  | R146: =IF((YEAR('3.Continue_Fixed Salary'!$K$12))=R148,'3.Continue_Fixed Salary'!$E$12,(IF($C141="No",$B146,(VLOOKUP(R147,Increments!$A$1:$E$169,2,FALSE))))) ->  | S146: =IF((YEAR('3.Continue_Fixed Salary'!$K$12))=S148,'3.Continue_Fixed Salary'!$E$12,(IF($C141="No",$B146,(VLOOKUP(S147,Increments!$A$1:$E$169,2,FALSE))))) ->  | T146: =IF((YEAR('3.Continue_Fixed Salary'!$K$12))=T148,'3.Continue_Fixed Salary'!$E$12,(IF($C141="No",$B146,(VLOOKUP(T147,Increments!$A$1:$E$169,2,FALSE))))) ->  | U146: =IF((YEAR('3.Continue_Fixed Salary'!$K$12))=U148,'3.Continue_Fixed Salary'!$E$12,(IF($C141="No",$B146,(VLOOKUP(U147,Increments!$A$1:$E$169,2,FALSE))))) ->  | V146: =IF((YEAR('3.Continue_Fixed Salary'!$K$12))=V148,'3.Continue_Fixed Salary'!$E$12,(IF($C141="No",$B146,(VLOOKUP(V147,Increments!$A$1:$E$169,2,FALSE))))) ->  | W146: =IF((YEAR('3.Continue_Fixed Salary'!$K$12))=W148,'3.Continue_Fixed Salary'!$E$12,(IF($C141="No",$B146,(VLOOKUP(W147,Increments!$A$1:$E$169,2,FALSE))))) -> 
A147: Step Column | B147: =IF((YEAR('3.Continue_Fixed Salary'!$K12))=B148,VLOOKUP($B146,Increments!$B$1:$E$178,2,FALSE),0) -> 0 | C147: =IF((YEAR('3.Continue_Fixed Salary'!$K12))=C148,VLOOKUP($B146,Increments!$B$1:$E$178,2,FALSE),0)+IF(B147=0,0,B147+1) -> 0 | D147: =IF((YEAR('3.Continue_Fixed Salary'!$K12))=D148,VLOOKUP($B146,Increments!$B$1:$E$178,2,FALSE),0)+IF(C147=0,0,C147+1) -> 0 | E147: =IF((YEAR('3.Continue_Fixed Salary'!$K12))=E148,VLOOKUP($B146,Increments!$B$1:$E$178,2,FALSE),0)+IF(D147=0,0,D147+1) -> 0 | F147: =IF((YEAR('3.Continue_Fixed Salary'!$K12))=F148,VLOOKUP($B146,Increments!$B$1:$E$178,2,FALSE),0)+IF(E147=0,0,E147+1) -> 0 | G147: =IF((YEAR('3.Continue_Fixed Salary'!$K12))=G148,VLOOKUP($B146,Increments!$B$1:$E$178,2,FALSE),0)+IF(F147=0,0,F147+1) -> 0 | H147: =IF((YEAR('3.Continue_Fixed Salary'!$K12))=H148,VLOOKUP($B146,Increments!$B$1:$E$178,2,FALSE),0)+IF(G147=0,0,G147+1) -> 0 | I147: =IF((YEAR('3.Continue_Fixed Salary'!$K12))=I148,VLOOKUP($B146,Increments!$B$1:$E$178,2,FALSE),0)+IF(H147=0,0,H147+1) -> 0 | J147: =IF((YEAR('3.Continue_Fixed Salary'!$K12))=J148,VLOOKUP($B146,Increments!$B$1:$E$178,2,FALSE),0)+IF(I147=0,0,I147+1) -> 0 | K147: =IF((YEAR('3.Continue_Fixed Salary'!$K12))=K148,VLOOKUP($B146,Increments!$B$1:$E$178,2,FALSE),0)+IF(J147=0,0,J147+1) -> 0 | L147: =IF((YEAR('3.Continue_Fixed Salary'!$K12))=L148,VLOOKUP($B146,Increments!$B$1:$E$178,2,FALSE),0)+IF(K147=0,0,K147+1) -> 0 | O147: Step Column | P147: =IF((YEAR('3.Continue_Fixed Salary'!$K10))=P148,VLOOKUP($B146,Increments!$B$1:$E$178,2,FALSE),0) -> 0 | Q147: =IF(P147=0,VLOOKUP($B146,Increments!$B$1:$E$170,2,FALSE),P147+1) ->  | R147: =IF(Q147=0,VLOOKUP($B146,Increments!$B$1:$E$170,2,FALSE),Q147+1) ->  | S147: =IF(R147=0,VLOOKUP($B146,Increments!$B$1:$E$170,2,FALSE),R147+1) ->  | T147: =IF(S147=0,VLOOKUP($B146,Increments!$B$1:$E$170,2,FALSE),S147+1) ->  | U147: =IF(T147=0,VLOOKUP($B146,Increments!$B$1:$E$170,2,FALSE),T147+1) ->  | V147: =IF(U147=0,VLOOKUP($B146,Increments!$B$1:$E$170,2,FALSE),U147+1) ->  | W147: =IF(V147=0,VLOOKUP($B146,Increments!$B$1:$E$170,2,FALSE),V147+1) -> 
A148: Year 1 | B148: =YEAR(B149) -> 2017 | C148: =B148+1 -> 2018 | D148: 2019 | E148: 2020 | F148: 2021 | G148: 2022 | H148: 2023 | I148: 2024 | J148: =I148+1 -> 2025 | K148: =J148+1 -> 2026 | L148: =K148+1 -> 2027 | O148: Year 1 | P148: =YEAR(P149) -> 2017 | Q148: =P148+1 -> 2018 | R148: =Q148+1 -> 2019 | S148: =R148+1 -> 2020 | T148: =S148+1 -> 2021 | U148: =T148+1 -> 2022 | V148: =U148+1 -> 2023 | W148: =V148+1 -> 2024
A149: First Day of Project Year | B149: =B$9 -> 2017-01-01 | C149: =C$9 -> 2018-01-01 | D149: 2019-01-01 | E149: 2020-01-01 | F149: 2021-01-01 | G149: 2022-01-01 | H149: 2023-01-01 | I149: 2024-01-01 | J149: 2025-01-01 | K149: 2026-01-01 | L149: 2027-01-01 | O149: First Day of Project Year | P149: =P$9 -> 2017-01-01 | Q149: =Q$9 -> 2018-01-01 | R149: 2019-01-01 | S149: 2020-01-01 | T149: 2021-01-01 | U149: 2022-01-01 | V149: 2023-01-01 | W149: 2024-01-01
A150: FTE Salary | B150: =B145 -> 0 | C150: =B145 -> 0 | D150: =C168 ->  | E150: =D168 ->  | F150: =E168 ->  | G150: =F168 ->  | H150: =G168 ->  | I150: =H168 ->  | J150: =I168 ->  | K150: =J168 ->  | L150: =K168 ->  | O150: FTE Salary | P150: =$P$106 ->  | Q150: =$P$106 -> 
A151: Days at Salary | B151: =IF(OR(B155<=B149,$B143<=B149,B149<$B142),0,(IF((OR(B161<$B143,B155<$B143)),(IF(B155<=B161,(ABS(B149-B155)),(ABS(B149-B161)))),(ABS(B149-$B143))))) -> 0 | C151: 0 | D151: 0 | E151: 0 | F151: 0 | G151: 0 | H151: 0 | I151: 0 | J151: 0 | K151: 0 | L151: 0 | O151: Days at Salary | P151: =IF(OR(P155<=P149,$B143<=P149,P149<$B142),0,(IF((OR(P161<$B143,P155<$B143)),(IF(P155<=P161,(ABS(P149-P155)),(ABS(P149-P161)))),(ABS(P149-$B143))))) -> 0
A152: Amount (Salary) | B152: =IFERROR(((B150/B$18*B151)),0) -> 0 | C152: 0 | D152: 0 | E152: 0 | F152: 0 | G152: 0 | H152: 0 | I152: 0 | J152: 0 | K152: 0 | L152: 0 | O152: Amount (Salary) | P152: =IFERROR(((P150/P$18*P151)),0) -> 0 | Q152: 0 | R152: 0 | S152: 0 | T152: 0 | U152: 0 | V152: 0 | W152: 0
A153: Annual leave Loading | B153: =IF(B151=0,0,(IF(AND((((B152/26.089)*2)*0.175)<1370.3),((B152/26.089)*2)*0.175,1370.3))) -> 0 | C153: =IF(C151=0,0,(IF(AND((((C152/26.089)*2)*0.175)<1370.3),((C152/26.089)*2)*0.175,1370.3))) -> 0 | D153: 0 | E153: 0 | F153: 0 | G153: 0 | H153: 0 | I153: 0 | J153: 0 | K153: 0 | L153: 0 | O153: Annual leave Loading | P153: =IF(P151=0,0,(IF(AND((((P152/26.089)*2)*0.175)<1370.3),((P152/26.089)*2)*0.175,1370.3))) -> 0 | Q153: =IF(Q151=0,0,(IF(AND((((Q152/26.089)*2)*0.175)<1370.3),((Q152/26.089)*2)*0.175,1370.3))) -> 
A155: First Day of Increment | B155: =IF(B149<=(DATE(YEAR(B149),MONTH($B142),DAY($B142))),(DATE(YEAR(B149),MONTH($B142),DAY($B142))),(DATE(YEAR(B149)+1,MONTH($B142),DAY($B142)))) -> 2017-12-31 | C155: =(DATE(YEAR(B155)+1,MONTH($B142),DAY($B142))) -> 2017-12-31 | D155: =(DATE(YEAR(C155)+1,MONTH($B142),DAY($B142))) -> 2017-12-31 | E155: =(DATE(YEAR(D155)+1,MONTH($B142),DAY($B142))) -> 2017-12-31 | F155: =(DATE(YEAR(E155)+1,MONTH($B142),DAY($B142))) -> 2017-12-31 | G155: =(DATE(YEAR(F155)+1,MONTH($B142),DAY($B142))) -> 2017-12-31 | H155: =(DATE(YEAR(G155)+1,MONTH($B142),DAY($B142))) -> 2017-12-31 | I155: =(DATE(YEAR(H155)+1,MONTH($B142),DAY($B142))) -> 2017-12-31 | J155: =(DATE(YEAR(I155)+1,MONTH($B142),DAY($B142))) -> 2017-12-31 | K155: =(DATE(YEAR(J155)+1,MONTH($B142),DAY($B142))) -> 2017-12-31 | L155: =(DATE(YEAR(K155)+1,MONTH($B142),DAY($B142))) -> 2017-12-31 | O155: First Day of Increment | P155: =IF(P149<=(DATE(YEAR(P149),MONTH($B142),DAY($B142))),(DATE(YEAR(P149),MONTH($B142),DAY($B142))),(DATE(YEAR(P149)+1,MONTH($B142),DAY($B142)))) -> 2017-12-31 | Q155: =(DATE(YEAR(P155)+1,MONTH($P142),DAY($P142))) ->  | R155: =(DATE(YEAR(Q155)+1,MONTH($P142),DAY($P142))) -> 
